Workbook

Sheet A.1 Zdroje HDP_běžné(V)_mil (hidden)
A1: Zdroje hrubého domácího produktu, běžné ceny
A2: Resources of Gross Domestic Product, Current Prices | Q2: mil. Kč / CZK mil.
A3: rok / čtvrtletí | C3: Zemědělství, lesnictví a rybářství | D3: Průmysl, těžba a dobývání | F3: Stavebnictví | G3: Obchod, doprava, ubytování a pohostinství | H3: Informační a komunikační činnosti | I3: Peněžnictví a pojišťovnictví | J3: Činnosti v oblasti nemovitostí | K3: Profesní, vědecké, technické a administrativní činnosti | L3: Veřejná správa a obrana, vzdělávání, zdravotní a sociální péče | M3: Ostatní činnosti | N3: Hrubá přidaná hodnota v základních cenách | O3: Daně z produktů | P3: Dotace na produkty | Q3: HDP v kupních cenách
D4: celkem | E4: z toho: zpracovatelský průmysl
A5: Year / Quarter | C5: Agriculture, forestry and fishing | D5: Manufacturing, mining and quarrying and other industry | F5: Construction | G5: Trade, transportation, accommodation and food service | H5: Information and communication | I5: Financial and insurance activities | J5: Real estate activities | K5: Professional, scientific, technical and administrative activities | L5: Public administration, education, health and social work | M5: Other service activities | N5: Gross value added at basic prices | O5: Taxes on products | P5: Subsidies on products | Q5: GDP at purchaser prices
D6: Total | E6: of which: Manufacturing
A7: ESA 2010 | C7: B.1g | D7: B.1g | E7: B.1g | F7: B.1g | G7: B.1g | H7: B.1g | I7: B.1g | J7: B.1g | K7: B.1g | L7: B.1g | M7: B.1g | N7: B.1g | O7: D.21 | P7: D.31 | Q7: B.1*g
A8: NACE | C8: A | D8: B+C+D+E | E8: C | F8: F | G8: G+H+I | H8: J | I8: K | J8: L | K8: M+N | L8: O+P+Q | M8: R+S+T+U
C9: 1 | D9: 2 | E9: 3 | F9: 4 | G9: 5 | H9: 6 | I9: 7 | J9: 8 | K9: 9 | L9: 10 | M9: 11 | N9: 12=1+2+4+..+11 | O9: 13 | P9: 14 | Q9: 15=12+13-14
A11: 1995 | B11: Q1 | C11: 11113 | D11: 104007 | E11: 72026 | F11: 19012 | G11: 64425 | H11: 8298 | I11: 9797 | J11: 22947 | K11: 20900 | L11: 50402 | M11: 8719 | N11: 319620 | O11: 36536 | P11: 6473 | Q11: 349683
B12: Q2 | C12: 14433 | D12: 109375 | E12: 85150 | F12: 29088 | G12: 76270 | H12: 9277 | I12: 12492 | J12: 23439 | K12: 23337 | L12: 49364 | M12: 8547 | N12: 355622 | O12: 41201 | P12: 6519 | Q12: 390304
B13: Q3 | C13: 24588 | D13: 109147 | E13: 86897 | F13: 28670 | G13: 80714 | H13: 10087 | I13: 13974 | J13: 24023 | K13: 20745 | L13: 52633 | M13: 9815 | N13: 374396 | O13: 42407 | P13: 6195 | Q13: 410608
B14: Q4 | C14: 12774 | D14: 129185 | E14: 97421 | F14: 32459 | G14: 74875 | H14: 14562 | I14: 11833 | J14: 22221 | K14: 26392 | L14: 55261 | M14: 10552 | N14: 390114 | O14: 46885 | P14: 7479 | Q14: 429520
A15: 1996 | B15: Q1 | C15: 13210 | D15: 125758 | E15: 89478 | F15: 25366 | G15: 66881 | H15: 11126 | I15: 11990 | J15: 26356 | K15: 25588 | L15: 57504 | M15: 9116 | N15: 372895 | O15: 41656 | P15: 6178 | Q15: 408373
B16: Q2 | C16: 12869 | D16: 136435 | E16: 108061 | F16: 31886 | G16: 82288 | H16: 12101 | I16: 13052 | J16: 25675 | K16: 25347 | L16: 60668 | M16: 9619 | N16: 409940 | O16: 46930 | P16: 6283 | Q16: 450587
B17: Q3 | C17: 24678 | D17: 128241 | E17: 101622 | F17: 36835 | G17: 91416 | H17: 12882 | I17: 13939 | J17: 26387 | K17: 22030 | L17: 58020 | M17: 9589 | N17: 424017 | O17: 49147 | P17: 6173 | Q17: 466991
B18: Q4 | C18: 15081 | D18: 145134 | E18: 109987 | F18: 38297 | G18: 85230 | H18: 18971 | I18: 13812 | J18: 22943 | K18: 27438 | L18: 63066 | M18: 11136 | N18: 441108 | O18: 52722 | P18: 7159 | Q18: 486671
A19: 1997 | B19: Q1 | C19: 12445 | D19: 133038 | E19: 101111 | F19: 26279 | G19: 77880 | H19: 14461 | I19: 14214 | J19: 28566 | K19: 25509 | L19: 61044 | M19: 9952 | N19: 403388 | O19: 42681 | P19: 6481 | Q19: 439588
B20: Q2 | C20: 13745 | D20: 133771 | E20: 108508 | F20: 31584 | G20: 96624 | H20: 15909 | I20: 18098 | J20: 29009 | K20: 25795 | L20: 66381 | M20: 11488 | N20: 442404 | O20: 49011 | P20: 6852 | Q20: 484563
B21: Q3 | C21: 26284 | D21: 145620 | E21: 124997 | F21: 34324 | G21: 95947 | H21: 17959 | I21: 11134 | J21: 29850 | K21: 23213 | L21: 62552 | M21: 11483 | N21: 458366 | O21: 50672 | P21: 6701 | Q21: 502337
B22: Q4 | C22: 12489 | D22: 160410 | E22: 126393 | F22: 43435 | G22: 90741 | H22: 23445 | I22: 13189 | J22: 27758 | K22: 30067 | L22: 64918 | M22: 13086 | N22: 479538 | O22: 54684 | P22: 7399 | Q22: 526823
A23: 1998 | B23: Q1 | C23: 13286 | D23: 147409 | E23: 115959 | F23: 27426 | G23: 87909 | H23: 16537 | I23: 16688 | J23: 31792 | K23: 25875 | L23: 64053 | M23: 11367 | N23: 442342 | O23: 46914 | P23: 5251 | Q23: 484005
B24: Q2 | C24: 17761 | D24: 150385 | E24: 125556 | F24: 35747 | G24: 104834 | H24: 17637 | I24: 23674 | J24: 33910 | K24: 29480 | L24: 70064 | M24: 12280 | N24: 495772 | O24: 51456 | P24: 5989 | Q24: 541239
B25: Q3 | C25: 31432 | D25: 152574 | E25: 129883 | F25: 41103 | G25: 106291 | H25: 18200 | I25: 17523 | J25: 34613 | K25: 25682 | L25: 67692 | M25: 12497 | N25: 507607 | O25: 52712 | P25: 5809 | Q25: 554510
B26: Q4 | C26: 10482 | D26: 158907 | E26: 124405 | F26: 41090 | G26: 102971 | H26: 24359 | I26: 20383 | J26: 32647 | K26: 34402 | L26: 73765 | M26: 14131 | N26: 513137 | O26: 55751 | P26: 6055 | Q26: 562833
A27: 1999 | B27: Q1 | C27: 12569 | D27: 147969 | E27: 113843 | F27: 28232 | G27: 92853 | H27: 16998 | I27: 16047 | J27: 36033 | K27: 28258 | L27: 68307 | M27: 11763 | N27: 459029 | O27: 50173 | P27: 5873 | Q27: 503329
B28: Q2 | C28: 15460 | D28: 157462 | E28: 132256 | F28: 34662 | G28: 111605 | H28: 18176 | I28: 21071 | J28: 37234 | K28: 29615 | L28: 73928 | M28: 12686 | N28: 511899 | O28: 56287 | P28: 6774 | Q28: 561412
B29: Q3 | C29: 30502 | D29: 150184 | E29: 131254 | F29: 37972 | G29: 114932 | H29: 19225 | I29: 17073 | J29: 39986 | K29: 27318 | L29: 70731 | M29: 12955 | N29: 520878 | O29: 57701 | P29: 6690 | Q29: 571889
B30: Q4 | C30: 11430 | D30: 168673 | E30: 134178 | F30: 40449 | G30: 113571 | H30: 26142 | I30: 20614 | J30: 37720 | K30: 35449 | L30: 75932 | M30: 14969 | N30: 544949 | O30: 62304 | P30: 6583 | Q30: 600670
A31: 2000 | B31: Q1 | C31: 13099 | D31: 156062 | E31: 123337 | F31: 27837 | G31: 100394 | H31: 19764 | I31: 16297 | J31: 43436 | K31: 30142 | L31: 70713 | M31: 12193 | N31: 489937 | O31: 51637 | P31: 6481 | Q31: 535093
B32: Q2 | C32: 17097 | D32: 168990 | E32: 145588 | F32: 31158 | G32: 120661 | H32: 20885 | I32: 17097 | J32: 44885 | K32: 32057 | L32: 77138 | M32: 13906 | N32: 543874 | O32: 57720 | P32: 7367 | Q32: 594227
B33: Q3 | C33: 31968 | D33: 160752 | E33: 141129 | F33: 37501 | G33: 127802 | H33: 22234 | I33: 16669 | J33: 45160 | K33: 27816 | L33: 73201 | M33: 13847 | N33: 556950 | O33: 59254 | P33: 7338 | Q33: 608866
B34: Q4 | C34: 11947 | D34: 182202 | E34: 151727 | F34: 41550 | G34: 121293 | H34: 28552 | I34: 17957 | J34: 42297 | K34: 36736 | L34: 78588 | M34: 16074 | N34: 577196 | O34: 64599 | P34: 7351 | Q34: 634444
A35: 2001 | B35: Q1 | C35: 13976 | D35: 174334 | E35: 140532 | F35: 27321 | G35: 107161 | H35: 21432 | I35: 19576 | J35: 46155 | K35: 30452 | L35: 75565 | M35: 12832 | N35: 528804 | O35: 55697 | P35: 5626 | Q35: 578875
B36: Q2 | C36: 17884 | D36: 182652 | E36: 157209 | F36: 32331 | G36: 129056 | H36: 22810 | I36: 22342 | J36: 47058 | K36: 34020 | L36: 82891 | M36: 14544 | N36: 585588 | O36: 60634 | P36: 6628 | Q36: 639594
B37: Q3 | C37: 32025 | D37: 179179 | E37: 154154 | F37: 40346 | G37: 133275 | H37: 24199 | I37: 18880 | J37: 47079 | K37: 31153 | L37: 80262 | M37: 13930 | N37: 600328 | O37: 61723 | P37: 6518 | Q37: 655533
B38: Q4 | C38: 13335 | D38: 200094 | E38: 161152 | F38: 43938 | G38: 131886 | H38: 31486 | I38: 17069 | J38: 43051 | K38: 42868 | L38: 88740 | M38: 16698 | N38: 629165 | O38: 66063 | P38: 6551 | Q38: 688677
A39: 2002 | B39: Q1 | C39: 14188 | D39: 180964 | E39: 141239 | F39: 29845 | G39: 113233 | H39: 23928 | I39: 17083 | J39: 46346 | K39: 35682 | L39: 86203 | M39: 13593 | N39: 561065 | O39: 57678 | P39: 6930 | Q39: 611813
B40: Q2 | C40: 16856 | D40: 181497 | E40: 151735 | F40: 35737 | G40: 137285 | H40: 25555 | I40: 17655 | J40: 48332 | K40: 41391 | L40: 96363 | M40: 15953 | N40: 616624 | O40: 62371 | P40: 7382 | Q40: 671613
B41: Q3 | C41: 26919 | D41: 180298 | E41: 153250 | F41: 43625 | G41: 140193 | H41: 26880 | I41: 16693 | J41: 50954 | K41: 37477 | L41: 89302 | M41: 15451 | N41: 627792 | O41: 64368 | P41: 7730 | Q41: 684430
B42: Q4 | C42: 10768 | D42: 195542 | E42: 155998 | F42: 44232 | G42: 133080 | H42: 33716 | I42: 14101 | J42: 47987 | K42: 49907 | L42: 98373 | M42: 18039 | N42: 645745 | O42: 68824 | P42: 7791 | Q42: 706778
A43: 2003 | B43: Q1 | C43: 12550 | D43: 185248 | E43: 144741 | F43: 28537 | G43: 116659 | H43: 25677 | I43: 22430 | J43: 50918 | K43: 34932 | L43: 95096 | M43: 15335 | N43: 587382 | O43: 61486 | P43: 9178 | Q43: 639690
B44: Q2 | C44: 16387 | D44: 189140 | E44: 158644 | F44: 41180 | G44: 132563 | H44: 27548 | I44: 23583 | J44: 52543 | K44: 42827 | L44: 103330 | M44: 15835 | N44: 644936 | O44: 67121 | P44: 9391 | Q44: 702666
B45: Q3 | C45: 28082 | D45: 185685 | E45: 159742 | F45: 48577 | G45: 144477 | H45: 29205 | I45: 21702 | J45: 50657 | K45: 39611 | L45: 94900 | M45: 16542 | N45: 659438 | O45: 69549 | P45: 10023 | Q45: 718964
B46: Q4 | C46: 9355 | D46: 191156 | E46: 154182 | F46: 47240 | G46: 153514 | H46: 37771 | I46: 19016 | J46: 47555 | K46: 47159 | L46: 101574 | M46: 21334 | N46: 675674 | O46: 74206 | P46: 10037 | Q46: 739843
A47: 2004 | B47: Q1 | C47: 12517 | D47: 207474 | E47: 163354 | F47: 32200 | G47: 121764 | H47: 28944 | I47: 23770 | J47: 52138 | K47: 35215 | L47: 99217 | M47: 17341 | N47: 630580 | O47: 72106 | P47: 8262 | Q47: 694424
B48: Q2 | C48: 15995 | D48: 207552 | E48: 173245 | F48: 43452 | G48: 139719 | H48: 30102 | I48: 24625 | J48: 52774 | K48: 48226 | L48: 103658 | M48: 17452 | N48: 683555 | O48: 79696 | P48: 9206 | Q48: 754045
B49: Q3 | C49: 30403 | D49: 205208 | E49: 173689 | F49: 52510 | G49: 148060 | H49: 28471 | I49: 23276 | J49: 53623 | K49: 44773 | L49: 99918 | M49: 16406 | N49: 702648 | O49: 82857 | P49: 9114 | Q49: 776391
B50: Q4 | C50: 11694 | D50: 239455 | E50: 193662 | F50: 55441 | G50: 156155 | H50: 37172 | I50: 20441 | J50: 55919 | K50: 51352 | L50: 108663 | M50: 19791 | N50: 756083 | O50: 86287 | P50: 9570 | Q50: 832800
A51: 2005 | B51: Q1 | C51: 13571 | D51: 221690 | E51: 174074 | F51: 34675 | G51: 129820 | H51: 31701 | I51: 24363 | J51: 55245 | K51: 39343 | L51: 106898 | M51: 17114 | N51: 674420 | O51: 81557 | P51: 7808 | Q51: 748169
B52: Q2 | C52: 20205 | D52: 230048 | E52: 192902 | F52: 48798 | G52: 145181 | H52: 34354 | I52: 24803 | J52: 59722 | K52: 47043 | L52: 110732 | M52: 17553 | N52: 738439 | O52: 86303 | P52: 8642 | Q52: 816100
B53: Q3 | C53: 26768 | D53: 221065 | E53: 188240 | F53: 57230 | G53: 148781 | H53: 33660 | I53: 24664 | J53: 59489 | K53: 46848 | L53: 109947 | M53: 16531 | N53: 744983 | O53: 86484 | P53: 8137 | Q53: 823330
B54: Q4 | C54: 11646 | D54: 242449 | E54: 196798 | F54: 56326 | G54: 163263 | H54: 43526 | I54: 20083 | J54: 61780 | K54: 57186 | L54: 114593 | M54: 20769 | N54: 791621 | O54: 88415 | P54: 9663 | Q54: 870373
A55: 2006 | B55: Q1 | C55: 12999 | D55: 250283 | E55: 192317 | F55: 32254 | G55: 137173 | H55: 35581 | I55: 23402 | J55: 61495 | K55: 40065 | L55: 112633 | M55: 17277 | N55: 723162 | O55: 83100 | P55: 8460 | Q55: 797802
B56: Q2 | C56: 19446 | D56: 249381 | E56: 206432 | F56: 49721 | G56: 155211 | H56: 38358 | I56: 29335 | J56: 64049 | K56: 50589 | L56: 116837 | M56: 19342 | N56: 792269 | O56: 87163 | P56: 9022 | Q56: 870410
B57: Q3 | C57: 27976 | D57: 251640 | E57: 213224 | F57: 59321 | G57: 164438 | H57: 38247 | I57: 24638 | J57: 63455 | K57: 49726 | L57: 115786 | M57: 19867 | N57: 815094 | O57: 90222 | P57: 8879 | Q57: 896437
B58: Q4 | C58: 12400 | D58: 263640 | E58: 215424 | F58: 61959 | G58: 179640 | H58: 48783 | I58: 22445 | J58: 65285 | K58: 62837 | L58: 120142 | M58: 23757 | N58: 860888 | O58: 91614 | P58: 10020 | Q58: 942482
A59: 2007 | B59: Q1 | C59: 12963 | D59: 272380 | E59: 214909 | F59: 38930 | G59: 149871 | H59: 40914 | I59: 31674 | J59: 66205 | K59: 48643 | L59: 120276 | M59: 19762 | N59: 801618 | O59: 89541 | P59: 8738 | Q59: 882421
B60: Q2 | C60: 19125 | D60: 276643 | E60: 233316 | F60: 54023 | G60: 166845 | H60: 44004 | I60: 34190 | J60: 65734 | K60: 58318 | L60: 123396 | M60: 20555 | N60: 862833 | O60: 95739 | P60: 9329 | Q60: 949243
B61: Q3 | C61: 31678 | D61: 266402 | E61: 225824 | F61: 63493 | G61: 175796 | H61: 44266 | I61: 32069 | J61: 68566 | K61: 56756 | L61: 121408 | M61: 20651 | N61: 881085 | O61: 105026 | P61: 9210 | Q61: 976901
B62: Q4 | C62: 11623 | D62: 287040 | E62: 227701 | F62: 69231 | G62: 188966 | H62: 52371 | I62: 28831 | J62: 74029 | K62: 67699 | L62: 125042 | M62: 23096 | N62: 927928 | O62: 105240 | P62: 9914 | Q62: 1023254
A63: 2008 | B63: Q1 | C63: 16204 | D63: 283651 | E63: 213916 | F63: 40392 | G63: 157870 | H63: 43370 | I63: 35060 | J63: 70865 | K63: 52864 | L63: 123932 | M63: 19312 | N63: 843520 | O63: 92462 | P63: 9310 | Q63: 926672
B64: Q2 | C64: 22285 | D64: 288807 | E64: 237983 | F64: 59770 | G64: 172613 | H64: 45572 | I64: 39421 | J64: 76034 | K64: 66324 | L64: 128867 | M64: 20168 | N64: 919861 | O64: 105030 | P64: 10342 | Q64: 1014549
B65: Q3 | C65: 33517 | D65: 279616 | E65: 229649 | F65: 72858 | G65: 180296 | H65: 45568 | I65: 37885 | J65: 78475 | K65: 63560 | L65: 129072 | M65: 20428 | N65: 941275 | O65: 107851 | P65: 9802 | Q65: 1039324
B66: Q4 | C66: 5794 | D66: 283343 | E66: 213237 | F66: 66287 | G66: 187196 | H66: 53571 | I66: 37625 | J66: 80623 | K66: 70761 | L66: 135188 | M66: 22069 | N66: 942457 | O66: 102391 | P66: 10047 | Q66: 1034801
A67: 2009 | B67: Q1 | C67: 12284 | D67: 277549 | E67: 195678 | F67: 40796 | G67: 147614 | H67: 43086 | I67: 38908 | J67: 81290 | K67: 53686 | L67: 129934 | M67: 19230 | N67: 844377 | O67: 95552 | P67: 10561 | Q67: 929368
B68: Q2 | C68: 18328 | D68: 263980 | E68: 211500 | F68: 60131 | G68: 160181 | H68: 46005 | I68: 41947 | J68: 81829 | K68: 60926 | L68: 134148 | M68: 20727 | N68: 888202 | O68: 104176 | P68: 11452 | Q68: 980926
B69: Q3 | C69: 24384 | D69: 251978 | E69: 201853 | F69: 68297 | G69: 168158 | H69: 45291 | I69: 39028 | J69: 78870 | K69: 60991 | L69: 135806 | M69: 20327 | N69: 893130 | O69: 105586 | P69: 11454 | Q69: 987262
B70: Q4 | C70: 9529 | D70: 273845 | E70: 203533 | F70: 69966 | G70: 170466 | H70: 54235 | I70: 39908 | J70: 79462 | K70: 68061 | L70: 140695 | M70: 21296 | N70: 927463 | O70: 109278 | P70: 12470 | Q70: 1024271
A71: 2010 | B71: Q1 | C71: 9652 | D71: 262945 | E71: 194946 | F71: 38898 | G71: 149979 | H71: 43489 | I71: 41383 | J71: 79728 | K71: 52435 | L71: 133731 | M71: 18120 | N71: 830360 | O71: 97857 | P71: 13679 | Q71: 914538
B72: Q2 | C72: 14415 | D72: 277784 | E72: 225059 | F72: 63176 | G72: 166837 | H72: 45301 | I72: 44841 | J72: 78996 | K72: 59642 | L72: 134966 | M72: 20256 | N72: 906214 | O72: 108125 | P72: 14226 | Q72: 1000113
B73: Q3 | C73: 24796 | D73: 261594 | E73: 213791 | F73: 70909 | G73: 175392 | H73: 43657 | I73: 40243 | J73: 78589 | K73: 58867 | L73: 135699 | M73: 20713 | N73: 910459 | O73: 108620 | P73: 14379 | Q73: 1004700
B74: Q4 | C74: 11354 | D74: 269411 | E74: 206350 | F74: 73144 | G74: 175973 | H74: 51305 | I74: 43116 | J74: 84941 | K74: 66235 | L74: 138500 | M74: 21857 | N74: 935836 | O74: 113267 | P74: 14803 | Q74: 1034300
A75: 2011 | B75: Q1 | C75: 17582 | D75: 275118 | E75: 205996 | F75: 32881 | G75: 148207 | H75: 43830 | I75: 42447 | J75: 81462 | K75: 51934 | L75: 133198 | M75: 20168 | N75: 846827 | O75: 106322 | P75: 19058 | Q75: 934091
B76: Q2 | C76: 20568 | D76: 288063 | E76: 230779 | F76: 57728 | G76: 167359 | H76: 46158 | I76: 42501 | J76: 80200 | K76: 60220 | L76: 134120 | M76: 20695 | N76: 917612 | O76: 116460 | P76: 19644 | Q76: 1014428
B77: Q3 | C77: 36128 | D77: 271076 | E77: 223328 | F77: 63262 | G77: 171270 | H77: 44826 | I77: 42739 | J77: 77640 | K77: 59682 | L77: 135276 | M77: 21119 | N77: 923018 | O77: 117025 | P77: 19571 | Q77: 1020472
B78: Q4 | C78: 12370 | D78: 288424 | E78: 229677 | F78: 70858 | G78: 175104 | H78: 52599 | I78: 42422 | J78: 80631 | K78: 66645 | L78: 137490 | M78: 22627 | N78: 949170 | O78: 124313 | P78: 20064 | Q78: 1053419
A79: 2012 | B79: Q1 | C79: 17915 | D79: 290417 | E79: 220346 | F79: 31354 | G79: 151192 | H79: 44158 | I79: 42137 | J79: 82318 | K79: 52778 | L79: 134674 | M79: 19738 | N79: 866681 | O79: 108038 | P79: 19695 | Q79: 955024
B80: Q2 | C80: 19945 | D80: 294936 | E80: 238811 | F80: 54744 | G80: 165771 | H80: 46194 | I80: 40977 | J80: 81401 | K80: 60358 | L80: 135121 | M80: 19995 | N80: 919442 | O80: 119436 | P80: 20492 | Q80: 1018386
B81: Q3 | C81: 41655 | D81: 266711 | E81: 221266 | F81: 60242 | G81: 168523 | H81: 44131 | I81: 40578 | J81: 79294 | K81: 58434 | L81: 136023 | M81: 20054 | N81: 915645 | O81: 123852 | P81: 20370 | Q81: 1019127
B82: Q4 | C82: 14705 | D82: 284789 | E82: 226305 | F82: 66060 | G82: 176927 | H82: 51998 | I82: 39557 | J82: 82630 | K82: 66000 | L82: 137659 | M82: 22034 | N82: 942359 | O82: 133855 | P82: 21076 | Q82: 1055138
A83: 2013 | B83: Q1 | C83: 18062 | D83: 279817 | E83: 216344 | F83: 31043 | G83: 147951 | H83: 43783 | I83: 43925 | J83: 81834 | K83: 53723 | L83: 135383 | M83: 20532 | N83: 856053 | O83: 109020 | P83: 21637 | Q83: 943436
B84: Q2 | C84: 19630 | D84: 293950 | E84: 235233 | F84: 50610 | G84: 168527 | H84: 45310 | I84: 43481 | J84: 81719 | K84: 59631 | L84: 135881 | M84: 20590 | N84: 919329 | O84: 121962 | P84: 22658 | Q84: 1018633
B85: Q3 | C85: 43395 | D85: 274448 | E85: 223565 | F85: 56288 | G85: 170951 | H85: 40950 | I85: 44058 | J85: 81148 | K85: 60015 | L85: 137455 | M85: 20962 | N85: 929670 | O85: 131319 | P85: 22613 | Q85: 1038376
B86: Q4 | C86: 14479 | D86: 292206 | E86: 236909 | F86: 66388 | G86: 175262 | H86: 51772 | I86: 44166 | J86: 84874 | K86: 68296 | L86: 140076 | M86: 22155 | N86: 959674 | O86: 149420 | P86: 23279 | Q86: 1085815
A87: 2014 | B87: Q1 | C87: 19989 | D87: 309846 | E87: 244399 | F87: 32589 | G87: 153855 | H87: 43303 | I87: 43515 | J87: 81341 | K87: 56404 | L87: 139877 | M87: 20788 | N87: 901507 | O87: 111613 | P87: 23386 | Q87: 989734
B88: Q2 | C88: 21768 | D88: 327032 | E88: 270728 | F88: 50314 | G88: 175369 | H88: 46316 | I88: 42713 | J88: 80647 | K88: 64131 | L88: 142555 | M88: 21152 | N88: 971997 | O88: 122846 | P88: 25139 | Q88: 1069704
B89: Q3 | C89: 45464 | D89: 307697 | E89: 258466 | F89: 60237 | G89: 177049 | H89: 44191 | I89: 40732 | J89: 80357 | K89: 64586 | L89: 144620 | M89: 21640 | N89: 986573 | O89: 132968 | P89: 25413 | Q89: 1094128
B90: Q4
A92: 1995 | C92: 62908 | D92: 451714 | E92: 341494 | F92: 109229 | G92: 296284 | H92: 42224 | I92: 48096 | J92: 92630 | K92: 91374 | L92: 207660 | M92: 37633 | N92: 1439752 | O92: 167029 | P92: 26666 | Q92: 1580115
A93: 1996 | C93: 65838 | D93: 535568 | E93: 409148 | F93: 132384 | G93: 325815 | H93: 55080 | I93: 52793 | J93: 101361 | K93: 100403 | L93: 239258 | M93: 39460 | N93: 1647960 | O93: 190455 | P93: 25793 | Q93: 1812622
A94: 1997 | C94: 64963 | D94: 572839 | E94: 461009 | F94: 135622 | G94: 361192 | H94: 71774 | I94: 56635 | J94: 115183 | K94: 104584 | L94: 254895 | M94: 46009 | N94: 1783696 | O94: 197048 | P94: 27433 | Q94: 1953311
A95: 1998 | C95: 72961 | D95: 609275 | E95: 495803 | F95: 145366 | G95: 402005 | H95: 76733 | I95: 78268 | J95: 132962 | K95: 115439 | L95: 275574 | M95: 50275 | N95: 1958858 | O95: 206833 | P95: 23104 | Q95: 2142587
A96: 1999 | C96: 69961 | D96: 624288 | E96: 511531 | F96: 141315 | G96: 432961 | H96: 80541 | I96: 74805 | J96: 150973 | K96: 120640 | L96: 288898 | M96: 52373 | N96: 2036755 | O96: 226465 | P96: 25920 | Q96: 2237300
A97: 2000 | C97: 74111 | D97: 668006 | E97: 561781 | F97: 138046 | G97: 470150 | H97: 91435 | I97: 68020 | J97: 175778 | K97: 126751 | L97: 299640 | M97: 56020 | N97: 2167957 | O97: 233210 | P97: 28537 | Q97: 2372630
A98: 2001 | C98: 77220 | D98: 736259 | E98: 613047 | F98: 143936 | G98: 501378 | H98: 99927 | I98: 77867 | J98: 183343 | K98: 138493 | L98: 327458 | M98: 58004 | N98: 2343885 | O98: 244117 | P98: 25323 | Q98: 2562679
A99: 2002 | C99: 68731 | D99: 738301 | E99: 602222 | F99: 153439 | G99: 523791 | H99: 110079 | I99: 65532 | J99: 193619 | K99: 164457 | L99: 370241 | M99: 63036 | N99: 2451226 | O99: 253241 | P99: 29833 | Q99: 2674634
A100: 2003 | C100: 66374 | D100: 751229 | E100: 617309 | F100: 165534 | G100: 547213 | H100: 120201 | I100: 86731 | J100: 201673 | K100: 164529 | L100: 394900 | M100: 69046 | N100: 2567430 | O100: 272362 | P100: 38629 | Q100: 2801163
A101: 2004 | C101: 70609 | D101: 859689 | E101: 703950 | F101: 183603 | G101: 565698 | H101: 124689 | I101: 92112 | J101: 214454 | K101: 179566 | L101: 411456 | M101: 70990 | N101: 2772866 | O101: 320946 | P101: 36152 | Q101: 3057660
A102: 2005 | C102: 72190 | D102: 915252 | E102: 752014 | F102: 197029 | G102: 587045 | H102: 143241 | I102: 93913 | J102: 236236 | K102: 190420 | L102: 442170 | M102: 71967 | N102: 2949463 | O102: 342759 | P102: 34250 | Q102: 3257972
A103: 2006 | C103: 72821 | D103: 1014944 | E103: 827397 | F103: 203255 | G103: 636462 | H103: 160969 | I103: 99820 | J103: 254284 | K103: 203217 | L103: 465398 | M103: 80243 | N103: 3191413 | O103: 352099 | P103: 36381 | Q103: 3507131
A104: 2007 | C104: 75389 | D104: 1102465 | E104: 901750 | F104: 225677 | G104: 681478 | H104: 181555 | I104: 126764 | J104: 274534 | K104: 231416 | L104: 490122 | M104: 84064 | N104: 3473464 | O104: 395546 | P104: 37191 | Q104: 3831819
A105: 2008 | C105: 77800 | D105: 1135417 | E105: 894785 | F105: 239307 | G105: 697975 | H105: 188081 | I105: 149991 | J105: 305997 | K105: 253509 | L105: 517059 | M105: 81977 | N105: 3647113 | O105: 407734 | P105: 39501 | Q105: 4015346
A106: 2009 | C106: 64525 | D106: 1067352 | E106: 812564 | F106: 239190 | G106: 646419 | H106: 188617 | I106: 159791 | J106: 321451 | K106: 243664 | L106: 540583 | M106: 81580 | N106: 3553172 | O106: 414592 | P106: 45937 | Q106: 3921827
A107: 2010 | C107: 60217 | D107: 1071734 | E107: 840146 | F107: 246127 | G107: 668181 | H107: 183752 | I107: 169583 | J107: 322254 | K107: 237179 | L107: 542896 | M107: 80946 | N107: 3582869 | O107: 427869 | P107: 57087 | Q107: 3953651
A108: 2011 | C108: 86648 | D108: 1122681 | E108: 889780 | F108: 224729 | G108: 661940 | H108: 187413 | I108: 170109 | J108: 319933 | K108: 238481 | L108: 540084 | M108: 84609 | N108: 3636627 | O108: 464120 | P108: 78337 | Q108: 4022410
A109: 2012 | C109: 94220 | D109: 1136853 | E109: 906728 | F109: 212400 | G109: 662413 | H109: 186481 | I109: 163249 | J109: 325643 | K109: 237570 | L109: 543477 | M109: 81821 | N109: 3644127 | O109: 485181 | P109: 81633 | Q109: 4047675
A110: 2013 | C110: 95566 | D110: 1140421 | E110: 912051 | F110: 204329 | G110: 662691 | H110: 181815 | I110: 175630 | J110: 329575 | K110: 241665 | L110: 548795 | M110: 84239 | N110: 3664726 | O110: 511721 | P110: 90187 | Q110: 4086260
C114: 2013 | D114: Činnosti v oblasti nemovitostí | E114: =J110 -> 329575
D115: Informační a komunikační činnosti | E115: =H110 -> 181815
D116: Obchod, doprava, ubytování a pohostinství | E116: =G110 -> 662691
D117: Ostatní činnosti | E117: =M110 -> 84239
D118: Peněžnictví a pojišťovnictví | E118: =I110 -> 175630
D119: Profesní, vědecké, technické a administrativní činnosti | E119: =K110 -> 241665
D120: Průmysl, těžba a dobývání celkem | E120: =D110 -> 1140421
D121: Stavebnictví | E121: =F110 -> 204329
D122: Veřejná správa a obrana, vzdělávání, zdravotní a sociální péče | E122: =L110 -> 548795
D123: Zemědělství, lesnictví a rybářství | E123: =C110 -> 95566
D124: Zpracovatelský průmysl | E124: =E110 -> 912051

Sheet A.1 Zaměstnanci_osoby(M) (hidden)
A1: Zaměstnanci, osoby
A2: Employees, persons | N2: osoby s jedním zaměstnáním/one-job holder
A3: rok / čtvrtletí | C3: Zaměstnanci celkem | D3: Zemědělství, lesnictví a rybářství | E3: Průmysl, těžba a dobývání | G3: Stavebnictví | H3: Obchod, doprava, ubytování a pohostinství | I3: Informační a komunikační činnosti | J3: Peněžnictví a pojišťovnictví | K3: Činnosti v oblasti nemovitostí | L3: Profesní, vědecké, technické a administrativní činnosti | M3: Veřejná správa a obrana, vzdělávání, zdravotní a sociální péče | N3: Ostatní činnosti
E4: celkem | F4: z toho: zpracovatelský průmysl
A5: Year / Quarter | C5: Employees total | D5: Agriculture, forestry and fishing | E5: Manufacturing, mining and quarrying and other industry | G5: Construction | H5: Trade, transportation, accommodation and food service | I5: Information and communication | J5: Financial and insurance activities | K5: Real estate activities | L5: Professional, scientific, technical and administrative activities | M5: Public administration, education, health and social work | N5: Other service activities
E6: Total | F6: of which: Manufacturing
A8: NACE | D8: A | E8: B+C+D+E | F8: C | G8: F | H8: G+H+I | I8: J | J8: K | K8: L | L8: M+N | M8: O+P+Q | N8: R+S+T+U
C9: 1=2+…+12 | D9: 2 | E9: 3 | F9: 4 | G9: 5 | H9: 6 | I9: 7 | J9: 8 | K9: 9 | L9: 10 | M9: 11 | N9: 12
A11: 1995 | B11: Q1 | C11: 4488762 | D11: 211010 | E11: 1454785 | F11: 1270317 | G11: 387588 | H11: 978073 | I11: 69420 | J11: 62601 | K11: 44211 | L11: 275395 | M11: 910261 | N11: 95418
B12: Q2 | C12: 4489965 | D12: 237684 | E12: 1434164 | F12: 1252312 | G12: 415498 | H12: 966316 | I12: 69095 | J12: 61712 | K12: 43606 | L12: 271651 | M12: 895933 | N12: 94306
B13: Q3 | C13: 4514232 | D13: 253075 | E13: 1434746 | F13: 1252822 | G13: 442039 | H13: 969006 | I13: 69126 | J13: 61737 | K13: 43630 | L13: 273959 | M13: 872535 | N13: 94379
B14: Q4 | C14: 4522042 | D14: 217982 | E14: 1447950 | F14: 1264330 | G14: 429223 | H14: 975169 | I14: 69759 | J14: 62312 | K14: 44025 | L14: 276373 | M14: 904118 | N14: 95131
A15: 1996 | B15: Q1 | C15: 4520840 | D15: 211268 | E15: 1534251 | F15: 1339097 | G15: 372804 | H15: 949943 | I15: 80846 | J15: 72255 | K15: 45596 | L15: 261836 | M15: 887411 | N15: 104630
B16: Q2 | C16: 4505972 | D16: 237274 | E16: 1507663 | F16: 1315893 | G16: 398287 | H16: 935521 | I16: 80153 | J16: 71003 | K16: 44831 | L16: 257443 | M16: 870698 | N16: 103099
B17: Q3 | C17: 4522379 | D17: 252405 | E17: 1505757 | F17: 1314233 | G17: 423091 | H17: 936649 | I17: 80052 | J17: 70907 | K17: 44781 | L17: 258890 | M17: 846834 | N17: 103013
B18: Q4 | C18: 4530472 | D18: 217288 | E18: 1519757 | F18: 1326430 | G18: 410882 | H18: 942748 | I18: 80789 | J18: 71572 | K18: 45192 | L18: 261215 | M18: 877189 | N18: 103840
A19: 1997 | B19: Q1 | C19: 4499427 | D19: 196287 | E19: 1544705 | F19: 1364675 | G19: 346430 | H19: 968378 | I19: 87076 | J19: 79289 | K19: 53589 | L19: 247498 | M19: 874234 | N19: 101941
B20: Q2 | C20: 4483198 | D20: 220471 | E20: 1518870 | F20: 1341863 | G20: 370224 | H20: 954177 | I20: 86411 | J20: 77967 | K20: 52726 | L20: 243481 | M20: 858330 | N20: 100541
B21: Q3 | C21: 4475408 | D21: 233504 | E21: 1509488 | F21: 1333596 | G21: 391311 | H21: 950540 | I21: 85896 | J21: 77490 | K21: 52418 | L21: 243631 | M21: 831160 | N21: 99970
B22: Q4 | C22: 4459300 | D22: 199981 | E22: 1514223 | F22: 1337751 | G22: 377847 | H22: 951155 | I22: 86160 | J22: 77729 | K22: 52574 | L22: 244383 | M22: 855082 | N22: 100166
A23: 1998 | B23: Q1 | C23: 4377259 | D23: 198943 | E23: 1514735 | F23: 1344645 | G23: 323245 | H23: 911839 | I23: 83515 | J23: 79192 | K23: 52109 | L23: 256340 | M23: 853665 | N23: 103676
B24: Q2 | C24: 4361781 | D24: 223516 | E24: 1489441 | F24: 1322181 | G24: 345397 | H24: 898642 | I24: 82873 | J24: 77855 | K24: 51261 | L24: 252242 | M24: 838275 | N24: 102279
B25: Q3 | C25: 4314847 | D25: 235296 | E25: 1467085 | F25: 1302363 | G25: 362024 | H25: 887549 | I25: 81654 | J25: 76687 | K25: 50513 | L25: 250161 | M25: 803046 | N25: 100832
B26: Q4 | C26: 4290882 | D26: 200601 | E26: 1468888 | F26: 1303965 | G26: 348762 | H26: 886287 | I26: 81765 | J26: 76794 | K26: 50578 | L26: 250407 | M26: 825979 | N26: 100821
A27: 1999 | B27: Q1 | C27: 4210954 | D27: 174944 | E27: 1420819 | F27: 1259827 | G27: 298192 | H27: 902629 | I27: 80410 | J27: 78100 | K27: 56738 | L27: 256931 | M27: 845616 | N27: 96575
B28: Q2 | C28: 4204608 | D28: 196961 | E28: 1401144 | F28: 1242392 | G28: 319641 | H28: 892035 | I28: 80057 | J28: 77027 | K28: 55990 | L28: 253508 | M28: 832667 | N28: 95578
B29: Q3 | C29: 4204725 | D29: 209082 | E29: 1396071 | F29: 1237885 | G29: 338812 | H29: 891093 | I29: 79764 | J29: 76730 | K29: 55786 | L29: 254335 | M29: 807751 | N29: 95301
B30: Q4 | C30: 4197554 | D30: 179312 | E30: 1401941 | F30: 1243091 | G30: 327351 | H30: 892346 | I30: 80111 | J30: 77072 | K30: 56030 | L30: 255329 | M30: 832520 | N30: 95542
A31: 2000 | B31: Q1 | C31: 4140941 | D31: 168591 | E31: 1381061 | F31: 1233780 | G31: 272655 | H31: 897129 | I31: 82787 | J31: 80156 | K31: 55758 | L31: 255149 | M31: 850643 | N31: 97012
B32: Q2 | C32: 4152553 | D32: 190894 | E32: 1368449 | F32: 1222488 | G32: 293869 | H32: 890796 | I32: 82832 | J32: 79405 | K32: 55265 | L32: 252949 | M32: 841607 | N32: 96487
B33: Q3 | C33: 4162914 | D33: 203258 | E33: 1367994 | F33: 1222086 | G33: 312366 | H33: 892669 | I33: 82808 | J33: 79377 | K33: 55256 | L33: 254660 | M33: 818023 | N33: 96503
B34: Q4 | C34: 4163239 | D34: 174159 | E34: 1375320 | F34: 1228636 | G34: 302157 | H34: 894930 | I34: 83265 | J34: 79824 | K34: 55557 | L34: 255943 | M34: 845234 | N34: 96850
A35: 2001 | B35: Q1 | C35: 4117435 | D35: 168276 | E35: 1377373 | F35: 1230225 | G35: 260765 | H35: 916385 | I35: 80274 | J35: 80086 | K35: 48488 | L35: 248228 | M35: 838099 | N35: 99461
B36: Q2 | C36: 4122936 | D36: 190478 | E36: 1362956 | F36: 1217368 | G36: 280592 | H36: 908757 | I36: 80247 | J36: 79264 | K36: 48009 | L36: 245742 | M36: 828079 | N36: 98812
B37: Q3 | C37: 4163499 | D37: 204385 | E37: 1372644 | F37: 1225973 | G37: 300551 | H37: 917356 | I37: 80792 | J37: 79795 | K37: 48344 | L37: 249289 | M37: 810784 | N37: 99559
B38: Q4 | C38: 4161415 | D38: 174618 | E38: 1379344 | F38: 1231966 | G38: 290592 | H38: 919175 | I38: 81199 | J38: 80208 | K38: 48583 | L38: 250424 | M38: 837421 | N38: 99851
A39: 2002 | B39: Q1 | C39: 4085649 | D39: 138346 | E39: 1362073 | F39: 1216901 | G39: 264206 | H39: 915431 | I39: 82517 | J39: 72907 | K39: 49667 | L39: 252293 | M39: 846805 | N39: 101404
B40: Q2 | C40: 4147712 | D40: 158530 | E40: 1367924 | F40: 1222072 | G40: 288723 | H40: 921012 | I40: 83667 | J40: 73203 | K40: 49883 | L40: 253452 | M40: 849100 | N40: 102218
B41: Q3 | C41: 4138194 | D41: 168082 | E41: 1361573 | F41: 1216426 | G41: 305474 | H41: 919093 | I41: 83301 | J41: 72872 | K41: 49670 | L41: 254172 | M41: 822144 | N41: 101813
B42: Q4 | C42: 4121262 | D42: 143464 | E42: 1361320 | F42: 1216190 | G42: 294060 | H42: 916428 | I42: 83293 | J42: 72861 | K42: 49661 | L42: 254093 | M42: 844464 | N42: 101618
A43: 2003 | B43: Q1 | C43: 4041523 | D43: 135438 | E43: 1320121 | F43: 1182792 | G43: 257255 | H43: 922652 | I43: 80366 | J43: 70465 | K43: 48483 | L43: 258540 | M43: 842465 | N43: 105738
B44: Q2 | C44: 4024516 | D44: 152575 | E44: 1300593 | F44: 1165295 | G44: 275587 | H44: 911068 | I44: 79978 | J44: 69419 | K44: 47790 | L44: 254863 | M44: 828722 | N44: 103921
B45: Q3 | C45: 4040394 | D45: 162732 | E45: 1303499 | F45: 1167928 | G45: 293527 | H45: 915391 | I45: 80177 | J45: 69587 | K45: 47910 | L45: 257326 | M45: 806095 | N45: 104150
B46: Q4 | C46: 4033696 | D46: 139074 | E46: 1305700 | F46: 1169841 | G46: 283228 | H46: 914279 | I46: 80291 | J46: 69685 | K46: 47980 | L46: 257718 | M46: 831402 | N46: 104339
A47: 2004 | B47: Q1 | C47: 3999094 | D47: 137545 | E47: 1315771 | F47: 1179642 | G47: 259027 | H47: 888337 | I47: 81537 | J47: 68277 | K47: 48086 | L47: 262756 | M47: 832907 | N47: 104851
B48: Q2 | C48: 4045664 | D48: 156481 | E48: 1317004 | F48: 1180687 | G48: 282243 | H48: 890891 | I48: 82403 | J48: 68326 | K48: 48134 | L48: 263072 | M48: 832285 | N48: 104825
B49: Q3 | C49: 4072513 | D49: 166421 | E49: 1323715 | F49: 1186730 | G49: 301406 | H49: 897604 | I49: 82840 | J49: 68684 | K49: 48391 | L49: 266417 | M49: 811653 | N49: 105382
B50: Q4 | C50: 4094248 | D50: 143774 | E50: 1335234 | F50: 1197040 | G50: 292588 | H50: 902673 | I50: 83561 | J50: 69290 | K50: 48806 | L50: 268642 | M50: 843288 | N50: 106392
A51: 2005 | B51: Q1 | C51: 4117791 | D51: 133560 | E51: 1353279 | F51: 1220262 | G51: 271715 | H51: 925127 | I51: 88108 | J51: 67041 | K51: 55138 | L51: 271217 | M51: 850780 | N51: 101826
B52: Q2 | C52: 4159390 | D52: 150794 | E52: 1353366 | F52: 1220332 | G52: 294623 | H52: 926952 | I52: 89001 | J52: 67049 | K52: 55158 | L52: 271323 | M52: 849421 | N52: 101703
B53: Q3 | C53: 4219336 | D53: 160502 | E53: 1372059 | F53: 1237214 | G53: 314635 | H53: 941750 | I53: 90243 | J53: 67990 | K53: 55929 | L53: 276960 | M53: 836047 | N53: 103221
B54: Q4 | C54: 4224687 | D54: 139159 | E54: 1376947 | F54: 1241603 | G54: 305964 | H54: 942449 | I54: 90561 | J54: 68236 | K54: 56123 | L54: 277883 | M54: 863733 | N54: 103632
A55: 2006 | B55: Q1 | C55: 4205588 | D55: 129925 | E55: 1371449 | F55: 1240627 | G55: 275172 | H55: 958246 | I55: 94113 | J55: 69729 | K55: 61112 | L55: 278107 | M55: 862510 | N55: 105225
B56: Q2 | C56: 4226833 | D56: 145891 | E56: 1365013 | F56: 1234867 | G56: 296668 | H56: 955714 | I56: 94661 | J56: 69423 | K56: 60871 | L56: 276928 | M56: 857095 | N56: 104569
B57: Q3 | C57: 4241591 | D57: 155562 | E57: 1368272 | F57: 1237782 | G57: 313714 | H57: 960285 | I57: 94861 | J57: 69577 | K57: 61002 | L57: 279792 | M57: 833716 | N57: 104810
B58: Q4 | C58: 4262341 | D58: 134426 | E58: 1378201 | F58: 1246723 | G58: 306094 | H58: 964396 | I58: 95533 | J58: 70081 | K58: 61428 | L58: 281726 | M58: 864811 | N58: 105645
A59: 2007 | B59: Q1 | C59: 4274914 | D59: 119682 | E59: 1431391 | F59: 1304044 | G59: 270343 | H59: 979780 | I59: 96841 | J59: 70354 | K59: 62213 | L59: 283987 | M59: 852548 | N59: 107775
B60: Q2 | C60: 4327609 | D60: 135181 | E60: 1410866 | F60: 1281687 | G60: 297617 | H60: 991852 | I60: 100173 | J60: 70195 | K60: 58043 | L60: 291271 | M60: 865839 | N60: 106572
B61: Q3 | C61: 4350061 | D61: 145114 | E61: 1399707 | F61: 1270611 | G61: 311630 | H61: 994245 | I61: 102354 | J61: 70541 | K61: 58864 | L61: 306546 | M61: 852898 | N61: 108162
B62: Q4 | C62: 4366632 | D62: 127849 | E62: 1402846 | F62: 1273948 | G62: 306706 | H62: 996967 | I62: 105208 | J62: 73529 | K62: 58240 | L62: 307225 | M62: 879867 | N62: 108195
A63: 2008 | B63: Q1 | C63: 4388364 | D63: 122175 | E63: 1411546 | F63: 1280506 | G63: 283122 | H63: 1012461 | I63: 108535 | J63: 71664 | K63: 68246 | L63: 310434 | M63: 887002 | N63: 113179
B64: Q2 | C64: 4437420 | D64: 137509 | E64: 1414279 | F64: 1283044 | G64: 307348 | H64: 1016367 | I64: 109985 | J64: 71826 | K64: 68427 | L64: 311168 | M64: 887229 | N64: 113282
B65: Q3 | C65: 4472739 | D65: 146729 | E65: 1424168 | F65: 1291978 | G65: 326360 | H65: 1025754 | I65: 110716 | J65: 72319 | K65: 68882 | L65: 315610 | M65: 868071 | N65: 114130
B66: Q4 | C66: 4481446 | D66: 126734 | E66: 1429711 | F66: 1296996 | G66: 317402 | H66: 1026846 | I66: 111149 | J66: 72604 | K66: 69149 | L66: 316759 | M66: 896466 | N66: 114626
A67: 2009 | B67: Q1 | C67: 4375202 | D67: 120150 | E67: 1354336 | F67: 1226062 | G67: 296190 | H67: 1038525 | I67: 113673 | J67: 73698 | K67: 73519 | L67: 309121 | M67: 878439 | N67: 117551
B68: Q2 | C68: 4346141 | D68: 130888 | E68: 1308666 | F68: 1181257 | G68: 323362 | H68: 1031850 | I68: 115606 | J68: 71927 | K68: 67226 | L68: 310321 | M68: 872809 | N68: 113486
B69: Q3 | C69: 4319524 | D69: 138770 | E69: 1279794 | F69: 1154236 | G69: 339815 | H69: 1022237 | I69: 116489 | J69: 71315 | K69: 67194 | L69: 322434 | M69: 848120 | N69: 113356
B70: Q4 | C70: 4303606 | D70: 124155 | E70: 1274425 | F70: 1149892 | G70: 328925 | H70: 1015778 | I70: 119196 | J70: 73693 | K70: 65989 | L70: 320922 | M70: 868036 | N70: 112487
A71: 2010 | B71: Q1 | C71: 4211290 | D71: 103792 | E71: 1246320 | F71: 1124812 | G71: 289417 | H71: 1013412 | I71: 110301 | J71: 73742 | K71: 70327 | L71: 305194 | M71: 883142 | N71: 115643
B72: Q2 | C72: 4248065 | D72: 114556 | E72: 1252337 | F72: 1129825 | G72: 318362 | H72: 1015584 | I72: 111482 | J72: 72298 | K72: 66901 | L72: 310408 | M72: 874060 | N72: 112077
B73: Q3 | C73: 4280020 | D73: 123675 | E73: 1252466 | F73: 1129720 | G73: 338007 | H73: 1022637 | I73: 112576 | J73: 72323 | K73: 67344 | L73: 326624 | M73: 850568 | N73: 113800
B74: Q4 | C74: 4266233 | D74: 110787 | E74: 1253245 | F74: 1131679 | G74: 323881 | H74: 1019270 | I74: 114310 | J74: 74416 | K74: 66188 | L74: 322838 | M74: 870433 | N74: 110865
A75: 2011 | B75: Q1 | C75: 4207326 | D75: 104675 | E75: 1290211 | F75: 1168813 | G75: 269015 | H75: 999999 | I75: 108679 | J75: 74242 | K75: 60713 | L75: 301375 | M75: 881393 | N75: 117024
B76: Q2 | C76: 4239070 | D76: 115926 | E76: 1301303 | F76: 1179578 | G76: 294264 | H76: 1000496 | I76: 108564 | J76: 73288 | K76: 58581 | L76: 305622 | M76: 867617 | N76: 113409
B77: Q3 | C77: 4250833 | D77: 123885 | E77: 1300110 | F77: 1178822 | G77: 309699 | H77: 1006700 | I77: 108491 | J77: 73554 | K77: 58794 | L77: 312673 | M77: 841381 | N77: 115546
B78: Q4 | C78: 4223388 | D78: 112492 | E78: 1284960 | F78: 1164867 | G78: 296513 | H78: 999812 | I78: 109196 | J78: 74790 | K78: 57128 | L78: 310405 | M78: 864723 | N78: 113369
A79: 2012 | B79: Q1 | C79: 4194863 | D79: 104160 | E79: 1292571 | F79: 1171305 | G79: 262189 | H79: 999409 | I79: 108877 | J79: 78305 | K79: 66899 | L79: 306530 | M79: 859625 | N79: 116298
B80: Q2 | C80: 4241685 | D80: 115830 | E80: 1305518 | F80: 1183511 | G80: 290440 | H80: 1001915 | I80: 109559 | J80: 77366 | K80: 64401 | L80: 313287 | M80: 850251 | N80: 113118
B81: Q3 | C81: 4299162 | D81: 125674 | E81: 1314475 | F81: 1191505 | G81: 307855 | H81: 1018031 | I81: 110444 | J81: 78090 | K81: 64256 | L81: 324601 | M81: 838779 | N81: 116957
B82: Q4 | C82: 4285695 | D82: 115001 | E82: 1302370 | F82: 1180900 | G82: 295760 | H82: 1013859 | I82: 112207 | J82: 79306 | K82: 62539 | L82: 323135 | M82: 866147 | N82: 115371
A83: 2013 | B83: Q1 | C83: 4239736 | D83: 109320 | E83: 1302244 | F83: 1181242 | G83: 258355 | H83: 1014519 | I83: 108959 | J83: 78241 | K83: 70613 | L83: 309940 | M83: 869216 | N83: 118329
B84: Q2 | C84: 4297022 | D84: 120607 | E84: 1319714 | F84: 1197284 | G84: 283480 | H84: 1017707 | I84: 109548 | J84: 76105 | K84: 66347 | L84: 316900 | M84: 871450 | N84: 115164
B85: Q3 | C85: 4299507 | D85: 128845 | E85: 1314394 | F85: 1193979 | G85: 294057 | H85: 1019748 | I85: 108302 | J85: 74714 | K85: 63533 | L85: 327283 | M85: 850820 | N85: 117811
B86: Q4 | C86: 4292883 | D86: 118137 | E86: 1310956 | F86: 1192231 | G86: 282532 | H86: 1014694 | I86: 109410 | J86: 75053 | K86: 61951 | L86: 327701 | M86: 876878 | N86: 115571
A87: 2014 | B87: Q1 | C87: 4239537 | D87: 108033 | E87: 1302739 | F87: 1184654 | G87: 245869 | H87: 1009398 | I87: 109171 | J87: 76733 | K87: 73428 | L87: 319622 | M87: 876831 | N87: 117713
B88: Q2 | C88: 4272022 | D88: 118006 | E88: 1318028 | F88: 1200235 | G88: 269537 | H88: 1006994 | I88: 108411 | J88: 73277 | K88: 68708 | L88: 323120 | M88: 872240 | N88: 113701
B89: Q3 | C89: 4324342 | D89: 126991 | E89: 1330228 | F89: 1212495 | G89: 283815 | H89: 1019133 | I89: 108270 | J89: 72762 | K89: 66583 | L89: 335028 | M89: 864116 | N89: 117416
B90: Q4
A92: 1995 | C92: 4503750 | D92: 229938 | E92: 1442911 | F92: 1259945 | G92: 418587 | H92: 972141 | I92: 69350 | J92: 62090 | K92: 43868 | L92: 274345 | M92: 895712 | N92: 94808
A93: 1996 | C93: 4519916 | D93: 229559 | E93: 1516856 | F93: 1323912 | G93: 401266 | H93: 941216 | I93: 80460 | J93: 71434 | K93: 45100 | L93: 259846 | M93: 870533 | N93: 103646
A94: 1997 | C94: 4479333 | D94: 212561 | E94: 1521821 | F94: 1344471 | G94: 371453 | H94: 956062 | I94: 86386 | J94: 78119 | K94: 52827 | L94: 244748 | M94: 854701 | N94: 100655
A95: 1998 | C95: 4336192 | D95: 214589 | E95: 1485038 | F95: 1318289 | G95: 344857 | H95: 896079 | I95: 82452 | J95: 77632 | K95: 51115 | L95: 252287 | M95: 830241 | N95: 101902
A96: 1999 | C96: 4204460 | D96: 190075 | E96: 1404993 | F96: 1245798 | G96: 320999 | H96: 894526 | I96: 80085 | J96: 77232 | K96: 56136 | L96: 255026 | M96: 829639 | N96: 95749
A97: 2000 | C97: 4154912 | D97: 184225 | E97: 1373206 | F97: 1226748 | G97: 295262 | H97: 893881 | I97: 82923 | J97: 79691 | K97: 55459 | L97: 254675 | M97: 838877 | N97: 96713
A98: 2001 | C98: 4141321 | D98: 184439 | E98: 1373079 | F98: 1226383 | G98: 283125 | H98: 915418 | I98: 80628 | J98: 79838 | K98: 48356 | L98: 248421 | M98: 828596 | N98: 99421
A99: 2002 | C99: 4123204 | D99: 152106 | E99: 1363223 | F99: 1217897 | G99: 288116 | H99: 917991 | I99: 83194 | J99: 72961 | K99: 49720 | L99: 253502 | M99: 840628 | N99: 101763
A100: 2003 | C100: 4035032 | D100: 147455 | E100: 1307478 | F100: 1171464 | G100: 277399 | H100: 915847 | I100: 80203 | J100: 69789 | K100: 48041 | L100: 257112 | M100: 827171 | N100: 104537
A101: 2004 | C101: 4052880 | D101: 151055 | E101: 1322931 | F101: 1186025 | G101: 283816 | H101: 894876 | I101: 82586 | J101: 68644 | K101: 48354 | L101: 265222 | M101: 830033 | N101: 105363
A102: 2005 | C102: 4180301 | D102: 146004 | E102: 1363914 | F102: 1229854 | G102: 296734 | H102: 934069 | I102: 89478 | J102: 67579 | K102: 55587 | L102: 274346 | M102: 849995 | N102: 102595
A103: 2006 | C103: 4234088 | D103: 141451 | E103: 1370735 | F103: 1240001 | G103: 297912 | H103: 959660 | I103: 94792 | J103: 69702 | K103: 61103 | L103: 279138 | M103: 854533 | N103: 105062
A104: 2007 | C104: 4329804 | D104: 131957 | E104: 1411202 | F104: 1282572 | G104: 296574 | H104: 990711 | I104: 101144 | J104: 71155 | K104: 59340 | L104: 297257 | M104: 862788 | N104: 107676
A105: 2008 | C105: 4444992 | D105: 133287 | E105: 1419926 | F105: 1288131 | G105: 308558 | H105: 1020357 | I105: 110096 | J105: 72103 | K105: 68676 | L105: 313493 | M105: 884692 | N105: 113804
A106: 2009 | C106: 4336118 | D106: 128491 | E106: 1304306 | F106: 1177862 | G106: 322073 | H106: 1027097 | I106: 116241 | J106: 72658 | K106: 68482 | L106: 315699 | M106: 866851 | N106: 114220
A107: 2010 | C107: 4251402 | D107: 113203 | E107: 1251091 | F107: 1129008 | G107: 317417 | H107: 1017726 | I107: 112167 | J107: 73195 | K107: 67690 | L107: 316266 | M107: 869551 | N107: 113096
A108: 2011 | C108: 4230154 | D108: 114244 | E108: 1294147 | F108: 1173021 | G108: 292373 | H108: 1001752 | I108: 108732 | J108: 73968 | K108: 58804 | L108: 307519 | M108: 863778 | N108: 114837
A109: 2012 | C109: 4255351 | D109: 115166 | E109: 1303734 | F109: 1181806 | G109: 289061 | H109: 1008303 | I109: 110272 | J109: 78267 | K109: 64524 | L109: 316888 | M109: 853700 | N109: 115436
A110: 2013 | C110: 4282287 | D110: 119227 | E110: 1311827 | F110: 1191184 | G110: 279606 | H110: 1016667 | I110: 109055 | J110: 76028 | K110: 65611 | L110: 320456 | M110: 867091 | N110: 116719
D113: 2013 | E113: Činnosti v oblasti nemovitostí | H113: 65611
E114: Informační a komunikační činnosti | H114: 109055
E115: Obchod, doprava, ubytování a pohostinství | H115: 1016667
E116: Ostatní činnosti | H116: 116719
E117: Peněžnictví a pojišťovnictví | H117: 76028
E118: Profesní, vědecké, technické a administrativní činnosti | H118: 320456
E119: Průmysl, těžba a dobývání celkem | H119: 1311827
E120: Stavebnictví | H120: 279606
E121: Veřejná správa a obrana, vzdělávání, zdravotní a sociální péče | H121: 867091
E122: Zemědělství, lesnictví a rybářství | H122: 119227
E123: Zpracovatelský průmysl | H123: 1191184

Sheet A.2 Nezaměstnanost v okresech (hidden)
C6: Okres | D6: Podíl nezaměstnaných uchazečů
C7: Benešov | D7: 0.041
C8: Beroun | D8: 0.058
C9: Blansko | D9: 0.063
C10: Brno-město | D10: 0.088
C11: Brno-venkov | D11: 0.062
C12: Bruntál | D12: 0.123
C13: Břeclav | D13: 0.067
C14: Česká Lípa | D14: 0.075
C15: České Budějovice | D15: 0.049
C16: Český Krumlov | D16: 0.075
C17: Děčín | D17: 0.098
C18: Domažlice | D18: 0.051
C19: Frýdek-Místek | D19: 0.067
C20: Havlíčkův Brod | D20: 0.058
C21: Hlavní město Praha | D21: 0.051
C22: Hodonín | D22: 0.092
C23: Hradec Králové | D23: 0.066
C24: Cheb | D24: 0.061
C25: Chomutov | D25: 0.111
C26: Chrudim | D26: 0.059
C27: Jablonec nad Nisou | D27: 0.068
C28: Jeseník | D28: 0.088
C29: Jičín | D29: 0.047
C30: Jihlava | D30: 0.062
C31: Jindřichův Hradec | D31: 0.047
C32: Karlovy Vary | D32: 0.08
C33: Karviná | D33: 0.12
C34: Kladno | D34: 0.083
C35: Klatovy | D35: 0.053
C36: Kolín | D36: 0.078
C37: Kroměříž | D37: 0.079
C38: Kutná Hora | D38: 0.071
C39: Liberec | D39: 0.081
C40: Litoměřice | D40: 0.089
C41: Louny | D41: 0.096
C42: Mělník | D42: 0.078
C43: Mladá Boleslav | D43: 0.044
C44: Most | D44: 0.127
C45: Náchod | D45: 0.054
C46: Nový Jičín | D46: 0.067
C47: Nymburk | D47: 0.076
C48: Olomouc | D48: 0.081
C49: Opava | D49: 0.076
C50: Ostrava-město | D50: 0.111
C51: Pardubice | D51: 0.049
C52: Pelhřimov | D52: 0.041
C53: Písek | D53: 0.046
C54: Plzeň-jih | D54: 0.046
C55: Plzeň-město | D55: 0.055
C56: Plzeň-sever | D56: 0.052
C57: Praha-východ | D57: 0.033
C58: Praha-západ | D58: 0.044
C59: Prachatice | D59: 0.04
C60: Prostějov | D60: 0.065
C61: Přerov | D61: 0.095
C62: Příbram | D62: 0.083
C63: Rakovník | D63: 0.07
C64: Rokycany | D64: 0.044
C65: Rychnov nad Kněžnou | D65: 0.042
C66: Semily | D66: 0.073
C67: Sokolov | D67: 0.098
C68: Strakonice | D68: 0.065
C69: Svitavy | D69: 0.072
C70: Šumperk | D70: 0.082
C71: Tábor | D71: 0.069
C72: Tachov | D72: 0.065
C73: Teplice | D73: 0.089
C74: Trutnov | D74: 0.075
C75: Třebíč | D75: 0.084
C76: Uherské Hradiště | D76: 0.059
C77: Ústí nad Labem | D77: 0.125
C78: Ústí nad Orlicí | D78: 0.055
C79: Vsetín | D79: 0.077
C80: Vyškov | D80: 0.055
C81: Zlín | D81: 0.061
C82: Znojmo | D82: 0.091
C83: Žďár nad Sázavou | D83: 0.067

Sheet A.3 Oborový multiplikátor (hidden)
B2: A.3 OBOROVÝ MULTIPLIKÁTOR
B8: SIMULACE DOPADŮ JEDNOTKOVÉ INVESTICE DO PRODUKCE, HRUBÉ PŘIDANÉ HODNOTY A HDP
C10: CZ-CPA | D10: Multiplikátor | E10: Pojistná hodnota (v CZK)
C11: 1 Produkty zemědělství a myslivosti | D11: 1.922431203
C12: 2 Produkty lesnictví, těžby dřeva | D12: 1.782094448
C13: 3 Ryby; akvakultura | D13: 1.924151572
C14: 5 Černé a hnědé uhlí a lignit | D14: 1.574826112
C15: 6 Ropa a zemní plyn | D15: 1.522298829
C16: 7 Rudy | D16: 1.4156067
C17: 8 Ostatní těžba a dobývání nerostných surovin | D17: 1.654443588
C18: 9 Podpůrné služby při těžbě | D18: 1.734647422
C19: 10 Potravinářské výrobky | D19: 2.195305473
C20: 11 Nápoje | D20: 1.899059974
C21: 12 Tabákové výrobky | D21: 1.65259054
C22: 13 Textilie | D22: 1.481786866
C23: 14 Oděvy | D23: 1.198344461
C24: 15 Usně a související výrobky | D24: 1.083591496
C25: 16 Dřevo a dřevěné a korkové výrobky | D25: 2.006972269
C26: 17 Papír a výrobky z papíru | D26: 1.696533127
C27: 18 Tiskařské a nahrávací služby | D27: 1.68452193
C28: 19 Koks a rafinované ropné produkty | D28: 1.345565865
C29: 20 Chemické látky a chem. přípravky | D29: 1.628771486
C30: 21 Základní farmaceutické výrobky a přípravky | D30: 1.670175565
C31: 22 Pryžové a plastové výrobky | D31: 1.502975818
C32: 23 Ostatní nekovové minerální výrobky | D32: 1.736204161
C33: 24 Základní kovy | D33: 1.724355482
C34: 25 Kovodělné výrobky | D34: 1.652389504
C35: 26 Počítače, elektron.a optické přístroje | D35: 1.316893498
C36: 27 Elektrická zařízení | D36: 1.369354506
C37: 28 Stroje a zařízení j. n | D37: 1.637031183
C38: 29 Motorová vozidla (kromě motocyklů), přívěsy a návěsy | D38: 1.758938913
C39: 30 Ostatní dopravní prostředky a zařízení | D39: 1.496445032
C40: 31 Nábytek | D40: 1.769572158
C41: 32 Ostatní výrobky zpracovatelského průmyslu | D41: 1.422570499
C42: 33 Opravy, údržba a instalace strojů a zařízení | D42: 1.790708946
C43: 35 Elektřina, plyn, pára a klimatizovaný vzduch | D43: 1.760399466
C44: 36 Přírodní voda; úprava a rozvod vody, obchod s vodou | D44: 1.652888867
C45: 37 Činnosti související s odpadními vodami; | D45: 2.03474969
C46: 38 Shromažďování, sběr a odstraňování odpadů, úprava odpadů k dalšímu využití; | D46: 2.03474969
C47: 39 Sanace a jiné činnosti související s odpady | D47: 2.03474969
C48: 41 Výstavba budov | D48: 2.236298531
C49: 42 Inženýrské stavitelství | D49: 2.960007567
C50: 43 Specializované stavební činnosti | D50: 1.733133594
C51: 45 Velkoobchod, maloobchod a opravy motorových vozidel | D51: 1.742289258
C52: 46 Velkoobchod, kromě motorových vozidel; | D52: 1.778928875
C53: 47 Maloobchod, kromě motorových vozidel | D53: 1.778928875
C54: 49 Pozemní a potrubní doprava | D54: 1.831439295
C55: 50 Vodní doprava | D55: 2.205429743
C56: 51 Letecká doprava | D56: 2.019910037
C57: 52 Skladování a vedlejší činnosti v dopravě | D57: 1.926564409
C58: 53 Poštovní a kurýrní činnosti | D58: 1.579970761
C59: 55 Ubytování | D59: 1.943591566
C60: 56 Stravování a pohostinství | D60: 1.771392522
C61: 58 Vydavatelské činnosti | D61: 1.868739853
C62: 59 Činnosti v oblasti filmů, videozáznamů a televizních programů, pořizování zvukových nahrávek a hudební vydavatelské činnosti | D62: 1.7411457
C63: 60 Tvorba programů a vysílání | D63: 1.777661897
C64: 61 Telekomunikační činnosti | D64: 1.596505809
C65: 62 Činnosti v oblasti informačních technologií | D65: 1.742041689
C66: 63 Informační činnosti | D66: 1.785086862
C67: 64 Finanční zprostředkování, kromě pojišťovnictví a penzijního financování | D67: 1.654535527
C68: 65 Pojištění, zajištění a penzijní financování, kromě povinného sociálního zabezpečení | D68: 2.130263402
C69: 66 Ostatní finanční činnosti | D69: 1.907655752
C70: 68 Činnosti v oblasti nemovitostí | D70: 1.744633629
C71: 69 Právní a účetnické činnosti | D71: 1.615847487
C72: 70 Činnosti vedení podniků; poradenství v oblasti řízení | D72: 1.84567584
C73: 71 Architektonické a inženýrské činnosti; technické zkoušky a analýzy | D73: 2.105782244
C74: 72 Výzkum a vývoj | D74: 1.474685041
C75: 73 Reklama a průzkum trhu | D75: 2.685469718
C76: 74 Ostatní profesní, vědecké a technické činnosti | D76: 2.135516983
C77: 75 Veterinární činnosti | D77: 1.393874091
C78: 77 Činnosti v oblasti pronájmu a operativního leasingu | D78: 1.649553763
C79: 78 Činnosti související se zaměstnáním | D79: 2.203036757
C80: 79 Činnosti cestovních agentur, kanceláří a jiné rezervační a související činnosti | D80: 2.646264091
C81: 80 Bezpečnostní a pátrací činnosti | D81: 1.597940686
C82: 81 Činnosti související se stavbami a úpravou krajiny | D82: 1.751997928
C83: 82 Administrativní, kancelářské a jiné podpůrné činnosti pro podnikání | D83: 1.711176281
C84: 84 Veřejná správa a obrana; povinné sociální zabezpečení | D84: 1.497937304
C85: 85 Vzdělávání | D85: 1.327324181
C86: 86 Zdravotní péče | D86: 1.355962263
C87: 87 Pobytové služby sociální péče | D87: 1.349129936
C88: 88 Ambulantní nebo terénní sociální služby | D88: 1.405049168
C89: 90 Tvůrčí, umělecké a zábavní činnosti | D89: 1.707524302
C90: 91 Činnosti knihoven, archivů, muzeí a jiných kulturních zařízení | D90: 1.585415151
C91: 92 Činnosti heren, kasin a sázkových kanceláří | D91: 1.737815277
C92: 93 Sportovní, zábavní a rekrační činnosti | D92: 2.083370551
C93: 94 Činnosti organizací sdružujících osoby za účelem prosazování společných zájmů | D93: 1.845821262
C94: 95 Opravy počítačů a výrobků pro osobní potřebu a převážně pro domácnost | D94: 1.737944773
C95: 96 Poskytování ostatních osobních služeb; | D95: 1.383316456
C96: 97 Činnosti domácností jako zaměstnavatelů domácího personálu | D96: 1.383316456
C97: 98 Činnosti domácností produkujících blíže neurčené výrobky a služby pro vlastní potřebu | D97: 1.383316456
C98: 99 Činnosti exteritoriálních organizací a orgánů | D98: 1.383316456
C99: Průměrný oborový multiplikátor | D99: 1.720109426

Sheet A.4 GDP svět DivExp (hidden)
A1: Country Name | B1: Country Code | C1: 2005 [YR2005] | D1: 2006 [YR2006] | E1: 2007 [YR2007] | F1: 2008 [YR2008] | G1: 2009 [YR2009] | H1: 2010 [YR2010] | I1: 2011 [YR2011] | J1: 2012 [YR2012] | K1: 2013 [YR2013] | L1: 2014 [YR2014]
A2: Afghanistan | B2: AFG | C2: 6275076016 | D2: 7057597615 | E2: 9843851009 | F2: 1.019053464e+10 | G2: 1.248695047e+10 | H2: 1.593678444e+10 | I2: 1.787015908e+10 | J2: 2.050679525e+10 | K2: 2.072466354e+10 | L2: ..
A3: Albania | B3: ALB | C3: 8376483740 | D3: 9132562332 | E3: 1.070101186e+10 | F3: 1.288135269e+10 | G3: 1.20442129e+10 | H3: 1.192695326e+10 | I3: 1.289086776e+10 | J3: 1.234453254e+10 | K3: 1.290385488e+10 | L3: ..
A4: Algeria | B4: DZA | C4: 1.031986503e+11 | D4: 1.170266553e+11 | E4: 1.349778679e+11 | F4: 1.710001626e+11 | G4: 1.372117954e+11 | H4: 1.61207305e+11 | I4: 1.990708646e+11 | J4: 2.04331018e+11 | K4: 2.101834105e+11 | L4: ..
A5: American Samoa | B5: ASM | C5: .. | D5: .. | E5: .. | F5: .. | G5: .. | H5: .. | I5: .. | J5: .. | K5: .. | L5: ..
A6: Andorra | B6: ADO | C6: 2539759286 | D6: 2823503853 | E6: 3245411584 | F6: 3712034267 | G6: .. | H6: .. | I6: .. | J6: .. | K6: .. | L6: ..
A7: Angola | B7: AGO | C7: 2.823369924e+10 | D7: 4.178949446e+10 | E7: 6.044889097e+10 | F7: 8.4178087e+10 | G7: 7.549241765e+10 | H7: 8.247089487e+10 | I7: 1.041158634e+11 | J7: 1.153321113e+11 | K7: 1.217036387e+11 | L7: ..
A8: Antigua and Barbuda | B8: ATG | C8: 1001970945 | D8: 1141418340 | E8: 1289259236 | F8: 1347407407 | G8: 1206296296 | H8: 1135555556 | I8: 1127037037 | J8: 1194074074 | K8: 1230000000 | L8: ..
A9: Argentina | B9: ARG | C9: 2.229075661e+11 | D9: 2.644897018e+11 | E9: 3.297614801e+11 | F9: 4.060037338e+11 | G9: 3.784962211e+11 | H9: 4.627037937e+11 | I9: 5.577272738e+11 | J9: 6.031530165e+11 | K9: 6.09888971e+11 | L9: ..
A10: Armenia | B10: ARM | C10: 4900436759 | D10: 6384457744 | E10: 9206301700 | F10: 1.166204071e+10 | G10: 8647936748 | H10: 9260287416 | I10: 1.014234277e+10 | J10: 9958217880 | K10: 1.043216957e+10 | L10: ..
A11: Aruba | B11: ABW | C11: 2331005587 | D11: 2421474860 | E11: 2623726257 | F11: 2791960894 | G11: 2498932961 | H11: 2467703911 | I11: 2584463687 | J11: .. | K11: .. | L11: ..
A12: Australia | B12: AUS | C12: 6.936626071e+11 | D12: 7.474633124e+11 | E12: 8.538549109e+11 | F12: 1.055506157e+12 | G12: 9.267103115e+11 | H12: 1.141793594e+12 | I12: 1.386889147e+12 | J12: 1.532407885e+12 | K12: 1.56059715e+12 | L12: ..
A13: Austria | B13: AUT | C13: 3.049836019e+11 | D13: 3.2495447e+11 | E13: 3.750420407e+11 | F13: 4.141712449e+11 | G13: 3.837335515e+11 | H13: 3.776798365e+11 | I13: 4.159842171e+11 | J13: 3.944575356e+11 | K13: 4.156715978e+11 | L13: ..
A14: Azerbaijan | B14: AZE | C14: 1.324542188e+10 | D14: 2.098227073e+10 | E14: 3.305034378e+10 | F14: 4.885248296e+10 | G14: 4.429149042e+10 | H14: 5.290270338e+10 | I14: 6.59516272e+10 | J14: 6.873090631e+10 | K14: 7.356048438e+10 | L14: ..
A15: Bahamas, The | B15: BHS | C15: 7706222000 | D15: 7965588000 | E15: 8318996000 | F15: 8246650000 | G15: 7820420000 | H15: 7888087000 | I15: 7872584000 | J15: 8149004000 | K15: .. | L15: ..
A16: Bahrain | B16: BHR | C16: 1.596915131e+10 | D16: 1.850525086e+10 | E16: 2.173059026e+10 | F16: 2.571114793e+10 | G16: 2.293846472e+10 | H16: 2.571354787e+10 | I16: 2.904437867e+10 | J16: 3.036231794e+10 | K16: 3.278811477e+10 | L16: ..
A17: Bangladesh | B17: BGD | C17: 6.027756098e+10 | D17: 6.190111674e+10 | E17: 6.841542137e+10 | F17: 7.955435068e+10 | G17: 8.935665035e+10 | H17: 1.003601014e+11 | I17: 1.11905616e+11 | J17: 1.160338949e+11 | K17: 1.298566054e+11 | L17: ..
A18: Barbados | B18: BRB | C18: 3891500000 | D18: 4314050000 | E18: 4513250000 | F18: 4541550000 | G18: 4592650000 | H18: 4433700000 | I18: 4368900000 | J18: 4224850000 | K18: .. | L18: ..
A19: Belarus | B19: BLR | C19: 3.021009184e+10 | D19: 3.696191886e+10 | E19: 4.5275712e+10 | F19: 6.076348315e+10 | G19: 4.920865698e+10 | H19: 5.522093261e+10 | I19: 5.97345939e+10 | J19: 6.361544557e+10 | K19: 7.170951365e+10 | L19: ..
A20: Belgium | B20: BEL | C20: 3.773503955e+11 | D20: 3.999657108e+11 | E20: 4.596191682e+11 | F20: 5.073792749e+11 | G20: 4.732543481e+11 | H20: 4.712183017e+11 | I20: 5.133179999e+11 | J20: 4.829180136e+11 | K20: 5.081156935e+11 | L20: ..
A21: Belize | B21: BLZ | C21: 1114200000 | D21: 1217450000 | E21: 1290500000 | F21: 1369500000 | G21: 1338500000 | H21: 1398500000 | I21: 1489000000 | J21: 1572500000 | K21: 1604500000 | L21: ..
A22: Benin | B22: BEN | C22: 4358015993 | D22: 4705087452 | E22: 5506275948 | F22: 6633561835 | G22: 6585134688 | H22: 6558416322 | I22: 7294900431 | J22: 7543183759 | K22: 8307019675 | L22: ..
A23: Bermuda | B23: BMU | C23: 4868136000 | D23: 5414299000 | E23: 5895048000 | F23: 6109928000 | G23: 5806378000 | H23: 5744414000 | I23: 5550771000 | J23: 5473536000 | K23: .. | L23: ..
A24: Bhutan | B24: BTN | C24: 818869145.8 | D24: 897672085.8 | E24: 1196091806 | F24: 1258193519 | G24: 1264758198 | H24: 1585396256 | I24: 1840841618 | J24: 1861157558 | K24: 1883654335 | L24: ..
A25: Bolivia | B25: BOL | C25: 9549196256 | D25: 1.145184534e+10 | E25: 1.312018316e+10 | F25: 1.667432463e+10 | G25: 1.733999217e+10 | H25: 1.964963131e+10 | I25: 2.394854116e+10 | J25: 2.703511013e+10 | K25: 3.060115774e+10 | L25: ..
A26: Bosnia and Herzegovina | B26: BIH | C26: 1.094805112e+10 | D26: 1.240010262e+10 | E26: 1.528061582e+10 | F26: 1.854328939e+10 | G26: 1.708288941e+10 | H26: 1.677591928e+10 | I26: 1.825289644e+10 | J26: 1.685323873e+10 | K26: 1.782771027e+10 | L26: ..
A27: Botswana | B27: BWA | C27: 9931223496 | D27: 1.012699049e+10 | E27: 1.093902816e+10 | F27: 1.111304224e+10 | G27: 1.010683729e+10 | H27: 1.374671271e+10 | I27: 1.529242476e+10 | J27: 1.453749055e+10 | K27: 1.478847619e+10 | L27: ..
A28: Brazil | B28: BRA | C28: 8.821857025e+11 | D28: 1.08891682e+12 | E28: 1.366823995e+12 | F28: 1.653508561e+12 | G28: 1.620188056e+12 | H28: 2.143067872e+12 | I28: 2.476694763e+12 | J28: 2.248780912e+12 | K28: 2.245673032e+12 | L28: ..
A29: Brunei Darussalam | B29: BRN | C29: 9531402830 | D29: 1.1470703e+10 | E29: 1.224769425e+10 | F29: 1.439309907e+10 | G29: 1.073236629e+10 | H29: 1.236970886e+10 | I29: 1.66913604e+10 | J29: 1.695395263e+10 | K29: 1.611113579e+10 | L29: ..
A30: Bulgaria | B30: BGR | C30: 2.889508354e+10 | D30: 3.320918874e+10 | E30: 4.211365615e+10 | F30: 5.182489268e+10 | G30: 4.856871401e+10 | H30: 4.772657574e+10 | I30: 5.354278066e+10 | J30: 5.130365942e+10 | K30: 5.300983985e+10 | L30: ..
A31: Burkina Faso | B31: BFA | C31: 5462709055 | D31: 5844669738 | E31: 6755823933 | F31: 8350710389 | G31: 8348156389 | H31: 9209288383 | I31: 1.039575748e+10 | J31: 1.072630545e+10 | K31: 1.158255607e+10 | L31: ..
A32: Burundi | B32: BDI | C32: 1117254387 | D32: 1273180655 | E32: 1356078300 | F32: 1611634286 | G32: 1739781536 | H32: 2026864414 | I32: 2355652064 | J32: 2472384813 | K32: 2718232385 | L32: ..
A33: Cabo Verde | B33: CPV | C33: 971976952.2 | D33: 1107890815 | E33: 1513934038 | F33: 1789332788 | G33: 1711816593 | H33: 1664310632 | I33: 1864823991 | J33: 1757304419 | K33: 1888123344 | L33: ..
A34: Cambodia | B34: KHM | C34: 6293046162 | D34: 7274424519 | E34: 8639164917 | F34: 1.035182907e+10 | G34: 1.040193553e+10 | H34: 1.124226633e+10 | I34: 1.282954114e+10 | J34: 1.405444321e+10 | K34: 1.52496844e+10 | L34: ..
A35: Cameroon | B35: CMR | C35: 1.658792122e+10 | D35: 1.795310301e+10 | E35: 2.043177903e+10 | F35: 2.373553703e+10 | G35: 2.216500936e+10 | H35: 2.24933017e+10 | I35: 2.548692306e+10 | J35: 2.647263789e+10 | K35: 2.927495749e+10 | L35: ..
A36: Canada | B36: CAN | C36: 1.164179474e+12 | D36: 1.310795189e+12 | E36: 1.457872838e+12 | F36: 1.542560729e+12 | G36: 1.370839154e+12 | H36: 1.614072094e+12 | I36: 1.778632047e+12 | J36: 1.82144545e+12 | K36: 1.826768563e+12 | L36: ..
A37: Cayman Islands | B37: CYM | C37: .. | D37: .. | E37: .. | F37: .. | G37: .. | H37: .. | I37: .. | J37: .. | K37: .. | L37: ..
A38: Central African Republic | B38: CAF | C38: 1350300947 | D38: 1473721521 | E38: 1698125680 | F38: 1985370255 | G38: 1981728179 | H38: 1986014759 | I38: 2195599491 | J38: 2169706411 | K38: 1538175744 | L38: ..
A39: Chad | B39: TCD | C39: 6646663021 | D39: 7422102520 | E39: 8638711757 | F39: 1.035193363e+10 | G39: 9253484290 | H39: 1.065770507e+10 | I39: 1.215638006e+10 | J39: 1.288707208e+10 | K39: 1.341389361e+10 | L39: ..
A40: Channel Islands | B40: CHI | C40: 8827272727 | D40: 9676172953 | E40: 1.151460584e+10 | F40: .. | G40: .. | H40: .. | I40: .. | J40: .. | K40: .. | L40: ..
A41: Chile | B41: CHL | C41: 1.244041501e+11 | D41: 1.546710122e+11 | E41: 1.73006275e+11 | F41: 1.798578067e+11 | G41: 1.723233786e+11 | H41: 2.175019113e+11 | I41: 2.511623166e+11 | J41: 2.66259263e+11 | K41: 2.771987749e+11 | L41: ..
A42: China | B42: CHN | C42: 2.256902591e+12 | D42: 2.712950885e+12 | E42: 3.494055942e+12 | F42: 4.521827271e+12 | G42: 4.990233519e+12 | H42: 5.93050227e+12 | I42: 7.321891955e+12 | J42: 8.22949003e+12 | K42: 9.240270452e+12 | L42: ..
A43: Colombia | B43: COL | C43: 1.465201361e+11 | D43: 1.627736039e+11 | E43: 2.075201503e+11 | F43: 2.440567323e+11 | G43: 2.338216705e+11 | H43: 2.870181846e+11 | I43: 3.354151567e+11 | J43: 3.703280752e+11 | K43: 3.781477733e+11 | L43: ..
A44: Comoros | B44: COM | C44: 387036131.7 | D44: 403179474.4 | E44: 464948879.3 | F44: 530131963.4 | G44: 535199685.9 | H44: 543376206.1 | I44: 610372697.4 | J44: 595898770.3 | K44: 657300888.3 | L44: ..
A45: Congo, Dem. Rep. | B45: ZAR | C45: 1.196448446e+10 | D45: 1.429650593e+10 | E45: 1.636402765e+10 | F45: 1.920606007e+10 | G45: 1.826277377e+10 | H45: 2.052328624e+10 | I45: 2.383163137e+10 | J45: 2.74527954e+10 | K45: 3.062919117e+10 | L45: ..
A46: Congo, Rep. | B46: COG | C46: 6087002682 | D46: 7731261169 | E46: 8394688589 | F46: 1.185901518e+10 | G46: 9593536719 | H46: 1.200788007e+10 | I46: 1.442560679e+10 | J46: 1.367792916e+10 | K46: 1.410813902e+10 | L46: ..
A47: Costa Rica | B47: CRI | C47: 1.996489381e+10 | D47: 2.252646441e+10 | E47: 2.632199961e+10 | F47: 2.983116768e+10 | G47: 2.938269264e+10 | H47: 3.629832767e+10 | I47: 4.123729681e+10 | J47: 4.53747887e+10 | K47: 4.962108948e+10 | L47: ..
A48: Cote d'Ivoire | B48: CIV | C48: 1.636343715e+10 | D48: 1.736730316e+10 | E48: 1.979570525e+10 | F48: 2.341425333e+10 | G48: 2.304163364e+10 | H48: 2.29207796e+10 | I48: 2.407455367e+10 | J48: 2.468037272e+10 | K48: 3.090526039e+10 | L48: ..
A49: Croatia | B49: HRV | C49: 4.482140883e+10 | D49: 4.985507891e+10 | E49: 5.93193903e+10 | F49: 6.95955121e+10 | G49: 6.220261924e+10 | H49: 58873994412 | I49: 6.152090152e+10 | J49: 5.615573296e+10 | K49: 5.753852479e+10 | L49: ..
A50: Cuba | B50: CUB | C50: 42644200000 | D50: 52742100000 | E50: 58603500000 | F50: 60806200000 | G50: 62078610000 | H50: 64328220000 | I50: 68233900000 | J50: .. | K50: .. | L50: ..
A51: Curacao | B51: CUW | C51: .. | D51: .. | E51: .. | F51: .. | G51: .. | H51: .. | I51: .. | J51: .. | K51: .. | L51: ..
A52: Cyprus | B52: CYP | C52: 1.699780139e+10 | D52: 1.843576591e+10 | E52: 2.184181568e+10 | F52: 2.53215175e+10 | G52: 2.354265074e+10 | H52: 2.313245033e+10 | I52: 2.485126494e+10 | J52: 2.276691296e+10 | K52: 2.19114445e+10 | L52: ..
A53: Czech Republic | B53: CZE | C53: 1.300664443e+11 | D53: 1.483740849e+11 | E53: 1.804786222e+11 | F53: 2.25426789e+11 | G53: 1.971871689e+11 | H53: 1.984935793e+11 | I53: 2.160612006e+11 | J53: 1.964462265e+11 | K53: 1.984498844e+11 | L53: ..
A54: Denmark | B54: DNK | C54: 2.576755362e+11 | D54: 2.743769666e+11 | E54: 3.114175543e+11 | F54: 3.438813277e+11 | G54: 3.105449368e+11 | H54: 3.129494183e+11 | I54: 3.337435786e+11 | J54: 3.151643867e+11 | K54: 3.306135955e+11 | L54: ..
A55: Djibouti | B55: DJI | C55: 708633194.7 | D55: 768873684 | E55: 847918929.1 | F55: 999105339.3 | G55: 1198997305 | H55: 1128611700 | I55: 1239144502 | J55: 1353632942 | K55: 1456344495 | L55: ..
A56: Dominica | B56: DMA | C56: 361615917.8 | D56: 382299140.4 | E56: 412592592.6 | F56: 452222222.2 | G56: 482592592.6 | H56: 475185185.2 | I56: 491481481.5 | J56: 495555555.6 | K56: 504814814.8 | L56: ..
A57: Dominican Republic | B57: DOM | C57: 3.396972487e+10 | D57: 3.596504179e+10 | E57: 4.132067351e+10 | F57: 4.579618734e+10 | G57: 4.648496294e+10 | H57: 5.098016705e+10 | I57: 5.543324894e+10 | J57: 5.892050457e+10 | K57: 6.061362598e+10 | L57: ..
A58: Ecuador | B58: ECU | C58: 41507085000 | D58: 46802044000 | E58: 51007777000 | F58: 61762635000 | G58: 62519686000 | H58: 67513698000 | I58: 76769729000 | J58: 84039856000 | K58: 9.002349375e+10 | L58: ..
A59: Egypt, Arab Rep. | B59: EGY | C59: 8.968572489e+10 | D59: 1.074840346e+11 | E59: 1.304778172e+11 | F59: 1.628181818e+11 | G59: 1.889840881e+11 | H59: 2.188878125e+11 | I59: 2.360007357e+11 | J59: 2.628319126e+11 | K59: 2.719728229e+11 | L59: ..
A60: El Salvador | B60: SLV | C60: 17093800000 | D60: 18550700000 | E60: 20104900000 | F60: 21431000000 | G60: 20661000000 | H60: 21418300000 | I60: 23139000000 | J60: 23813600000 | K60: 24259100000 | L60: ..
A61: Equatorial Guinea | B61: GNQ | C61: 6915849240 | D61: 8081982438 | E61: 1.019793767e+10 | F61: 1.541909623e+10 | G61: 9380412630 | H61: 1.158640749e+10 | I61: 1.571584215e+10 | J61: 1.648674375e+10 | K61: 1.557354634e+10 | L61: ..
A62: Eritrea | B62: ERI | C62: 1098425900 | D62: 1211161880 | E62: 1317974493 | F62: 1380188800 | G62: 1856695550 | H62: 2117039511 | I62: 2607739837 | J62: 3091967480 | K62: 3444097561 | L62: ..
A63: Estonia | B63: EST | C63: 1.390556115e+10 | D63: 1.679849886e+10 | E63: 2.199367401e+10 | F63: 2.378154976e+10 | G63: 1.940661702e+10 | H63: 1.903347589e+10 | I63: 2.254296774e+10 | J63: 2.23760425e+10 | K63: 2.447653799e+10 | L63: ..
A64: Ethiopia | B64: ETH | C64: 1.217391939e+10 | D64: 1.500080317e+10 | E64: 1.934664612e+10 | F64: 2.657132072e+10 | G64: 3.184335784e+10 | H64: 2.938561187e+10 | I64: 3.13676067e+10 | J64: 4.280521588e+10 | K64: 4.686929757e+10 | L64: ..
A65: Faeroe Islands | B65: FRO | C65: 1730894295 | D65: 1970135199 | E65: 2278229880 | F65: 2412859693 | G65: 2198138372 | H65: .. | I65: .. | J65: .. | K65: .. | L65: ..
A66: Fiji | B66: FJI | C66: 3006725015 | D66: 3103099942 | E66: 3405050612 | F66: 3629936625 | G66: 2925499821 | H66: 3225095136 | I66: 3753485389 | J66: 4035420973 | K66: 4027913544 | L66: ..
A67: Finland | B67: FIN | C67: 1.957779933e+11 | D67: 2.079494527e+11 | E67: 2.461275256e+11 | F67: 2.719743341e+11 | G67: 2.393826346e+11 | H67: 2.367064365e+11 | I67: 2.623794002e+11 | J67: 2.47143237e+11 | K67: 2.568421187e+11 | L67: ..
A68: France | B68: FRA | C68: 2.136555738e+12 | D68: 2.255706213e+12 | E68: 2.582391514e+12 | F68: 2.831795243e+12 | G68: 2.619685206e+12 | H68: 2.565039333e+12 | I68: 2.782210862e+12 | J68: 2.611221313e+12 | K68: 2.734949065e+12 | L68: ..
A69: French Polynesia | B69: PYF | C69: .. | D69: .. | E69: .. | F69: .. | G69: .. | H69: .. | I69: .. | J69: .. | K69: .. | L69: ..
A70: Gabon | B70: GAB | C70: 8665736618 | D70: 9545982814 | E70: 1.157086087e+10 | F70: 1.568538983e+10 | G70: 1.20312684e+10 | H70: 1.456952712e+10 | I70: 1.879619183e+10 | J70: 1.784381546e+10 | K70: 1.93435066e+10 | L70: ..
A71: Gambia, The | B71: GMB | C71: 624173996.3 | D71: 655068112.3 | E71: 798869805.1 | F71: 965771303 | G71: 900629373 | H71: 951805801.4 | I71: 898282865.9 | J71: 914109100.3 | K71: 914293769.4 | L71: ..
A72: Georgia | B72: GEO | C72: 6411147323 | D72: 7761900179 | E72: 1.017226074e+10 | F72: 1.279933725e+10 | G72: 1.076683628e+10 | H72: 1.163853686e+10 | I72: 1.443461997e+10 | J72: 1.584648459e+10 | K72: 1.612654803e+10 | L72: ..
A73: Germany | B73: DEU | C73: 2.766253793e+12 | D73: 2.902749305e+12 | E73: 3.323809687e+12 | F73: 3.623687767e+12 | G73: 3.298217547e+12 | H73: 3.304439018e+12 | I73: 3.628110015e+12 | J73: 3.425956471e+12 | K73: 3.634822579e+12 | L73: ..
A74: Ghana | B74: GHA | C74: 1.073188314e+10 | D74: 2.041023931e+10 | E74: 2.475760849e+10 | F74: 2.852801651e+10 | G74: 2.597856332e+10 | H74: 3.217421079e+10 | I74: 3.956497007e+10 | J74: 4.174089783e+10 | K74: 4.792871795e+10 | L74: ..
A75: Greece | B75: GRC | C75: 2.400756904e+11 | D75: 2.617126138e+11 | E75: 3.054319815e+11 | F75: 3.415941208e+11 | G75: 3.210159943e+11 | H75: 2.942228766e+11 | I75: 2.898869512e+11 | J75: 2.484242675e+11 | K75: 2.41720741e+11 | L75: ..
A76: Greenland | B76: GRL | C76: 1702543477 | D76: 1738432116 | E76: 2121759848 | F76: 1739579594 | G76: 1267711816 | H76: .. | I76: .. | J76: .. | K76: .. | L76: ..
A77: Grenada | B77: GRD | C77: 700431791.3 | D77: 704762535.9 | E77: 758888875.5 | F77: 825925911.3 | G77: 771481467.9 | H77: 771111097.5 | I77: 778518504.8 | J77: 801481467.3 | K77: 834074059.3 | L77: ..
A78: Guam | B78: GUM | C78: .. | D78: .. | E78: .. | F78: .. | G78: .. | H78: .. | I78: .. | J78: .. | K78: .. | L78: ..
A79: Guatemala | B79: GTM | C79: 2.721123037e+10 | D79: 3.023113054e+10 | E79: 3.411310649e+10 | F79: 3.91364418e+10 | G79: 3.773360616e+10 | H79: 4.133800789e+10 | I79: 4.765478973e+10 | J79: 5.038845486e+10 | K79: 5.379671113e+10 | L79: ..
A80: Guinea | B80: GIN | C80: 2937072009 | D80: 2821346684 | E80: 4134173271 | F80: 4515824643 | G80: 4609923720 | H80: 4735956476 | I80: 5067360041 | J80: 5651088170 | K80: 6192819667 | L80: ..
A81: Guinea-Bissau | B81: GNB | C81: 572853553.5 | D81: 578517348.9 | E81: 690721769.2 | F81: 842890956.1 | G81: 832530156.8 | H81: 835390893 | I81: 967762548.7 | J81: 822320637.8 | K81: 858651121.4 | L81: ..
A82: Guyana | B82: GUY | C82: 824880550.3 | D82: 1458449058 | E82: 1740334782 | F82: 1922598121 | G82: 2025565089 | H82: 2259288396 | I82: 2576602497 | J82: 2851154076 | K82: 3075733571 | L82: ..
A83: Haiti | B83: HTI | C83: 4154289832 | D83: 4879738636 | E83: 5885325590 | F83: 6548530572 | G83: 6584649419 | H83: 6622541529 | I83: 7516834160 | J83: 7890216508 | K83: 8459326660 | L83: ..
A84: Honduras | B84: HND | C84: 9672006169 | D84: 1.084172335e+10 | E84: 1.227549127e+10 | F84: 1.378972039e+10 | G84: 1.458748564e+10 | H84: 1.583934459e+10 | I84: 1.771032558e+10 | J84: 1.856426454e+10 | K84: 1.85500113e+10 | L84: ..
A85: Hong Kong SAR, China | B85: HKG | C85: 1.815700822e+11 | D85: 1.935362651e+11 | E85: 2.115974056e+11 | F85: 2.192796784e+11 | G85: 2.14046415e+11 | H85: 2.286376976e+11 | I85: 2.485140031e+11 | J85: 2.626300861e+11 | K85: 2.740128152e+11 | L85: ..
A86: Hungary | B86: HUN | C86: 1.103217116e+11 | D86: 1.125331527e+11 | E86: 1.361020209e+11 | F86: 1.542335419e+11 | G86: 1.26631684e+11 | H86: 1.275032798e+11 | I86: 1.374521151e+11 | J86: 1.246003946e+11 | K86: 1.299886542e+11 | L86: ..
A87: Iceland | B87: ISL | C87: 1.628633175e+10 | D87: 1.665149278e+10 | E87: 2.042823268e+10 | F87: 1.683207649e+10 | G87: 1.211544152e+10 | H87: 1.256470549e+10 | I87: 1.40428019e+10 | J87: 1.358621306e+10 | K87: 1.461987841e+10 | L87: ..
A88: India | B88: IND | C88: 8.342150136e+11 | D88: 9.491167696e+11 | E88: 1.238700196e+12 | F88: 1.224097069e+12 | G88: 1.365372433e+12 | H88: 1.708458877e+12 | I88: 1.880100141e+12 | J88: 1.858744737e+12 | K88: 1.876797199e+12 | L88: ..
A89: Indonesia | B89: IDN | C89: 2.8586861e+11 | D89: 3.64570526e+11 | E89: 4.322167378e+11 | F89: 5.10244549e+11 | G89: 5.395799558e+11 | H89: 7.091908233e+11 | I89: 8.459316453e+11 | J89: 8.767193477e+11 | K89: 8.683456454e+11 | L89: ..
A90: Iran, Islamic Rep. | B90: IRN | C90: 1.920149403e+11 | D90: 2.228805335e+11 | E90: 2.860579333e+11 | F90: 3.559883672e+11 | G90: 3.626611113e+11 | H90: 4.225679674e+11 | I90: 5.284260995e+11 | J90: 5.027292736e+11 | K90: 3.689043516e+11 | L90: ..
A91: Iraq | B91: IRQ | C91: 4.995489035e+10 | D91: 6.514103503e+10 | E91: 8.883772788e+10 | F91: 1.316118193e+11 | G91: 1.116599889e+11 | H91: 1.428147046e+11 | I91: 1.911769275e+11 | J91: 2.158379066e+11 | K91: 2.228793554e+11 | L91: ..
A92: Ireland | B92: IRL | C92: 2.025777416e+11 | D92: 2.227629583e+11 | E92: 2.595743314e+11 | F92: 2.640342037e+11 | G92: 2.25442853e+11 | H92: 2.093871909e+11 | I92: 2.260353763e+11 | J92: 2.106380801e+11 | K92: 2.178158402e+11 | L92: ..
A93: Isle of Man | B93: IMY | C93: 2915710378 | D93: 3437450712 | E93: 4075664785 | F93: .. | G93: .. | H93: .. | I93: .. | J93: .. | K93: .. | L93: ..
A94: Israel | B94: ISR | C94: 1.339590018e+11 | D94: 1.509855733e+11 | E94: 1.749679362e+11 | F94: 2.131263645e+11 | G94: 2.05790472e+11 | H94: 2.316744006e+11 | I94: 2.582167833e+11 | J94: 2.57621957e+11 | K94: 2.913570787e+11 | L94: ..
A95: Italy | B95: ITA | C95: 1.786275014e+12 | D95: 1.872983094e+12 | E95: 2.127181952e+12 | F95: 2.307312469e+12 | G95: 2.111146954e+12 | H95: 2.055355253e+12 | I95: 2.196336801e+12 | J95: 2.013265405e+12 | K95: 2.07130689e+12 | L95: ..
A96: Jamaica | B96: JAM | C96: 1.107577848e+10 | D96: 1.190302064e+10 | E96: 1.282005502e+10 | F96: 1.367683763e+10 | G96: 1.212502318e+10 | H96: 1.323084404e+10 | I96: 1.443392613e+10 | J96: 1.479480208e+10 | K96: 1.436226258e+10 | L96: ..
A97: Japan | B97: JPN | C97: 4.571866957e+12 | D97: 4.356749776e+12 | E97: 4.356346715e+12 | F97: 4.849184925e+12 | G97: 5.035142155e+12 | H97: 5.495387183e+12 | I97: 5.90563087e+12 | J97: 5.937766585e+12 | K97: 4.901529519e+12 | L97: ..
A98: Jordan | B98: JOR | C98: 1.25828769e+10 | D98: 1.505693719e+10 | E98: 1.711061e+10 | F98: 2.197183526e+10 | G98: 2.381832292e+10 | H98: 2.642537937e+10 | I98: 2.884019702e+10 | J98: 3.10152395e+10 | K98: 3.36784592e+10 | L98: ..
A99: Kazakhstan | B99: KAZ | C99: 5.712367173e+10 | D99: 8.100386492e+10 | E99: 1.048498868e+11 | F99: 1.334416122e+11 | G99: 1.153086611e+11 | H99: 1.480473482e+11 | I99: 1.880489603e+11 | J99: 2.035171981e+11 | K99: 2.244147738e+11 | L99: ..
A100: Kenya | B100: KEN | C100: 1.87378954e+10 | D100: 2.250413604e+10 | E100: 2.72367399e+10 | F100: 3.04654898e+10 | G100: 3.071634376e+10 | H100: 3.244013326e+10 | I100: 3.431331584e+10 | J100: 4.026440358e+10 | K100: 4.410111472e+10 | L100: ..
A101: Kiribati | B101: KIR | C101: 106147384.5 | D101: 104668674.7 | E101: 123005089.6 | F101: 135044455.6 | G101: 127125253.5 | H101: 150431113.6 | I101: 172253739 | J101: 174984468.8 | K101: 168951535 | L101: ..
A102: Korea, Dem. Rep. | B102: PRK | C102: .. | D102: .. | E102: .. | F102: .. | G102: .. | H102: .. | I102: .. | J102: .. | K102: .. | L102: ..
A103: Korea, Rep. | B103: KOR | C103: 8.981343007e+11 | D103: 1.011797987e+12 | E103: 1.122675893e+12 | F103: 1.002216052e+12 | G103: 9.019349534e+11 | H103: 1.09449935e+12 | I103: 1.202463656e+12 | J103: 1.222807167e+12 | K103: 1.304553973e+12 | L103: ..
A104: Kosovo | B104: KSV | C104: 3743116980 | D104: 3918176308 | E104: 4743437689 | F104: 5771473142 | G104: 5620572910 | H104: 5740438192 | I104: 6630214452 | J104: 6445460830 | K104: 6959638874 | L104: ..
A105: Kuwait | B105: KWT | C105: 8.079794521e+10 | D105: 1.015611538e+11 | E105: 1.14721831e+11 | F105: 1.474024138e+11 | G105: 1.059113386e+11 | H105: 1.199346747e+11 | I105: 1.606000062e+11 | J105: 1.832193106e+11 | K105: .. | L105: ..
A106: Kyrgyz Republic | B106: KGZ | C106: 2459876152 | D106: 2834168889 | E106: 3802566171 | F106: 5139957785 | G106: 4690062255 | H106: 4794357795 | I106: 6197766119 | J106: 6605133551 | K106: 7226295003 | L106: ..
A107: Lao PDR | B107: LAO | C107: 2735550177 | D107: 3452895836 | E107: 4222945530 | F107: 5443930125 | G107: 5832882922 | H107: 7181441152 | I107: 8254088067 | J107: 9386913253 | K107: 1.114118766e+10 | L107: ..
A108: Latvia | B108: LVA | C108: 1.604184043e+10 | D108: 1.99350464e+10 | E108: 2.876568704e+10 | F108: 3.366936772e+10 | G108: 2.587578125e+10 | H108: 2.400968046e+10 | I108: 2.848033837e+10 | J108: 2.83725777e+10 | K108: 3.095669163e+10 | L108: ..
A109: Lebanon | B109: LBN | C109: 2.128756219e+10 | D109: 2.179635158e+10 | E109: 2.457711443e+10 | F109: 2.882985075e+10 | G109: 3.513963516e+10 | H109: 3.800995025e+10 | I109: 4.007893864e+10 | J109: 4.320509585e+10 | K109: 4.435241812e+10 | L109: ..
A110: Lesotho | B110: LSO | C110: 1368405301 | D110: 1428842600 | E110: 1597484736 | F110: 1630667593 | G110: 1708772782 | H110: 2175685681 | I110: 2487352968 | J110: 2328196275 | K110: 2229735839 | L110: ..
A111: Liberia | B111: LBR | C111: 542000000 | D111: 604028581.8 | E111: 739026892.2 | F111: 850040458.8 | G111: 1155146230 | H111: 1292696476 | I111: 1537753885 | J111: 1733828405 | K111: 1950960138 | L111: ..
A112: Libya | B112: LBY | C112: 44000000000 | D112: 56484375000 | E112: 7.180327869e+10 | F112: 9.316770186e+10 | G112: 6.236044657e+10 | H112: 7.475528892e+10 | I112: 3.469939552e+10 | J112: 8.187366252e+10 | K112: 7.54564022e+10 | L112: ..
A113: Liechtenstein | B113: LIE | C113: 3658356378 | D113: 3988775844 | E113: 4602346923 | F113: 4929414915 | G113: 4826167676 | H113: .. | I113: .. | J113: .. | K113: .. | L113: ..
A114: Lithuania | B114: LTU | C114: 2.608530722e+10 | D114: 3.024636166e+10 | E114: 3.932598593e+10 | F114: 4.743836306e+10 | G114: 3.705008172e+10 | H114: 3.670951157e+10 | I114: 4.308306799e+10 | J114: 4.23435592e+10 | K114: 4.593196847e+10 | L114: ..
A115: Luxembourg | B115: LUX | C115: 3.764301348e+10 | D115: 4.254467791e+10 | E115: 5.132066175e+10 | F115: 5.474276311e+10 | G115: 4.942075177e+10 | H115: 5.205332464e+10 | I115: 5.80098634e+10 | J115: 5.514345733e+10 | K115: 6.038325111e+10 | L115: ..
A116: Macao SAR, China | B116: MAC | C116: 1.179257002e+10 | D116: 1.456870957e+10 | E116: 1.805468485e+10 | F116: 2.073102286e+10 | G116: 2.131326393e+10 | H116: 2.835970612e+10 | I116: 3.66347428e+10 | J116: 4.298149774e+10 | K116: 5.175309476e+10 | L116: ..
A117: Macedonia, FYR | B117: MKD | C117: 5985809060 | D117: 6560546900 | E117: 8159825620 | F117: 9834034351 | G117: 9313573965 | H117: 9338674078 | I117: 1.039522233e+10 | J117: 9576482628 | K117: 1.022078107e+10 | L117: ..
A118: Madagascar | B118: MDG | C118: 5038577519 | D118: 5515236338 | E118: 7342905883 | F118: 9413002737 | G118: 8550363829 | H118: 8704983553 | I118: 9853981624 | J118: 9880703883 | K118: 1.079655114e+10 | L118: ..
A119: Malawi | B119: MWI | C119: 2754995877 | D119: 3116789658 | E119: 3647817219 | F119: 4276769712 | G119: 5030639934 | H119: 5398616985 | I119: 5627898037 | J119: 4240492849 | K119: 3705386790 | L119: ..
A120: Malaysia | B120: MYS | C120: 1.435331521e+11 | D120: 1.626924676e+11 | E120: 1.935528028e+11 | F120: 2.309876189e+11 | G120: 2.02251385e+11 | H120: 2.475335255e+11 | I120: 2.892589373e+11 | J120: 3.050327452e+11 | K120: 3.124354946e+11 | L120: ..
A121: Maldives | B121: MDV | C121: 992473987.3 | D121: 1303375806 | E121: 1541978559 | F121: 1891633531 | G121: 1984639641 | H121: 2134104884 | I121: 2162990126 | J121: 2113179304 | K121: 2299843167 | L121: ..
A122: Mali | B122: MLI | C122: 5305317555 | D122: 6122644015 | E122: 7145394015 | F122: 8737687353 | G122: 8964480570 | H122: 9422267260 | I122: 1.064754567e+10 | J122: 1.034079411e+10 | K122: 1.094272731e+10 | L122: ..
A123: Malta | B123: MLT | C123: 5980795756 | D123: 6390123590 | E123: 7513834700 | F123: 8554293727 | G123: 8099400961 | H123: 8163841060 | I123: 9302057270 | J123: 8863076923 | K123: 9642326075 | L123: ..
A124: Marshall Islands | B124: MHL | C124: 137556822.8 | D124: 143352031.2 | E124: 149739017.4 | F124: 152565763.1 | G124: 151560778.4 | H124: 163200000 | I124: 170700000 | J124: 173000000 | K124: 175000000 | L124: ..
A125: Mauritania | B125: MRT | C125: 2184444849 | D125: 3040718541 | E125: 3356758534 | F125: 3790240831 | G125: 3027032864 | H125: 3526946625 | I125: 4136083856 | J125: 3958701369 | K125: 4162533271 | L125: ..
A126: Mauritius | B126: MUS | C126: 6283796155 | D126: 6731536244 | E126: 7792063567 | F126: 9641077098 | G126: 8834661043 | H126: 9718331363 | I126: 1.125240586e+10 | J126: 1.144206323e+10 | K126: 1.193840391e+10 | L126: ..
A127: Mexico | B127: MEX | C127: 8.663464837e+11 | D127: 9.667359356e+11 | E127: 1.04339494e+12 | F127: 1.099073124e+12 | G127: 8.953131422e+11 | H127: 1.051627949e+12 | I127: 1.170085557e+12 | J127: 1.18646089e+12 | K127: 1.260914661e+12 | L127: ..
A128: Micronesia, Fed. Sts. | B128: FSM | C128: 249845592.6 | D128: 252991205 | E128: 255890836.4 | F128: 261339642.4 | G128: 277510922.8 | H128: 294117230.5 | I128: 310287519.3 | J128: 326160960.8 | K128: 335000000 | L128: ..
A129: Moldova | B129: MDA | C129: 2988172424 | D129: 3408454198 | E129: 4402495921 | F129: 6054806101 | G129: 5439422031 | H129: 5811604052 | I129: 7016162818 | J129: 7284686576 | K129: 7935229341 | L129: ..
A130: Monaco | B130: MCO | C130: 4280072626 | D130: 4663488363 | E130: 5974371696 | F130: 6919241412 | G130: 5557579883 | H130: 5350993377 | I130: 6074506533 | J130: .. | K130: .. | L130: ..
A131: Mongolia | B131: MNG | C131: 2523359941 | D131: 3414053251 | E131: 4234894168 | F131: 5623236708 | G131: 4583834427 | H131: 6200357070 | I131: 8761426371 | J131: 1.032196859e+10 | K131: 1.151640958e+10 | L131: ..
A132: Montenegro | B132: MNE | C132: 2257181943 | D132: 2696020575 | E132: 3673382212 | F132: 4538345345 | G132: 4158135026 | H132: 4114881347 | I132: 4501753898 | J132: 4045813953 | K132: 4427771436 | L132: ..
A133: Morocco | B133: MAR | C133: 5.952385787e+10 | D133: 6.563710778e+10 | E133: 7.522631836e+10 | F133: 8.888296774e+10 | G133: 9.090840263e+10 | H133: 9.077067143e+10 | I133: 9.921133903e+10 | J133: 9.598157252e+10 | K133: 1.043742787e+11 | L133: ..
A134: Mozambique | B134: MOZ | C134: 6578515331 | D134: 7095910828 | E134: 8035635713 | F134: 9891003405 | G134: 9674037707 | H134: 9274448732 | I134: 1.25478884e+10 | J134: 1.437645731e+10 | K134: 1.53189701e+10 | L134: ..
A135: Myanmar | B135: MMR | C135: .. | D135: .. | E135: .. | F135: .. | G135: .. | H135: .. | I135: .. | J135: .. | K135: .. | L135: ..
A136: Namibia | B136: NAM | C136: 7261366632 | D136: 7978609422 | E136: 8836063690 | F136: 8493167843 | G136: 8724107049 | H136: 1.114141748e+10 | I136: 1.245176077e+10 | J136: 1.339938655e+10 | K136: 1.257961886e+10 | L136: ..
A137: Nepal | B137: NPL | C137: 8130258976 | D137: 9043715356 | E137: 1.032561802e+10 | F137: 1.254543861e+10 | G137: 1.289965188e+10 | H137: 1.599409461e+10 | I137: 1.885035185e+10 | J137: 1.920680072e+10 | K137: 1.929434817e+10 | L137: ..
A138: Netherlands | B138: NLD | C138: 6.384706263e+11 | D138: 6.776920431e+11 | E138: 7.825672786e+11 | F138: 8.708115157e+11 | G138: 7.963329691e+11 | H138: 7.771577023e+11 | I138: 8.32755439e+11 | J138: 7.700667189e+11 | K138: 8.001734753e+11 | L138: ..
A139: New Caledonia | B139: NCL | C139: .. | D139: .. | E139: .. | F139: .. | G139: .. | H139: .. | I139: .. | J139: .. | K139: .. | L139: ..
A140: New Zealand | B140: NZL | C140: 1.137913043e+11 | D140: 1.102054674e+11 | E140: 1.352948846e+11 | F140: 1.304593974e+11 | G140: 1.189528327e+11 | H140: 1.434665351e+11 | I140: 1.638410417e+11 | J140: 1.714614807e+11 | K140: 1.857874287e+11 | L140: ..
A141: Nicaragua | B141: NIC | C141: 6322582497 | D141: 6786340353 | E141: 7458167331 | F141: 8491371523 | G141: 8380736990 | H141: 8938210560 | I141: 9898547558 | J141: 1.064497361e+10 | K141: 1.125564256e+10 | L141: ..
A142: Niger | B142: NER | C142: 3405134555 | D142: 3646727993 | E142: 4291363547 | F142: 5403364454 | G142: 5397121962 | H142: 5718589550 | I142: 6411842066 | J142: 6773185511 | K142: 7355697919 | L142: ..
A143: Nigeria | B143: NGA | C143: 1.122483246e+11 | D143: 1.454298025e+11 | E143: 1.664512024e+11 | F143: 2.080647245e+11 | G143: 1.694812701e+11 | H143: 3.690624032e+11 | I143: 4.117438017e+11 | J143: 4.629792459e+11 | K143: 5.218033147e+11 | L143: ..
A144: Northern Mariana Islands | B144: MNP | C144: .. | D144: .. | E144: .. | F144: .. | G144: .. | H144: .. | I144: .. | J144: .. | K144: .. | L144: ..
A145: Norway | B145: NOR | C145: 3.040600698e+11 | D145: 3.40041736e+11 | E145: 3.934793858e+11 | F145: 4.53885461e+11 | G145: 3.788491916e+11 | H145: 4.209457052e+11 | I145: 4.908069111e+11 | J145: 5.000299098e+11 | K145: 5.125804255e+11 | L145: ..
A146: Oman | B146: OMN | C146: 3.090507177e+10 | D146: 3.680364139e+10 | E146: 4.190117069e+10 | F146: 6.074382364e+10 | G146: 4.824291326e+10 | H146: 5.881300438e+10 | I146: 6.997191214e+10 | J146: 7.828946747e+10 | K146: 8.057045865e+10 | L146: ..
A147: Pakistan | B147: PAK | C147: 1.095021025e+11 | D147: 1.372640611e+11 | E147: 1.523857163e+11 | F147: 1.700778141e+11 | G147: 1.678749736e+11 | H147: 1.771656351e+11 | I147: 2.136859186e+11 | J147: 2.248801717e+11 | K147: 2.366249277e+11 | L147: ..
A148: Palau | B148: PLW | C148: 206232630 | D148: 208666092.9 | E148: 211558558.8 | F148: 213354542.6 | G148: 198202369.8 | H148: 197558748.6 | I148: 217377537.5 | J148: 232478639.3 | K148: 247043418.3 | L148: ..
A149: Panama | B149: PAN | C149: 15464700000 | D149: 17137000000 | E149: 21121900000 | F149: 24884000000 | G149: 25925100000 | H149: 28814100000 | I149: 33270500000 | J149: 37956200000 | K149: 42648100000 | L149: ..
A150: Papua New Guinea | B150: PNG | C150: 4901584516 | D150: 5598700444 | E150: 6329292929 | F150: 8010370370 | G150: 7914594203 | H150: 9480047959 | I150: 1.239360409e+10 | J150: 1.565392137e+10 | K150: 1.528937403e+10 | L150: ..
A151: Paraguay | B151: PRY | C151: 8734651406 | D151: 1.066201327e+10 | E151: 1.379490954e+10 | F151: 1.850412863e+10 | G151: 1.59299031e+10 | H151: 2.003052973e+10 | I151: 2.50711931e+10 | J151: 2.461104034e+10 | K151: 2.994886662e+10 | L151: ..
A152: Peru | B152: PER | C152: 7.414775485e+10 | D152: 8.755412844e+10 | E152: 1.021725906e+11 | F152: 1.213827466e+11 | G152: 1.212035193e+11 | H152: 1.485098575e+11 | I152: 1.705639497e+11 | J152: 1.926360587e+11 | K152: 2.022956355e+11 | L152: ..
A153: Philippines | B153: PHL | C153: 1.030659724e+11 | D153: 1.222107192e+11 | E153: 1.4935992e+11 | F153: 1.736025333e+11 | G153: 1.683335404e+11 | H153: 1.995894474e+11 | I153: 2.240952193e+11 | J153: 2.501820195e+11 | K153: 2.720173773e+11 | L153: ..
A154: Poland | B154: POL | C154: 3.03912248e+11 | D154: 3.416699436e+11 | E154: 4.253215022e+11 | F154: 5.294323012e+11 | G154: 4.309173103e+11 | H154: 4.697991245e+11 | I154: 5.157712974e+11 | J154: 4.902129587e+11 | K154: 5.175428083e+11 | L154: ..
A155: Portugal | B155: PRT | C155: 1.918478585e+11 | D155: 2.017904406e+11 | E155: 2.317417324e+11 | F155: 2.519254004e+11 | G155: 2.341192674e+11 | H155: 2.289393493e+11 | I155: 2.378883023e+11 | J155: 2.121402511e+11 | K155: 2.200221467e+11 | L155: ..
A156: Puerto Rico | B156: PRI | C156: 8.391452134e+10 | D156: 8.727616436e+10 | E156: 8.952413162e+10 | F156: 93639316000 | G156: 96385638000 | H156: 98381268000 | I156: 100351670000 | J156: 101080738000 | K156: 103134778000 | L156: ..
A157: Qatar | B157: QAT | C157: 4.453049322e+10 | D157: 6.08821411e+10 | E157: 7.971208561e+10 | F157: 1.152700516e+11 | G157: 9.779834883e+10 | H157: 1.251223027e+11 | I157: 1.698047311e+11 | J157: 1.899446098e+11 | K157: 2.024500141e+11 | L157: ..
A158: Romania | B158: ROM | C158: 9.917261372e+10 | D158: 1.226958508e+11 | E158: 1.706169589e+11 | F158: 2.043386058e+11 | G158: 1.643443713e+11 | H158: 1.647922527e+11 | I158: 1.826106666e+11 | J158: 1.693960556e+11 | K158: 1.89638162e+11 | L158: ..
A159: Russian Federation | B159: RUS | C159: 7.640009012e+11 | D159: 9.899305423e+11 | E159: 1.299705248e+12 | F159: 1.660844408e+12 | G159: 1.222643697e+12 | H159: 1.524916112e+12 | I159: 1.904793022e+12 | J159: 2.01747093e+12 | K159: 2.096777031e+12 | L159: ..
A160: Rwanda | B160: RWA | C160: 2581286407 | D160: 3110327823 | E160: 3707800459 | F160: 4674053754 | G160: 5208687775 | H160: 5624809049 | I160: 6406727020 | J160: 7133378888 | K160: 7451677749 | L160: ..
A161: Samoa | B161: WSM | C161: 412220560.3 | D161: 453082900.1 | E161: 490916834.7 | F161: 573939143.6 | G161: 501065926.5 | H161: 572971726.9 | I161: 631791993.5 | J161: 684273266.6 | K161: 694376559.1 | L161: ..
A162: San Marino | B162: SMR | C162: 1375416604 | D162: 1469075398 | E162: 1687653983 | F162: 1899809580 | G162: .. | H162: .. | I162: .. | J162: .. | K162: .. | L162: ..
A163: Sao Tome and Principe | B163: STP | C163: 123258507.1 | D163: 135181861.9 | E163: 144259256.6 | F163: 183464986.3 | G163: 196473838.9 | H163: 201037916.6 | I163: 248286778.2 | J163: 263328450.3 | K163: 310684635.7 | L163: ..
A164: Saudi Arabia | B164: SAU | C164: 3.284596088e+11 | D164: 3.769001335e+11 | E164: 4.159090181e+11 | F164: 519796800000 | G164: 4.290978667e+11 | H164: 5.268114667e+11 | I164: 6.695066667e+11 | J164: 7.339557333e+11 | K164: 7.452725333e+11 | L164: ..
A165: Senegal | B165: SEN | C165: 8707015064 | D165: 9358710763 | E165: 1.128460348e+10 | F165: 1.338634654e+10 | G165: 1.281299467e+10 | H165: 1.293242772e+10 | I165: 1.44406765e+10 | J165: 1.404568043e+10 | K165: 1.514970853e+10 | L165: ..
A166: Serbia | B166: SRB | C166: 2.523440877e+10 | D166: 2.922108159e+10 | E166: 3.895209354e+10 | F166: 4.776058037e+10 | G166: 4.024947248e+10 | H166: 3.699000128e+10 | I166: 4.374993455e+10 | J166: 3.811073758e+10 | K166: 4.252051166e+10 | L166: ..
A167: Seychelles | B167: SYC | C167: 919103262 | D167: 1016419769 | E167: 1033635773 | F167: 967211974.9 | G167: 847424851.5 | H167: 973355738 | I167: 1059593023 | J167: 1032199341 | K167: 1268018738 | L167: ..
A168: Sierra Leone | B168: SLE | C168: 1627853086 | D168: 1887429109 | E168: 2158653216 | F168: 2505620416 | G168: 2453972797 | H168: 2578159463 | I168: 2932273988 | J168: 3787392596 | K168: 4929214080 | L168: ..
A169: Singapore | B169: SGP | C169: 1.274178794e+11 | D169: 1.477941176e+11 | E169: 1.799810895e+11 | F169: 1.92231203e+11 | G169: 1.924064414e+11 | H169: 2.364203372e+11 | I169: 2.740650431e+11 | J169: 2.869083999e+11 | K169: 2.979412611e+11 | L169: ..
A170: Sint Maarten (Dutch part) | B170: SXM | C170: .. | D170: .. | E170: .. | F170: .. | G170: .. | H170: .. | I170: .. | J170: .. | K170: .. | L170: ..
A171: Slovak Republic | B171: SVK | C171: 6.132847158e+10 | D171: 6.900209509e+10 | E171: 8.410856009e+10 | F171: 9.790889117e+10 | G171: 8.723974715e+10 | H171: 8.707744371e+10 | I171: 9.587753684e+10 | J171: 9.134780933e+10 | K171: 9.577016994e+10 | L171: ..
A172: Slovenia | B172: SVN | C172: 3.571773376e+10 | D172: 3.89451465e+10 | E172: 4.734963989e+10 | F172: 5.455461683e+10 | G172: 4.920837531e+10 | H172: 4.699940718e+10 | I172: 5.02501478e+10 | J172: 4.537917441e+10 | K172: 4.683339446e+10 | L172: ..
A173: Solomon Islands | B173: SLB | C173: 413909879.3 | D173: 456735444.9 | E173: 516209150.3 | F173: 608292551.8 | G173: 597765363.1 | H173: 681587104.8 | I173: 868574141.2 | J173: 999972421.3 | K173: 1096396927 | L173: ..
A174: Somalia | B174: SOM | C174: .. | D174: .. | E174: .. | F174: .. | G174: .. | H174: .. | I174: .. | J174: .. | K174: .. | L174: ..
A175: South Africa | B175: ZAF | C175: 2.470515623e+11 | D175: 2.610070394e+11 | E175: 2.861718307e+11 | F175: 2.731417502e+11 | G175: 2.841831011e+11 | H175: 3.65208433e+11 | I175: 4.038943166e+11 | J175: 3.823376364e+11 | K175: 3.506301333e+11 | L175: ..
A176: South Sudan | B176: SSD | C176: .. | D176: .. | E176: .. | F176: 1.638263281e+10 | G176: 1.329898693e+10 | H176: 1.633851093e+10 | I176: 2.078211698e+10 | J176: 10560000000 | K176: 1.379661017e+10 | L176: ..
A177: Spain | B177: ESP | C177: 1.130798886e+12 | D177: 1.236352422e+12 | E177: 1.44142752e+12 | F177: 1.593420676e+12 | G177: 1.454335844e+12 | H177: 1.3848447e+12 | I177: 1.454534453e+12 | J177: 1.322481642e+12 | K177: 1.358262668e+12 | L177: ..
A178: Sri Lanka | B178: LKA | C178: 2.440579104e+10 | D178: 2.826741054e+10 | E178: 3.235118423e+10 | F178: 4.071524047e+10 | G178: 4.20679746e+10 | H178: 4.956752167e+10 | I178: 5.917801393e+10 | J178: 5.939305643e+10 | K178: 6.718201534e+10 | L178: ..
A179: St. Kitts and Nevis | B179: KNA | C179: 536410666.4 | D179: 629511777.7 | E179: 684074062 | F179: 734814814.8 | G179: 708888888.9 | H179: 692222222.2 | I179: 728148148.1 | J179: 731851851.9 | K179: 742962963 | L179: ..
A180: St. Lucia | B180: LCA | C180: 908558306.8 | D180: 1018069267 | E180: 1145555535 | F180: 1184074074 | G180: 1180000000 | H180: 1252222222 | I180: 1295925926 | J180: 1318148148 | K180: 1332222222 | L180: ..
A181: St. Martin (French part) | B181: MAF | C181: .. | D181: .. | E181: .. | F181: .. | G181: .. | H181: .. | I181: .. | J181: .. | K181: .. | L181: ..
A182: St. Vincent and the Grenadines | B182: VCT | C182: 551431645.4 | D182: 611040126.2 | E182: 684074074.1 | F182: 695555555.6 | G182: 674814814.8 | H182: 681481481.5 | I182: 677037037 | J182: 694444444.4 | K182: 725555555.6 | L182: ..
A183: Sudan | B183: SDN | C183: 2.652499223e+10 | D183: 3.515925098e+10 | E183: 4.545646034e+10 | F183: 5.408238939e+10 | G183: 5.283999073e+10 | H183: 6.563223747e+10 | I183: 6.732081266e+10 | J183: 6.302956234e+10 | K183: 6.654778947e+10 | L183: ..
A184: Suriname | B184: SUR | C184: 1793557833 | D184: 2626093294 | E184: 2936612022 | F184: 3532969035 | G184: 3875409836 | H184: 4368033802 | I184: 4363219094 | J184: 5012121212 | K184: 5230909091 | L184: ..
A185: Swaziland | B185: SWZ | C185: 2584077931 | D185: 2947922183 | E185: 3053823329 | F185: 3019770680 | G185: 3144680749 | H185: 3891563478 | I185: 4145772237 | J185: 4049589166 | K185: 3791304348 | L185: ..
A186: Sweden | B186: SWE | C186: 3.705797224e+11 | D186: 3.990757066e+11 | E186: 4.625128537e+11 | F186: 4.861586693e+11 | G186: 4.057830388e+11 | H186: 4.630620616e+11 | I186: 5.360005811e+11 | J186: 5.239410634e+11 | K186: 5.589487008e+11 | L186: ..
A187: Switzerland | B187: CHE | C187: 3.847549975e+11 | D187: 4.051828377e+11 | E187: 4.505296737e+11 | F187: 5.242892036e+11 | G187: 5.094663688e+11 | H187: 5.491048359e+11 | I187: 6.588673179e+11 | J187: 6.311834759e+11 | K187: 6.50376882e+11 | L187: ..
A188: Syrian Arab Republic | B188: SYR | C188: 2.885896552e+10 | D188: 3.333284457e+10 | E188: 4.040500601e+10 | F188: .. | G188: .. | H188: .. | I188: .. | J188: .. | K188: .. | L188: ..
A189: Tajikistan | B189: TJK | C189: 2312319579 | D189: 2830236054 | E189: 3719497371 | F189: 5161336170 | G189: 4979481980 | H189: 5642178580 | I189: 6522732203 | J189: 7633049792 | K189: 8508103456 | L189: ..
A190: Tanzania | B190: TZA | C190: 1.414191659e+10 | D190: 1.433123124e+10 | E190: 1.682554718e+10 | F190: 2.071508612e+10 | G190: 2.13681654e+10 | H190: 2.29150043e+10 | I190: 2.387416505e+10 | J190: 2.824863188e+10 | K190: 3.322503686e+10 | L190: ..
A191: Thailand | B191: THA | C191: 1.763519484e+11 | D191: 2.070888285e+11 | E191: 2.469768702e+11 | F191: 2.725777993e+11 | G191: 2.637112449e+11 | H191: 3.189079301e+11 | I191: 3.456722321e+11 | J191: 3.659658158e+11 | K191: 3.872521643e+11 | L191: ..
A192: Timor-Leste | B192: TMP | C192: 479100000 | D192: 462600000 | E192: 558700000 | F192: 693800000 | G192: 826700000 | H192: 934300000 | I192: 1128300000 | J192: 1355000000 | K192: 1615000000 | L192: ..
A193: Togo | B193: TGO | C193: 2115154090 | D193: 2202809211 | E193: 2523462649 | F193: 3163416556 | G193: 3163000591 | H193: 3172945506 | I193: 3756023048 | J193: 3915754216 | K193: 4338575824 | L193: ..
A194: Tonga | B194: TON | C194: 264812953.8 | D194: 295998379.1 | E194: 301064027.1 | F194: 346850175.9 | G194: 318522296.1 | H194: 369212477.5 | I194: 423038016.9 | J194: 471575497.3 | K194: 466259084.1 | L194: ..
A195: Trinidad and Tobago | B195: TTO | C195: 1.608852669e+10 | D195: 1.846090528e+10 | E195: 2.18303977e+10 | F195: 2.816579362e+10 | G195: 1.933227066e+10 | H195: 2.075819186e+10 | I195: 2.367634829e+10 | J195: 2.343634252e+10 | K195: 2.464083901e+10 | L195: ..
A196: Tunisia | B196: TUN | C196: 3.228296068e+10 | D196: 3.437843727e+10 | E196: 3.892021858e+10 | F196: 4.485658632e+10 | G196: 4.345493594e+10 | H196: 4.405407294e+10 | I196: 4.595112942e+10 | J196: 4.523849158e+10 | K196: 4.712870068e+10 | L196: ..
A197: Turkey | B197: TUR | C197: 4.829798391e+11 | D197: 5.309000947e+11 | E197: 6.47155132e+11 | F197: 7.303374957e+11 | G197: 6.145539218e+11 | H197: 7.311680519e+11 | I197: 7.747541553e+11 | J197: 7.888633017e+11 | K197: 8.202069626e+11 | L197: ..
A198: Turkmenistan | B198: TKM | C198: 8104355717 | D198: 1.027759815e+10 | E198: 1.26641651e+10 | F198: 1.927152318e+10 | G198: 2.021438596e+10 | H198: 2.214807018e+10 | I198: 2.923333333e+10 | J198: 3.516421053e+10 | K198: 4.185087719e+10 | L198: ..
A199: Turks and Caicos Islands | B199: TCA | C199: .. | D199: .. | E199: .. | F199: .. | G199: .. | H199: .. | I199: .. | J199: .. | K199: .. | L199: ..
A200: Tuvalu | B200: TUV | C200: 21839580.57 | D200: 22903319.5 | E200: 27030996.03 | F200: 30290770.26 | G200: 27101312.79 | H200: 31824701.28 | I200: 39313508.69 | J200: 39875708.12 | K200: 38134775.05 | L200: ..
... 15 more rows

Sheet A.4 Export ČR DivExp (hidden)
A1: Kód země | B1: Název země | C1: 2013 vývoz (tis. USD) | D1: 2012 vývoz (tis. USD) | E1: 2011 vývoz (tis. USD) | F1: 2010 vývoz (tis. USD) | K1: vývoz celkem 2011-2013 (tis. USD)
A2: AF | B2: Afghánistán | C2: 12130 | D2: 11020 | E2: 13742 | F2: 20348 | K2: =C2+D2+E2 -> 36892
A3: AL | B3: Albánie | C3: 28897 | D3: 28638 | E3: 39550 | F3: 32814 | K3: 97085
A4: DZ | B4: Alžírsko | C4: 222274 | D4: 180409 | E4: 136409 | F4: 121944 | K4: 539092
A5: VI | B5: Americké Panenské ostrovy | C5: 2 | D5: 11 | E5: 1 | F5: 0 | K5: 14
A6: AD | B6: Andorra | C6: 3965 | D6: 3099 | E6: 1547 | F6: 1469 | K6: 8611
A7: AO | B7: Angola | C7: 25927 | D7: 33142 | E7: 39749 | F7: 27600 | K7: 98818
A8: AG | B8: Antigua a Barbuda | C8: 23 | D8: 43 | E8: 4 | F8: 256 | K8: 70
A9: AR | B9: Argentina | C9: 98527 | D9: 69838 | E9: 85803 | F9: 59568 | K9: 254168
A10: AM | B10: Arménie | C10: 25265 | D10: 38772 | E10: 85265 | F10: 27990 | K10: 149302
A11: AW | B11: Aruba | C11: 149 | D11: 270 | E11: 125 | F11: 3 | K11: 544
A12: AU | B12: Austrálie | C12: 680097 | D12: 518729 | E12: 407483 | F12: 301711 | K12: 1606309
A13: AZ | B13: Ázerbájdžán | C13: 170290 | D13: 141142 | E13: 186753 | F13: 103162 | K13: 498185
A14: BS | B14: Bahamy | C14: 1489 | D14: 339 | E14: 235 | F14: 111 | K14: 2063
A15: BH | B15: Bahrajn | C15: 12123 | D15: 17254 | E15: 10840 | F15: 12932 | K15: 40217
A16: BD | B16: Bangladéš | C16: 21006 | D16: 24843 | E16: 26920 | F16: 28621 | K16: 72769
A17: BB | B17: Barbados | C17: 65 | D17: 72 | E17: 77 | F17: 98 | K17: 214
A18: BE | B18: Belgie | C18: 4100537 | D18: 3762983 | E18: 4030601 | F18: 3290635 | K18: 11894121
A19: BZ | B19: Belize | C19: 6360 | D19: 3997 | E19: 1008 | F19: 1695 | K19: 11365
A20: BY | B20: Bělorusko | C20: 485135 | D20: 402438 | E20: 347165 | F20: 328585 | K20: 1234738
A21: BJ | B21: Benin | C21: 1577 | D21: 1431 | E21: 1316 | F21: 1138 | K21: 4324
A22: BM | B22: Bermudy | C22: 114 | D22: 86 | E22: 277 | F22: 378 | K22: 477
A23: BT | B23: Bhútán | C23: 3 | D23: 4 | E23: 9 | K23: 16
A24: VE | B24: Bolívarovská republika Venezuela | C24: 13376 | D24: 20733 | E24: 27789 | F24: 30363 | K24: 61898
A25: BA | B25: Bosna a Hercegovina | C25: 143868 | D25: 151594 | E25: 199971 | F25: 163012 | K25: 495433
A26: BW | B26: Botswana | C26: 860 | D26: 1364 | E26: 805 | F26: 748 | K26: 3029
A27: BR | B27: Brazílie | C27: 426070 | D27: 409929 | E27: 439388 | F27: 387212 | K27: 1275387
A28: VG | B28: Britské Panenské ostrovy | C28: 11206 | D28: 8373 | E28: 6973 | F28: 7747 | K28: 26552
A29: BN | B29: Brunej Darussalam | C29: 748 | D29: 813 | E29: 527 | F29: 253 | K29: 2088
A30: BG | B30: Bulharsko | C30: 746762 | D30: 680157 | E30: 574536 | F30: 532628 | K30: 2001455
A31: BF | B31: Burkina Faso | C31: 3645 | D31: 1807 | E31: 906 | F31: 828 | K31: 6358
A32: BI | B32: Burundi | C32: 185 | D32: 195 | E32: 190 | F32: 444 | K32: 570
A33: MK | B33: Bývalá jugoslávská republika Makedonie | C33: 96601 | D33: 84572 | E33: 69501 | F33: 50661 | K33: 250674
A34: XC | B34: Ceuta | C34: 131 | D34: 158 | E34: 328 | F34: 297 | K34: 617
A35: CK | B35: Cookovy ostrovy | C35: 14 | D35: 30 | E35: 2 | F35: 8 | K35: 46
A36: TD | B36: Čad | C36: 913 | D36: 1180 | E36: 468 | F36: 4319 | K36: 2561
A37: ME | B37: Černá Hora | C37: 43820 | D37: 23954 | E37: 25164 | F37: 18289 | K37: 92938
A38: CN | B38: Čína | C38: 1920449 | D38: 1674741 | E38: 1668645 | F38: 1215560 | K38: 5263835
A39: DK | B39: Dánsko | C39: 1331833 | D39: 1188231 | E39: 1260543 | F39: 1052403 | K39: 3780607
A40: CD | B40: Demokratická republika Kongo | C40: 6029 | D40: 2347 | E40: 4830 | F40: 2871 | K40: 13206
A41: DO | B41: Dominikánská republika | C41: 6296 | D41: 4365 | E41: 6050 | F41: 9100 | K41: 16711
A42: DJ | B42: Džibutsko | C42: 92 | D42: 372 | E42: 4265 | F42: 71 | K42: 4729
A43: EG | B43: Egypt | C43: 285907 | D43: 222348 | E43: 195945 | F43: 252473 | K43: 704200
A44: EC | B44: Ekvádor | C44: 16168 | D44: 16789 | E44: 15212 | F44: 17260 | K44: 48169
A45: ER | B45: Eritrea | C45: 9 | D45: 1 | E45: 105 | F45: 48 | K45: 115
A46: EE | B46: Estonsko | C46: 263594 | D46: 246860 | E46: 244917 | F46: 157355 | K46: 755371
A47: ET | B47: Etiopie | C47: 5353 | D47: 5555 | E47: 6021 | F47: 4084 | K47: 16929
A48: FO | B48: Faerské ostrovy | C48: 2071 | D48: 1189 | E48: 709 | F48: 570 | K48: 3969
A49: FJ | B49: Fidži | C49: 799 | D49: 218 | E49: 183 | F49: 150 | K49: 1200
A50: PH | B50: Filipíny | C50: 105110 | D50: 73810 | E50: 89509 | F50: 79809 | K50: 268429
A51: FI | B51: Finsko | C51: 779780 | D51: 754924 | E51: 924918 | F51: 761906 | K51: 2459622
A52: FR | B52: Francie | C52: 8015962 | D52: 7942438 | E52: 8858976 | F52: 7085870 | K52: 24817376
A53: TF | B53: Francouzská jižní území | C53: 281 | D53: 61 | E53: 75 | F53: 3981 | K53: 417
A54: PF | B54: Francouzská Polynésie | C54: 246 | D54: 166 | E54: 256 | F54: 730 | K54: 668
A55: GA | B55: Gabon | C55: 2689 | D55: 1494 | E55: 2006 | F55: 3732 | K55: 6189
A56: GM | B56: Gambie | C56: 172 | D56: 232 | E56: 216 | F56: 79 | K56: 620
A57: GH | B57: Ghana | C57: 17717 | D57: 23590 | E57: 31300 | F57: 11648 | K57: 72607
A58: GI | B58: Gibraltar | C58: 323 | D58: 207 | E58: 224 | F58: 180 | K58: 754
A59: GD | B59: Grenada | C59: 9 | D59: 257 | E59: 1229 | F59: 2 | K59: 1495
A60: GL | B60: Grónsko | C60: 732 | D60: 769 | E60: 828 | F60: 1004 | K60: 2329
A61: GE | B61: Gruzie | C61: 80042 | D61: 113911 | E61: 102729 | F61: 60110 | K61: 296682
A62: GU | B62: Guam | C62: 22 | D62: 98 | E62: 1 | K62: 121
A63: GT | B63: Guatemala | C63: 12886 | D63: 5902 | E63: 5832 | F63: 5279 | K63: 24620
A64: GN | B64: Guinea | C64: 1419 | D64: 1885 | E64: 925 | F64: 1608 | K64: 4229
A65: GY | B65: Guyana | C65: 593 | D65: 344 | E65: 528 | F65: 923 | K65: 1465
A66: HT | B66: Haiti | C66: 48 | D66: 42 | E66: 450 | F66: 1575 | K66: =C66+D66+E66 -> 540
A67: HN | B67: Honduras | C67: 14343 | D67: 14421 | E67: 11524 | F67: 5088 | K67: 40288
A68: HK | B68: Hongkong | C68: 398256 | D68: 404644 | E68: 432440 | F68: 318485 | K68: 1235340
A69: CL | B69: Chile | C69: 64222 | D69: 74743 | E69: 60496 | F69: 41560 | K69: 199461
A70: HR | B70: Chorvatsko | C70: 458262 | D70: 456678 | E70: 517037 | F70: 448303 | K70: 1431977
A71: IN | B71: Indie | C71: 561740 | D71: 656308 | E71: 855151 | F71: 788514 | K71: 2073199
A72: ID | B72: Indonésie | C72: 152756 | D72: 158527 | E72: 88849 | F72: 61377 | K72: 400132
A73: IQ | B73: Irák | C73: 103423 | D73: 126213 | E73: 86239 | F73: 137313 | K73: 315875
A74: IR | B74: Íránská islámská republika | C74: 30656 | D74: 53498 | E74: 75080 | F74: 96112 | K74: 159234
A75: IE | B75: Irsko | C75: 475633 | D75: 403402 | E75: 367282 | F75: 283215 | K75: 1246317
A76: IS | B76: Island | C76: 41153 | D76: 36167 | E76: 28267 | F76: 21149 | K76: 105587
A77: IT | B77: Itálie | C77: 5864420 | D77: 5649031 | E77: 6747423 | F77: 5884933 | K77: 18260874
A78: IL | B78: Izrael | C78: 630330 | D78: 750229 | E78: 623662 | F78: 586990 | K78: 2004221
A79: JM | B79: Jamajka | C79: 268 | D79: 162 | E79: 140 | F79: 168 | K79: 570
A80: JP | B80: Japonsko | C80: 873602 | D80: 713762 | E80: 580640 | F80: 532321 | K80: 2168004
A81: YE | B81: Jemen | C81: 15898 | D81: 17837 | E81: 6522 | F81: 44486 | K81: 40257
A82: ZA | B82: Jižní Afrika | C82: 503125 | D82: 463370 | E82: 542505 | F82: 405152 | K82: 1509000
A83: JO | B83: Jordánsko | C83: 35343 | D83: 37292 | E83: 39606 | F83: 70719 | K83: 112241
A84: KY | B84: Kajmanské ostrovy | C84: 13 | D84: 37 | E84: 444 | F84: 18 | K84: 494
A85: KH | B85: Kambodža | C85: 4183 | D85: 2452 | E85: 2028 | F85: 284 | K85: 8663
A86: CM | B86: Kamerun | C86: 4637 | D86: 4195 | E86: 3424 | F86: 3784 | K86: 12256
A87: CA | B87: Kanada | C87: 280398 | D87: 253816 | E87: 260411 | F87: 149303 | K87: 794625
A88: CV | B88: Kapverdy | C88: 550 | D88: 582 | E88: 718 | F88: 551 | K88: 1850
A89: QA | B89: Katar | C89: 76006 | D89: 63675 | E89: 48210 | F89: 28638 | K89: 187891
A90: KZ | B90: Kazachstán | C90: 394592 | D90: 345943 | E90: 213033 | F90: 168050 | K90: 953568
A91: KE | B91: Keňa | C91: 24626 | D91: 20389 | E91: 21301 | F91: 27645 | K91: 66316
A92: CO | B92: Kolumbie | C92: 43723 | D92: 37924 | E92: 33578 | F92: 23082 | K92: 115225
A93: KM | B93: Komory | C93: 0 | D93: 195 | E93: 120 | F93: 196 | K93: 315
A94: CG | B94: Kongo | C94: 2914 | D94: 2565 | E94: 2843 | F94: 2014 | K94: 8322
A95: KP | B95: Korejská lidově demokratická republika | C95: 187 | D95: 82 | E95: 86 | F95: 14 | K95: 355
A96: KR | B96: Korejská republika | C96: 579394 | D96: 556355 | E96: 445372 | F96: 269380 | K96: 1581121
A97: XK | B97: Kosovo | C97: 13122 | D97: 14160 | E97: 13788 | F97: 18091 | K97: 41070
A98: CR | B98: Kostarika | C98: 9371 | D98: 6641 | E98: 5666 | F98: 8811 | K98: 21678
A99: CU | B99: Kuba | C99: 25183 | D99: 39560 | E99: 54185 | F99: 24514 | K99: 118928
A100: KW | B100: Kuvajt | C100: 47310 | D100: 51066 | E100: 50749 | F100: 39476 | K100: 149125
A101: CY | B101: Kypr | C101: 165704 | D101: 177338 | E101: 88932 | F101: 117410 | K101: 431974
A102: KG | B102: Kyrgyzská republika | C102: 8346 | D102: 8672 | E102: 7617 | F102: 4379 | K102: 24635
A103: LA | B103: Laoská lidově demokratická republika | C103: 569 | D103: 257 | E103: 406 | F103: 651 | K103: 1232
A104: LS | B104: Lesotho | C104: 94 | D104: 98 | E104: 40 | F104: 70 | K104: 232
A105: LB | B105: Libanon | C105: 62554 | D105: 74570 | E105: 64999 | F105: 50673 | K105: 202123
A106: LR | B106: Libérie | C106: 724 | D106: 38 | E106: 151 | F106: 40 | K106: 913
A107: LY | B107: Libye | C107: 20083 | D107: 19144 | E107: 4346 | F107: 43989 | K107: 43573
A108: LI | B108: Lichtenštejnsko | C108: 12649 | D108: 13805 | E108: 12001 | F108: 11133 | K108: 38455
A109: LT | B109: Litva | C109: 609240 | D109: 561163 | E109: 437145 | F109: 340210 | K109: 1607548
A110: LV | B110: Lotyšsko | C110: 321265 | D110: 272433 | E110: 225252 | F110: 185272 | K110: 818950
A111: LU | B111: Lucembursko | C111: 171999 | D111: 206989 | E111: 208523 | F111: 158348 | K111: 587511
A112: MO | B112: Macao | C112: 6029 | D112: 2821 | E112: 3169 | F112: 722 | K112: 12019
A113: MG | B113: Madagaskar | C113: 613 | D113: 1306 | E113: 914 | F113: 1239 | K113: 2833
A114: HU | B114: Maďarsko | C114: 4222947 | D114: 3610594 | E114: 3659024 | F114: 3059818 | K114: 11492565
A115: MY | B115: Malajsie | C115: 191770 | D115: 142215 | E115: 107614 | F115: 94324 | K115: 441599
A116: MW | B116: Malawi | C116: 469 | D116: 36 | E116: 334 | F116: 441 | K116: 839
A117: MV | B117: Maledivy | C117: 25808 | D117: 13002 | E117: 900 | F117: 514 | K117: 39710
A118: ML | B118: Mali | C118: 55834 | D118: 53019 | E118: 48164 | F118: 36547 | K118: 157017
A119: MT | B119: Malta | C119: 38172 | D119: 44146 | E119: 49432 | F119: 22934 | K119: 131750
A120: MA | B120: Maroko | C120: 206943 | D120: 141680 | E120: 154152 | F120: 118991 | K120: 502775
A121: MH | B121: Marshallovy ostrovy | C121: 121 | D121: 131 | E121: 53 | F121: 4819 | K121: 305
A122: MU | B122: Mauricius | C122: 6391 | D122: 5314 | E122: 5419 | F122: 4909 | K122: 17124
A123: MR | B123: Mauritánie | C123: 10176 | D123: 18186 | E123: 37005 | F123: 29781 | K123: 65367
A124: YT | B124: Mayotte | C124: 199 | D124: 71 | E124: 22 | F124: 23 | K124: 292
A125: XL | B125: Melilla | C125: 364 | D125: 94 | E125: 122 | F125: 168 | K125: 580
A126: MX | B126: Mexiko | C126: 482241 | D126: 458932 | E126: 344090 | F126: 287449 | K126: 1285263
A127: BO | B127: Mnohonárodní stát Bolívie | C127: 4331 | D127: 3406 | E127: 3725 | F127: 3261 | K127: 11462
A128: MD | B128: Moldavská republika | C128: 59467 | D128: 60790 | E128: 57439 | F128: 45536 | K128: 177696
A129: MN | B129: Mongolsko | C129: 14931 | D129: 21215 | E129: 13129 | F129: 7895 | K129: 49275
A130: MZ | B130: Mosambik | C130: 1819 | D130: 1640 | E130: 1448 | F130: 481 | K130: =C130+D130+E130 -> 4907
A131: MM | B131: Myanmar | C131: 678 | D131: 566 | E131: 141 | F131: 287 | K131: 1385
A132: NA | B132: Namibie | C132: 2324 | D132: 1712 | E132: 2964 | F132: 919 | K132: 7000
A133: DE | B133: Německo | C133: 50807190 | D133: 49408941 | E133: 52465708 | F133: 43062363 | K133: 152681839
A134: NP | B134: Nepál | C134: 2523 | D134: 2083 | E134: 3166 | F134: 2114 | K134: 7772
A135: NE | B135: Niger | C135: 281 | D135: 1186 | E135: 726 | F135: 225 | K135: 2193
A136: NG | B136: Nigérie | C136: 76188 | D136: 71370 | E136: 73479 | F136: 60583 | K136: 221037
A137: NI | B137: Nikaragua | C137: 975 | D137: 463 | E137: 582 | F137: 426 | K137: 2020
A138: NL | B138: Nizozemsko | C138: 4535590 | D138: 5084285 | E138: 5757057 | F138: 4900539 | K138: 15376932
A139: NO | B139: Norsko | C139: 832317 | D139: 818610 | E139: 859447 | F139: 701187 | K139: 2510374
A140: NC | B140: Nová Kaledonie | C140: 3292 | D140: 2640 | E140: 1419 | F140: 6231 | K140: 7351
A141: NZ | B141: Nový Zéland | C141: 66454 | D141: 55798 | E141: 45890 | F141: 37441 | K141: 168142
A142: PS | B142: Okupované palestinské území | C142: 1176 | D142: 2212 | E142: 1698 | F142: 2971 | K142: 5086
A143: OM | B143: Omán | C143: 27103 | D143: 30737 | E143: 25162 | F143: 14993 | K143: 83002
A144: TC | B144: Ostrovy Turks a Caicos | C144: 379 | D144: 159 | E144: 9 | F144: 0 | K144: 547
A145: PK | B145: Pákistán | C145: 39943 | D145: 33613 | E145: 35746 | F145: 34724 | K145: 109302
A146: PA | B146: Panama | C146: 14465 | D146: 17752 | E146: 18238 | F146: 10830 | K146: 50455
A147: PG | B147: Papua Nová Guinea | C147: 676 | D147: 1310 | E147: 739 | F147: 1577 | K147: 2725
A148: PY | B148: Paraguay | C148: 5168 | D148: 3535 | E148: 2872 | F148: 3245 | K148: 11575
A149: PE | B149: Peru | C149: 40815 | D149: 28975 | E149: 20377 | F149: 28960 | K149: 90167
A150: CI | B150: Pobřeží slonoviny | C150: 11865 | D150: 5208 | E150: 2601 | F150: 2395 | K150: 19674
A151: PL | B151: Polsko | C151: 9736806 | D151: 9574211 | E151: 10274985 | F151: 8119945 | K151: 29586002
A152: PT | B152: Portugalsko | C152: 458298 | D152: 442065 | E152: 546720 | F152: 500109 | K152: 1447083
A153: AT | B153: Rakousko | C153: 7364139 | D153: 7246084 | E153: 7406770 | F153: 6280818 | K153: 22016993
A154: QR | B154: Rezervy a zásoby v rámci obchodu uvnitř EU | C154: 53757 | D154: 52083 | E154: 57657 | F154: 46075 | K154: 163497
A155: GQ | B155: Rovníková Guinea | C155: 357 | D155: 2331 | E155: 4729 | F155: 488 | K155: 7417
A156: RO | B156: Rumunsko | C156: 2031070 | D156: 1776503 | E156: 1792793 | F156: 1503269 | K156: 5600366
A157: RU | B157: Ruská federace | C157: 5942822 | D157: 6035321 | E157: 5220251 | F157: 3535407 | K157: 17198394
A158: RW | B158: Rwanda | C158: 1883 | D158: 1395 | E158: 745 | F158: 564 | K158: 4023
A159: GR | B159: Řecko | C159: 287723 | D159: 282692 | E159: 394555 | F159: 371101 | K159: 964970
A160: SV | B160: Salvador | C160: 56611 | D160: 46767 | E160: 52942 | F160: 63659 | K160: 156320
A161: SM | B161: San Marino | C161: 1386 | D161: 1451 | E161: 1194 | F161: 1879 | K161: 4031
A162: SA | B162: Saúdská Arábie | C162: 358408 | D162: 335192 | E162: 262375 | F162: 236142 | K162: 955975
A163: SN | B163: Senegal | C163: 28787 | D163: 20106 | E163: 19904 | F163: 8536 | K163: 68797
A164: SC | B164: Seychely | C164: 6301 | D164: 6000 | E164: 3300 | F164: 4406 | K164: 15601
A165: SL | B165: Sierra Leone | C165: 346 | D165: 604 | E165: 684 | F165: 682 | K165: 1634
A166: SG | B166: Singapur | C166: 205761 | D166: 202284 | E166: 181065 | F166: 109061 | K166: 589110
A167: TZ | B167: Sjednocená republika Tanzanie | C167: 8758 | D167: 13563 | E167: 6391 | F167: 4713 | K167: 28712
A168: SK | B168: Slovensko | C168: 14317552 | D168: 14190134 | E168: 14568839 | F168: 11419455 | K168: 43076525
A169: SI | B169: Slovinsko | C169: 686138 | D169: 659811 | E169: 813315 | F169: 699579 | K169: 2159264
A170: AE | B170: Spojené arabské emiráty | C170: 689141 | D170: 625769 | E170: 636792 | F170: 523374 | K170: 1951702
A171: GB | B171: Spojené království | C171: 7848045 | D171: 7527748 | E171: 7376092 | F171: 6563887 | K171: 22751885
A172: US | B172: Spojené státy | C172: 3533750 | D172: 3581975 | E172: 3156766 | F172: 2322041 | K172: 10272491
A173: XS | B173: Srbsko | C173: 472491 | D173: 481421 | E173: 543095 | F173: 331829 | K173: 1497007
A174: LK | B174: Srí Lanka | C174: 16012 | D174: 14820 | E174: 14367 | F174: 9314 | K174: 45199
A175: CF | B175: Středoafrická republika | C175: 361 | D175: 308 | E175: 259 | F175: 77 | K175: 928
A176: SD | B176: Súdán | C176: 15360 | D176: 11410 | E176: 9847 | F176: 11110 | K176: 36617
A177: SR | B177: Surinam | C177: 673 | D177: 467 | E177: 755 | F177: 4692 | K177: 1895
A178: LC | B178: Svatá Lucie | C178: 17 | D178: 19 | E178: 5 | F178: 8 | K178: 41
A179: KN | B179: Svatý Kryštof a Nevis | C179: 3 | D179: 3 | E179: 1 | F179: 269 | K179: 7
A180: VC | B180: Svatý Vincenc a Grenadiny | C180: 39 | D180: 235 | E180: 28 | F180: 55 | K180: 302
A181: SZ | B181: Svazijsko | C181: 1595 | D181: 540 | E181: 86 | F181: 101 | K181: 2221
A182: SY | B182: Syrská arabská republika | C182: 16535 | D182: 33876 | E182: 47978 | F182: 49675 | K182: 98389
A183: ES | B183: Španělsko | C183: 3483336 | D183: 3145303 | E183: 3477789 | F183: 3171223 | K183: 10106428
A184: SE | B184: Švédsko | C184: 2426592 | D184: 2378748 | E184: 2685744 | F184: 2164170 | K184: 7491084
A185: CH | B185: Švýcarsko | C185: 2513032 | D185: 2552677 | E185: 2749624 | F185: 2197938 | K185: 7815333
A186: TJ | B186: Tádžikistán | C186: 6643 | D186: 5089 | E186: 4050 | F186: 8099 | K186: 15782
A187: TH | B187: Thajsko | C187: 155954 | D187: 160713 | E187: 135280 | F187: 108002 | K187: 451947
A188: TW | B188: Tchaj-wan | C188: 151979 | D188: 160232 | E188: 154473 | F188: 103845 | K188: 466684
A189: TG | B189: Togo | C189: 6867 | D189: 7326 | E189: 8065 | F189: 7435 | K189: 22258
A190: TT | B190: Trinidad a Tobago | C190: 5132 | D190: 2936 | E190: 2527 | F190: 1043 | K190: 10595
A191: TN | B191: Tunisko | C191: 78182 | D191: 69075 | E191: 95038 | F191: 90730 | K191: 242295
A192: TR | B192: Turecko | C192: 2209716 | D192: 1699623 | E192: 1358501 | F192: 1041690 | K192: 5267840
A193: TM | B193: Turkmenistán | C193: 23748 | D193: 22616 | E193: 16931 | F193: 16813 | K193: 63295
A194: UG | B194: Uganda | C194: 7580 | D194: 8926 | E194: 4664 | F194: 3420 | K194: =C194+D194+E194 -> 21170
A195: UA | B195: Ukrajina | C195: 1652939 | D195: 1708711 | E195: 1373538 | F195: 939390 | K195: 4735188
A196: UY | B196: Uruguay | C196: 8939 | D196: 12593 | E196: 15681 | F196: 8407 | K196: 37213
A197: UZ | B197: Uzbekistán | C197: 84468 | D197: 78897 | E197: 57424 | F197: 43044 | K197: 220789
A198: VN | B198: Vietnam | C198: 128874 | D198: 91905 | E198: 45075 | F198: 65067 | K198: 265854
A199: TL | B199: Východní Timor | C199: 108 | D199: 22 | E199: 109 | K199: 239
A200: ZM | B200: Zambie | C200: 4312 | D200: 1105 | E200: 6208 | F200: 3636 | K200: 11625
... 4 more rows

Sheet A.4 Import svět DivExp (hidden)
A1: Country Name | B1: Country Code | C1: Indicator Name | D1: Indicator Code | E1: 2005 | F1: 2006 | G1: 2007 | H1: 2008 | I1: 2009 | J1: 2010 | K1: 2011 | L1: 2012 | M1: 2013 | N1: 2014
A2: Aruba | B2: ABW | C2: Imports of goods and services (BoP, current US$) | D2: BM.GSR.GNFS.CD | E2: 5007906282 | F2: 5479533272 | G2: 5911318885 | H2: 6810625288 | I2: 3145844641 | J2: 2074796338 | K2: 6760292993 | L2: 2856408119
A3: Andorra | B3: AND | C3: Imports of goods and services (BoP, current US$) | D3: BM.GSR.GNFS.CD
A4: Afghanistan | B4: AFG | C4: Imports of goods and services (BoP, current US$) | D4: BM.GSR.GNFS.CD | H4: 3613546847 | I4: 4301202261 | J4: 6659392279 | K4: 7999515574 | L4: 1.163684172e+10
A5: Angola | B5: AGO | C5: Imports of goods and services (BoP, current US$) | D5: BM.GSR.GNFS.CD | E5: 1.514422083e+10 | F5: 1.628881746e+10 | G5: 2.630470981e+10 | H5: 4.312153079e+10 | I5: 4.182928828e+10 | J5: 3.542122236e+10 | K5: 4.38983324e+10 | L5: 4.583610309e+10
A6: Albania | B6: ALB | C6: Imports of goods and services (BoP, current US$) | D6: BM.GSR.GNFS.CD | E6: 3500349094 | F6: 4073117269 | G6: 5344137206 | H6: 6730868146 | I6: 6028375820 | J6: 5781820591 | K6: 6709095402 | L6: 5854965092
A7: Andean Region | B7: ANR | C7: Imports of goods and services (BoP, current US$) | D7: BM.GSR.GNFS.CD
A8: Arab World | B8: ARB | C8: Imports of goods and services (BoP, current US$) | D8: BM.GSR.GNFS.CD | E8: 4.51982192e+11 | F8: 5.251867767e+11 | G8: 6.542648526e+11 | H8: 8.412261673e+11 | I8: 7.613511707e+11 | J8: 8.265996428e+11 | K8: 8.968816213e+11 | L8: 1.006793072e+12
A9: United Arab Emirates | B9: ARE | C9: Imports of goods and services (BoP, current US$) | D9: BM.GSR.GNFS.CD
A10: Argentina | B10: ARG | C10: Imports of goods and services (BoP, current US$) | D10: BM.GSR.GNFS.CD | E10: 34796990000 | F10: 40973570000 | G10: 53226200000 | H10: 67850150000 | I10: 4.922757525e+10 | J10: 6.851110985e+10 | K10: 8.873227224e+10 | L10: 8.387581518e+10
A11: Armenia | B11: ARM | C11: Imports of goods and services (BoP, current US$) | D11: BM.GSR.GNFS.CD | E11: 2122901091 | F11: 2535593808 | G11: 3588640000 | H11: 4747890164 | I11: 3687051463 | J11: 4211470000 | K11: 4791060281 | L11: 4884358162
A12: American Samoa | B12: ASM | C12: Imports of goods and services (BoP, current US$) | D12: BM.GSR.GNFS.CD
A13: Antigua and Barbuda | B13: ATG | C13: Imports of goods and services (BoP, current US$) | D13: BM.GSR.GNFS.CD | E13: 682720511.9 | F13: 818413175.9 | G13: 932372143 | H13: 941548735.6 | I13: 706477113 | J13: 678929890.7 | K13: 640890485.9 | L13: 615141250.7
A14: Australia | B14: AUS | C14: Imports of goods and services (BoP, current US$) | D14: BM.GSR.GNFS.CD | E14: 1.52261873e+11 | F14: 1.700300977e+11 | G14: 2.058311922e+11 | H14: 2.464256534e+11 | I14: 2.05140564e+11 | J14: 2.540638499e+11 | K14: 3.111347717e+11 | L14: 3.349285899e+11
A15: Austria | B15: AUT | C15: Imports of goods and services (BoP, current US$) | D15: BM.GSR.GNFS.CD | E15: 1.489495433e+11 | F15: 1.640571373e+11 | G15: 1.970948746e+11 | H15: 2.19293361e+11 | I15: 1.733530704e+11 | J15: 1.853715167e+11 | K15: 2.207458428e+11 | L15: 2.083917436e+11
A16: Azerbaijan | B16: AZE | C16: Imports of goods and services (BoP, current US$) | D16: BM.GSR.GNFS.CD | E16: 6810443000 | F16: 7892462000 | G16: 9261963000 | H16: 11220723000 | I16: 9786925000 | J16: 10236392000 | K16: 15707412000 | L16: 17393069000
A17: Burundi | B17: BDI | C17: Imports of goods and services (BoP, current US$) | D17: BM.GSR.GNFS.CD | E17: 322992765.3 | F17: 446930932.9 | G17: 436252542.8 | H17: 594245042.8 | I17: 519660970.8 | J17: 606742158.2 | K17: 765321392.9 | L17: 922627667.4
A18: Belgium | B18: BEL | C18: Imports of goods and services (BoP, current US$) | D18: BM.GSR.GNFS.CD | E18: 2.766722344e+11 | F18: 2.982825732e+11 | G18: 3.553830975e+11 | H18: 4.191888404e+11 | I18: 3.282635362e+11 | J18: 3.578037149e+11 | K18: 4.274471178e+11 | L18: 4.089379707e+11
A19: Benin | B19: BEN | C19: Imports of goods and services (BoP, current US$) | D19: BM.GSR.GNFS.CD | E19: 1144595571 | F19: 1397955300 | G19: 2102332222 | H19: 2399732890 | I19: 2233660783 | J19: 2289872032 | K19: 2304228101
A20: Burkina Faso | B20: BFA | C20: Imports of goods and services (BoP, current US$) | D20: BM.GSR.GNFS.CD | E20: 1393669002 | F20: 1450526575 | G20: 1701474063 | H20: 2352609727 | I20: 1941814106 | J20: 2556718654
A21: Bangladesh | B21: BGD | C21: Imports of goods and services (BoP, current US$) | D21: BM.GSR.GNFS.CD | E21: 1.457692395e+10 | F21: 1.664083583e+10 | G21: 1.936926457e+10 | H21: 2.507468471e+10 | I21: 2.307275454e+10 | J21: 2.947080877e+10 | K21: 3.787811352e+10 | L21: 3.774895383e+10
A22: Bulgaria | B22: BGR | C22: Imports of goods and services (BoP, current US$) | D22: BM.GSR.GNFS.CD | E22: 2.060821838e+10 | F22: 2.623508817e+10 | G22: 3.524322002e+10 | H22: 4.106644356e+10 | I22: 2.718770784e+10 | J22: 2.841435648e+10 | K22: 3.545153358e+10 | L22: 3.551469846e+10
A23: Bahrain | B23: BHR | C23: Imports of goods and services (BoP, current US$) | D23: BM.GSR.GNFS.CD | E23: 1.028696809e+10 | F23: 1.155904255e+10 | G23: 1.262632979e+10 | H23: 1.627632979e+10 | I23: 1.135398936e+10 | J23: 1.309547872e+10 | K23: 1.388430851e+10 | L23: 1.471941489e+10
A24: Bahamas, The | B24: BHS | C24: Imports of goods and services (BoP, current US$) | D24: BM.GSR.GNFS.CD | E24: 3663841123 | F24: 4377370000 | G24: 4536512197 | H24: 4601942975 | I24: 3731856000 | J24: 3772597000 | K24: 4258073000 | L24: 4923126000
A25: Bosnia and Herzegovina | B25: BIH | C25: Imports of goods and services (BoP, current US$) | D25: BM.GSR.GNFS.CD | E25: 7889800369 | F25: 8146122041 | G25: 8750920365 | H25: 1.117149532e+10 | I25: 8485963331 | J25: 8593323611 | K25: 1.016933711e+10 | L25: 9359963175
A26: Belarus | B26: BLR | C26: Imports of goods and services (BoP, current US$) | D26: BM.GSR.GNFS.CD | E26: 17194700000 | F26: 23061400000 | G26: 29669200000 | H26: 40869500000 | I26: 29918300000 | J26: 36801800000 | K26: 47746000000 | L26: 48852300000
A27: Belize | B27: BLZ | C27: Imports of goods and services (BoP, current US$) | D27: BM.GSR.GNFS.CD | E27: 703006125 | F27: 750032180 | G27: 802873967.5 | H27: 957814500.9 | I27: 782258955.3 | J27: 809614500.4 | K27: 949258328.6 | L27: 1025051458
A28: Bermuda | B28: BMU | C28: Imports of goods and services (BoP, current US$) | D28: BM.GSR.GNFS.CD | F28: 1956250000 | G28: 2280968303 | H28: 2200703015 | I28: 2048524193 | J28: 2001353895 | K28: 1884005217 | L28: 1883398854
A29: Bolivia | B29: BOL | C29: Imports of goods and services (BoP, current US$) | D29: BM.GSR.GNFS.CD | E29: 2864544535 | F29: 3456895455 | G29: 4140205095 | H29: 5778115001 | I29: 5155790000 | J29: 6155587585 | K29: 8777100051 | L29: 9688834427
A30: Brazil | B30: BRA | C30: Imports of goods and services (BoP, current US$) | D30: BM.GSR.GNFS.CD | E30: 9.661092519e+10 | F30: 1.194989672e+11 | G30: 1.577903613e+11 | H30: 2.202470952e+11 | I30: 174697463800 | J30: 2.442024325e+11 | K30: 3.02394133e+11 | L30: 3.040881487e+11
A31: Barbados | B31: BRB | C31: Imports of goods and services (BoP, current US$) | D31: BM.GSR.GNFS.CD | E31: 2171324537 | F31: 2294401594 | G31: 2368256005 | H31: 2568543297 | I31: 2076951175 | J31: 2240403436
A32: Brunei Darussalam | B32: BRN | C32: Imports of goods and services (BoP, current US$) | D32: BM.GSR.GNFS.CD | E32: 2521930493 | F32: 2801883155 | G32: 3308625080 | H32: 4260183205 | I32: 3716618335
A33: Bhutan | B33: BTN | C33: Imports of goods and services (BoP, current US$) | D33: BM.GSR.GNFS.CD | F33: 499404590.8 | G33: 586338985.1 | H33: 765638698.3 | I33: 682167104.1 | J33: 935242365.3 | K33: 1304563282 | L33: 1209323618 | M33: 1132255461
A34: Botswana | B34: BWA | C34: Imports of goods and services (BoP, current US$) | D34: BM.GSR.GNFS.CD | E34: 3439105492 | F34: 3352225071 | G34: 4734509586 | H34: 5587778425 | I34: 5327346061 | J34: 6357705950 | K34: 8052201438 | L34: 8619336214
A35: Sub-Saharan Africa (IFC classification) | B35: CAA | C35: Imports of goods and services (BoP, current US$) | D35: BM.GSR.GNFS.CD
A36: Central African Republic | B36: CAF | C36: Imports of goods and services (BoP, current US$) | D36: BM.GSR.GNFS.CD
A37: Canada | B37: CAN | C37: Imports of goods and services (BoP, current US$) | D37: BM.GSR.GNFS.CD | E37: 3.850683598e+11 | F37: 4.296773169e+11 | G37: 4.709990499e+11 | H37: 5.076033102e+11 | I37: 4.118577366e+11 | J37: 4.998878419e+11 | K37: 5.686170655e+11 | L37: 5.832772484e+11
A38: East Asia and the Pacific (IFC classification) | B38: CEA | C38: Imports of goods and services (BoP, current US$) | D38: BM.GSR.GNFS.CD
A39: Central Europe and the Baltics | B39: CEB | C39: Imports of goods and services (BoP, current US$) | D39: BM.GSR.GNFS.CD | E39: 4.347838262e+11 | F39: 5.353141586e+11 | G39: 6.964370878e+11 | H39: 8.43808411e+11 | I39: 6.095229414e+11 | J39: 6.942752123e+11 | K39: 8.269871443e+11 | L39: 7.892736643e+11
A40: Europe and Central Asia (IFC classification) | B40: CEU | C40: Imports of goods and services (BoP, current US$) | D40: BM.GSR.GNFS.CD
A41: Switzerland | B41: CHE | C41: Imports of goods and services (BoP, current US$) | D41: BM.GSR.GNFS.CD | E41: 1.711943703e+11 | F41: 1.889628243e+11 | G41: 2.190034429e+11 | H41: 2.630493859e+11 | I41: 2.431485596e+11 | J41: 2.875331007e+11 | K41: 3.722216052e+11 | L41: 3.489772606e+11
A42: Channel Islands | B42: CHI | C42: Imports of goods and services (BoP, current US$) | D42: BM.GSR.GNFS.CD
A43: Chile | B43: CHL | C43: Imports of goods and services (BoP, current US$) | D43: BM.GSR.GNFS.CD | E43: 3.824796574e+10 | F43: 4.436160862e+10 | G43: 5.398036476e+10 | H43: 6.951737057e+10 | I43: 5.060591489e+10 | J43: 6.844591567e+10 | K43: 8.662222884e+10 | L43: 8.991586967e+10
A44: China | B44: CHN | C44: Imports of goods and services (BoP, current US$) | D44: BM.GSR.GNFS.CD | E44: 6.458316025e+11 | F44: 7.645394864e+11 | G44: 9.47320323e+11 | H44: 1.144733684e+12 | I44: 1.040201576e+12 | J44: 1.424691586e+12 | K44: 1.808759336e+12 | L44: 1.935402279e+12
A45: Cote d'Ivoire | B45: CIV | C45: Imports of goods and services (BoP, current US$) | D45: BM.GSR.GNFS.CD | E45: 7368186937 | F45: 7594819498 | G45: 8580818678 | H45: 9720553088 | I45: 9686302557 | J45: 1.077540565e+10
A46: Latin America and the Caribbean (IFC classification) | B46: CLA | C46: Imports of goods and services (BoP, current US$) | D46: BM.GSR.GNFS.CD
A47: Middle East and North Africa (IFC classification) | B47: CME | C47: Imports of goods and services (BoP, current US$) | D47: BM.GSR.GNFS.CD
A48: Cameroon | B48: CMR | C48: Imports of goods and services (BoP, current US$) | D48: BM.GSR.GNFS.CD | E48: 4312133407 | F48: 4631707419 | G48: 5906255353 | H48: 8024405599 | I48: 6226838131 | J48: 6362193001 | K48: 8187790741 | L48: 8150802783
A49: Congo, Rep. | B49: COG | C49: Imports of goods and services (BoP, current US$) | D49: BM.GSR.GNFS.CD | E49: 2722628882 | F49: 4429420173 | G49: 6385796202
A50: Colombia | B50: COL | C50: Imports of goods and services (BoP, current US$) | D50: BM.GSR.GNFS.CD | E50: 2.472585152e+10 | F50: 3.009366014e+10 | G50: 3.719310738e+10 | H50: 4.452584535e+10 | I50: 3.821650302e+10 | J50: 4.624964414e+10 | K50: 6.148497581e+10 | L50: 6.725897862e+10
A51: Comoros | B51: COM | C51: Imports of goods and services (BoP, current US$) | D51: BM.GSR.GNFS.CD
A52: Cabo Verde | B52: CPV | C52: Imports of goods and services (BoP, current US$) | D52: BM.GSR.GNFS.CD | E52: 641802019.3 | F52: 803794079.5 | G52: 1033440889 | H52: 1183055155 | I52: 1082685572 | J52: 1113749513 | K52: 1373359309 | L52: 1193341564
A53: Costa Rica | B53: CRI | C53: Imports of goods and services (BoP, current US$) | D53: BM.GSR.GNFS.CD | E53: 7771303180 | F53: 8845708253 | G53: 1.07277317e+10 | H53: 1.297830181e+10 | I53: 9522118549 | J53: 1.150023644e+10 | K53: 1.353601927e+10 | L53: 1.462714524e+10
A54: South Asia (IFC classification) | B54: CSA | C54: Imports of goods and services (BoP, current US$) | D54: BM.GSR.GNFS.CD
A55: Caribbean small states | B55: CSS | C55: Imports of goods and services (BoP, current US$) | D55: BM.GSR.GNFS.CD | E55: 2.366015785e+10 | F55: 2.637345881e+10 | G55: 2.995333491e+10 | H55: 3.475071413e+10 | I55: 2.615515062e+10 | J55: 2.632373056e+10 | K55: 3.836649135e+10
A56: Cuba | B56: CUB | C56: Imports of goods and services (BoP, current US$) | D56: BM.GSR.GNFS.CD
A57: Curacao | B57: CUW | C57: Imports of goods and services (BoP, current US$) | D57: BM.GSR.GNFS.CD
A58: Cayman Islands | B58: CYM | C58: Imports of goods and services (BoP, current US$) | D58: BM.GSR.GNFS.CD
A59: Cyprus | B59: CYP | C59: Imports of goods and services (BoP, current US$) | D59: BM.GSR.GNFS.CD | E59: 8497858858 | F59: 9273565505 | G59: 1.172082841e+10 | H59: 1.426330783e+10 | I59: 1.073923073e+10 | J59: 1.096102296e+10 | K59: 1.174091331e+10 | L59: 1.046894315e+10
A60: Czech Republic | B60: CZE | C60: Imports of goods and services (BoP, current US$) | D60: BM.GSR.GNFS.CD | E60: 7.386444335e+10 | F60: 8.902333017e+10 | G60: 1.124338993e+11 | H60: 1.336039177e+11 | I60: 1.049818477e+11 | J60: 1.229229194e+11 | K60: 1.447136767e+11 | L60: 1.385752258e+11
A61: Germany | B61: DEU | C61: Imports of goods and services (BoP, current US$) | D61: BM.GSR.GNFS.CD | E61: 9.623133328e+11 | F61: 1.118540349e+12 | G61: 1.2991667e+12 | H61: 1.483004e+12 | I61: 1.207918026e+12 | J61: 1.349309676e+12 | K61: 1.601415757e+12 | L61: 1.521184873e+12
A62: Djibouti | B62: DJI | C62: Imports of goods and services (BoP, current US$) | D62: BM.GSR.GNFS.CD | E62: 361105328 | F62: 424986355 | G62: 568599096.3 | H62: 690644324.5 | I62: 564677218.8 | J62: 478429673.5 | K62: 658352136.2 | L62: 682749928.3
A63: Dominica | B63: DMA | C63: Imports of goods and services (BoP, current US$) | D63: BM.GSR.GNFS.CD | E63: 196125121.1 | F63: 198852566.3 | G63: 236331767.4 | H63: 287322125.9 | I63: 264465896.7 | J63: 264518701.1 | K63: 262513305.9 | L63: 246611540
A64: Denmark | B64: DNK | C64: Imports of goods and services (BoP, current US$) | D64: BM.GSR.GNFS.CD | E64: 1.12154738e+11 | F64: 1.329155259e+11 | G64: 1.545818009e+11 | H64: 1.768098479e+11 | I64: 1.34464321e+11 | J64: 1.382148209e+11 | K64: 1.597451349e+11 | L64: 1.551271302e+11
A65: Dominican Republic | B65: DOM | C65: Imports of goods and services (BoP, current US$) | D65: BM.GSR.GNFS.CD | E65: 8844500000 | F65: 11140810000 | G65: 12869700000 | H65: 15553400000 | I65: 11803100000 | J65: 15210300000 | K65: 16772300000 | L65: 17249000000
A66: Algeria | B66: DZA | C66: Imports of goods and services (BoP, current US$) | D66: BM.GSR.GNFS.CD | E66: 2.464e+10 | F66: 2.5357e+10 | G66: 33180000000 | H66: 49152000000 | I66: 4.9081e+10 | J66: 50792000000 | K66: 5.936027999e+10 | L66: 6.259242272e+10
A67: East Asia & Pacific (developing only) | B67: EAP | C67: Imports of goods and services (BoP, current US$) | D67: BM.GSR.GNFS.CD | E67: 1.096056801e+12 | F67: 1.26644985e+12 | G67: 1.52355441e+12 | H67: 1.837412553e+12 | I67: 1.593989656e+12 | J67: 2.151085588e+12 | K67: 2.695491038e+12 | L67: 2.898632412e+12
A68: East Asia & Pacific (all income levels) | B68: EAS | C68: Imports of goods and services (BoP, current US$) | D68: BM.GSR.GNFS.CD | E68: 2.980206498e+12 | F68: 3.394357115e+12 | G68: 3.901572771e+12 | H68: 4.628102131e+12 | I68: 3.789067149e+12 | J68: 4.925367267e+12 | K68: 5.997098688e+12 | L68: 6.322326236e+12
A69: Europe & Central Asia (developing only) | B69: ECA | C69: Imports of goods and services (BoP, current US$) | D69: BM.GSR.GNFS.CD | E69: 3.892472733e+11 | F69: 4.745053382e+11 | G69: 6.132317983e+11 | H69: 7.51637915e+11 | I69: 5.258966493e+11 | J69: 6.201665689e+11 | K69: 7.763070793e+11 | L69: 7.774955277e+11
A70: Europe & Central Asia (all income levels) | B70: ECS | C70: Imports of goods and services (BoP, current US$) | D70: BM.GSR.GNFS.CD | E70: 5.572213419e+12 | F70: 6.419830324e+12 | G70: 7.608247959e+12 | H70: 8.65264564e+12 | I70: 6.724186835e+12 | J70: 7.548146821e+12 | K70: 8.888091705e+12 | L70: 8.517199408e+12
A71: Ecuador | B71: ECU | C71: Imports of goods and services (BoP, current US$) | D71: BM.GSR.GNFS.CD | E71: 1.185130506e+10 | F71: 1.374895571e+10 | G71: 1.561869337e+10 | H71: 2.092512224e+10 | I71: 1.688675647e+10 | J71: 2.263947952e+10 | K71: 2.639279808e+10 | L71: 2.780130599e+10
A72: Egypt, Arab Rep. | B72: EGY | C72: Imports of goods and services (BoP, current US$) | D72: BM.GSR.GNFS.CD | E72: 34326300000 | F72: 40552700000 | G72: 53696700000 | H72: 67222800000 | I72: 53842100000 | J72: 59862200000 | K72: 61381100000 | L72: 68800800000
A73: Euro area | B73: EMU | C73: Imports of goods and services (BoP, current US$) | D73: BM.GSR.GNFS.CD | E73: 3.595645145e+12 | F73: 4.096028225e+12 | G73: 4.824711093e+12 | H73: 5.438624937e+12 | I73: 4.319700697e+12 | J73: 4.74687514e+12 | K73: 5.524076843e+12 | L73: 5.171235947e+12
A74: Eritrea | B74: ERI | C74: Imports of goods and services (BoP, current US$) | D74: BM.GSR.GNFS.CD
A75: Spain | B75: ESP | C75: Imports of goods and services (BoP, current US$) | D75: BM.GSR.GNFS.CD | E75: 3.454360771e+11 | F75: 4.002558122e+11 | G75: 4.813639793e+11 | H75: 5.122470579e+11 | I75: 3.72383395e+11 | J75: 4.048040899e+11 | K75: 4.571859644e+11 | L75: 4.139794219e+11
A76: Estonia | B76: EST | C76: Imports of goods and services (BoP, current US$) | D76: BM.GSR.GNFS.CD | E76: 1.124828783e+10 | F76: 1.361640324e+10 | G76: 1.65713147e+10 | H76: 1.75139505e+10 | I76: 1.123554058e+10 | J76: 1.350785883e+10 | K76: 1.901753451e+10 | L76: 1.958752805e+10
A77: Ethiopia | B77: ETH | C77: Imports of goods and services (BoP, current US$) | D77: BM.GSR.GNFS.CD | E77: 4894688570 | F77: 5276122166 | G77: 6904526596 | H77: 9597929161 | I77: 9042846295 | J77: 9910786329 | K77: 1.165067273e+10 | L77: 1.41299377e+10
A78: European Union | B78: EUU | C78: Imports of goods and services (BoP, current US$) | D78: BM.GSR.GNFS.CD | E78: 4.877980932e+12 | F78: 5.594435015e+12 | G78: 6.568327276e+12 | H78: 7.37306364e+12 | I78: 5.767317491e+12 | J78: 6.380230508e+12 | K78: 7.406070066e+12 | L78: 7.009126508e+12
A79: Fragile and conflict affected situations | B79: FCS | C79: Imports of goods and services (BoP, current US$) | D79: BM.GSR.GNFS.CD | E79: 1.089075031e+11 | F79: 1.178093099e+11 | G79: 1.348798035e+11 | H79: 1.769409795e+11 | I79: 1.754492329e+11 | J79: 2.011845977e+11 | K79: 2.031050356e+11 | L79: 2.509623591e+11
A80: Finland | B80: FIN | C80: Imports of goods and services (BoP, current US$) | D80: BM.GSR.GNFS.CD | E80: 7.263825156e+10 | F80: 8.308783284e+10 | G80: 9.828308442e+10 | H80: 1.165106596e+11 | I80: 8.434412221e+10 | J80: 9.119785211e+10 | K80: 1.082199863e+11 | L80: 1.028351298e+11
A81: Fiji | B81: FJI | C81: Imports of goods and services (BoP, current US$) | D81: BM.GSR.GNFS.CD | E81: 1902497310 | F81: 2092318133 | G81: 2095821904 | H81: 2610165077 | I81: 1712079682 | J81: 2009876314 | K81: 2451776463 | L81: 2550966635
A82: France | B82: FRA | C82: Imports of goods and services (BoP, current US$) | D82: BM.GSR.GNFS.CD | E82: 5.643502459e+11 | F82: 6.258403801e+11 | G82: 7.212808401e+11 | H82: 8.172772232e+11 | I82: 6.945896067e+11 | J82: 7.471695924e+11 | K82: 8.783573294e+11 | L82: 8.176379614e+11
A83: Faeroe Islands | B83: FRO | C83: Imports of goods and services (BoP, current US$) | D83: BM.GSR.GNFS.CD | E83: 908686218.8 | F83: 1025531943 | G83: 1329943124 | H83: 1323882486 | I83: 1095270818 | J83: 1110813897 | K83: 1343228409
A84: Micronesia, Fed. Sts. | B84: FSM | C84: Imports of goods and services (BoP, current US$) | D84: BM.GSR.GNFS.CD
A85: Gabon | B85: GAB | C85: Imports of goods and services (BoP, current US$) | D85: BM.GSR.GNFS.CD | E85: 2392806119
A86: United Kingdom | B86: GBR | C86: Imports of goods and services (BoP, current US$) | D86: BM.GSR.GNFS.CD | E86: 6.718744859e+11 | F86: 7.638322097e+11 | G86: 8.247739543e+11 | H86: 8.454045404e+11 | I86: 6.508343913e+11 | J86: 7.318279754e+11 | K86: 8.205435862e+11 | L86: 8.268760692e+11
A87: Georgia | B87: GEO | C87: Imports of goods and services (BoP, current US$) | D87: BM.GSR.GNFS.CD | E87: 3267195296 | F87: 4376269300 | G87: 5879072606 | H87: 7470651996 | I87: 5248087039 | J87: 6113846561 | K87: 7987776377 | L87: 9132611588
A88: Ghana | B88: GHA | C88: Imports of goods and services (BoP, current US$) | D88: BM.GSR.GNFS.CD | E88: 6620400643 | F88: 8286494097 | G88: 1.006470469e+10 | H88: 1.256656345e+10 | I88: 10989380000 | J88: 13925330000 | K88: 19509210000 | L88: 21999630000
A89: Guinea | B89: GIN | C89: Imports of goods and services (BoP, current US$) | D89: BM.GSR.GNFS.CD | E89: 1027560000 | F89: 1256010000 | G89: 1512750000 | H89: 1810400000 | I89: 1390800000 | J89: 1800450000 | K89: 2673180000 | L89: 3135740000
A90: Gambia, The | B90: GMB | C90: Imports of goods and services (BoP, current US$) | D90: BM.GSR.GNFS.CD | E90: 269490287.3 | F90: 316290778.2 | G90: 366316471.8 | H90: 360200517.5 | I90: 342523379 | J90: 318937223.2 | K90: 364006533.6 | L90: 439111952.6
A91: Guinea-Bissau | B91: GNB | C91: Imports of goods and services (BoP, current US$) | D91: BM.GSR.GNFS.CD | E91: 147663704.5 | F91: 166623920.4 | G91: 236128403 | H91: 283971656 | I91: 289190945.8 | J91: 299127123.2
A92: Equatorial Guinea | B92: GNQ | C92: Imports of goods and services (BoP, current US$) | D92: BM.GSR.GNFS.CD
A93: Greece | B93: GRC | C93: Imports of goods and services (BoP, current US$) | D93: BM.GSR.GNFS.CD | E93: 6.661776498e+10 | F93: 8.092001926e+10 | G93: 1.012803978e+11 | H93: 1.190701301e+11 | I93: 8.41626193e+10 | J93: 8.033635537e+10 | K93: 8.546187761e+10 | L93: 6.942735468e+10
A94: Grenada | B94: GRD | C94: Imports of goods and services (BoP, current US$) | D94: BM.GSR.GNFS.CD | E94: 396159884.8 | F94: 402395598.9 | G94: 436385254.8 | H94: 451733171.1 | I94: 360979644.8 | J94: 378273870 | K94: 390593547.4 | L94: 394051145.6
A95: Greenland | B95: GRL | C95: Imports of goods and services (BoP, current US$) | D95: BM.GSR.GNFS.CD
A96: Guatemala | B96: GTM | C96: Imports of goods and services (BoP, current US$) | D96: BM.GSR.GNFS.CD | E96: 11099700000 | F96: 12712800000 | G96: 14511400000 | H96: 15570200000 | I96: 12726700000 | J96: 15187500000 | K96: 17868131000 | L96: 18251073800
A97: Guam | B97: GUM | C97: Imports of goods and services (BoP, current US$) | D97: BM.GSR.GNFS.CD
A98: Guyana | B98: GUY | C98: Imports of goods and services (BoP, current US$) | D98: BM.GSR.GNFS.CD | E98: 917971000 | F98: 1055174000 | G98: 1250105000 | H98: 1648805567 | I98: 1451819160 | J98: 1657564924 | K98: 2204274434 | L98: 2502207326
A99: High income | B99: HIC | C99: Imports of goods and services (BoP, current US$) | D99: BM.GSR.GNFS.CD | E99: 9.877169751e+12 | F99: 1.121843596e+13 | G99: 1.279936382e+13 | H99: 1.4456585e+13 | I99: 1.134489259e+13 | J99: 1.320793219e+13 | K99: 1.543804686e+13 | L99: 1.5314595e+13
A100: Hong Kong SAR, China | B100: HKG | C100: Imports of goods and services (BoP, current US$) | D100: BM.GSR.GNFS.CD | E100: 3.000652061e+11 | F100: 3.367615925e+11 | G100: 3.718938464e+11 | H100: 4.018112692e+11 | I100: 3.644503721e+11 | J100: 4.560070974e+11 | K100: 5.194021367e+11 | L100: 5.606642105e+11
A101: Honduras | B101: HND | C101: Imports of goods and services (BoP, current US$) | D101: BM.GSR.GNFS.CD | E101: 5397488533 | F101: 6254144130 | G101: 7775718503 | H101: 9446994869 | I101: 6809596910 | J101: 7775195685 | K101: 9803771686 | L101: 1.021298702e+10
A102: Heavily indebted poor countries (HIPC) | B102: HPC | C102: Imports of goods and services (BoP, current US$) | D102: BM.GSR.GNFS.CD | E102: 8.807459965e+10 | F102: 1.034682425e+11 | G102: 1.286436206e+11 | H102: 1.615822931e+11 | I102: 1.437139668e+11 | J102: 1.712624253e+11 | K102: 2.141741843e+11 | L102: 2.391307932e+11
A103: Croatia | B103: HRV | C103: Imports of goods and services (BoP, current US$) | D103: BM.GSR.GNFS.CD | E103: 2.162203148e+10 | F103: 2.458627533e+10 | G103: 2.9328492e+10 | H103: 3.48331159e+10 | I103: 2.484884317e+10 | J103: 2.344558653e+10 | K103: 2.602450389e+10 | L103: 2.410980945e+10
A104: Haiti | B104: HTI | C104: Imports of goods and services (BoP, current US$) | D104: BM.GSR.GNFS.CD | E104: 1852880000 | F104: 2141560000 | G104: 2384450000 | H104: 2853840000 | I104: 2804230000 | J104: 4087320000 | K104: 4154170000 | L104: 3849430000
A105: Hungary | B105: HUN | C105: Imports of goods and services (BoP, current US$) | D105: BM.GSR.GNFS.CD | E105: 7.240205156e+10 | F105: 8.458992656e+10 | G105: 1.055224104e+11 | H105: 1.222927189e+11 | I105: 8.968584693e+10 | J105: 9.720387904e+10 | K105: 1.117374974e+11 | L105: 1.021762993e+11
A106: Indonesia | B106: IDN | C106: Imports of goods and services (BoP, current US$) | D106: BM.GSR.GNFS.CD | E106: 8.681599104e+10 | F106: 9.004895906e+10 | G106: 102950920000 | H106: 1.376924844e+11 | I106: 1.05320445e+11 | J106: 1.456688181e+11 | K106: 1.888024125e+11 | L106: 2.131298308e+11
A107: Isle of Man | B107: IMN | C107: Imports of goods and services (BoP, current US$) | D107: BM.GSR.GNFS.CD
A108: India | B108: IND | C108: Imports of goods and services (BoP, current US$) | D108: BM.GSR.GNFS.CD | E108: 1.81858368e+11 | F108: 2.250860272e+11 | G108: 2.787857523e+11 | H108: 3.794793802e+11 | I108: 3.282571762e+11 | J108: 4.390590342e+11 | K108: 5.530621867e+11 | L108: 5.799085798e+11
A109: Not classified | B109: INX | C109: Imports of goods and services (BoP, current US$) | D109: BM.GSR.GNFS.CD
A110: Ireland | B110: IRL | C110: Imports of goods and services (BoP, current US$) | D110: BM.GSR.GNFS.CD | E110: 1.391662492e+11 | F110: 1.533637544e+11 | G110: 1.830333466e+11 | H110: 1.951997802e+11 | I110: 1.665555283e+11 | J110: 1.694253678e+11 | K110: 1.828356754e+11 | L110: 1.755830544e+11
A111: Iran, Islamic Rep. | B111: IRN | C111: Imports of goods and services (BoP, current US$) | D111: BM.GSR.GNFS.CD
A112: Iraq | B112: IRQ | C112: Imports of goods and services (BoP, current US$) | D112: BM.GSR.GNFS.CD | E112: 26096700000 | F112: 24197500000 | G112: 21488100000 | H112: 37333400000 | I112: 43847900000 | J112: 47191500000 | K112: 51757000000 | L112: 63446000000
A113: Iceland | B113: ISL | C113: Imports of goods and services (BoP, current US$) | D113: BM.GSR.GNFS.CD | E113: 7143340962 | F113: 8278238331 | G113: 9146083701 | H113: 8234419287 | I113: 5349913172 | J113: 5833494407 | K113: 7111960701 | L113: 7235088816
A114: Israel | B114: ISR | C114: Imports of goods and services (BoP, current US$) | D114: BM.GSR.GNFS.CD | E114: 57713200000 | F114: 62440500000 | G114: 73715200000 | H114: 84285200000 | I114: 63612800000 | J114: 77140100000 | K114: 93019300000 | L114: 92707200000
A115: Italy | B115: ITA | C115: Imports of goods and services (BoP, current US$) | D115: BM.GSR.GNFS.CD | E115: 4.48593725e+11 | F115: 5.157460779e+11 | G115: 5.998533291e+11 | H115: 6.586836532e+11 | I115: 4.958975772e+11 | J115: 5.679720489e+11 | K115: 6.40924665e+11 | L115: 5.606114197e+11
A116: Jamaica | B116: JAM | C116: Imports of goods and services (BoP, current US$) | D116: BM.GSR.GNFS.CD | E116: 5967539552 | F116: 7098090433 | G116: 8485576306 | H116: 9913903628 | I116: 6356293724 | J116: 6453776928 | K116: 7827455245 | L116: 7939617131
A117: Jordan | B117: JOR | C117: Imports of goods and services (BoP, current US$) | D117: BM.GSR.GNFS.CD | E117: 1.185937941e+10 | F117: 1.323088858e+10 | G117: 1.570057006e+10 | H117: 1.922851028e+10 | I117: 1.645874648e+10 | J117: 1.824159155e+10 | K117: 2.130113099e+10 | L117: 2.297526338e+10
A118: Japan | B118: JPN | C118: Imports of goods and services (BoP, current US$) | D118: BM.GSR.GNFS.CD | E118: 6.030303692e+11 | F118: 6.655195145e+11 | G118: 7.186996518e+11 | H118: 8.728168747e+11 | I118: 6.458074345e+11 | J118: 7.917925704e+11 | K118: 9.702047978e+11 | L118: 1.014812614e+12
A119: Kazakhstan | B119: KAZ | C119: Imports of goods and services (BoP, current US$) | D119: BM.GSR.GNFS.CD | E119: 2.545896526e+10 | F119: 3.288075064e+10 | G119: 4.498996155e+10 | H119: 4.957112547e+10 | I119: 3.900120099e+10 | J119: 4.426004207e+10 | K119: 5.132277664e+10 | L119: 6.195491969e+10
A120: Kenya | B120: KEN | C120: Imports of goods and services (BoP, current US$) | D120: BM.GSR.GNFS.CD | E120: 6738798772 | F120: 8171032137 | G120: 1.005905107e+10 | H120: 1.255918906e+10 | I120: 1.13016553e+10 | J120: 1.35313311e+10 | K120: 1.634853769e+10 | L120: 1.791976324e+10
A121: Kyrgyz Republic | B121: KGZ | C121: Imports of goods and services (BoP, current US$) | D121: BM.GSR.GNFS.CD | E121: 1395801611 | F121: 2252138753 | G121: 3218110606 | H121: 4747320274 | I121: 3675990945 | J121: 3905145517 | K121: 5073896096 | L121: 6498286411
A122: Cambodia | B122: KHM | C122: Imports of goods and services (BoP, current US$) | D122: BM.GSR.GNFS.CD | E122: 4560075995 | F122: 5575206559 | G122: 5332763703 | H122: 5976899191 | I122: 5399256135 | J122: 6437726231 | K122: 8032925951 | L122: 9510502876
A123: Kiribati | B123: KIR | C123: Imports of goods and services (BoP, current US$) | D123: BM.GSR.GNFS.CD
A124: St. Kitts and Nevis | B124: KNA | C124: Imports of goods and services (BoP, current US$) | D124: BM.GSR.GNFS.CD | E124: 280128917.4 | F124: 320689997.8 | G124: 346320109.6 | H124: 437002617.4 | I124: 366144811.9 | J124: 364049461.9 | K124: 353103445.2 | L124: 337155008.1
A125: Korea, Rep. | B125: KOR | C125: Imports of goods and services (BoP, current US$) | D125: BM.GSR.GNFS.CD | E125: 316712400000 | F125: 375235100000 | G125: 437401500000 | H125: 525850600000 | I125: 400544600000 | J125: 517270800000 | K125: 621212100000 | L125: 622348400000
A126: Kosovo | B126: KSV | C126: Imports of goods and services (BoP, current US$) | D126: BM.GSR.GNFS.CD | E126: 1764441259 | F126: 1950089733 | G126: 2460224986 | H126: 3120807925 | I126: 2961600262 | J126: 3223527064 | K126: 3824728319 | L126: 3397240939
A127: Kuwait | B127: KWT | C127: Imports of goods and services (BoP, current US$) | D127: BM.GSR.GNFS.CD | E127: 2.376815068e+10 | F127: 2.687849427e+10 | G127: 3.330589411e+10 | H127: 3.871652434e+10 | I127: 3.227123556e+10 | J127: 3.511150008e+10 | K127: 3.989536645e+10 | L127: 4.203806725e+10
A128: Latin America & Caribbean (developing only) | B128: LAC | C128: Imports of goods and services (BoP, current US$) | D128: BM.GSR.GNFS.CD | E128: 5.389232491e+11 | F128: 6.372438291e+11 | G128: 7.659008842e+11 | H128: 9.229930895e+11 | I128: 7.262413281e+11 | J128: 9.2719587e+11 | K128: 1.128501277e+12 | L128: 1.178731001e+12
A129: Lao PDR | B129: LAO | C129: Imports of goods and services (BoP, current US$) | D129: BM.GSR.GNFS.CD | E129: 920939197 | F129: 1097630156 | G129: 1108469119 | H129: 1511078359 | I129: 1596711640 | J129: 2323546717 | K129: 2753575128 | L129: 3396295416
A130: Lebanon | B130: LBN | C130: Imports of goods and services (BoP, current US$) | D130: BM.GSR.GNFS.CD | E130: 1.684937927e+10 | F130: 1.775558395e+10 | G130: 2.1446264e+10 | H130: 2.898944169e+10 | I130: 2.943707521e+10 | J130: 3.022172766e+10 | K130: 3.226773067e+10 | L130: 3.260140411e+10
A131: Liberia | B131: LBR | C131: Imports of goods and services (BoP, current US$) | D131: BM.GSR.GNFS.CD | E131: 1161865409 | F131: 1715735352 | G131: 1747310389 | H131: 2139934862 | I131: 1704165824 | J131: 1797660707 | K131: 3311208958
A132: Libya | B132: LBY | C132: Imports of goods and services (BoP, current US$) | D132: BM.GSR.GNFS.CD | E132: 13523000000 | F132: 15783000000 | G132: 20325500000 | H132: 26002500000 | I132: 27065000000 | J132: 30686400000 | K132: 15586400000 | L132: 32585900000
A133: St. Lucia | B133: LCA | C133: Imports of goods and services (BoP, current US$) | D133: BM.GSR.GNFS.CD | E133: 594847611.5 | F133: 706685958.9 | G133: 747386475.9 | H133: 820280296.3 | I133: 647960521.5 | J133: 787424834.1 | K133: 820182523 | L133: 776965174.8
A134: Latin America & Caribbean (all income levels) | B134: LCN | C134: Imports of goods and services (BoP, current US$) | D134: BM.GSR.GNFS.CD | E134: 6.565416364e+11 | F134: 7.743790296e+11 | G134: 9.288389119e+11 | H134: 1.125114727e+12 | I134: 8.78036687e+11 | J134: 1.117982507e+12 | K134: 1.376102282e+12 | L134: 1.433804029e+12
A135: Latin America and the Caribbean | B135: LCR | C135: Imports of goods and services (BoP, current US$) | D135: BM.GSR.GNFS.CD
A136: Least developed countries: UN classification | B136: LDC | C136: Imports of goods and services (BoP, current US$) | D136: BM.GSR.GNFS.CD | E136: 1.058374486e+11 | F136: 1.225850006e+11 | G136: 1.556105301e+11 | H136: 2.06235048e+11 | I136: 1.928767144e+11 | J136: 2.170591625e+11 | K136: 2.658578844e+11 | L136: 2.88027421e+11 | M136: 2.696719186e+11
A137: Low income | B137: LIC | C137: Imports of goods and services (BoP, current US$) | D137: BM.GSR.GNFS.CD | E137: 7.765258403e+10 | F137: 9.032480611e+10 | G137: 1.109738915e+11 | H137: 1.411210768e+11 | I137: 1.31208502e+11 | J137: 1.616965658e+11 | K137: 2.043610101e+11 | L137: 2.255694437e+11
A138: Liechtenstein | B138: LIE | C138: Imports of goods and services (BoP, current US$) | D138: BM.GSR.GNFS.CD
A139: Sri Lanka | B139: LKA | C139: Imports of goods and services (BoP, current US$) | D139: BM.GSR.GNFS.CD | E139: 10065569690 | F139: 11621220000 | G139: 12768600000 | H139: 15692000000 | I139: 11708400000 | J139: 15218510000 | K139: 22253850000 | L139: 2.172097896e+10
A140: Lower middle income | B140: LMC | C140: Imports of goods and services (BoP, current US$) | D140: BM.GSR.GNFS.CD | E140: 6.368968397e+11 | F140: 7.488135899e+11 | G140: 9.229729749e+11 | H140: 1.204211042e+12 | I140: 9.706517133e+11 | J140: 1.231624612e+12 | K140: 1.532673865e+12 | L140: 1.624183511e+12
A141: Low & middle income | B141: LMY | C141: Imports of goods and services (BoP, current US$) | D141: BM.GSR.GNFS.CD | E141: 2.709389138e+12 | F141: 3.176876767e+12 | G141: 3.881392367e+12 | H141: 4.791232066e+12 | I141: 3.956232367e+12 | J141: 5.044179485e+12 | K141: 6.214704509e+12 | L141: 6.564079504e+12
A142: Lesotho | B142: LSO | C142: Imports of goods and services (BoP, current US$) | D142: BM.GSR.GNFS.CD | E142: 1657034498 | F142: 1736815107 | G142: 1881892323 | H142: 1935537962 | I142: 2013679532 | J142: 2415597622 | K142: 2632900258 | L142: 2694402357
A143: Lithuania | B143: LTU | C143: Imports of goods and services (BoP, current US$) | D143: BM.GSR.GNFS.CD | E143: 1.57956135e+10 | F143: 1.987790089e+10 | G143: 2.522514586e+10 | H143: 3.400766104e+10 | I143: 2.067751309e+10 | J143: 2.540877539e+10 | K143: 3.315235528e+10 | L143: 3.499795561e+10
A144: Luxembourg | B144: LUX | C144: Imports of goods and services (BoP, current US$) | D144: BM.GSR.GNFS.CD | E144: 4.288628701e+10 | F144: 5.050812878e+10 | G144: 6.074853014e+10 | H144: 6.694758316e+10 | I144: 5.338284003e+10 | J144: 5.913613432e+10 | K144: 6.891751963e+10 | L144: 6.630164428e+10
A145: Latvia | B145: LVA | C145: Imports of goods and services (BoP, current US$) | D145: BM.GSR.GNFS.CD | E145: 9522000000 | F145: 12852500000 | G145: 17495800000 | H145: 18458300000 | I145: 11255100000 | J145: 12804900000 | K145: 17346800000 | L145: 18040400000
A146: Macao SAR, China | B146: MAC | C146: Imports of goods and services (BoP, current US$) | D146: BM.GSR.GNFS.CD | E146: 7347298650 | F146: 8922430016 | G146: 1.189269566e+10 | H146: 1.311584007e+10 | I146: 1.057019478e+10 | J146: 1.413081321e+10 | K146: 1.946784452e+10 | L146: 2.153099437e+10
A147: St. Martin (French part) | B147: MAF | C147: Imports of goods and services (BoP, current US$) | D147: BM.GSR.GNFS.CD
A148: Morocco | B148: MAR | C148: Imports of goods and services (BoP, current US$) | D148: BM.GSR.GNFS.CD | E148: 2.054327551e+10 | F148: 2.385580548e+10 | G148: 3.137009989e+10 | H148: 4.33286648e+10 | I148: 3.492572218e+10 | J148: 3.699874405e+10 | K148: 4.5907479e+10 | L148: 4.701342195e+10
A149: Mexico and Central America | B149: MCA | C149: Imports of goods and services (BoP, current US$) | D149: BM.GSR.GNFS.CD
A150: Monaco | B150: MCO | C150: Imports of goods and services (BoP, current US$) | D150: BM.GSR.GNFS.CD
A151: Moldova | B151: MDA | C151: Imports of goods and services (BoP, current US$) | D151: BM.GSR.GNFS.CD | E151: 2544460000 | F151: 2925290000 | G151: 4065240000 | H151: 5368890000 | I151: 3704090000 | J151: 4261060000 | K151: 5601560000 | L151: 5710780000
A152: Madagascar | B152: MDG | C152: Imports of goods and services (BoP, current US$) | D152: BM.GSR.GNFS.CD | E152: 1639622555
A153: Maldives | B153: MDV | C153: Imports of goods and services (BoP, current US$) | D153: BM.GSR.GNFS.CD | E153: 868551757.8 | F153: 1046505092 | G153: 1635687352 | H153: 2076965011 | I153: 1480031944 | J153: 1693203239 | K153: 2267216057 | L153: 2365679109
A154: Middle East & North Africa (all income levels) | B154: MEA | C154: Imports of goods and services (BoP, current US$) | D154: BM.GSR.GNFS.CD | E154: 5.556411849e+11 | F154: 6.383017813e+11 | G154: 7.906693292e+11 | H154: 1.00364104e+12 | I154: 8.876704722e+11 | J154: 9.763018133e+11 | K154: 1.076546916e+12 | L154: 1.191676299e+12
A155: Mexico | B155: MEX | C155: Imports of goods and services (BoP, current US$) | D155: BM.GSR.GNFS.CD | E155: 245099525081 | F155: 280272384374 | G155: 307508797277 | H155: 3.351503355e+11 | I155: 2.59943208e+11 | J155: 3.275946208e+11 | K155: 3.815839994e+11 | L155: 4.018586517e+11
A156: Marshall Islands | B156: MHL | C156: Imports of goods and services (BoP, current US$) | D156: BM.GSR.GNFS.CD
A157: Middle income | B157: MIC | C157: Imports of goods and services (BoP, current US$) | D157: BM.GSR.GNFS.CD | E157: 2.632315765e+12 | F157: 3.087125305e+12 | G157: 3.771209907e+12 | H157: 4.651713789e+12 | I157: 3.828184702e+12 | J157: 4.885812929e+12 | K157: 6.015306895e+12 | L157: 6.346236132e+12
A158: Macedonia, FYR | B158: MKD | C158: Imports of goods and services (BoP, current US$) | D158: BM.GSR.GNFS.CD | E158: 3201514038 | F158: 3790016819 | G158: 5217975001 | H158: 6841307030 | I158: 5152220313 | J158: 5502183659 | K158: 6954717574 | L158: 6539770421
A159: Mali | B159: MLI | C159: Imports of goods and services (BoP, current US$) | D159: BM.GSR.GNFS.CD | E159: 1833494616 | F159: 2149782486 | G159: 2622568569 | H159: 3757124284 | I159: 2811877486 | J159: 3744793155 | K159: 3850975829
A160: Malta | B160: MLT | C160: Imports of goods and services (BoP, current US$) | D160: BM.GSR.GNFS.CD | E160: 4912219224 | F160: 6210459832 | G160: 7162021888 | H160: 8198087492 | I160: 6918969719 | J160: 7836076128 | K160: 8770412479 | L160: 8500702694
A161: Myanmar | B161: MMR | C161: Imports of goods and services (BoP, current US$) | D161: BM.GSR.GNFS.CD | E161: 2015442773 | F161: 2626746098 | G161: 3306770128 | H161: 3582686085 | I161: 3932572435 | J161: 4646513717 | K161: 8581203486
A162: Middle East & North Africa (developing only) | B162: MNA | C162: Imports of goods and services (BoP, current US$) | D162: BM.GSR.GNFS.CD | E162: 2.342555326e+11 | F162: 2.567315975e+11 | G162: 3.159335729e+11 | H162: 4.263312057e+11 | I162: 3.92964764e+11 | J162: 4.270184859e+11 | K162: 4.48490859e+11 | L162: 5.094330823e+11
A163: Montenegro | B163: MNE | C163: Imports of goods and services (BoP, current US$) | D163: BM.GSR.GNFS.CD | G163: 3170661781 | H163: 4248467615 | I163: 2713568945 | J163: 2579119438 | K163: 2919278263 | L163: 2722801057
A164: Mongolia | B164: MNG | C164: Imports of goods and services (BoP, current US$) | D164: BM.GSR.GNFS.CD | E164: 1573280000 | F164: 1879930000 | G164: 2475516860 | H164: 3766528498 | I164: 2630068105 | J164: 3868606585 | K164: 7591160578 | L164: 7998471897
A165: Northern Mariana Islands | B165: MNP | C165: Imports of goods and services (BoP, current US$) | D165: BM.GSR.GNFS.CD
A166: Mozambique | B166: MOZ | C166: Imports of goods and services (BoP, current US$) | D166: BM.GSR.GNFS.CD | E166: 2890899752 | F166: 3398468132 | G166: 3667660750 | H166: 4526716928 | I166: 4466293954 | J166: 4751225397 | K166: 7532290920 | L166: 1.206915378e+10
A167: Mauritania | B167: MRT | C167: Imports of goods and services (BoP, current US$) | D167: BM.GSR.GNFS.CD
A168: Mauritius | B168: MUS | C168: Imports of goods and services (BoP, current US$) | D168: BM.GSR.GNFS.CD | E168: 4132950203 | F168: 4725677354 | G168: 5225029899 | H168: 6305922466 | I168: 5111185673 | J168: 6135624781 | K168: 7409617110 | L168: 7543259819
A169: Malawi | B169: MWI | C169: Imports of goods and services (BoP, current US$) | D169: BM.GSR.GNFS.CD | E169: 1309334991 | F169: 1319926663 | G169: 1537957671 | H169: 1977693016 | I169: 2175464636 | J169: 2458143942 | K169: 2807754960 | L169: 2531890230
A170: Malaysia | B170: MYS | C170: Imports of goods and services (BoP, current US$) | D170: BM.GSR.GNFS.CD | E170: 1.305771568e+11 | F170: 1.470940912e+11 | G170: 1.671005351e+11 | H170: 1.786611411e+11 | I170: 1.447985299e+11 | J170: 1.894635794e+11 | K170: 2.1725786e+11 | L170: 2.293638869e+11
A171: North America | B171: NAC | C171: Imports of goods and services (BoP, current US$) | D171: BM.GSR.GNFS.CD | E171: 2.383103014e+12 | F171: 2.645731567e+12 | G171: 2.826947018e+12 | H171: 3.054928013e+12 | I171: 2.378429261e+12 | J171: 2.847429196e+12 | K171: 3.242049071e+12 | L171: 3.332244647e+12
A172: Namibia | B172: NAM | C172: Imports of goods and services (BoP, current US$) | D172: BM.GSR.GNFS.CD | E172: 2694958145 | F172: 2973228483 | G172: 3613938507 | H172: 4418544381 | I172: 4972123880 | J172: 5615962004 | K172: 6309509441
A173: New Caledonia | B173: NCL | C173: Imports of goods and services (BoP, current US$) | D173: BM.GSR.GNFS.CD | E173: 2473176670 | F173: 3052428695 | G173: 3903746225 | H173: 4354484101 | I173: 3387643847 | J173: 4379635406 | K173: 4835534444
A174: Niger | B174: NER | C174: Imports of goods and services (BoP, current US$) | D174: BM.GSR.GNFS.CD | E174: 1048787510 | F174: 1076811341 | G174: 1283247707 | H174: 1950631417 | I174: 2528881129 | J174: 2807251173
A175: Nigeria | B175: NGA | C175: Imports of goods and services (BoP, current US$) | D175: BM.GSR.GNFS.CD | E175: 3.262657467e+10 | F175: 3.591184725e+10 | G175: 4.663631622e+10 | H175: 6.422083232e+10 | I175: 4.947607964e+10 | J175: 6.778551355e+10 | K175: 8.622612399e+10 | L175: 7.740306525e+10
A176: Nicaragua | B176: NIC | C176: Imports of goods and services (BoP, current US$) | D176: BM.GSR.GNFS.CD | E176: 2852800000 | F176: 3604900000 | G176: 4347700000 | H176: 5209100000 | I176: 4388400000 | J176: 5216200000 | K176: 6684800000 | L176: 7363500000
A177: Netherlands | B177: NLD | C177: Imports of goods and services (BoP, current US$) | D177: BM.GSR.GNFS.CD | E177: 3.621647459e+11 | F177: 4.089441433e+11 | G177: 4.825931235e+11 | H177: 5.467414133e+11 | I177: 4.453891509e+11 | J177: 5.002834639e+11 | K177: 5.802778625e+11 | L177: 5.719355395e+11
A178: High income: nonOECD | B178: NOC | C178: Imports of goods and services (BoP, current US$) | D178: BM.GSR.GNFS.CD | E178: 1.34125401e+12 | F178: 1.572273644e+12 | G178: 1.843088843e+12 | H178: 2.166818643e+12 | I178: 1.720047514e+12 | J178: 2.13614682e+12 | K178: 2.523890625e+12 | L178: 2.660966349e+12
A179: Norway | B179: NOR | C179: Imports of goods and services (BoP, current US$) | D179: BM.GSR.GNFS.CD | E179: 8.387170074e+10 | F179: 9.525376946e+10 | G179: 1.196331117e+11 | H179: 1.345452655e+11 | I179: 1.051985798e+11 | J179: 1.201107565e+11 | K179: 1.387679251e+11 | L179: 1.37497848e+11
A180: Nepal | B180: NPL | C180: Imports of goods and services (BoP, current US$) | D180: BM.GSR.GNFS.CD | E180: 2711192466 | F180: 2933864708 | G180: 3655163051 | H180: 4371089323 | I180: 5107626888 | J180: 5887402117 | K180: 6447269625 | L180: 6847391010
A181: New Zealand | B181: NZL | C181: Imports of goods and services (BoP, current US$) | D181: BM.GSR.GNFS.CD | E181: 3.344979314e+10 | F181: 3.309143806e+10 | G181: 3.909924556e+10 | H181: 4.367954265e+10 | I181: 3.294283552e+10 | J181: 3.996223848e+10 | K181: 4.802678206e+10 | L181: 4.992103828e+10
A182: High income: OECD | B182: OEC | C182: Imports of goods and services (BoP, current US$) | D182: BM.GSR.GNFS.CD | E182: 8.535994202e+12 | F182: 9.652863066e+12 | G182: 1.09705812e+13 | H182: 1.231743463e+13 | I182: 9.649212218e+12 | J182: 1.111851858e+13 | K182: 1.297252759e+13 | L182: 1.273203186e+13
A183: OECD members | B183: OED | C183: Imports of goods and services (BoP, current US$) | D183: BM.GSR.GNFS.CD | E183: 8.976890778e+12 | F183: 1.016466338e+13 | G183: 1.156189641e+13 | H183: 1.298703168e+13 | I183: 1.015059927e+13 | J183: 1.174051408e+13 | K183: 1.371932908e+13 | L183: 1.348550981e+13
A184: Oman | B184: OMN | C184: Imports of goods and services (BoP, current US$) | D184: BM.GSR.GNFS.CD | E184: 1.117409623e+10 | F184: 1.377747724e+10 | G184: 1.943823147e+10 | H184: 2.658491547e+10 | I184: 2.153420026e+10 | J184: 2.41656697e+10 | K184: 2.856436931e+10 | L184: 3.430949285e+10
A185: Other small states | B185: OSS | C185: Imports of goods and services (BoP, current US$) | D185: BM.GSR.GNFS.CD | E185: 2.351436361e+10 | F185: 2.572276311e+10 | G185: 3.127760771e+10 | H185: 3.707292273e+10 | I185: 3.366827893e+10 | J185: 3.827966215e+10 | K185: 4.587406499e+10 | L185: 4.608179314e+10 | M185: 4.314507809e+10
A186: Pakistan | B186: PAK | C186: Imports of goods and services (BoP, current US$) | D186: BM.GSR.GNFS.CD | E186: 29273200000 | F186: 35098480000 | G186: 37585100000 | H186: 47927000000 | I186: 35152430000 | J186: 40017000000 | K186: 46896167550 | L186: 4.889430666e+10 | M186: 48778200000
A187: Panama | B187: PAN | C187: Imports of goods and services (BoP, current US$) | D187: BM.GSR.GNFS.CD | E187: 10701600000 | F187: 11885580000 | G187: 14613700000 | H187: 17758600000 | I187: 16406700000 | J187: 20001600000 | K187: 28266700000 | L187: 29575600000
A188: Peru | B188: PER | C188: Imports of goods and services (BoP, current US$) | D188: BM.GSR.GNFS.CD | E188: 1.492957993e+10 | F188: 1.787650886e+10 | G188: 2.361247333e+10 | H188: 3.379299429e+10 | I188: 2.562576739e+10 | J188: 3.443387039e+10 | K188: 4.276515765e+10 | L188: 4.776624841e+10
A189: Philippines | B189: PHL | C189: Imports of goods and services (BoP, current US$) | D189: BM.GSR.GNFS.CD | E189: 42207000000 | F189: 47732000000 | G189: 52018000000 | H189: 58144000000 | I189: 48333000000 | J189: 61243000000 | K189: 67824000000 | L189: 76184000000
A190: Palau | B190: PLW | C190: Imports of goods and services (BoP, current US$) | D190: BM.GSR.GNFS.CD
A191: Papua New Guinea | B191: PNG | C191: Imports of goods and services (BoP, current US$) | D191: BM.GSR.GNFS.CD | E191: 2803172379 | F191: 3586277765 | G191: 4574643486 | H191: 4983577698 | I191: 4710644213 | J191: 6285601686 | K191: 7205405536 | L191: 8499370872
A192: Poland | B192: POL | C192: Imports of goods and services (BoP, current US$) | D192: BM.GSR.GNFS.CD | E192: 115010000000 | F192: 144696000000 | G192: 188559000000 | H192: 239629000000 | I192: 173893000000 | J192: 207139000000 | K192: 241139000000 | L192: 229455000000
A193: Puerto Rico | B193: PRI | C193: Imports of goods and services (BoP, current US$) | D193: BM.GSR.GNFS.CD
A194: Korea, Dem. Rep. | B194: PRK | C194: Imports of goods and services (BoP, current US$) | D194: BM.GSR.GNFS.CD
A195: Portugal | B195: PRT | C195: Imports of goods and services (BoP, current US$) | D195: BM.GSR.GNFS.CD | E195: 7.117825209e+10 | F195: 7.958699403e+10 | G195: 9.284601941e+10 | H195: 1.072652848e+11 | I195: 8.30788418e+10 | J195: 8.874553399e+10 | K195: 9.481234185e+10 | L195: 8.298651261e+10
A196: Paraguay | B196: PRY | C196: Imports of goods and services (BoP, current US$) | D196: BM.GSR.GNFS.CD | E196: 4026173802 | F196: 5237193976 | G196: 6401482322 | H196: 9236827675 | I196: 7142216623 | J196: 1.029992528e+10 | K196: 1.258839019e+10 | L196: 1.192469299e+10
A197: Pacific island small states | B197: PSS | C197: Imports of goods and services (BoP, current US$) | D197: BM.GSR.GNFS.CD | E197: 3260486867 | F197: 3583892295 | G197: 3784092427 | H197: 4772648892 | I197: 3399874469 | J197: 4150220132 | K197: 4892658732 | L197: 5052308817
A198: French Polynesia | B198: PYF | C198: Imports of goods and services (BoP, current US$) | D198: BM.GSR.GNFS.CD | E198: 2314769181 | F198: 2155499642 | G198: 2431640624 | H198: 2865049942 | I198: 2377237200 | J198: 2327246228 | K198: 2340972531
A199: Qatar | B199: QAT | C199: Imports of goods and services (BoP, current US$) | D199: BM.GSR.GNFS.CD | K199: 4.379263736e+10 | L199: 5.469349817e+10
A200: Romania | B200: ROU | C200: Imports of goods and services (BoP, current US$) | D200: BM.GSR.GNFS.CD | E200: 34213110000 | F200: 44894640000 | G200: 67224000000 | H200: 83641000000 | I200: 55524000000 | J200: 63218000000 | K200: 77805000000 | L200: 71991000000
... 59 more rows

Sheet A.4 Výsledek DivExp (hidden)
A1: iso code | B1: iso code (1) | C1: Country | D1: index přítomnosti v dané ekonomice 2010-2012 (export ČR/import země) | E1: index přitomnosti v dané ekonomice 2010-2013 (export ČR/ GDP) | F1: Import země 2010 - 2013 průměr | G1: průměrný % podíl na světovém importu | H1: průměrný % podíl na českém exportu | I1: % podíl na svěotvém importu - % podíl na českém exportu | J1: G/H | K1: GDP Průměr 2010-2013 | L1: GDP země 2010 | M1: GDP země 2011 | N1: GDP země 2012 | O1: GDP země 2013 | P1: Export čr 2010 | Q1: Export čr 2011 | R1: Export čr 2012 | S1: Export čr 2013 | T1: Export čr průměr 2010-2013 | U1: Import země 2010 | V1: Import země 2011 | W1: Import země 2012 | X1: Import země 2013
A2: TV | B2: TUV | C2: Tuvalu | D2: =(Tabulka1[[#This Row],[Export čr 2010]]+Tabulka1[[#This Row],[Export čr 2011]]+Tabulka1[[#This Row],[Export čr 2012]])/(Tabulka1[[#This Row],[Import země 2010]]+Tabulka1[[#This Row],[Import země 2011]]+Tabulka1[[#This Row],[Import země 2012]]) ->  | E2: =(Tabulka1[[#This Row],[Export čr 2010]]+Tabulka1[[#This Row],[Export čr 2011]]+Tabulka1[[#This Row],[Export čr 2012]]+Tabulka1[[#This Row],[Export čr 2013]])/(Tabulka1[[#This Row],[GDP země 2010]]+Tabulka1[[#This Row],[GDP země 2011]]+Tabulka1[[#This Row],[GDP země 2012]]+Tabulka1[[#This Row],[GDP země 2013]]) ->  | F2: =AVERAGEIF(Tabulka1[[#This Row],[Import země 2010]:[Import země 2013]],">0") ->  | G2: =Tabulka1[[#This Row],[Import země 2010 - 2013 průměr]]/$F$227 ->  | H2: =(Tabulka1[[#This Row],[Export čr průměr 2010-2013]])/$T$227 ->  | I2: =Tabulka1[[#This Row],[průměrný % podíl na světovém importu]]-Tabulka1[[#This Row],[průměrný % podíl na českém exportu]] ->  | J2: =Tabulka1[[#This Row],[průměrný % podíl na světovém importu]]/Tabulka1[[#This Row],[průměrný % podíl na českém exportu]] ->  | K2: =AVERAGEIF(Tabulka1[[#This Row],[GDP země 2010]:[GDP země 2013]],">0") -> 37287173.29 | L2: =VLOOKUP(B2,'A.4 GDP svět DivExp'!$B$2:$K$215,7,FALSE) -> 31824701.28 | M2: =VLOOKUP(B2,'A.4 GDP svět DivExp'!$B$2:$K$215,8,FALSE) -> 39313508.69 | N2: =VLOOKUP(B2,'A.4 GDP svět DivExp'!$B$2:$K$215,9,FALSE) -> 39875708.12 | O2: =VLOOKUP(B2,'A.4 GDP svět DivExp'!$B$2:$K$215,10,FALSE) -> 38134775.05 | P2: =VLOOKUP(Tabulka1[[#This Row],[iso code]],'A.4 Export ČR DivExp'!$A$2:$F$204,6,FALSE)*1000 ->  | Q2: =VLOOKUP(A2,'A.4 Export ČR DivExp'!$A$2:$E$204,5,FALSE)*1000 ->  | R2: =VLOOKUP(A2,'A.4 Export ČR DivExp'!$A$2:$E$204,4,FALSE)*1000 ->  | S2: =VLOOKUP(A2,'A.4 Export ČR DivExp'!$A$2:$E$204,3,FALSE)*1000 ->  | T2: =AVERAGEIF(Tabulka1[[#This Row],[Export čr 2010]:[Export čr 2013]],">0") ->  | U2: =VLOOKUP(Tabulka1[[#This Row],[iso code (1)]],'A.4 Import svět DivExp'!$B$2:$M$259,9,FALSE) -> 0 | V2: =VLOOKUP(Tabulka1[[#This Row],[iso code (1)]],'A.4 Import svět DivExp'!$B$2:$M$259,10,FALSE) -> 0 | W2: =VLOOKUP(Tabulka1[[#This Row],[iso code (1)]],'A.4 Import svět DivExp'!$B$2:$M$259,11,FALSE) -> 0 | X2: =VLOOKUP(Tabulka1[[#This Row],[iso code (1)]],'A.4 Import svět DivExp'!$B$2:$M$259,12,FALSE) -> 0
A3: KI | B3: KIR | C3: Kiribati | D3: =(Tabulka1[[#This Row],[Export čr 2010]]+Tabulka1[[#This Row],[Export čr 2011]]+Tabulka1[[#This Row],[Export čr 2012]])/(Tabulka1[[#This Row],[Import země 2010]]+Tabulka1[[#This Row],[Import země 2011]]+Tabulka1[[#This Row],[Import země 2012]]) ->  | E3: =(Tabulka1[[#This Row],[Export čr 2010]]+Tabulka1[[#This Row],[Export čr 2011]]+Tabulka1[[#This Row],[Export čr 2012]]+Tabulka1[[#This Row],[Export čr 2013]])/(Tabulka1[[#This Row],[GDP země 2010]]+Tabulka1[[#This Row],[GDP země 2011]]+Tabulka1[[#This Row],[GDP země 2012]]+Tabulka1[[#This Row],[GDP země 2013]]) ->  | F3: =AVERAGEIF(Tabulka1[[#This Row],[Import země 2010]:[Import země 2013]],">0") ->  | G3: =Tabulka1[[#This Row],[Import země 2010 - 2013 průměr]]/$F$227 ->  | H3: =(Tabulka1[[#This Row],[Export čr průměr 2010-2013]])/$T$227 ->  | I3: =Tabulka1[[#This Row],[průměrný % podíl na světovém importu]]-Tabulka1[[#This Row],[průměrný % podíl na českém exportu]] ->  | J3: =Tabulka1[[#This Row],[průměrný % podíl na světovém importu]]/Tabulka1[[#This Row],[průměrný % podíl na českém exportu]] ->  | K3: =AVERAGEIF(Tabulka1[[#This Row],[GDP země 2010]:[GDP země 2013]],">0") -> 166655214.1 | L3: =VLOOKUP(B3,'A.4 GDP svět DivExp'!$B$2:$K$215,7,FALSE) -> 150431113.6 | M3: =VLOOKUP(B3,'A.4 GDP svět DivExp'!$B$2:$K$215,8,FALSE) -> 172253739 | N3: =VLOOKUP(B3,'A.4 GDP svět DivExp'!$B$2:$K$215,9,FALSE) -> 174984468.8 | O3: =VLOOKUP(B3,'A.4 GDP svět DivExp'!$B$2:$K$215,10,FALSE) -> 168951535 | P3: =VLOOKUP(Tabulka1[[#This Row],[iso code]],'A.4 Export ČR DivExp'!$A$2:$F$204,6,FALSE)*1000 ->  | Q3: =VLOOKUP(A3,'A.4 Export ČR DivExp'!$A$2:$E$204,5,FALSE)*1000 ->  | R3: =VLOOKUP(A3,'A.4 Export ČR DivExp'!$A$2:$E$204,4,FALSE)*1000 ->  | S3: =VLOOKUP(A3,'A.4 Export ČR DivExp'!$A$2:$E$204,3,FALSE)*1000 ->  | T3: =AVERAGEIF(Tabulka1[[#This Row],[Export čr 2010]:[Export čr 2013]],">0") ->  | U3: =VLOOKUP(Tabulka1[[#This Row],[iso code (1)]],'A.4 Import svět DivExp'!$B$2:$M$259,9,FALSE) -> 0 | V3: =VLOOKUP(Tabulka1[[#This Row],[iso code (1)]],'A.4 Import svět DivExp'!$B$2:$M$259,10,FALSE) -> 0 | W3: =VLOOKUP(Tabulka1[[#This Row],[iso code (1)]],'A.4 Import svět DivExp'!$B$2:$M$259,11,FALSE) -> 0 | X3: =VLOOKUP(Tabulka1[[#This Row],[iso code (1)]],'A.4 Import svět DivExp'!$B$2:$M$259,12,FALSE) -> 0
A4: MH | B4: MHL | C4: Marshall Islands | D4: =(Tabulka1[[#This Row],[Export čr 2010]]+Tabulka1[[#This Row],[Export čr 2011]]+Tabulka1[[#This Row],[Export čr 2012]])/(Tabulka1[[#This Row],[Import země 2010]]+Tabulka1[[#This Row],[Import země 2011]]+Tabulka1[[#This Row],[Import země 2012]]) ->  | E4: =(Tabulka1[[#This Row],[Export čr 2010]]+Tabulka1[[#This Row],[Export čr 2011]]+Tabulka1[[#This Row],[Export čr 2012]]+Tabulka1[[#This Row],[Export čr 2013]])/(Tabulka1[[#This Row],[GDP země 2010]]+Tabulka1[[#This Row],[GDP země 2011]]+Tabulka1[[#This Row],[GDP země 2012]]+Tabulka1[[#This Row],[GDP země 2013]]) -> 0.007514298284 | F4: =AVERAGEIF(Tabulka1[[#This Row],[Import země 2010]:[Import země 2013]],">0") ->  | G4: =Tabulka1[[#This Row],[Import země 2010 - 2013 průměr]]/$F$227 ->  | H4: =(Tabulka1[[#This Row],[Export čr průměr 2010-2013]])/$T$227 -> 8.3329046e-06 | I4: =Tabulka1[[#This Row],[průměrný % podíl na světovém importu]]-Tabulka1[[#This Row],[průměrný % podíl na českém exportu]] ->  | J4: =Tabulka1[[#This Row],[průměrný % podíl na světovém importu]]/Tabulka1[[#This Row],[průměrný % podíl na českém exportu]] ->  | K4: =AVERAGEIF(Tabulka1[[#This Row],[GDP země 2010]:[GDP země 2013]],">0") -> 170475000 | L4: =VLOOKUP(B4,'A.4 GDP svět DivExp'!$B$2:$K$215,7,FALSE) -> 163200000 | M4: =VLOOKUP(B4,'A.4 GDP svět DivExp'!$B$2:$K$215,8,FALSE) -> 170700000 | N4: =VLOOKUP(B4,'A.4 GDP svět DivExp'!$B$2:$K$215,9,FALSE) -> 173000000 | O4: =VLOOKUP(B4,'A.4 GDP svět DivExp'!$B$2:$K$215,10,FALSE) -> 175000000 | P4: =VLOOKUP(Tabulka1[[#This Row],[iso code]],'A.4 Export ČR DivExp'!$A$2:$F$204,6,FALSE)*1000 -> 4819000 | Q4: =VLOOKUP(A4,'A.4 Export ČR DivExp'!$A$2:$E$204,5,FALSE)*1000 -> 53000 | R4: =VLOOKUP(A4,'A.4 Export ČR DivExp'!$A$2:$E$204,4,FALSE)*1000 -> 131000 | S4: =VLOOKUP(A4,'A.4 Export ČR DivExp'!$A$2:$E$204,3,FALSE)*1000 -> 121000 | T4: =AVERAGEIF(Tabulka1[[#This Row],[Export čr 2010]:[Export čr 2013]],">0") -> 1281000 | U4: =VLOOKUP(Tabulka1[[#This Row],[iso code (1)]],'A.4 Import svět DivExp'!$B$2:$M$259,9,FALSE) -> 0 | V4: =VLOOKUP(Tabulka1[[#This Row],[iso code (1)]],'A.4 Import svět DivExp'!$B$2:$M$259,10,FALSE) -> 0 | W4: =VLOOKUP(Tabulka1[[#This Row],[iso code (1)]],'A.4 Import svět DivExp'!$B$2:$M$259,11,FALSE) -> 0 | X4: =VLOOKUP(Tabulka1[[#This Row],[iso code (1)]],'A.4 Import svět DivExp'!$B$2:$M$259,12,FALSE) -> 0
A5: PW | B5: PLW | C5: Palau | D5: =(Tabulka1[[#This Row],[Export čr 2010]]+Tabulka1[[#This Row],[Export čr 2011]]+Tabulka1[[#This Row],[Export čr 2012]])/(Tabulka1[[#This Row],[Import země 2010]]+Tabulka1[[#This Row],[Import země 2011]]+Tabulka1[[#This Row],[Import země 2012]]) ->  | E5: =(Tabulka1[[#This Row],[Export čr 2010]]+Tabulka1[[#This Row],[Export čr 2011]]+Tabulka1[[#This Row],[Export čr 2012]]+Tabulka1[[#This Row],[Export čr 2013]])/(Tabulka1[[#This Row],[GDP země 2010]]+Tabulka1[[#This Row],[GDP země 2011]]+Tabulka1[[#This Row],[GDP země 2012]]+Tabulka1[[#This Row],[GDP země 2013]]) ->  | F5: =AVERAGEIF(Tabulka1[[#This Row],[Import země 2010]:[Import země 2013]],">0") ->  | G5: =Tabulka1[[#This Row],[Import země 2010 - 2013 průměr]]/$F$227 ->  | H5: =(Tabulka1[[#This Row],[Export čr průměr 2010-2013]])/$T$227 ->  | I5: =Tabulka1[[#This Row],[průměrný % podíl na světovém importu]]-Tabulka1[[#This Row],[průměrný % podíl na českém exportu]] ->  | J5: =Tabulka1[[#This Row],[průměrný % podíl na světovém importu]]/Tabulka1[[#This Row],[průměrný % podíl na českém exportu]] ->  | K5: =AVERAGEIF(Tabulka1[[#This Row],[GDP země 2010]:[GDP země 2013]],">0") -> 223614585.9 | L5: =VLOOKUP(B5,'A.4 GDP svět DivExp'!$B$2:$K$215,7,FALSE) -> 197558748.6 | M5: =VLOOKUP(B5,'A.4 GDP svět DivExp'!$B$2:$K$215,8,FALSE) -> 217377537.5 | N5: =VLOOKUP(B5,'A.4 GDP svět DivExp'!$B$2:$K$215,9,FALSE) -> 232478639.3 | O5: =VLOOKUP(B5,'A.4 GDP svět DivExp'!$B$2:$K$215,10,FALSE) -> 247043418.3 | P5: =VLOOKUP(Tabulka1[[#This Row],[iso code]],'A.4 Export ČR DivExp'!$A$2:$F$204,6,FALSE)*1000 ->  | Q5: =VLOOKUP(A5,'A.4 Export ČR DivExp'!$A$2:$E$204,5,FALSE)*1000 ->  | R5: =VLOOKUP(A5,'A.4 Export ČR DivExp'!$A$2:$E$204,4,FALSE)*1000 ->  | S5: =VLOOKUP(A5,'A.4 Export ČR DivExp'!$A$2:$E$204,3,FALSE)*1000 ->  | T5: =AVERAGEIF(Tabulka1[[#This Row],[Export čr 2010]:[Export čr 2013]],">0") ->  | U5: =VLOOKUP(Tabulka1[[#This Row],[iso code (1)]],'A.4 Import svět DivExp'!$B$2:$M$259,9,FALSE) -> 0 | V5: =VLOOKUP(Tabulka1[[#This Row],[iso code (1)]],'A.4 Import svět DivExp'!$B$2:$M$259,10,FALSE) -> 0 | W5: =VLOOKUP(Tabulka1[[#This Row],[iso code (1)]],'A.4 Import svět DivExp'!$B$2:$M$259,11,FALSE) -> 0 | X5: =VLOOKUP(Tabulka1[[#This Row],[iso code (1)]],'A.4 Import svět DivExp'!$B$2:$M$259,12,FALSE) -> 0
A6: FM | B6: FSM | C6: Micronesia | D6: =(Tabulka1[[#This Row],[Export čr 2010]]+Tabulka1[[#This Row],[Export čr 2011]]+Tabulka1[[#This Row],[Export čr 2012]])/(Tabulka1[[#This Row],[Import země 2010]]+Tabulka1[[#This Row],[Import země 2011]]+Tabulka1[[#This Row],[Import země 2012]]) ->  | E6: =(Tabulka1[[#This Row],[Export čr 2010]]+Tabulka1[[#This Row],[Export čr 2011]]+Tabulka1[[#This Row],[Export čr 2012]]+Tabulka1[[#This Row],[Export čr 2013]])/(Tabulka1[[#This Row],[GDP země 2010]]+Tabulka1[[#This Row],[GDP země 2011]]+Tabulka1[[#This Row],[GDP země 2012]]+Tabulka1[[#This Row],[GDP země 2013]]) ->  | F6: =AVERAGEIF(Tabulka1[[#This Row],[Import země 2010]:[Import země 2013]],">0") ->  | G6: =Tabulka1[[#This Row],[Import země 2010 - 2013 průměr]]/$F$227 ->  | H6: =(Tabulka1[[#This Row],[Export čr průměr 2010-2013]])/$T$227 ->  | I6: =Tabulka1[[#This Row],[průměrný % podíl na světovém importu]]-Tabulka1[[#This Row],[průměrný % podíl na českém exportu]] ->  | J6: =Tabulka1[[#This Row],[průměrný % podíl na světovém importu]]/Tabulka1[[#This Row],[průměrný % podíl na českém exportu]] ->  | K6: =AVERAGEIF(Tabulka1[[#This Row],[GDP země 2010]:[GDP země 2013]],">0") -> 316391427.6 | L6: =VLOOKUP(B6,'A.4 GDP svět DivExp'!$B$2:$K$215,7,FALSE) -> 294117230.5 | M6: =VLOOKUP(B6,'A.4 GDP svět DivExp'!$B$2:$K$215,8,FALSE) -> 310287519.3 | N6: =VLOOKUP(B6,'A.4 GDP svět DivExp'!$B$2:$K$215,9,FALSE) -> 326160960.8 | O6: =VLOOKUP(B6,'A.4 GDP svět DivExp'!$B$2:$K$215,10,FALSE) -> 335000000 | P6: =VLOOKUP(Tabulka1[[#This Row],[iso code]],'A.4 Export ČR DivExp'!$A$2:$F$204,6,FALSE)*1000 ->  | Q6: =VLOOKUP(A6,'A.4 Export ČR DivExp'!$A$2:$E$204,5,FALSE)*1000 ->  | R6: =VLOOKUP(A6,'A.4 Export ČR DivExp'!$A$2:$E$204,4,FALSE)*1000 ->  | S6: =VLOOKUP(A6,'A.4 Export ČR DivExp'!$A$2:$E$204,3,FALSE)*1000 ->  | T6: =AVERAGEIF(Tabulka1[[#This Row],[Export čr 2010]:[Export čr 2013]],">0") ->  | U6: =VLOOKUP(Tabulka1[[#This Row],[iso code (1)]],'A.4 Import svět DivExp'!$B$2:$M$259,9,FALSE) -> 0 | V6: =VLOOKUP(Tabulka1[[#This Row],[iso code (1)]],'A.4 Import svět DivExp'!$B$2:$M$259,10,FALSE) -> 0 | W6: =VLOOKUP(Tabulka1[[#This Row],[iso code (1)]],'A.4 Import svět DivExp'!$B$2:$M$259,11,FALSE) -> 0 | X6: =VLOOKUP(Tabulka1[[#This Row],[iso code (1)]],'A.4 Import svět DivExp'!$B$2:$M$259,12,FALSE) -> 0
A7: KM | B7: COM | C7: Comoros | D7: =(Tabulka1[[#This Row],[Export čr 2010]]+Tabulka1[[#This Row],[Export čr 2011]]+Tabulka1[[#This Row],[Export čr 2012]])/(Tabulka1[[#This Row],[Import země 2010]]+Tabulka1[[#This Row],[Import země 2011]]+Tabulka1[[#This Row],[Import země 2012]]) ->  | E7: =(Tabulka1[[#This Row],[Export čr 2010]]+Tabulka1[[#This Row],[Export čr 2011]]+Tabulka1[[#This Row],[Export čr 2012]]+Tabulka1[[#This Row],[Export čr 2013]])/(Tabulka1[[#This Row],[GDP země 2010]]+Tabulka1[[#This Row],[GDP země 2011]]+Tabulka1[[#This Row],[GDP země 2012]]+Tabulka1[[#This Row],[GDP země 2013]]) -> 0.0002123020026 | F7: =AVERAGEIF(Tabulka1[[#This Row],[Import země 2010]:[Import země 2013]],">0") ->  | G7: =Tabulka1[[#This Row],[Import země 2010 - 2013 průměr]]/$F$227 ->  | H7: =(Tabulka1[[#This Row],[Export čr průměr 2010-2013]])/$T$227 -> 1.10801828e-06 | I7: =Tabulka1[[#This Row],[průměrný % podíl na světovém importu]]-Tabulka1[[#This Row],[průměrný % podíl na českém exportu]] ->  | J7: =Tabulka1[[#This Row],[průměrný % podíl na světovém importu]]/Tabulka1[[#This Row],[průměrný % podíl na českém exportu]] ->  | K7: =AVERAGEIF(Tabulka1[[#This Row],[GDP země 2010]:[GDP země 2013]],">0") -> 601737140.5 | L7: =VLOOKUP(B7,'A.4 GDP svět DivExp'!$B$2:$K$215,7,FALSE) -> 543376206.1 | M7: =VLOOKUP(B7,'A.4 GDP svět DivExp'!$B$2:$K$215,8,FALSE) -> 610372697.4 | N7: =VLOOKUP(B7,'A.4 GDP svět DivExp'!$B$2:$K$215,9,FALSE) -> 595898770.3 | O7: =VLOOKUP(B7,'A.4 GDP svět DivExp'!$B$2:$K$215,10,FALSE) -> 657300888.3 | P7: =VLOOKUP(Tabulka1[[#This Row],[iso code]],'A.4 Export ČR DivExp'!$A$2:$F$204,6,FALSE)*1000 -> 196000 | Q7: =VLOOKUP(A7,'A.4 Export ČR DivExp'!$A$2:$E$204,5,FALSE)*1000 -> 120000 | R7: =VLOOKUP(A7,'A.4 Export ČR DivExp'!$A$2:$E$204,4,FALSE)*1000 -> 195000 | S7: =VLOOKUP(A7,'A.4 Export ČR DivExp'!$A$2:$E$204,3,FALSE)*1000 -> 0 | T7: =AVERAGEIF(Tabulka1[[#This Row],[Export čr 2010]:[Export čr 2013]],">0") -> 170333.3333 | U7: =VLOOKUP(Tabulka1[[#This Row],[iso code (1)]],'A.4 Import svět DivExp'!$B$2:$M$259,9,FALSE) -> 0 | V7: =VLOOKUP(Tabulka1[[#This Row],[iso code (1)]],'A.4 Import svět DivExp'!$B$2:$M$259,10,FALSE) -> 0 | W7: =VLOOKUP(Tabulka1[[#This Row],[iso code (1)]],'A.4 Import svět DivExp'!$B$2:$M$259,11,FALSE) -> 0 | X7: =VLOOKUP(Tabulka1[[#This Row],[iso code (1)]],'A.4 Import svět DivExp'!$B$2:$M$259,12,FALSE) -> 0
A8: TL | B8: TMP | C8: East Timor | D8: =(Tabulka1[[#This Row],[Export čr 2010]]+Tabulka1[[#This Row],[Export čr 2011]]+Tabulka1[[#This Row],[Export čr 2012]])/(Tabulka1[[#This Row],[Import země 2010]]+Tabulka1[[#This Row],[Import země 2011]]+Tabulka1[[#This Row],[Import země 2012]]) ->  | E8: =(Tabulka1[[#This Row],[Export čr 2010]]+Tabulka1[[#This Row],[Export čr 2011]]+Tabulka1[[#This Row],[Export čr 2012]]+Tabulka1[[#This Row],[Export čr 2013]])/(Tabulka1[[#This Row],[GDP země 2010]]+Tabulka1[[#This Row],[GDP země 2011]]+Tabulka1[[#This Row],[GDP země 2012]]+Tabulka1[[#This Row],[GDP země 2013]]) ->  | F8: =AVERAGEIF(Tabulka1[[#This Row],[Import země 2010]:[Import země 2013]],">0") ->  | G8: =Tabulka1[[#This Row],[Import země 2010 - 2013 průměr]]/$F$227 ->  | H8: =(Tabulka1[[#This Row],[Export čr průměr 2010-2013]])/$T$227 -> 5.182316418e-07 | I8: =Tabulka1[[#This Row],[průměrný % podíl na světovém importu]]-Tabulka1[[#This Row],[průměrný % podíl na českém exportu]] ->  | J8: =Tabulka1[[#This Row],[průměrný % podíl na světovém importu]]/Tabulka1[[#This Row],[průměrný % podíl na českém exportu]] ->  | K8: =AVERAGEIF(Tabulka1[[#This Row],[GDP země 2010]:[GDP země 2013]],">0") -> 1258150000 | L8: =VLOOKUP(B8,'A.4 GDP svět DivExp'!$B$2:$K$215,7,FALSE) -> 934300000 | M8: =VLOOKUP(B8,'A.4 GDP svět DivExp'!$B$2:$K$215,8,FALSE) -> 1128300000 | N8: =VLOOKUP(B8,'A.4 GDP svět DivExp'!$B$2:$K$215,9,FALSE) -> 1355000000 | O8: =VLOOKUP(B8,'A.4 GDP svět DivExp'!$B$2:$K$215,10,FALSE) -> 1615000000 | P8: =VLOOKUP(Tabulka1[[#This Row],[iso code]],'A.4 Export ČR DivExp'!$A$2:$F$204,6,FALSE)*1000 ->  | Q8: =VLOOKUP(A8,'A.4 Export ČR DivExp'!$A$2:$E$204,5,FALSE)*1000 -> 109000 | R8: =VLOOKUP(A8,'A.4 Export ČR DivExp'!$A$2:$E$204,4,FALSE)*1000 -> 22000 | S8: =VLOOKUP(A8,'A.4 Export ČR DivExp'!$A$2:$E$204,3,FALSE)*1000 -> 108000 | T8: =AVERAGEIF(Tabulka1[[#This Row],[Export čr 2010]:[Export čr 2013]],">0") -> 79666.66667 | U8: =VLOOKUP(Tabulka1[[#This Row],[iso code (1)]],'A.4 Import svět DivExp'!$B$2:$M$259,9,FALSE) ->  | V8: =VLOOKUP(Tabulka1[[#This Row],[iso code (1)]],'A.4 Import svět DivExp'!$B$2:$M$259,10,FALSE) ->  | W8: =VLOOKUP(Tabulka1[[#This Row],[iso code (1)]],'A.4 Import svět DivExp'!$B$2:$M$259,11,FALSE) ->  | X8: =VLOOKUP(Tabulka1[[#This Row],[iso code (1)]],'A.4 Import svět DivExp'!$B$2:$M$259,12,FALSE) -> 
A9: CF | B9: CAF | C9: Central African Republic | D9: =(Tabulka1[[#This Row],[Export čr 2010]]+Tabulka1[[#This Row],[Export čr 2011]]+Tabulka1[[#This Row],[Export čr 2012]])/(Tabulka1[[#This Row],[Import země 2010]]+Tabulka1[[#This Row],[Import země 2011]]+Tabulka1[[#This Row],[Import země 2012]]) ->  | E9: =(Tabulka1[[#This Row],[Export čr 2010]]+Tabulka1[[#This Row],[Export čr 2011]]+Tabulka1[[#This Row],[Export čr 2012]]+Tabulka1[[#This Row],[Export čr 2013]])/(Tabulka1[[#This Row],[GDP země 2010]]+Tabulka1[[#This Row],[GDP země 2011]]+Tabulka1[[#This Row],[GDP země 2012]]+Tabulka1[[#This Row],[GDP země 2013]]) -> 0.0001273845564 | F9: =AVERAGEIF(Tabulka1[[#This Row],[Import země 2010]:[Import země 2013]],">0") ->  | G9: =Tabulka1[[#This Row],[Import země 2010 - 2013 průměr]]/$F$227 ->  | H9: =(Tabulka1[[#This Row],[Export čr průměr 2010-2013]])/$T$227 -> 1.634381171e-06 | I9: =Tabulka1[[#This Row],[průměrný % podíl na světovém importu]]-Tabulka1[[#This Row],[průměrný % podíl na českém exportu]] ->  | J9: =Tabulka1[[#This Row],[průměrný % podíl na světovém importu]]/Tabulka1[[#This Row],[průměrný % podíl na českém exportu]] ->  | K9: =AVERAGEIF(Tabulka1[[#This Row],[GDP země 2010]:[GDP země 2013]],">0") -> 1972374101 | L9: =VLOOKUP(B9,'A.4 GDP svět DivExp'!$B$2:$K$215,7,FALSE) -> 1986014759 | M9: =VLOOKUP(B9,'A.4 GDP svět DivExp'!$B$2:$K$215,8,FALSE) -> 2195599491 | N9: =VLOOKUP(B9,'A.4 GDP svět DivExp'!$B$2:$K$215,9,FALSE) -> 2169706411 | O9: =VLOOKUP(B9,'A.4 GDP svět DivExp'!$B$2:$K$215,10,FALSE) -> 1538175744 | P9: =VLOOKUP(Tabulka1[[#This Row],[iso code]],'A.4 Export ČR DivExp'!$A$2:$F$204,6,FALSE)*1000 -> 77000 | Q9: =VLOOKUP(A9,'A.4 Export ČR DivExp'!$A$2:$E$204,5,FALSE)*1000 -> 259000 | R9: =VLOOKUP(A9,'A.4 Export ČR DivExp'!$A$2:$E$204,4,FALSE)*1000 -> 308000 | S9: =VLOOKUP(A9,'A.4 Export ČR DivExp'!$A$2:$E$204,3,FALSE)*1000 -> 361000 | T9: =AVERAGEIF(Tabulka1[[#This Row],[Export čr 2010]:[Export čr 2013]],">0") -> 251250 | U9: =VLOOKUP(Tabulka1[[#This Row],[iso code (1)]],'A.4 Import svět DivExp'!$B$2:$M$259,9,FALSE) -> 0 | V9: =VLOOKUP(Tabulka1[[#This Row],[iso code (1)]],'A.4 Import svět DivExp'!$B$2:$M$259,10,FALSE) -> 0 | W9: =VLOOKUP(Tabulka1[[#This Row],[iso code (1)]],'A.4 Import svět DivExp'!$B$2:$M$259,11,FALSE) -> 0 | X9: =VLOOKUP(Tabulka1[[#This Row],[iso code (1)]],'A.4 Import svět DivExp'!$B$2:$M$259,12,FALSE) -> 0
A10: ER | B10: ERI | C10: Eritrea | D10: =(Tabulka1[[#This Row],[Export čr 2010]]+Tabulka1[[#This Row],[Export čr 2011]]+Tabulka1[[#This Row],[Export čr 2012]])/(Tabulka1[[#This Row],[Import země 2010]]+Tabulka1[[#This Row],[Import země 2011]]+Tabulka1[[#This Row],[Import země 2012]]) ->  | E10: =(Tabulka1[[#This Row],[Export čr 2010]]+Tabulka1[[#This Row],[Export čr 2011]]+Tabulka1[[#This Row],[Export čr 2012]]+Tabulka1[[#This Row],[Export čr 2013]])/(Tabulka1[[#This Row],[GDP země 2010]]+Tabulka1[[#This Row],[GDP země 2011]]+Tabulka1[[#This Row],[GDP země 2012]]+Tabulka1[[#This Row],[GDP země 2013]]) -> 1.447493584e-05 | F10: =AVERAGEIF(Tabulka1[[#This Row],[Import země 2010]:[Import země 2013]],">0") ->  | G10: =Tabulka1[[#This Row],[Import země 2010 - 2013 průměr]]/$F$227 ->  | H10: =(Tabulka1[[#This Row],[Export čr průměr 2010-2013]])/$T$227 -> 2.650787373e-07 | I10: =Tabulka1[[#This Row],[průměrný % podíl na světovém importu]]-Tabulka1[[#This Row],[průměrný % podíl na českém exportu]] ->  | J10: =Tabulka1[[#This Row],[průměrný % podíl na světovém importu]]/Tabulka1[[#This Row],[průměrný % podíl na českém exportu]] ->  | K10: =AVERAGEIF(Tabulka1[[#This Row],[GDP země 2010]:[GDP země 2013]],">0") -> 2815211097 | L10: =VLOOKUP(B10,'A.4 GDP svět DivExp'!$B$2:$K$215,7,FALSE) -> 2117039511 | M10: =VLOOKUP(B10,'A.4 GDP svět DivExp'!$B$2:$K$215,8,FALSE) -> 2607739837 | N10: =VLOOKUP(B10,'A.4 GDP svět DivExp'!$B$2:$K$215,9,FALSE) -> 3091967480 | O10: =VLOOKUP(B10,'A.4 GDP svět DivExp'!$B$2:$K$215,10,FALSE) -> 3444097561 | P10: =VLOOKUP(Tabulka1[[#This Row],[iso code]],'A.4 Export ČR DivExp'!$A$2:$F$204,6,FALSE)*1000 -> 48000 | Q10: =VLOOKUP(A10,'A.4 Export ČR DivExp'!$A$2:$E$204,5,FALSE)*1000 -> 105000 | R10: =VLOOKUP(A10,'A.4 Export ČR DivExp'!$A$2:$E$204,4,FALSE)*1000 -> 1000 | S10: =VLOOKUP(A10,'A.4 Export ČR DivExp'!$A$2:$E$204,3,FALSE)*1000 -> 9000 | T10: =AVERAGEIF(Tabulka1[[#This Row],[Export čr 2010]:[Export čr 2013]],">0") -> 40750 | U10: =VLOOKUP(Tabulka1[[#This Row],[iso code (1)]],'A.4 Import svět DivExp'!$B$2:$M$259,9,FALSE) -> 0 | V10: =VLOOKUP(Tabulka1[[#This Row],[iso code (1)]],'A.4 Import svět DivExp'!$B$2:$M$259,10,FALSE) -> 0 | W10: =VLOOKUP(Tabulka1[[#This Row],[iso code (1)]],'A.4 Import svět DivExp'!$B$2:$M$259,11,FALSE) -> 0 | X10: =VLOOKUP(Tabulka1[[#This Row],[iso code (1)]],'A.4 Import svět DivExp'!$B$2:$M$259,12,FALSE) -> 0
A11: MR | B11: MRT | C11: Mauritania | D11: =(Tabulka1[[#This Row],[Export čr 2010]]+Tabulka1[[#This Row],[Export čr 2011]]+Tabulka1[[#This Row],[Export čr 2012]])/(Tabulka1[[#This Row],[Import země 2010]]+Tabulka1[[#This Row],[Import země 2011]]+Tabulka1[[#This Row],[Import země 2012]]) ->  | E11: =(Tabulka1[[#This Row],[Export čr 2010]]+Tabulka1[[#This Row],[Export čr 2011]]+Tabulka1[[#This Row],[Export čr 2012]]+Tabulka1[[#This Row],[Export čr 2013]])/(Tabulka1[[#This Row],[GDP země 2010]]+Tabulka1[[#This Row],[GDP země 2011]]+Tabulka1[[#This Row],[GDP země 2012]]+Tabulka1[[#This Row],[GDP země 2013]]) -> 0.0060280285 | F11: =AVERAGEIF(Tabulka1[[#This Row],[Import země 2010]:[Import země 2013]],">0") ->  | G11: =Tabulka1[[#This Row],[Import země 2010 - 2013 průměr]]/$F$227 ->  | H11: =(Tabulka1[[#This Row],[Export čr průměr 2010-2013]])/$T$227 -> 0.0001547344276 | I11: =Tabulka1[[#This Row],[průměrný % podíl na světovém importu]]-Tabulka1[[#This Row],[průměrný % podíl na českém exportu]] ->  | J11: =Tabulka1[[#This Row],[průměrný % podíl na světovém importu]]/Tabulka1[[#This Row],[průměrný % podíl na českém exportu]] ->  | K11: =AVERAGEIF(Tabulka1[[#This Row],[GDP země 2010]:[GDP země 2013]],">0") -> 3946066280 | L11: =VLOOKUP(B11,'A.4 GDP svět DivExp'!$B$2:$K$215,7,FALSE) -> 3526946625 | M11: =VLOOKUP(B11,'A.4 GDP svět DivExp'!$B$2:$K$215,8,FALSE) -> 4136083856 | N11: =VLOOKUP(B11,'A.4 GDP svět DivExp'!$B$2:$K$215,9,FALSE) -> 3958701369 | O11: =VLOOKUP(B11,'A.4 GDP svět DivExp'!$B$2:$K$215,10,FALSE) -> 4162533271 | P11: =VLOOKUP(Tabulka1[[#This Row],[iso code]],'A.4 Export ČR DivExp'!$A$2:$F$204,6,FALSE)*1000 -> 29781000 | Q11: =VLOOKUP(A11,'A.4 Export ČR DivExp'!$A$2:$E$204,5,FALSE)*1000 -> 37005000 | R11: =VLOOKUP(A11,'A.4 Export ČR DivExp'!$A$2:$E$204,4,FALSE)*1000 -> 18186000 | S11: =VLOOKUP(A11,'A.4 Export ČR DivExp'!$A$2:$E$204,3,FALSE)*1000 -> 10176000 | T11: =AVERAGEIF(Tabulka1[[#This Row],[Export čr 2010]:[Export čr 2013]],">0") -> 23787000 | U11: =VLOOKUP(Tabulka1[[#This Row],[iso code (1)]],'A.4 Import svět DivExp'!$B$2:$M$259,9,FALSE) -> 0 | V11: =VLOOKUP(Tabulka1[[#This Row],[iso code (1)]],'A.4 Import svět DivExp'!$B$2:$M$259,10,FALSE) -> 0 | W11: =VLOOKUP(Tabulka1[[#This Row],[iso code (1)]],'A.4 Import svět DivExp'!$B$2:$M$259,11,FALSE) -> 0 | X11: =VLOOKUP(Tabulka1[[#This Row],[iso code (1)]],'A.4 Import svět DivExp'!$B$2:$M$259,12,FALSE) -> 0
A12: MC | B12: MCO | C12: Monaco | D12: =(Tabulka1[[#This Row],[Export čr 2010]]+Tabulka1[[#This Row],[Export čr 2011]]+Tabulka1[[#This Row],[Export čr 2012]])/(Tabulka1[[#This Row],[Import země 2010]]+Tabulka1[[#This Row],[Import země 2011]]+Tabulka1[[#This Row],[Import země 2012]]) ->  | E12: =(Tabulka1[[#This Row],[Export čr 2010]]+Tabulka1[[#This Row],[Export čr 2011]]+Tabulka1[[#This Row],[Export čr 2012]]+Tabulka1[[#This Row],[Export čr 2013]])/(Tabulka1[[#This Row],[GDP země 2010]]+Tabulka1[[#This Row],[GDP země 2011]]+Tabulka1[[#This Row],[GDP země 2012]]+Tabulka1[[#This Row],[GDP země 2013]]) ->  | F12: =AVERAGEIF(Tabulka1[[#This Row],[Import země 2010]:[Import země 2013]],">0") ->  | G12: =Tabulka1[[#This Row],[Import země 2010 - 2013 průměr]]/$F$227 ->  | H12: =(Tabulka1[[#This Row],[Export čr průměr 2010-2013]])/$T$227 ->  | I12: =Tabulka1[[#This Row],[průměrný % podíl na světovém importu]]-Tabulka1[[#This Row],[průměrný % podíl na českém exportu]] ->  | J12: =Tabulka1[[#This Row],[průměrný % podíl na světovém importu]]/Tabulka1[[#This Row],[průměrný % podíl na českém exportu]] ->  | K12: =AVERAGEIF(Tabulka1[[#This Row],[GDP země 2010]:[GDP země 2013]],">0") -> 5712749955 | L12: =VLOOKUP(B12,'A.4 GDP svět DivExp'!$B$2:$K$215,7,FALSE) -> 5350993377 | M12: =VLOOKUP(B12,'A.4 GDP svět DivExp'!$B$2:$K$215,8,FALSE) -> 6074506533 | N12: =VLOOKUP(B12,'A.4 GDP svět DivExp'!$B$2:$K$215,9,FALSE) -> .. | O12: =VLOOKUP(B12,'A.4 GDP svět DivExp'!$B$2:$K$215,10,FALSE) -> .. | P12: =VLOOKUP(Tabulka1[[#This Row],[iso code]],'A.4 Export ČR DivExp'!$A$2:$F$204,6,FALSE)*1000 ->  | Q12: =VLOOKUP(A12,'A.4 Export ČR DivExp'!$A$2:$E$204,5,FALSE)*1000 ->  | R12: =VLOOKUP(A12,'A.4 Export ČR DivExp'!$A$2:$E$204,4,FALSE)*1000 ->  | S12: =VLOOKUP(A12,'A.4 Export ČR DivExp'!$A$2:$E$204,3,FALSE)*1000 ->  | T12: =AVERAGEIF(Tabulka1[[#This Row],[Export čr 2010]:[Export čr 2013]],">0") ->  | U12: =VLOOKUP(Tabulka1[[#This Row],[iso code (1)]],'A.4 Import svět DivExp'!$B$2:$M$259,9,FALSE) -> 0 | V12: =VLOOKUP(Tabulka1[[#This Row],[iso code (1)]],'A.4 Import svět DivExp'!$B$2:$M$259,10,FALSE) -> 0 | W12: =VLOOKUP(Tabulka1[[#This Row],[iso code (1)]],'A.4 Import svět DivExp'!$B$2:$M$259,11,FALSE) -> 0 | X12: =VLOOKUP(Tabulka1[[#This Row],[iso code (1)]],'A.4 Import svět DivExp'!$B$2:$M$259,12,FALSE) -> 0
A13: MG | B13: MDG | C13: Madagascar | D13: =(Tabulka1[[#This Row],[Export čr 2010]]+Tabulka1[[#This Row],[Export čr 2011]]+Tabulka1[[#This Row],[Export čr 2012]])/(Tabulka1[[#This Row],[Import země 2010]]+Tabulka1[[#This Row],[Import země 2011]]+Tabulka1[[#This Row],[Import země 2012]]) ->  | E13: =(Tabulka1[[#This Row],[Export čr 2010]]+Tabulka1[[#This Row],[Export čr 2011]]+Tabulka1[[#This Row],[Export čr 2012]]+Tabulka1[[#This Row],[Export čr 2013]])/(Tabulka1[[#This Row],[GDP země 2010]]+Tabulka1[[#This Row],[GDP země 2011]]+Tabulka1[[#This Row],[GDP země 2012]]+Tabulka1[[#This Row],[GDP země 2013]]) -> 0.0001037816584 | F13: =AVERAGEIF(Tabulka1[[#This Row],[Import země 2010]:[Import země 2013]],">0") ->  | G13: =Tabulka1[[#This Row],[Import země 2010 - 2013 průměr]]/$F$227 ->  | H13: =(Tabulka1[[#This Row],[Export čr průměr 2010-2013]])/$T$227 -> 6.622089682e-06 | I13: =Tabulka1[[#This Row],[průměrný % podíl na světovém importu]]-Tabulka1[[#This Row],[průměrný % podíl na českém exportu]] ->  | J13: =Tabulka1[[#This Row],[průměrný % podíl na světovém importu]]/Tabulka1[[#This Row],[průměrný % podíl na českém exportu]] ->  | K13: =AVERAGEIF(Tabulka1[[#This Row],[GDP země 2010]:[GDP země 2013]],">0") -> 9809055049 | L13: =VLOOKUP(B13,'A.4 GDP svět DivExp'!$B$2:$K$215,7,FALSE) -> 8704983553 | M13: =VLOOKUP(B13,'A.4 GDP svět DivExp'!$B$2:$K$215,8,FALSE) -> 9853981624 | N13: =VLOOKUP(B13,'A.4 GDP svět DivExp'!$B$2:$K$215,9,FALSE) -> 9880703883 | O13: =VLOOKUP(B13,'A.4 GDP svět DivExp'!$B$2:$K$215,10,FALSE) -> 1.079655114e+10 | P13: =VLOOKUP(Tabulka1[[#This Row],[iso code]],'A.4 Export ČR DivExp'!$A$2:$F$204,6,FALSE)*1000 -> 1239000 | Q13: =VLOOKUP(A13,'A.4 Export ČR DivExp'!$A$2:$E$204,5,FALSE)*1000 -> 914000 | R13: =VLOOKUP(A13,'A.4 Export ČR DivExp'!$A$2:$E$204,4,FALSE)*1000 -> 1306000 | S13: =VLOOKUP(A13,'A.4 Export ČR DivExp'!$A$2:$E$204,3,FALSE)*1000 -> 613000 | T13: =AVERAGEIF(Tabulka1[[#This Row],[Export čr 2010]:[Export čr 2013]],">0") -> 1018000 | U13: =VLOOKUP(Tabulka1[[#This Row],[iso code (1)]],'A.4 Import svět DivExp'!$B$2:$M$259,9,FALSE) -> 0 | V13: =VLOOKUP(Tabulka1[[#This Row],[iso code (1)]],'A.4 Import svět DivExp'!$B$2:$M$259,10,FALSE) -> 0 | W13: =VLOOKUP(Tabulka1[[#This Row],[iso code (1)]],'A.4 Import svět DivExp'!$B$2:$M$259,11,FALSE) -> 0 | X13: =VLOOKUP(Tabulka1[[#This Row],[iso code (1)]],'A.4 Import svět DivExp'!$B$2:$M$259,12,FALSE) -> 0
A14: ZW | B14: ZWE | C14: Zimbabwe | D14: =(Tabulka1[[#This Row],[Export čr 2010]]+Tabulka1[[#This Row],[Export čr 2011]]+Tabulka1[[#This Row],[Export čr 2012]])/(Tabulka1[[#This Row],[Import země 2010]]+Tabulka1[[#This Row],[Import země 2011]]+Tabulka1[[#This Row],[Import země 2012]]) ->  | E14: =(Tabulka1[[#This Row],[Export čr 2010]]+Tabulka1[[#This Row],[Export čr 2011]]+Tabulka1[[#This Row],[Export čr 2012]]+Tabulka1[[#This Row],[Export čr 2013]])/(Tabulka1[[#This Row],[GDP země 2010]]+Tabulka1[[#This Row],[GDP země 2011]]+Tabulka1[[#This Row],[GDP země 2012]]+Tabulka1[[#This Row],[GDP země 2013]]) -> 0.0001731111237 | F14: =AVERAGEIF(Tabulka1[[#This Row],[Import země 2010]:[Import země 2013]],">0") ->  | G14: =Tabulka1[[#This Row],[Import země 2010 - 2013 průměr]]/$F$227 ->  | H14: =(Tabulka1[[#This Row],[Export čr průměr 2010-2013]])/$T$227 -> 1.286201063e-05 | I14: =Tabulka1[[#This Row],[průměrný % podíl na světovém importu]]-Tabulka1[[#This Row],[průměrný % podíl na českém exportu]] ->  | J14: =Tabulka1[[#This Row],[průměrný % podíl na světovém importu]]/Tabulka1[[#This Row],[průměrný % podíl na českém exportu]] ->  | K14: =AVERAGEIF(Tabulka1[[#This Row],[GDP země 2010]:[GDP země 2013]],">0") -> 1.142185411e+10 | L14: =VLOOKUP(B14,'A.4 GDP svět DivExp'!$B$2:$K$215,7,FALSE) -> 9456808151 | M14: =VLOOKUP(B14,'A.4 GDP svět DivExp'!$B$2:$K$215,8,FALSE) -> 1.095622661e+10 | N14: =VLOOKUP(B14,'A.4 GDP svět DivExp'!$B$2:$K$215,9,FALSE) -> 1.247241669e+10 | O14: =VLOOKUP(B14,'A.4 GDP svět DivExp'!$B$2:$K$215,10,FALSE) -> 1.280196499e+10 | P14: =VLOOKUP(Tabulka1[[#This Row],[iso code]],'A.4 Export ČR DivExp'!$A$2:$F$204,6,FALSE)*1000 -> 840000 | Q14: =VLOOKUP(A14,'A.4 Export ČR DivExp'!$A$2:$E$204,5,FALSE)*1000 -> 4173000 | R14: =VLOOKUP(A14,'A.4 Export ČR DivExp'!$A$2:$E$204,4,FALSE)*1000 -> 1312000 | S14: =VLOOKUP(A14,'A.4 Export ČR DivExp'!$A$2:$E$204,3,FALSE)*1000 -> 1584000 | T14: =AVERAGEIF(Tabulka1[[#This Row],[Export čr 2010]:[Export čr 2013]],">0") -> 1977250 | U14: =VLOOKUP(Tabulka1[[#This Row],[iso code (1)]],'A.4 Import svět DivExp'!$B$2:$M$259,9,FALSE) -> 0 | V14: =VLOOKUP(Tabulka1[[#This Row],[iso code (1)]],'A.4 Import svět DivExp'!$B$2:$M$259,10,FALSE) -> 0 | W14: =VLOOKUP(Tabulka1[[#This Row],[iso code (1)]],'A.4 Import svět DivExp'!$B$2:$M$259,11,FALSE) -> 0 | X14: =VLOOKUP(Tabulka1[[#This Row],[iso code (1)]],'A.4 Import svět DivExp'!$B$2:$M$259,12,FALSE) -> 0
A15: CG | B15: COG | C15: Republic of the Congo | D15: =(Tabulka1[[#This Row],[Export čr 2010]]+Tabulka1[[#This Row],[Export čr 2011]]+Tabulka1[[#This Row],[Export čr 2012]])/(Tabulka1[[#This Row],[Import země 2010]]+Tabulka1[[#This Row],[Import země 2011]]+Tabulka1[[#This Row],[Import země 2012]]) ->  | E15: =(Tabulka1[[#This Row],[Export čr 2010]]+Tabulka1[[#This Row],[Export čr 2011]]+Tabulka1[[#This Row],[Export čr 2012]]+Tabulka1[[#This Row],[Export čr 2013]])/(Tabulka1[[#This Row],[GDP země 2010]]+Tabulka1[[#This Row],[GDP země 2011]]+Tabulka1[[#This Row],[GDP země 2012]]+Tabulka1[[#This Row],[GDP země 2013]]) -> 0.000190632328 | F15: =AVERAGEIF(Tabulka1[[#This Row],[Import země 2010]:[Import země 2013]],">0") ->  | G15: =Tabulka1[[#This Row],[Import země 2010 - 2013 průměr]]/$F$227 ->  | H15: =(Tabulka1[[#This Row],[Export čr průměr 2010-2013]])/$T$227 -> 1.680891919e-05 | I15: =Tabulka1[[#This Row],[průměrný % podíl na světovém importu]]-Tabulka1[[#This Row],[průměrný % podíl na českém exportu]] ->  | J15: =Tabulka1[[#This Row],[průměrný % podíl na světovém importu]]/Tabulka1[[#This Row],[průměrný % podíl na českém exportu]] ->  | K15: =AVERAGEIF(Tabulka1[[#This Row],[GDP země 2010]:[GDP země 2013]],">0") -> 1.355488876e+10 | L15: =VLOOKUP(B15,'A.4 GDP svět DivExp'!$B$2:$K$215,7,FALSE) -> 1.200788007e+10 | M15: =VLOOKUP(B15,'A.4 GDP svět DivExp'!$B$2:$K$215,8,FALSE) -> 1.442560679e+10 | N15: =VLOOKUP(B15,'A.4 GDP svět DivExp'!$B$2:$K$215,9,FALSE) -> 1.367792916e+10 | O15: =VLOOKUP(B15,'A.4 GDP svět DivExp'!$B$2:$K$215,10,FALSE) -> 1.410813902e+10 | P15: =VLOOKUP(Tabulka1[[#This Row],[iso code]],'A.4 Export ČR DivExp'!$A$2:$F$204,6,FALSE)*1000 -> 2014000 | Q15: =VLOOKUP(A15,'A.4 Export ČR DivExp'!$A$2:$E$204,5,FALSE)*1000 -> 2843000 | R15: =VLOOKUP(A15,'A.4 Export ČR DivExp'!$A$2:$E$204,4,FALSE)*1000 -> 2565000 | S15: =VLOOKUP(A15,'A.4 Export ČR DivExp'!$A$2:$E$204,3,FALSE)*1000 -> 2914000 | T15: =AVERAGEIF(Tabulka1[[#This Row],[Export čr 2010]:[Export čr 2013]],">0") -> 2584000 | U15: =VLOOKUP(Tabulka1[[#This Row],[iso code (1)]],'A.4 Import svět DivExp'!$B$2:$M$259,9,FALSE) -> 0 | V15: =VLOOKUP(Tabulka1[[#This Row],[iso code (1)]],'A.4 Import svět DivExp'!$B$2:$M$259,10,FALSE) -> 0 | W15: =VLOOKUP(Tabulka1[[#This Row],[iso code (1)]],'A.4 Import svět DivExp'!$B$2:$M$259,11,FALSE) -> 0 | X15: =VLOOKUP(Tabulka1[[#This Row],[iso code (1)]],'A.4 Import svět DivExp'!$B$2:$M$259,12,FALSE) -> 0
A16: GQ | B16: GNQ | C16: Equatorial Guinea | D16: =(Tabulka1[[#This Row],[Export čr 2010]]+Tabulka1[[#This Row],[Export čr 2011]]+Tabulka1[[#This Row],[Export čr 2012]])/(Tabulka1[[#This Row],[Import země 2010]]+Tabulka1[[#This Row],[Import země 2011]]+Tabulka1[[#This Row],[Import země 2012]]) ->  | E16: =(Tabulka1[[#This Row],[Export čr 2010]]+Tabulka1[[#This Row],[Export čr 2011]]+Tabulka1[[#This Row],[Export čr 2012]]+Tabulka1[[#This Row],[Export čr 2013]])/(Tabulka1[[#This Row],[GDP země 2010]]+Tabulka1[[#This Row],[GDP země 2011]]+Tabulka1[[#This Row],[GDP země 2012]]+Tabulka1[[#This Row],[GDP země 2013]]) -> 0.0001331647877 | F16: =AVERAGEIF(Tabulka1[[#This Row],[Import země 2010]:[Import země 2013]],">0") ->  | G16: =Tabulka1[[#This Row],[Import země 2010 - 2013 průměr]]/$F$227 ->  | H16: =(Tabulka1[[#This Row],[Export čr průměr 2010-2013]])/$T$227 -> 1.285550563e-05 | I16: =Tabulka1[[#This Row],[průměrný % podíl na světovém importu]]-Tabulka1[[#This Row],[průměrný % podíl na českém exportu]] ->  | J16: =Tabulka1[[#This Row],[průměrný % podíl na světovém importu]]/Tabulka1[[#This Row],[průměrný % podíl na českém exportu]] ->  | K16: =AVERAGEIF(Tabulka1[[#This Row],[GDP země 2010]:[GDP země 2013]],">0") -> 1.484063493e+10 | L16: =VLOOKUP(B16,'A.4 GDP svět DivExp'!$B$2:$K$215,7,FALSE) -> 1.158640749e+10 | M16: =VLOOKUP(B16,'A.4 GDP svět DivExp'!$B$2:$K$215,8,FALSE) -> 1.571584215e+10 | N16: =VLOOKUP(B16,'A.4 GDP svět DivExp'!$B$2:$K$215,9,FALSE) -> 1.648674375e+10 | O16: =VLOOKUP(B16,'A.4 GDP svět DivExp'!$B$2:$K$215,10,FALSE) -> 1.557354634e+10 | P16: =VLOOKUP(Tabulka1[[#This Row],[iso code]],'A.4 Export ČR DivExp'!$A$2:$F$204,6,FALSE)*1000 -> 488000 | Q16: =VLOOKUP(A16,'A.4 Export ČR DivExp'!$A$2:$E$204,5,FALSE)*1000 -> 4729000 | R16: =VLOOKUP(A16,'A.4 Export ČR DivExp'!$A$2:$E$204,4,FALSE)*1000 -> 2331000 | S16: =VLOOKUP(A16,'A.4 Export ČR DivExp'!$A$2:$E$204,3,FALSE)*1000 -> 357000 | T16: =AVERAGEIF(Tabulka1[[#This Row],[Export čr 2010]:[Export čr 2013]],">0") -> 1976250 | U16: =VLOOKUP(Tabulka1[[#This Row],[iso code (1)]],'A.4 Import svět DivExp'!$B$2:$M$259,9,FALSE) -> 0 | V16: =VLOOKUP(Tabulka1[[#This Row],[iso code (1)]],'A.4 Import svět DivExp'!$B$2:$M$259,10,FALSE) -> 0 | W16: =VLOOKUP(Tabulka1[[#This Row],[iso code (1)]],'A.4 Import svět DivExp'!$B$2:$M$259,11,FALSE) -> 0 | X16: =VLOOKUP(Tabulka1[[#This Row],[iso code (1)]],'A.4 Import svět DivExp'!$B$2:$M$259,12,FALSE) -> 0
A17: SS | B17: SSD | C17: South Sudan | D17: =(Tabulka1[[#This Row],[Export čr 2010]]+Tabulka1[[#This Row],[Export čr 2011]]+Tabulka1[[#This Row],[Export čr 2012]])/(Tabulka1[[#This Row],[Import země 2010]]+Tabulka1[[#This Row],[Import země 2011]]+Tabulka1[[#This Row],[Import země 2012]]) ->  | E17: =(Tabulka1[[#This Row],[Export čr 2010]]+Tabulka1[[#This Row],[Export čr 2011]]+Tabulka1[[#This Row],[Export čr 2012]]+Tabulka1[[#This Row],[Export čr 2013]])/(Tabulka1[[#This Row],[GDP země 2010]]+Tabulka1[[#This Row],[GDP země 2011]]+Tabulka1[[#This Row],[GDP země 2012]]+Tabulka1[[#This Row],[GDP země 2013]]) ->  | F17: =AVERAGEIF(Tabulka1[[#This Row],[Import země 2010]:[Import země 2013]],">0") ->  | G17: =Tabulka1[[#This Row],[Import země 2010 - 2013 průměr]]/$F$227 ->  | H17: =(Tabulka1[[#This Row],[Export čr průměr 2010-2013]])/$T$227 ->  | I17: =Tabulka1[[#This Row],[průměrný % podíl na světovém importu]]-Tabulka1[[#This Row],[průměrný % podíl na českém exportu]] ->  | J17: =Tabulka1[[#This Row],[průměrný % podíl na světovém importu]]/Tabulka1[[#This Row],[průměrný % podíl na českém exportu]] ->  | K17: =AVERAGEIF(Tabulka1[[#This Row],[GDP země 2010]:[GDP země 2013]],">0") -> 1.536930952e+10 | L17: =VLOOKUP(B17,'A.4 GDP svět DivExp'!$B$2:$K$215,7,FALSE) -> 1.633851093e+10 | M17: =VLOOKUP(B17,'A.4 GDP svět DivExp'!$B$2:$K$215,8,FALSE) -> 2.078211698e+10 | N17: =VLOOKUP(B17,'A.4 GDP svět DivExp'!$B$2:$K$215,9,FALSE) -> 10560000000 | O17: =VLOOKUP(B17,'A.4 GDP svět DivExp'!$B$2:$K$215,10,FALSE) -> 1.379661017e+10 | P17: =VLOOKUP(Tabulka1[[#This Row],[iso code]],'A.4 Export ČR DivExp'!$A$2:$F$204,6,FALSE)*1000 ->  | Q17: =VLOOKUP(A17,'A.4 Export ČR DivExp'!$A$2:$E$204,5,FALSE)*1000 ->  | R17: =VLOOKUP(A17,'A.4 Export ČR DivExp'!$A$2:$E$204,4,FALSE)*1000 ->  | S17: =VLOOKUP(A17,'A.4 Export ČR DivExp'!$A$2:$E$204,3,FALSE)*1000 ->  | T17: =AVERAGEIF(Tabulka1[[#This Row],[Export čr 2010]:[Export čr 2013]],">0") ->  | U17: =VLOOKUP(Tabulka1[[#This Row],[iso code (1)]],'A.4 Import svět DivExp'!$B$2:$M$259,9,FALSE) -> 0 | V17: =VLOOKUP(Tabulka1[[#This Row],[iso code (1)]],'A.4 Import svět DivExp'!$B$2:$M$259,10,FALSE) -> 0 | W17: =VLOOKUP(Tabulka1[[#This Row],[iso code (1)]],'A.4 Import svět DivExp'!$B$2:$M$259,11,FALSE) -> 0 | X17: =VLOOKUP(Tabulka1[[#This Row],[iso code (1)]],'A.4 Import svět DivExp'!$B$2:$M$259,12,FALSE) -> 0
A18: BN | B18: BRN | C18: Brunei | D18: =(Tabulka1[[#This Row],[Export čr 2010]]+Tabulka1[[#This Row],[Export čr 2011]]+Tabulka1[[#This Row],[Export čr 2012]])/(Tabulka1[[#This Row],[Import země 2010]]+Tabulka1[[#This Row],[Import země 2011]]+Tabulka1[[#This Row],[Import země 2012]]) ->  | E18: =(Tabulka1[[#This Row],[Export čr 2010]]+Tabulka1[[#This Row],[Export čr 2011]]+Tabulka1[[#This Row],[Export čr 2012]]+Tabulka1[[#This Row],[Export čr 2013]])/(Tabulka1[[#This Row],[GDP země 2010]]+Tabulka1[[#This Row],[GDP země 2011]]+Tabulka1[[#This Row],[GDP země 2012]]+Tabulka1[[#This Row],[GDP země 2013]]) -> 3.768139038e-05 | F18: =AVERAGEIF(Tabulka1[[#This Row],[Import země 2010]:[Import země 2013]],">0") ->  | G18: =Tabulka1[[#This Row],[Import země 2010 - 2013 průměr]]/$F$227 ->  | H18: =(Tabulka1[[#This Row],[Export čr průměr 2010-2013]])/$T$227 -> 3.807051067e-06 | I18: =Tabulka1[[#This Row],[průměrný % podíl na světovém importu]]-Tabulka1[[#This Row],[průměrný % podíl na českém exportu]] ->  | J18: =Tabulka1[[#This Row],[průměrný % podíl na světovém importu]]/Tabulka1[[#This Row],[průměrný % podíl na českém exportu]] ->  | K18: =AVERAGEIF(Tabulka1[[#This Row],[GDP země 2010]:[GDP země 2013]],">0") -> 1.553153942e+10 | L18: =VLOOKUP(B18,'A.4 GDP svět DivExp'!$B$2:$K$215,7,FALSE) -> 1.236970886e+10 | M18: =VLOOKUP(B18,'A.4 GDP svět DivExp'!$B$2:$K$215,8,FALSE) -> 1.66913604e+10 | N18: =VLOOKUP(B18,'A.4 GDP svět DivExp'!$B$2:$K$215,9,FALSE) -> 1.695395263e+10 | O18: =VLOOKUP(B18,'A.4 GDP svět DivExp'!$B$2:$K$215,10,FALSE) -> 1.611113579e+10 | P18: =VLOOKUP(Tabulka1[[#This Row],[iso code]],'A.4 Export ČR DivExp'!$A$2:$F$204,6,FALSE)*1000 -> 253000 | Q18: =VLOOKUP(A18,'A.4 Export ČR DivExp'!$A$2:$E$204,5,FALSE)*1000 -> 527000 | R18: =VLOOKUP(A18,'A.4 Export ČR DivExp'!$A$2:$E$204,4,FALSE)*1000 -> 813000 | S18: =VLOOKUP(A18,'A.4 Export ČR DivExp'!$A$2:$E$204,3,FALSE)*1000 -> 748000 | T18: =AVERAGEIF(Tabulka1[[#This Row],[Export čr 2010]:[Export čr 2013]],">0") -> 585250 | U18: =VLOOKUP(Tabulka1[[#This Row],[iso code (1)]],'A.4 Import svět DivExp'!$B$2:$M$259,9,FALSE) -> 0 | V18: =VLOOKUP(Tabulka1[[#This Row],[iso code (1)]],'A.4 Import svět DivExp'!$B$2:$M$259,10,FALSE) -> 0 | W18: =VLOOKUP(Tabulka1[[#This Row],[iso code (1)]],'A.4 Import svět DivExp'!$B$2:$M$259,11,FALSE) -> 0 | X18: =VLOOKUP(Tabulka1[[#This Row],[iso code (1)]],'A.4 Import svět DivExp'!$B$2:$M$259,12,FALSE) -> 0
A19: GA | B19: GAB | C19: Gabon | D19: =(Tabulka1[[#This Row],[Export čr 2010]]+Tabulka1[[#This Row],[Export čr 2011]]+Tabulka1[[#This Row],[Export čr 2012]])/(Tabulka1[[#This Row],[Import země 2010]]+Tabulka1[[#This Row],[Import země 2011]]+Tabulka1[[#This Row],[Import země 2012]]) ->  | E19: =(Tabulka1[[#This Row],[Export čr 2010]]+Tabulka1[[#This Row],[Export čr 2011]]+Tabulka1[[#This Row],[Export čr 2012]]+Tabulka1[[#This Row],[Export čr 2013]])/(Tabulka1[[#This Row],[GDP země 2010]]+Tabulka1[[#This Row],[GDP země 2011]]+Tabulka1[[#This Row],[GDP země 2012]]+Tabulka1[[#This Row],[GDP země 2013]]) -> 0.0001406176099 | F19: =AVERAGEIF(Tabulka1[[#This Row],[Import země 2010]:[Import země 2013]],">0") ->  | G19: =Tabulka1[[#This Row],[Import země 2010 - 2013 průměr]]/$F$227 ->  | H19: =(Tabulka1[[#This Row],[Export čr průměr 2010-2013]])/$T$227 -> 1.613402547e-05 | I19: =Tabulka1[[#This Row],[průměrný % podíl na světovém importu]]-Tabulka1[[#This Row],[průměrný % podíl na českém exportu]] ->  | J19: =Tabulka1[[#This Row],[průměrný % podíl na světovém importu]]/Tabulka1[[#This Row],[průměrný % podíl na českém exportu]] ->  | K19: =AVERAGEIF(Tabulka1[[#This Row],[GDP země 2010]:[GDP země 2013]],">0") -> 1.763826025e+10 | L19: =VLOOKUP(B19,'A.4 GDP svět DivExp'!$B$2:$K$215,7,FALSE) -> 1.456952712e+10 | M19: =VLOOKUP(B19,'A.4 GDP svět DivExp'!$B$2:$K$215,8,FALSE) -> 1.879619183e+10 | N19: =VLOOKUP(B19,'A.4 GDP svět DivExp'!$B$2:$K$215,9,FALSE) -> 1.784381546e+10 | O19: =VLOOKUP(B19,'A.4 GDP svět DivExp'!$B$2:$K$215,10,FALSE) -> 1.93435066e+10 | P19: =VLOOKUP(Tabulka1[[#This Row],[iso code]],'A.4 Export ČR DivExp'!$A$2:$F$204,6,FALSE)*1000 -> 3732000 | Q19: =VLOOKUP(A19,'A.4 Export ČR DivExp'!$A$2:$E$204,5,FALSE)*1000 -> 2006000 | R19: =VLOOKUP(A19,'A.4 Export ČR DivExp'!$A$2:$E$204,4,FALSE)*1000 -> 1494000 | S19: =VLOOKUP(A19,'A.4 Export ČR DivExp'!$A$2:$E$204,3,FALSE)*1000 -> 2689000 | T19: =AVERAGEIF(Tabulka1[[#This Row],[Export čr 2010]:[Export čr 2013]],">0") -> 2480250 | U19: =VLOOKUP(Tabulka1[[#This Row],[iso code (1)]],'A.4 Import svět DivExp'!$B$2:$M$259,9,FALSE) -> 0 | V19: =VLOOKUP(Tabulka1[[#This Row],[iso code (1)]],'A.4 Import svět DivExp'!$B$2:$M$259,10,FALSE) -> 0 | W19: =VLOOKUP(Tabulka1[[#This Row],[iso code (1)]],'A.4 Import svět DivExp'!$B$2:$M$259,11,FALSE) -> 0 | X19: =VLOOKUP(Tabulka1[[#This Row],[iso code (1)]],'A.4 Import svět DivExp'!$B$2:$M$259,12,FALSE) -> 0
A20: CD | B20: ZAR | C20: Democratic Republic of Congo | D20: =(Tabulka1[[#This Row],[Export čr 2010]]+Tabulka1[[#This Row],[Export čr 2011]]+Tabulka1[[#This Row],[Export čr 2012]])/(Tabulka1[[#This Row],[Import země 2010]]+Tabulka1[[#This Row],[Import země 2011]]+Tabulka1[[#This Row],[Import země 2012]]) ->  | E20: =(Tabulka1[[#This Row],[Export čr 2010]]+Tabulka1[[#This Row],[Export čr 2011]]+Tabulka1[[#This Row],[Export čr 2012]]+Tabulka1[[#This Row],[Export čr 2013]])/(Tabulka1[[#This Row],[GDP země 2010]]+Tabulka1[[#This Row],[GDP země 2011]]+Tabulka1[[#This Row],[GDP země 2012]]+Tabulka1[[#This Row],[GDP země 2013]]) -> 0.0001569453912 | F20: =AVERAGEIF(Tabulka1[[#This Row],[Import země 2010]:[Import země 2013]],">0") ->  | G20: =Tabulka1[[#This Row],[Import země 2010 - 2013 průměr]]/$F$227 ->  | H20: =(Tabulka1[[#This Row],[Export čr průměr 2010-2013]])/$T$227 -> 2.614521999e-05 | I20: =Tabulka1[[#This Row],[průměrný % podíl na světovém importu]]-Tabulka1[[#This Row],[průměrný % podíl na českém exportu]] ->  | J20: =Tabulka1[[#This Row],[průměrný % podíl na světovém importu]]/Tabulka1[[#This Row],[průměrný % podíl na českém exportu]] ->  | K20: =AVERAGEIF(Tabulka1[[#This Row],[GDP země 2010]:[GDP země 2013]],">0") -> 2.560922604e+10 | L20: =VLOOKUP(B20,'A.4 GDP svět DivExp'!$B$2:$K$215,7,FALSE) -> 2.052328624e+10 | M20: =VLOOKUP(B20,'A.4 GDP svět DivExp'!$B$2:$K$215,8,FALSE) -> 2.383163137e+10 | N20: =VLOOKUP(B20,'A.4 GDP svět DivExp'!$B$2:$K$215,9,FALSE) -> 2.74527954e+10 | O20: =VLOOKUP(B20,'A.4 GDP svět DivExp'!$B$2:$K$215,10,FALSE) -> 3.062919117e+10 | P20: =VLOOKUP(Tabulka1[[#This Row],[iso code]],'A.4 Export ČR DivExp'!$A$2:$F$204,6,FALSE)*1000 -> 2871000 | Q20: =VLOOKUP(A20,'A.4 Export ČR DivExp'!$A$2:$E$204,5,FALSE)*1000 -> 4830000 | R20: =VLOOKUP(A20,'A.4 Export ČR DivExp'!$A$2:$E$204,4,FALSE)*1000 -> 2347000 | S20: =VLOOKUP(A20,'A.4 Export ČR DivExp'!$A$2:$E$204,3,FALSE)*1000 -> 6029000 | T20: =AVERAGEIF(Tabulka1[[#This Row],[Export čr 2010]:[Export čr 2013]],">0") -> 4019250 | U20: =VLOOKUP(Tabulka1[[#This Row],[iso code (1)]],'A.4 Import svět DivExp'!$B$2:$M$259,9,FALSE) ->  | V20: =VLOOKUP(Tabulka1[[#This Row],[iso code (1)]],'A.4 Import svět DivExp'!$B$2:$M$259,10,FALSE) ->  | W20: =VLOOKUP(Tabulka1[[#This Row],[iso code (1)]],'A.4 Import svět DivExp'!$B$2:$M$259,11,FALSE) ->  | X20: =VLOOKUP(Tabulka1[[#This Row],[iso code (1)]],'A.4 Import svět DivExp'!$B$2:$M$259,12,FALSE) -> 
A21: TM | B21: TKM | C21: Turkmenistan | D21: =(Tabulka1[[#This Row],[Export čr 2010]]+Tabulka1[[#This Row],[Export čr 2011]]+Tabulka1[[#This Row],[Export čr 2012]])/(Tabulka1[[#This Row],[Import země 2010]]+Tabulka1[[#This Row],[Import země 2011]]+Tabulka1[[#This Row],[Import země 2012]]) ->  | E21: =(Tabulka1[[#This Row],[Export čr 2010]]+Tabulka1[[#This Row],[Export čr 2011]]+Tabulka1[[#This Row],[Export čr 2012]]+Tabulka1[[#This Row],[Export čr 2013]])/(Tabulka1[[#This Row],[GDP země 2010]]+Tabulka1[[#This Row],[GDP země 2011]]+Tabulka1[[#This Row],[GDP země 2012]]+Tabulka1[[#This Row],[GDP země 2013]]) -> 0.0006239111305 | F21: =AVERAGEIF(Tabulka1[[#This Row],[Import země 2010]:[Import země 2013]],">0") ->  | G21: =Tabulka1[[#This Row],[Import země 2010 - 2013 průměr]]/$F$227 ->  | H21: =(Tabulka1[[#This Row],[Export čr průměr 2010-2013]])/$T$227 -> 0.0001302756287 | I21: =Tabulka1[[#This Row],[průměrný % podíl na světovém importu]]-Tabulka1[[#This Row],[průměrný % podíl na českém exportu]] ->  | J21: =Tabulka1[[#This Row],[průměrný % podíl na světovém importu]]/Tabulka1[[#This Row],[průměrný % podíl na českém exportu]] ->  | K21: =AVERAGEIF(Tabulka1[[#This Row],[GDP země 2010]:[GDP země 2013]],">0") -> 3.209912281e+10 | L21: =VLOOKUP(B21,'A.4 GDP svět DivExp'!$B$2:$K$215,7,FALSE) -> 2.214807018e+10 | M21: =VLOOKUP(B21,'A.4 GDP svět DivExp'!$B$2:$K$215,8,FALSE) -> 2.923333333e+10 | N21: =VLOOKUP(B21,'A.4 GDP svět DivExp'!$B$2:$K$215,9,FALSE) -> 3.516421053e+10 | O21: =VLOOKUP(B21,'A.4 GDP svět DivExp'!$B$2:$K$215,10,FALSE) -> 4.185087719e+10 | P21: =VLOOKUP(Tabulka1[[#This Row],[iso code]],'A.4 Export ČR DivExp'!$A$2:$F$204,6,FALSE)*1000 -> 16813000 | Q21: =VLOOKUP(A21,'A.4 Export ČR DivExp'!$A$2:$E$204,5,FALSE)*1000 -> 16931000 | R21: =VLOOKUP(A21,'A.4 Export ČR DivExp'!$A$2:$E$204,4,FALSE)*1000 -> 22616000 | S21: =VLOOKUP(A21,'A.4 Export ČR DivExp'!$A$2:$E$204,3,FALSE)*1000 -> 23748000 | T21: =AVERAGEIF(Tabulka1[[#This Row],[Export čr 2010]:[Export čr 2013]],">0") -> 20027000 | U21: =VLOOKUP(Tabulka1[[#This Row],[iso code (1)]],'A.4 Import svět DivExp'!$B$2:$M$259,9,FALSE) -> 0 | V21: =VLOOKUP(Tabulka1[[#This Row],[iso code (1)]],'A.4 Import svět DivExp'!$B$2:$M$259,10,FALSE) -> 0 | W21: =VLOOKUP(Tabulka1[[#This Row],[iso code (1)]],'A.4 Import svět DivExp'!$B$2:$M$259,11,FALSE) -> 0 | X21: =VLOOKUP(Tabulka1[[#This Row],[iso code (1)]],'A.4 Import svět DivExp'!$B$2:$M$259,12,FALSE) -> 0
A22: UZ | B22: UZB | C22: Uzbekistan | D22: =(Tabulka1[[#This Row],[Export čr 2010]]+Tabulka1[[#This Row],[Export čr 2011]]+Tabulka1[[#This Row],[Export čr 2012]])/(Tabulka1[[#This Row],[Import země 2010]]+Tabulka1[[#This Row],[Import země 2011]]+Tabulka1[[#This Row],[Import země 2012]]) ->  | E22: =(Tabulka1[[#This Row],[Export čr 2010]]+Tabulka1[[#This Row],[Export čr 2011]]+Tabulka1[[#This Row],[Export čr 2012]]+Tabulka1[[#This Row],[Export čr 2013]])/(Tabulka1[[#This Row],[GDP země 2010]]+Tabulka1[[#This Row],[GDP země 2011]]+Tabulka1[[#This Row],[GDP země 2012]]+Tabulka1[[#This Row],[GDP země 2013]]) -> 0.001369592076 | F22: =AVERAGEIF(Tabulka1[[#This Row],[Import země 2010]:[Import země 2013]],">0") ->  | G22: =Tabulka1[[#This Row],[Import země 2010 - 2013 průměr]]/$F$227 ->  | H22: =(Tabulka1[[#This Row],[Export čr průměr 2010-2013]])/$T$227 -> 0.0004290583956 | I22: =Tabulka1[[#This Row],[průměrný % podíl na světovém importu]]-Tabulka1[[#This Row],[průměrný % podíl na českém exportu]] ->  | J22: =Tabulka1[[#This Row],[průměrný % podíl na světovém importu]]/Tabulka1[[#This Row],[průměrný % podíl na českém exportu]] ->  | K22: =AVERAGEIF(Tabulka1[[#This Row],[GDP země 2010]:[GDP země 2013]],">0") -> 4.815904761e+10 | L22: =VLOOKUP(B22,'A.4 GDP svět DivExp'!$B$2:$K$215,7,FALSE) -> 3.933277093e+10 | M22: =VLOOKUP(B22,'A.4 GDP svět DivExp'!$B$2:$K$215,8,FALSE) -> 4.532431996e+10 | N22: =VLOOKUP(B22,'A.4 GDP svět DivExp'!$B$2:$K$215,9,FALSE) -> 5.118344322e+10 | O22: =VLOOKUP(B22,'A.4 GDP svět DivExp'!$B$2:$K$215,10,FALSE) -> 5.679565632e+10 | P22: =VLOOKUP(Tabulka1[[#This Row],[iso code]],'A.4 Export ČR DivExp'!$A$2:$F$204,6,FALSE)*1000 -> 43044000 | Q22: =VLOOKUP(A22,'A.4 Export ČR DivExp'!$A$2:$E$204,5,FALSE)*1000 -> 57424000 | R22: =VLOOKUP(A22,'A.4 Export ČR DivExp'!$A$2:$E$204,4,FALSE)*1000 -> 78897000 | S22: =VLOOKUP(A22,'A.4 Export ČR DivExp'!$A$2:$E$204,3,FALSE)*1000 -> 84468000 | T22: =AVERAGEIF(Tabulka1[[#This Row],[Export čr 2010]:[Export čr 2013]],">0") -> 65958250 | U22: =VLOOKUP(Tabulka1[[#This Row],[iso code (1)]],'A.4 Import svět DivExp'!$B$2:$M$259,9,FALSE) -> 0 | V22: =VLOOKUP(Tabulka1[[#This Row],[iso code (1)]],'A.4 Import svět DivExp'!$B$2:$M$259,10,FALSE) -> 0 | W22: =VLOOKUP(Tabulka1[[#This Row],[iso code (1)]],'A.4 Import svět DivExp'!$B$2:$M$259,11,FALSE) -> 0 | X22: =VLOOKUP(Tabulka1[[#This Row],[iso code (1)]],'A.4 Import svět DivExp'!$B$2:$M$259,12,FALSE) -> 0
A23: CU | B23: CUB | C23: Cuba | D23: =(Tabulka1[[#This Row],[Export čr 2010]]+Tabulka1[[#This Row],[Export čr 2011]]+Tabulka1[[#This Row],[Export čr 2012]])/(Tabulka1[[#This Row],[Import země 2010]]+Tabulka1[[#This Row],[Import země 2011]]+Tabulka1[[#This Row],[Import země 2012]]) ->  | E23: =(Tabulka1[[#This Row],[Export čr 2010]]+Tabulka1[[#This Row],[Export čr 2011]]+Tabulka1[[#This Row],[Export čr 2012]]+Tabulka1[[#This Row],[Export čr 2013]])/(Tabulka1[[#This Row],[GDP země 2010]]+Tabulka1[[#This Row],[GDP země 2011]]+Tabulka1[[#This Row],[GDP země 2012]]+Tabulka1[[#This Row],[GDP země 2013]]) ->  | F23: =AVERAGEIF(Tabulka1[[#This Row],[Import země 2010]:[Import země 2013]],">0") ->  | G23: =Tabulka1[[#This Row],[Import země 2010 - 2013 průměr]]/$F$227 ->  | H23: =(Tabulka1[[#This Row],[Export čr průměr 2010-2013]])/$T$227 -> 0.0002332725413 | I23: =Tabulka1[[#This Row],[průměrný % podíl na světovém importu]]-Tabulka1[[#This Row],[průměrný % podíl na českém exportu]] ->  | J23: =Tabulka1[[#This Row],[průměrný % podíl na světovém importu]]/Tabulka1[[#This Row],[průměrný % podíl na českém exportu]] ->  | K23: =AVERAGEIF(Tabulka1[[#This Row],[GDP země 2010]:[GDP země 2013]],">0") -> 66281060000 | L23: =VLOOKUP(B23,'A.4 GDP svět DivExp'!$B$2:$K$215,7,FALSE) -> 64328220000 | M23: =VLOOKUP(B23,'A.4 GDP svět DivExp'!$B$2:$K$215,8,FALSE) -> 68233900000 | N23: =VLOOKUP(B23,'A.4 GDP svět DivExp'!$B$2:$K$215,9,FALSE) -> .. | O23: =VLOOKUP(B23,'A.4 GDP svět DivExp'!$B$2:$K$215,10,FALSE) -> .. | P23: =VLOOKUP(Tabulka1[[#This Row],[iso code]],'A.4 Export ČR DivExp'!$A$2:$F$204,6,FALSE)*1000 -> 24514000 | Q23: =VLOOKUP(A23,'A.4 Export ČR DivExp'!$A$2:$E$204,5,FALSE)*1000 -> 54185000 | R23: =VLOOKUP(A23,'A.4 Export ČR DivExp'!$A$2:$E$204,4,FALSE)*1000 -> 39560000 | S23: =VLOOKUP(A23,'A.4 Export ČR DivExp'!$A$2:$E$204,3,FALSE)*1000 -> 25183000 | T23: =AVERAGEIF(Tabulka1[[#This Row],[Export čr 2010]:[Export čr 2013]],">0") -> 35860500 | U23: =VLOOKUP(Tabulka1[[#This Row],[iso code (1)]],'A.4 Import svět DivExp'!$B$2:$M$259,9,FALSE) -> 0 | V23: =VLOOKUP(Tabulka1[[#This Row],[iso code (1)]],'A.4 Import svět DivExp'!$B$2:$M$259,10,FALSE) -> 0 | W23: =VLOOKUP(Tabulka1[[#This Row],[iso code (1)]],'A.4 Import svět DivExp'!$B$2:$M$259,11,FALSE) -> 0 | X23: =VLOOKUP(Tabulka1[[#This Row],[iso code (1)]],'A.4 Import svět DivExp'!$B$2:$M$259,12,FALSE) -> 0
A24: PR | B24: PRI | C24: Puerto Rico | D24: =(Tabulka1[[#This Row],[Export čr 2010]]+Tabulka1[[#This Row],[Export čr 2011]]+Tabulka1[[#This Row],[Export čr 2012]])/(Tabulka1[[#This Row],[Import země 2010]]+Tabulka1[[#This Row],[Import země 2011]]+Tabulka1[[#This Row],[Import země 2012]]) ->  | E24: =(Tabulka1[[#This Row],[Export čr 2010]]+Tabulka1[[#This Row],[Export čr 2011]]+Tabulka1[[#This Row],[Export čr 2012]]+Tabulka1[[#This Row],[Export čr 2013]])/(Tabulka1[[#This Row],[GDP země 2010]]+Tabulka1[[#This Row],[GDP země 2011]]+Tabulka1[[#This Row],[GDP země 2012]]+Tabulka1[[#This Row],[GDP země 2013]]) ->  | F24: =AVERAGEIF(Tabulka1[[#This Row],[Import země 2010]:[Import země 2013]],">0") ->  | G24: =Tabulka1[[#This Row],[Import země 2010 - 2013 průměr]]/$F$227 ->  | H24: =(Tabulka1[[#This Row],[Export čr průměr 2010-2013]])/$T$227 ->  | I24: =Tabulka1[[#This Row],[průměrný % podíl na světovém importu]]-Tabulka1[[#This Row],[průměrný % podíl na českém exportu]] ->  | J24: =Tabulka1[[#This Row],[průměrný % podíl na světovém importu]]/Tabulka1[[#This Row],[průměrný % podíl na českém exportu]] ->  | K24: =AVERAGEIF(Tabulka1[[#This Row],[GDP země 2010]:[GDP země 2013]],">0") -> 100737113500 | L24: =VLOOKUP(B24,'A.4 GDP svět DivExp'!$B$2:$K$215,7,FALSE) -> 98381268000 | M24: =VLOOKUP(B24,'A.4 GDP svět DivExp'!$B$2:$K$215,8,FALSE) -> 100351670000 | N24: =VLOOKUP(B24,'A.4 GDP svět DivExp'!$B$2:$K$215,9,FALSE) -> 101080738000 | O24: =VLOOKUP(B24,'A.4 GDP svět DivExp'!$B$2:$K$215,10,FALSE) -> 103134778000 | P24: =VLOOKUP(Tabulka1[[#This Row],[iso code]],'A.4 Export ČR DivExp'!$A$2:$F$204,6,FALSE)*1000 ->  | Q24: =VLOOKUP(A24,'A.4 Export ČR DivExp'!$A$2:$E$204,5,FALSE)*1000 ->  | R24: =VLOOKUP(A24,'A.4 Export ČR DivExp'!$A$2:$E$204,4,FALSE)*1000 ->  | S24: =VLOOKUP(A24,'A.4 Export ČR DivExp'!$A$2:$E$204,3,FALSE)*1000 ->  | T24: =AVERAGEIF(Tabulka1[[#This Row],[Export čr 2010]:[Export čr 2013]],">0") ->  | U24: =VLOOKUP(Tabulka1[[#This Row],[iso code (1)]],'A.4 Import svět DivExp'!$B$2:$M$259,9,FALSE) -> 0 | V24: =VLOOKUP(Tabulka1[[#This Row],[iso code (1)]],'A.4 Import svět DivExp'!$B$2:$M$259,10,FALSE) -> 0 | W24: =VLOOKUP(Tabulka1[[#This Row],[iso code (1)]],'A.4 Import svět DivExp'!$B$2:$M$259,11,FALSE) -> 0 | X24: =VLOOKUP(Tabulka1[[#This Row],[iso code (1)]],'A.4 Import svět DivExp'!$B$2:$M$259,12,FALSE) -> 0
A25: RO | B25: ROM | C25: Romania | D25: =(Tabulka1[[#This Row],[Export čr 2010]]+Tabulka1[[#This Row],[Export čr 2011]]+Tabulka1[[#This Row],[Export čr 2012]])/(Tabulka1[[#This Row],[Import země 2010]]+Tabulka1[[#This Row],[Import země 2011]]+Tabulka1[[#This Row],[Import země 2012]]) ->  | E25: =(Tabulka1[[#This Row],[Export čr 2010]]+Tabulka1[[#This Row],[Export čr 2011]]+Tabulka1[[#This Row],[Export čr 2012]]+Tabulka1[[#This Row],[Export čr 2013]])/(Tabulka1[[#This Row],[GDP země 2010]]+Tabulka1[[#This Row],[GDP země 2011]]+Tabulka1[[#This Row],[GDP země 2012]]+Tabulka1[[#This Row],[GDP země 2013]]) -> 0.01005557979 | F25: =AVERAGEIF(Tabulka1[[#This Row],[Import země 2010]:[Import země 2013]],">0") ->  | G25: =Tabulka1[[#This Row],[Import země 2010 - 2013 průměr]]/$F$227 ->  | H25: =(Tabulka1[[#This Row],[Export čr průměr 2010-2013]])/$T$227 -> 0.01155228586 | I25: =Tabulka1[[#This Row],[průměrný % podíl na světovém importu]]-Tabulka1[[#This Row],[průměrný % podíl na českém exportu]] ->  | J25: =Tabulka1[[#This Row],[průměrný % podíl na světovém importu]]/Tabulka1[[#This Row],[průměrný % podíl na českém exportu]] ->  | K25: =AVERAGEIF(Tabulka1[[#This Row],[GDP země 2010]:[GDP země 2013]],">0") -> 1.766092842e+11 | L25: =VLOOKUP(B25,'A.4 GDP svět DivExp'!$B$2:$K$215,7,FALSE) -> 1.647922527e+11 | M25: =VLOOKUP(B25,'A.4 GDP svět DivExp'!$B$2:$K$215,8,FALSE) -> 1.826106666e+11 | N25: =VLOOKUP(B25,'A.4 GDP svět DivExp'!$B$2:$K$215,9,FALSE) -> 1.693960556e+11 | O25: =VLOOKUP(B25,'A.4 GDP svět DivExp'!$B$2:$K$215,10,FALSE) -> 1.89638162e+11 | P25: =VLOOKUP(Tabulka1[[#This Row],[iso code]],'A.4 Export ČR DivExp'!$A$2:$F$204,6,FALSE)*1000 -> 1503269000 | Q25: =VLOOKUP(A25,'A.4 Export ČR DivExp'!$A$2:$E$204,5,FALSE)*1000 -> 1792793000 | R25: =VLOOKUP(A25,'A.4 Export ČR DivExp'!$A$2:$E$204,4,FALSE)*1000 -> 1776503000 | S25: =VLOOKUP(A25,'A.4 Export ČR DivExp'!$A$2:$E$204,3,FALSE)*1000 -> 2031070000 | T25: =AVERAGEIF(Tabulka1[[#This Row],[Export čr 2010]:[Export čr 2013]],">0") -> 1775908750 | U25: =VLOOKUP(Tabulka1[[#This Row],[iso code (1)]],'A.4 Import svět DivExp'!$B$2:$M$259,9,FALSE) ->  | V25: =VLOOKUP(Tabulka1[[#This Row],[iso code (1)]],'A.4 Import svět DivExp'!$B$2:$M$259,10,FALSE) ->  | W25: =VLOOKUP(Tabulka1[[#This Row],[iso code (1)]],'A.4 Import svět DivExp'!$B$2:$M$259,11,FALSE) ->  | X25: =VLOOKUP(Tabulka1[[#This Row],[iso code (1)]],'A.4 Import svět DivExp'!$B$2:$M$259,12,FALSE) -> 
A26: AE | B26: ARE | C26: United Arab Emirates | D26: =(Tabulka1[[#This Row],[Export čr 2010]]+Tabulka1[[#This Row],[Export čr 2011]]+Tabulka1[[#This Row],[Export čr 2012]])/(Tabulka1[[#This Row],[Import země 2010]]+Tabulka1[[#This Row],[Import země 2011]]+Tabulka1[[#This Row],[Import země 2012]]) ->  | E26: =(Tabulka1[[#This Row],[Export čr 2010]]+Tabulka1[[#This Row],[Export čr 2011]]+Tabulka1[[#This Row],[Export čr 2012]]+Tabulka1[[#This Row],[Export čr 2013]])/(Tabulka1[[#This Row],[GDP země 2010]]+Tabulka1[[#This Row],[GDP země 2011]]+Tabulka1[[#This Row],[GDP země 2012]]+Tabulka1[[#This Row],[GDP země 2013]]) ->  | F26: =AVERAGEIF(Tabulka1[[#This Row],[Import země 2010]:[Import země 2013]],">0") ->  | G26: =Tabulka1[[#This Row],[Import země 2010 - 2013 průměr]]/$F$227 ->  | H26: =(Tabulka1[[#This Row],[Export čr průměr 2010-2013]])/$T$227 -> 0.004025092152 | I26: =Tabulka1[[#This Row],[průměrný % podíl na světovém importu]]-Tabulka1[[#This Row],[průměrný % podíl na českém exportu]] ->  | J26: =Tabulka1[[#This Row],[průměrný % podíl na světovém importu]]/Tabulka1[[#This Row],[průměrný % podíl na českém exportu]] ->  | K26: =AVERAGEIF(Tabulka1[[#This Row],[GDP země 2010]:[GDP země 2013]],">0") -> 3.399386528e+11 | L26: =VLOOKUP(B26,'A.4 GDP svět DivExp'!$B$2:$K$215,7,FALSE) -> 2.87421819e+11 | M26: =VLOOKUP(B26,'A.4 GDP svět DivExp'!$B$2:$K$215,8,FALSE) -> 3.485949453e+11 | N26: =VLOOKUP(B26,'A.4 GDP svět DivExp'!$B$2:$K$215,9,FALSE) -> 3.837991941e+11 | O26: =VLOOKUP(B26,'A.4 GDP svět DivExp'!$B$2:$K$215,10,FALSE) -> .. | P26: =VLOOKUP(Tabulka1[[#This Row],[iso code]],'A.4 Export ČR DivExp'!$A$2:$F$204,6,FALSE)*1000 -> 523374000 | Q26: =VLOOKUP(A26,'A.4 Export ČR DivExp'!$A$2:$E$204,5,FALSE)*1000 -> 636792000 | R26: =VLOOKUP(A26,'A.4 Export ČR DivExp'!$A$2:$E$204,4,FALSE)*1000 -> 625769000 | S26: =VLOOKUP(A26,'A.4 Export ČR DivExp'!$A$2:$E$204,3,FALSE)*1000 -> 689141000 | T26: =AVERAGEIF(Tabulka1[[#This Row],[Export čr 2010]:[Export čr 2013]],">0") -> 618769000 | U26: =VLOOKUP(Tabulka1[[#This Row],[iso code (1)]],'A.4 Import svět DivExp'!$B$2:$M$259,9,FALSE) -> 0 | V26: =VLOOKUP(Tabulka1[[#This Row],[iso code (1)]],'A.4 Import svět DivExp'!$B$2:$M$259,10,FALSE) -> 0 | W26: =VLOOKUP(Tabulka1[[#This Row],[iso code (1)]],'A.4 Import svět DivExp'!$B$2:$M$259,11,FALSE) -> 0 | X26: =VLOOKUP(Tabulka1[[#This Row],[iso code (1)]],'A.4 Import svět DivExp'!$B$2:$M$259,12,FALSE) -> 0
A27: IR | B27: IRN | C27: Iran | D27: =(Tabulka1[[#This Row],[Export čr 2010]]+Tabulka1[[#This Row],[Export čr 2011]]+Tabulka1[[#This Row],[Export čr 2012]])/(Tabulka1[[#This Row],[Import země 2010]]+Tabulka1[[#This Row],[Import země 2011]]+Tabulka1[[#This Row],[Import země 2012]]) ->  | E27: =(Tabulka1[[#This Row],[Export čr 2010]]+Tabulka1[[#This Row],[Export čr 2011]]+Tabulka1[[#This Row],[Export čr 2012]]+Tabulka1[[#This Row],[Export čr 2013]])/(Tabulka1[[#This Row],[GDP země 2010]]+Tabulka1[[#This Row],[GDP země 2011]]+Tabulka1[[#This Row],[GDP země 2012]]+Tabulka1[[#This Row],[GDP země 2013]]) -> 0.0001400977287 | F27: =AVERAGEIF(Tabulka1[[#This Row],[Import země 2010]:[Import země 2013]],">0") ->  | G27: =Tabulka1[[#This Row],[Import země 2010 - 2013 průměr]]/$F$227 ->  | H27: =(Tabulka1[[#This Row],[Export čr průměr 2010-2013]])/$T$227 -> 0.0004152564125 | I27: =Tabulka1[[#This Row],[průměrný % podíl na světovém importu]]-Tabulka1[[#This Row],[průměrný % podíl na českém exportu]] ->  | J27: =Tabulka1[[#This Row],[průměrný % podíl na světovém importu]]/Tabulka1[[#This Row],[průměrný % podíl na českém exportu]] ->  | K27: =AVERAGEIF(Tabulka1[[#This Row],[GDP země 2010]:[GDP země 2013]],">0") -> 4.55656923e+11 | L27: =VLOOKUP(B27,'A.4 GDP svět DivExp'!$B$2:$K$215,7,FALSE) -> 4.225679674e+11 | M27: =VLOOKUP(B27,'A.4 GDP svět DivExp'!$B$2:$K$215,8,FALSE) -> 5.284260995e+11 | N27: =VLOOKUP(B27,'A.4 GDP svět DivExp'!$B$2:$K$215,9,FALSE) -> 5.027292736e+11 | O27: =VLOOKUP(B27,'A.4 GDP svět DivExp'!$B$2:$K$215,10,FALSE) -> 3.689043516e+11 | P27: =VLOOKUP(Tabulka1[[#This Row],[iso code]],'A.4 Export ČR DivExp'!$A$2:$F$204,6,FALSE)*1000 -> 96112000 | Q27: =VLOOKUP(A27,'A.4 Export ČR DivExp'!$A$2:$E$204,5,FALSE)*1000 -> 75080000 | R27: =VLOOKUP(A27,'A.4 Export ČR DivExp'!$A$2:$E$204,4,FALSE)*1000 -> 53498000 | S27: =VLOOKUP(A27,'A.4 Export ČR DivExp'!$A$2:$E$204,3,FALSE)*1000 -> 30656000 | T27: =AVERAGEIF(Tabulka1[[#This Row],[Export čr 2010]:[Export čr 2013]],">0") -> 63836500 | U27: =VLOOKUP(Tabulka1[[#This Row],[iso code (1)]],'A.4 Import svět DivExp'!$B$2:$M$259,9,FALSE) -> 0 | V27: =VLOOKUP(Tabulka1[[#This Row],[iso code (1)]],'A.4 Import svět DivExp'!$B$2:$M$259,10,FALSE) -> 0 | W27: =VLOOKUP(Tabulka1[[#This Row],[iso code (1)]],'A.4 Import svět DivExp'!$B$2:$M$259,11,FALSE) -> 0 | X27: =VLOOKUP(Tabulka1[[#This Row],[iso code (1)]],'A.4 Import svět DivExp'!$B$2:$M$259,12,FALSE) -> 0
A28: AS | B28: ASM | C28: American Samoa | D28: =(Tabulka1[[#This Row],[Export čr 2010]]+Tabulka1[[#This Row],[Export čr 2011]]+Tabulka1[[#This Row],[Export čr 2012]])/(Tabulka1[[#This Row],[Import země 2010]]+Tabulka1[[#This Row],[Import země 2011]]+Tabulka1[[#This Row],[Import země 2012]]) ->  | E28: =(Tabulka1[[#This Row],[Export čr 2010]]+Tabulka1[[#This Row],[Export čr 2011]]+Tabulka1[[#This Row],[Export čr 2012]]+Tabulka1[[#This Row],[Export čr 2013]])/(Tabulka1[[#This Row],[GDP země 2010]]+Tabulka1[[#This Row],[GDP země 2011]]+Tabulka1[[#This Row],[GDP země 2012]]+Tabulka1[[#This Row],[GDP země 2013]]) ->  | F28: =AVERAGEIF(Tabulka1[[#This Row],[Import země 2010]:[Import země 2013]],">0") ->  | G28: =Tabulka1[[#This Row],[Import země 2010 - 2013 průměr]]/$F$227 ->  | H28: =(Tabulka1[[#This Row],[Export čr průměr 2010-2013]])/$T$227 ->  | I28: =Tabulka1[[#This Row],[průměrný % podíl na světovém importu]]-Tabulka1[[#This Row],[průměrný % podíl na českém exportu]] ->  | J28: =Tabulka1[[#This Row],[průměrný % podíl na světovém importu]]/Tabulka1[[#This Row],[průměrný % podíl na českém exportu]] ->  | K28: =AVERAGEIF(Tabulka1[[#This Row],[GDP země 2010]:[GDP země 2013]],">0") ->  | L28: =VLOOKUP(B28,'A.4 GDP svět DivExp'!$B$2:$K$215,7,FALSE) -> .. | M28: =VLOOKUP(B28,'A.4 GDP svět DivExp'!$B$2:$K$215,8,FALSE) -> .. | N28: =VLOOKUP(B28,'A.4 GDP svět DivExp'!$B$2:$K$215,9,FALSE) -> .. | O28: =VLOOKUP(B28,'A.4 GDP svět DivExp'!$B$2:$K$215,10,FALSE) -> .. | P28: =VLOOKUP(Tabulka1[[#This Row],[iso code]],'A.4 Export ČR DivExp'!$A$2:$F$204,6,FALSE)*1000 ->  | Q28: =VLOOKUP(A28,'A.4 Export ČR DivExp'!$A$2:$E$204,5,FALSE)*1000 ->  | R28: =VLOOKUP(A28,'A.4 Export ČR DivExp'!$A$2:$E$204,4,FALSE)*1000 ->  | S28: =VLOOKUP(A28,'A.4 Export ČR DivExp'!$A$2:$E$204,3,FALSE)*1000 ->  | T28: =AVERAGEIF(Tabulka1[[#This Row],[Export čr 2010]:[Export čr 2013]],">0") ->  | U28: =VLOOKUP(Tabulka1[[#This Row],[iso code (1)]],'A.4 Import svět DivExp'!$B$2:$M$259,9,FALSE) -> 0 | V28: =VLOOKUP(Tabulka1[[#This Row],[iso code (1)]],'A.4 Import svět DivExp'!$B$2:$M$259,10,FALSE) -> 0 | W28: =VLOOKUP(Tabulka1[[#This Row],[iso code (1)]],'A.4 Import svět DivExp'!$B$2:$M$259,11,FALSE) -> 0 | X28: =VLOOKUP(Tabulka1[[#This Row],[iso code (1)]],'A.4 Import svět DivExp'!$B$2:$M$259,12,FALSE) -> 0
A29: AD | B29: ADO | C29: Andorra | D29: =(Tabulka1[[#This Row],[Export čr 2010]]+Tabulka1[[#This Row],[Export čr 2011]]+Tabulka1[[#This Row],[Export čr 2012]])/(Tabulka1[[#This Row],[Import země 2010]]+Tabulka1[[#This Row],[Import země 2011]]+Tabulka1[[#This Row],[Import země 2012]]) ->  | E29: =(Tabulka1[[#This Row],[Export čr 2010]]+Tabulka1[[#This Row],[Export čr 2011]]+Tabulka1[[#This Row],[Export čr 2012]]+Tabulka1[[#This Row],[Export čr 2013]])/(Tabulka1[[#This Row],[GDP země 2010]]+Tabulka1[[#This Row],[GDP země 2011]]+Tabulka1[[#This Row],[GDP země 2012]]+Tabulka1[[#This Row],[GDP země 2013]]) ->  | F29: =AVERAGEIF(Tabulka1[[#This Row],[Import země 2010]:[Import země 2013]],">0") ->  | G29: =Tabulka1[[#This Row],[Import země 2010 - 2013 průměr]]/$F$227 ->  | H29: =(Tabulka1[[#This Row],[Export čr průměr 2010-2013]])/$T$227 -> 1.639259921e-05 | I29: =Tabulka1[[#This Row],[průměrný % podíl na světovém importu]]-Tabulka1[[#This Row],[průměrný % podíl na českém exportu]] ->  | J29: =Tabulka1[[#This Row],[průměrný % podíl na světovém importu]]/Tabulka1[[#This Row],[průměrný % podíl na českém exportu]] ->  | K29: =AVERAGEIF(Tabulka1[[#This Row],[GDP země 2010]:[GDP země 2013]],">0") ->  | L29: =VLOOKUP(B29,'A.4 GDP svět DivExp'!$B$2:$K$215,7,FALSE) -> .. | M29: =VLOOKUP(B29,'A.4 GDP svět DivExp'!$B$2:$K$215,8,FALSE) -> .. | N29: =VLOOKUP(B29,'A.4 GDP svět DivExp'!$B$2:$K$215,9,FALSE) -> .. | O29: =VLOOKUP(B29,'A.4 GDP svět DivExp'!$B$2:$K$215,10,FALSE) -> .. | P29: =VLOOKUP(Tabulka1[[#This Row],[iso code]],'A.4 Export ČR DivExp'!$A$2:$F$204,6,FALSE)*1000 -> 1469000 | Q29: =VLOOKUP(A29,'A.4 Export ČR DivExp'!$A$2:$E$204,5,FALSE)*1000 -> 1547000 | R29: =VLOOKUP(A29,'A.4 Export ČR DivExp'!$A$2:$E$204,4,FALSE)*1000 -> 3099000 | S29: =VLOOKUP(A29,'A.4 Export ČR DivExp'!$A$2:$E$204,3,FALSE)*1000 -> 3965000 | T29: =AVERAGEIF(Tabulka1[[#This Row],[Export čr 2010]:[Export čr 2013]],">0") -> 2520000 | U29: =VLOOKUP(Tabulka1[[#This Row],[iso code (1)]],'A.4 Import svět DivExp'!$B$2:$M$259,9,FALSE) ->  | V29: =VLOOKUP(Tabulka1[[#This Row],[iso code (1)]],'A.4 Import svět DivExp'!$B$2:$M$259,10,FALSE) ->  | W29: =VLOOKUP(Tabulka1[[#This Row],[iso code (1)]],'A.4 Import svět DivExp'!$B$2:$M$259,11,FALSE) ->  | X29: =VLOOKUP(Tabulka1[[#This Row],[iso code (1)]],'A.4 Import svět DivExp'!$B$2:$M$259,12,FALSE) -> 
A30: AI | B30: AIA | C30: Anguilla | D30: =(Tabulka1[[#This Row],[Export čr 2010]]+Tabulka1[[#This Row],[Export čr 2011]]+Tabulka1[[#This Row],[Export čr 2012]])/(Tabulka1[[#This Row],[Import země 2010]]+Tabulka1[[#This Row],[Import země 2011]]+Tabulka1[[#This Row],[Import země 2012]]) ->  | E30: =(Tabulka1[[#This Row],[Export čr 2010]]+Tabulka1[[#This Row],[Export čr 2011]]+Tabulka1[[#This Row],[Export čr 2012]]+Tabulka1[[#This Row],[Export čr 2013]])/(Tabulka1[[#This Row],[GDP země 2010]]+Tabulka1[[#This Row],[GDP země 2011]]+Tabulka1[[#This Row],[GDP země 2012]]+Tabulka1[[#This Row],[GDP země 2013]]) ->  | F30: =AVERAGEIF(Tabulka1[[#This Row],[Import země 2010]:[Import země 2013]],">0") ->  | G30: =Tabulka1[[#This Row],[Import země 2010 - 2013 průměr]]/$F$227 ->  | H30: =(Tabulka1[[#This Row],[Export čr průměr 2010-2013]])/$T$227 ->  | I30: =Tabulka1[[#This Row],[průměrný % podíl na světovém importu]]-Tabulka1[[#This Row],[průměrný % podíl na českém exportu]] ->  | J30: =Tabulka1[[#This Row],[průměrný % podíl na světovém importu]]/Tabulka1[[#This Row],[průměrný % podíl na českém exportu]] ->  | K30: =AVERAGEIF(Tabulka1[[#This Row],[GDP země 2010]:[GDP země 2013]],">0") ->  | L30: =VLOOKUP(B30,'A.4 GDP svět DivExp'!$B$2:$K$215,7,FALSE) ->  | M30: =VLOOKUP(B30,'A.4 GDP svět DivExp'!$B$2:$K$215,8,FALSE) ->  | N30: =VLOOKUP(B30,'A.4 GDP svět DivExp'!$B$2:$K$215,9,FALSE) ->  | O30: =VLOOKUP(B30,'A.4 GDP svět DivExp'!$B$2:$K$215,10,FALSE) ->  | P30: =VLOOKUP(Tabulka1[[#This Row],[iso code]],'A.4 Export ČR DivExp'!$A$2:$F$204,6,FALSE)*1000 ->  | Q30: =VLOOKUP(A30,'A.4 Export ČR DivExp'!$A$2:$E$204,5,FALSE)*1000 ->  | R30: =VLOOKUP(A30,'A.4 Export ČR DivExp'!$A$2:$E$204,4,FALSE)*1000 ->  | S30: =VLOOKUP(A30,'A.4 Export ČR DivExp'!$A$2:$E$204,3,FALSE)*1000 ->  | T30: =AVERAGEIF(Tabulka1[[#This Row],[Export čr 2010]:[Export čr 2013]],">0") ->  | U30: =VLOOKUP(Tabulka1[[#This Row],[iso code (1)]],'A.4 Import svět DivExp'!$B$2:$M$259,9,FALSE) ->  | V30: =VLOOKUP(Tabulka1[[#This Row],[iso code (1)]],'A.4 Import svět DivExp'!$B$2:$M$259,10,FALSE) ->  | W30: =VLOOKUP(Tabulka1[[#This Row],[iso code (1)]],'A.4 Import svět DivExp'!$B$2:$M$259,11,FALSE) ->  | X30: =VLOOKUP(Tabulka1[[#This Row],[iso code (1)]],'A.4 Import svět DivExp'!$B$2:$M$259,12,FALSE) -> 
A31: AQ | B31: ATA | C31: Antarctica | D31: =(Tabulka1[[#This Row],[Export čr 2010]]+Tabulka1[[#This Row],[Export čr 2011]]+Tabulka1[[#This Row],[Export čr 2012]])/(Tabulka1[[#This Row],[Import země 2010]]+Tabulka1[[#This Row],[Import země 2011]]+Tabulka1[[#This Row],[Import země 2012]]) ->  | E31: =(Tabulka1[[#This Row],[Export čr 2010]]+Tabulka1[[#This Row],[Export čr 2011]]+Tabulka1[[#This Row],[Export čr 2012]]+Tabulka1[[#This Row],[Export čr 2013]])/(Tabulka1[[#This Row],[GDP země 2010]]+Tabulka1[[#This Row],[GDP země 2011]]+Tabulka1[[#This Row],[GDP země 2012]]+Tabulka1[[#This Row],[GDP země 2013]]) ->  | F31: =AVERAGEIF(Tabulka1[[#This Row],[Import země 2010]:[Import země 2013]],">0") ->  | G31: =Tabulka1[[#This Row],[Import země 2010 - 2013 průměr]]/$F$227 ->  | H31: =(Tabulka1[[#This Row],[Export čr průměr 2010-2013]])/$T$227 ->  | I31: =Tabulka1[[#This Row],[průměrný % podíl na světovém importu]]-Tabulka1[[#This Row],[průměrný % podíl na českém exportu]] ->  | J31: =Tabulka1[[#This Row],[průměrný % podíl na světovém importu]]/Tabulka1[[#This Row],[průměrný % podíl na českém exportu]] ->  | K31: =AVERAGEIF(Tabulka1[[#This Row],[GDP země 2010]:[GDP země 2013]],">0") ->  | L31: =VLOOKUP(B31,'A.4 GDP svět DivExp'!$B$2:$K$215,7,FALSE) ->  | M31: =VLOOKUP(B31,'A.4 GDP svět DivExp'!$B$2:$K$215,8,FALSE) ->  | N31: =VLOOKUP(B31,'A.4 GDP svět DivExp'!$B$2:$K$215,9,FALSE) ->  | O31: =VLOOKUP(B31,'A.4 GDP svět DivExp'!$B$2:$K$215,10,FALSE) ->  | P31: =VLOOKUP(Tabulka1[[#This Row],[iso code]],'A.4 Export ČR DivExp'!$A$2:$F$204,6,FALSE)*1000 ->  | Q31: =VLOOKUP(A31,'A.4 Export ČR DivExp'!$A$2:$E$204,5,FALSE)*1000 ->  | R31: =VLOOKUP(A31,'A.4 Export ČR DivExp'!$A$2:$E$204,4,FALSE)*1000 ->  | S31: =VLOOKUP(A31,'A.4 Export ČR DivExp'!$A$2:$E$204,3,FALSE)*1000 ->  | T31: =AVERAGEIF(Tabulka1[[#This Row],[Export čr 2010]:[Export čr 2013]],">0") ->  | U31: =VLOOKUP(Tabulka1[[#This Row],[iso code (1)]],'A.4 Import svět DivExp'!$B$2:$M$259,9,FALSE) ->  | V31: =VLOOKUP(Tabulka1[[#This Row],[iso code (1)]],'A.4 Import svět DivExp'!$B$2:$M$259,10,FALSE) ->  | W31: =VLOOKUP(Tabulka1[[#This Row],[iso code (1)]],'A.4 Import svět DivExp'!$B$2:$M$259,11,FALSE) ->  | X31: =VLOOKUP(Tabulka1[[#This Row],[iso code (1)]],'A.4 Import svět DivExp'!$B$2:$M$259,12,FALSE) -> 
A32: VG | B32: VGB | C32: British Virgin Islands | D32: =(Tabulka1[[#This Row],[Export čr 2010]]+Tabulka1[[#This Row],[Export čr 2011]]+Tabulka1[[#This Row],[Export čr 2012]])/(Tabulka1[[#This Row],[Import země 2010]]+Tabulka1[[#This Row],[Import země 2011]]+Tabulka1[[#This Row],[Import země 2012]]) ->  | E32: =(Tabulka1[[#This Row],[Export čr 2010]]+Tabulka1[[#This Row],[Export čr 2011]]+Tabulka1[[#This Row],[Export čr 2012]]+Tabulka1[[#This Row],[Export čr 2013]])/(Tabulka1[[#This Row],[GDP země 2010]]+Tabulka1[[#This Row],[GDP země 2011]]+Tabulka1[[#This Row],[GDP země 2012]]+Tabulka1[[#This Row],[GDP země 2013]]) ->  | F32: =AVERAGEIF(Tabulka1[[#This Row],[Import země 2010]:[Import země 2013]],">0") ->  | G32: =Tabulka1[[#This Row],[Import země 2010 - 2013 průměr]]/$F$227 ->  | H32: =(Tabulka1[[#This Row],[Export čr průměr 2010-2013]])/$T$227 -> 5.577874607e-05 | I32: =Tabulka1[[#This Row],[průměrný % podíl na světovém importu]]-Tabulka1[[#This Row],[průměrný % podíl na českém exportu]] ->  | J32: =Tabulka1[[#This Row],[průměrný % podíl na světovém importu]]/Tabulka1[[#This Row],[průměrný % podíl na českém exportu]] ->  | K32: =AVERAGEIF(Tabulka1[[#This Row],[GDP země 2010]:[GDP země 2013]],">0") ->  | L32: =VLOOKUP(B32,'A.4 GDP svět DivExp'!$B$2:$K$215,7,FALSE) ->  | M32: =VLOOKUP(B32,'A.4 GDP svět DivExp'!$B$2:$K$215,8,FALSE) ->  | N32: =VLOOKUP(B32,'A.4 GDP svět DivExp'!$B$2:$K$215,9,FALSE) ->  | O32: =VLOOKUP(B32,'A.4 GDP svět DivExp'!$B$2:$K$215,10,FALSE) ->  | P32: =VLOOKUP(Tabulka1[[#This Row],[iso code]],'A.4 Export ČR DivExp'!$A$2:$F$204,6,FALSE)*1000 -> 7747000 | Q32: =VLOOKUP(A32,'A.4 Export ČR DivExp'!$A$2:$E$204,5,FALSE)*1000 -> 6973000 | R32: =VLOOKUP(A32,'A.4 Export ČR DivExp'!$A$2:$E$204,4,FALSE)*1000 -> 8373000 | S32: =VLOOKUP(A32,'A.4 Export ČR DivExp'!$A$2:$E$204,3,FALSE)*1000 -> 11206000 | T32: =AVERAGEIF(Tabulka1[[#This Row],[Export čr 2010]:[Export čr 2013]],">0") -> 8574750 | U32: =VLOOKUP(Tabulka1[[#This Row],[iso code (1)]],'A.4 Import svět DivExp'!$B$2:$M$259,9,FALSE) ->  | V32: =VLOOKUP(Tabulka1[[#This Row],[iso code (1)]],'A.4 Import svět DivExp'!$B$2:$M$259,10,FALSE) ->  | W32: =VLOOKUP(Tabulka1[[#This Row],[iso code (1)]],'A.4 Import svět DivExp'!$B$2:$M$259,11,FALSE) ->  | X32: =VLOOKUP(Tabulka1[[#This Row],[iso code (1)]],'A.4 Import svět DivExp'!$B$2:$M$259,12,FALSE) -> 
A33: KY | B33: CYM | C33: Cayman Islands | D33: =(Tabulka1[[#This Row],[Export čr 2010]]+Tabulka1[[#This Row],[Export čr 2011]]+Tabulka1[[#This Row],[Export čr 2012]])/(Tabulka1[[#This Row],[Import země 2010]]+Tabulka1[[#This Row],[Import země 2011]]+Tabulka1[[#This Row],[Import země 2012]]) ->  | E33: =(Tabulka1[[#This Row],[Export čr 2010]]+Tabulka1[[#This Row],[Export čr 2011]]+Tabulka1[[#This Row],[Export čr 2012]]+Tabulka1[[#This Row],[Export čr 2013]])/(Tabulka1[[#This Row],[GDP země 2010]]+Tabulka1[[#This Row],[GDP země 2011]]+Tabulka1[[#This Row],[GDP země 2012]]+Tabulka1[[#This Row],[GDP země 2013]]) ->  | F33: =AVERAGEIF(Tabulka1[[#This Row],[Import země 2010]:[Import země 2013]],">0") ->  | G33: =Tabulka1[[#This Row],[Import země 2010 - 2013 průměr]]/$F$227 ->  | H33: =(Tabulka1[[#This Row],[Export čr průměr 2010-2013]])/$T$227 -> 8.3263996e-07 | I33: =Tabulka1[[#This Row],[průměrný % podíl na světovém importu]]-Tabulka1[[#This Row],[průměrný % podíl na českém exportu]] ->  | J33: =Tabulka1[[#This Row],[průměrný % podíl na světovém importu]]/Tabulka1[[#This Row],[průměrný % podíl na českém exportu]] ->  | K33: =AVERAGEIF(Tabulka1[[#This Row],[GDP země 2010]:[GDP země 2013]],">0") ->  | L33: =VLOOKUP(B33,'A.4 GDP svět DivExp'!$B$2:$K$215,7,FALSE) -> .. | M33: =VLOOKUP(B33,'A.4 GDP svět DivExp'!$B$2:$K$215,8,FALSE) -> .. | N33: =VLOOKUP(B33,'A.4 GDP svět DivExp'!$B$2:$K$215,9,FALSE) -> .. | O33: =VLOOKUP(B33,'A.4 GDP svět DivExp'!$B$2:$K$215,10,FALSE) -> .. | P33: =VLOOKUP(Tabulka1[[#This Row],[iso code]],'A.4 Export ČR DivExp'!$A$2:$F$204,6,FALSE)*1000 -> 18000 | Q33: =VLOOKUP(A33,'A.4 Export ČR DivExp'!$A$2:$E$204,5,FALSE)*1000 -> 444000 | R33: =VLOOKUP(A33,'A.4 Export ČR DivExp'!$A$2:$E$204,4,FALSE)*1000 -> 37000 | S33: =VLOOKUP(A33,'A.4 Export ČR DivExp'!$A$2:$E$204,3,FALSE)*1000 -> 13000 | T33: =AVERAGEIF(Tabulka1[[#This Row],[Export čr 2010]:[Export čr 2013]],">0") -> 128000 | U33: =VLOOKUP(Tabulka1[[#This Row],[iso code (1)]],'A.4 Import svět DivExp'!$B$2:$M$259,9,FALSE) -> 0 | V33: =VLOOKUP(Tabulka1[[#This Row],[iso code (1)]],'A.4 Import svět DivExp'!$B$2:$M$259,10,FALSE) -> 0 | W33: =VLOOKUP(Tabulka1[[#This Row],[iso code (1)]],'A.4 Import svět DivExp'!$B$2:$M$259,11,FALSE) -> 0 | X33: =VLOOKUP(Tabulka1[[#This Row],[iso code (1)]],'A.4 Import svět DivExp'!$B$2:$M$259,12,FALSE) -> 0
A34: CK | B34: COK | C34: Cook Islands | D34: =(Tabulka1[[#This Row],[Export čr 2010]]+Tabulka1[[#This Row],[Export čr 2011]]+Tabulka1[[#This Row],[Export čr 2012]])/(Tabulka1[[#This Row],[Import země 2010]]+Tabulka1[[#This Row],[Import země 2011]]+Tabulka1[[#This Row],[Import země 2012]]) ->  | E34: =(Tabulka1[[#This Row],[Export čr 2010]]+Tabulka1[[#This Row],[Export čr 2011]]+Tabulka1[[#This Row],[Export čr 2012]]+Tabulka1[[#This Row],[Export čr 2013]])/(Tabulka1[[#This Row],[GDP země 2010]]+Tabulka1[[#This Row],[GDP země 2011]]+Tabulka1[[#This Row],[GDP země 2012]]+Tabulka1[[#This Row],[GDP země 2013]]) ->  | F34: =AVERAGEIF(Tabulka1[[#This Row],[Import země 2010]:[Import země 2013]],">0") ->  | G34: =Tabulka1[[#This Row],[Import země 2010 - 2013 průměr]]/$F$227 ->  | H34: =(Tabulka1[[#This Row],[Export čr průměr 2010-2013]])/$T$227 -> 8.781749578e-08 | I34: =Tabulka1[[#This Row],[průměrný % podíl na světovém importu]]-Tabulka1[[#This Row],[průměrný % podíl na českém exportu]] ->  | J34: =Tabulka1[[#This Row],[průměrný % podíl na světovém importu]]/Tabulka1[[#This Row],[průměrný % podíl na českém exportu]] ->  | K34: =AVERAGEIF(Tabulka1[[#This Row],[GDP země 2010]:[GDP země 2013]],">0") ->  | L34: =VLOOKUP(B34,'A.4 GDP svět DivExp'!$B$2:$K$215,7,FALSE) ->  | M34: =VLOOKUP(B34,'A.4 GDP svět DivExp'!$B$2:$K$215,8,FALSE) ->  | N34: =VLOOKUP(B34,'A.4 GDP svět DivExp'!$B$2:$K$215,9,FALSE) ->  | O34: =VLOOKUP(B34,'A.4 GDP svět DivExp'!$B$2:$K$215,10,FALSE) ->  | P34: =VLOOKUP(Tabulka1[[#This Row],[iso code]],'A.4 Export ČR DivExp'!$A$2:$F$204,6,FALSE)*1000 -> 8000 | Q34: =VLOOKUP(A34,'A.4 Export ČR DivExp'!$A$2:$E$204,5,FALSE)*1000 -> 2000 | R34: =VLOOKUP(A34,'A.4 Export ČR DivExp'!$A$2:$E$204,4,FALSE)*1000 -> 30000 | S34: =VLOOKUP(A34,'A.4 Export ČR DivExp'!$A$2:$E$204,3,FALSE)*1000 -> 14000 | T34: =AVERAGEIF(Tabulka1[[#This Row],[Export čr 2010]:[Export čr 2013]],">0") -> 13500 | U34: =VLOOKUP(Tabulka1[[#This Row],[iso code (1)]],'A.4 Import svět DivExp'!$B$2:$M$259,9,FALSE) ->  | V34: =VLOOKUP(Tabulka1[[#This Row],[iso code (1)]],'A.4 Import svět DivExp'!$B$2:$M$259,10,FALSE) ->  | W34: =VLOOKUP(Tabulka1[[#This Row],[iso code (1)]],'A.4 Import svět DivExp'!$B$2:$M$259,11,FALSE) ->  | X34: =VLOOKUP(Tabulka1[[#This Row],[iso code (1)]],'A.4 Import svět DivExp'!$B$2:$M$259,12,FALSE) -> 
A35: CW | B35: CUW | C35: Curacao | D35: =(Tabulka1[[#This Row],[Export čr 2010]]+Tabulka1[[#This Row],[Export čr 2011]]+Tabulka1[[#This Row],[Export čr 2012]])/(Tabulka1[[#This Row],[Import země 2010]]+Tabulka1[[#This Row],[Import země 2011]]+Tabulka1[[#This Row],[Import země 2012]]) ->  | E35: =(Tabulka1[[#This Row],[Export čr 2010]]+Tabulka1[[#This Row],[Export čr 2011]]+Tabulka1[[#This Row],[Export čr 2012]]+Tabulka1[[#This Row],[Export čr 2013]])/(Tabulka1[[#This Row],[GDP země 2010]]+Tabulka1[[#This Row],[GDP země 2011]]+Tabulka1[[#This Row],[GDP země 2012]]+Tabulka1[[#This Row],[GDP země 2013]]) ->  | F35: =AVERAGEIF(Tabulka1[[#This Row],[Import země 2010]:[Import země 2013]],">0") ->  | G35: =Tabulka1[[#This Row],[Import země 2010 - 2013 průměr]]/$F$227 ->  | H35: =(Tabulka1[[#This Row],[Export čr průměr 2010-2013]])/$T$227 ->  | I35: =Tabulka1[[#This Row],[průměrný % podíl na světovém importu]]-Tabulka1[[#This Row],[průměrný % podíl na českém exportu]] ->  | J35: =Tabulka1[[#This Row],[průměrný % podíl na světovém importu]]/Tabulka1[[#This Row],[průměrný % podíl na českém exportu]] ->  | K35: =AVERAGEIF(Tabulka1[[#This Row],[GDP země 2010]:[GDP země 2013]],">0") ->  | L35: =VLOOKUP(B35,'A.4 GDP svět DivExp'!$B$2:$K$215,7,FALSE) -> .. | M35: =VLOOKUP(B35,'A.4 GDP svět DivExp'!$B$2:$K$215,8,FALSE) -> .. | N35: =VLOOKUP(B35,'A.4 GDP svět DivExp'!$B$2:$K$215,9,FALSE) -> .. | O35: =VLOOKUP(B35,'A.4 GDP svět DivExp'!$B$2:$K$215,10,FALSE) -> .. | P35: =VLOOKUP(Tabulka1[[#This Row],[iso code]],'A.4 Export ČR DivExp'!$A$2:$F$204,6,FALSE)*1000 ->  | Q35: =VLOOKUP(A35,'A.4 Export ČR DivExp'!$A$2:$E$204,5,FALSE)*1000 ->  | R35: =VLOOKUP(A35,'A.4 Export ČR DivExp'!$A$2:$E$204,4,FALSE)*1000 ->  | S35: =VLOOKUP(A35,'A.4 Export ČR DivExp'!$A$2:$E$204,3,FALSE)*1000 ->  | T35: =AVERAGEIF(Tabulka1[[#This Row],[Export čr 2010]:[Export čr 2013]],">0") ->  | U35: =VLOOKUP(Tabulka1[[#This Row],[iso code (1)]],'A.4 Import svět DivExp'!$B$2:$M$259,9,FALSE) -> 0 | V35: =VLOOKUP(Tabulka1[[#This Row],[iso code (1)]],'A.4 Import svět DivExp'!$B$2:$M$259,10,FALSE) -> 0 | W35: =VLOOKUP(Tabulka1[[#This Row],[iso code (1)]],'A.4 Import svět DivExp'!$B$2:$M$259,11,FALSE) -> 0 | X35: =VLOOKUP(Tabulka1[[#This Row],[iso code (1)]],'A.4 Import svět DivExp'!$B$2:$M$259,12,FALSE) -> 0
A36: FK | B36: FLK | C36: Falkland Islands | D36: =(Tabulka1[[#This Row],[Export čr 2010]]+Tabulka1[[#This Row],[Export čr 2011]]+Tabulka1[[#This Row],[Export čr 2012]])/(Tabulka1[[#This Row],[Import země 2010]]+Tabulka1[[#This Row],[Import země 2011]]+Tabulka1[[#This Row],[Import země 2012]]) ->  | E36: =(Tabulka1[[#This Row],[Export čr 2010]]+Tabulka1[[#This Row],[Export čr 2011]]+Tabulka1[[#This Row],[Export čr 2012]]+Tabulka1[[#This Row],[Export čr 2013]])/(Tabulka1[[#This Row],[GDP země 2010]]+Tabulka1[[#This Row],[GDP země 2011]]+Tabulka1[[#This Row],[GDP země 2012]]+Tabulka1[[#This Row],[GDP země 2013]]) ->  | F36: =AVERAGEIF(Tabulka1[[#This Row],[Import země 2010]:[Import země 2013]],">0") ->  | G36: =Tabulka1[[#This Row],[Import země 2010 - 2013 průměr]]/$F$227 ->  | H36: =(Tabulka1[[#This Row],[Export čr průměr 2010-2013]])/$T$227 ->  | I36: =Tabulka1[[#This Row],[průměrný % podíl na světovém importu]]-Tabulka1[[#This Row],[průměrný % podíl na českém exportu]] ->  | J36: =Tabulka1[[#This Row],[průměrný % podíl na světovém importu]]/Tabulka1[[#This Row],[průměrný % podíl na českém exportu]] ->  | K36: =AVERAGEIF(Tabulka1[[#This Row],[GDP země 2010]:[GDP země 2013]],">0") ->  | L36: =VLOOKUP(B36,'A.4 GDP svět DivExp'!$B$2:$K$215,7,FALSE) ->  | M36: =VLOOKUP(B36,'A.4 GDP svět DivExp'!$B$2:$K$215,8,FALSE) ->  | N36: =VLOOKUP(B36,'A.4 GDP svět DivExp'!$B$2:$K$215,9,FALSE) ->  | O36: =VLOOKUP(B36,'A.4 GDP svět DivExp'!$B$2:$K$215,10,FALSE) ->  | P36: =VLOOKUP(Tabulka1[[#This Row],[iso code]],'A.4 Export ČR DivExp'!$A$2:$F$204,6,FALSE)*1000 ->  | Q36: =VLOOKUP(A36,'A.4 Export ČR DivExp'!$A$2:$E$204,5,FALSE)*1000 ->  | R36: =VLOOKUP(A36,'A.4 Export ČR DivExp'!$A$2:$E$204,4,FALSE)*1000 ->  | S36: =VLOOKUP(A36,'A.4 Export ČR DivExp'!$A$2:$E$204,3,FALSE)*1000 ->  | T36: =AVERAGEIF(Tabulka1[[#This Row],[Export čr 2010]:[Export čr 2013]],">0") ->  | U36: =VLOOKUP(Tabulka1[[#This Row],[iso code (1)]],'A.4 Import svět DivExp'!$B$2:$M$259,9,FALSE) ->  | V36: =VLOOKUP(Tabulka1[[#This Row],[iso code (1)]],'A.4 Import svět DivExp'!$B$2:$M$259,10,FALSE) ->  | W36: =VLOOKUP(Tabulka1[[#This Row],[iso code (1)]],'A.4 Import svět DivExp'!$B$2:$M$259,11,FALSE) ->  | X36: =VLOOKUP(Tabulka1[[#This Row],[iso code (1)]],'A.4 Import svět DivExp'!$B$2:$M$259,12,FALSE) -> 
A37: GI | B37: GIB | C37: Gibraltar | D37: =(Tabulka1[[#This Row],[Export čr 2010]]+Tabulka1[[#This Row],[Export čr 2011]]+Tabulka1[[#This Row],[Export čr 2012]])/(Tabulka1[[#This Row],[Import země 2010]]+Tabulka1[[#This Row],[Import země 2011]]+Tabulka1[[#This Row],[Import země 2012]]) ->  | E37: =(Tabulka1[[#This Row],[Export čr 2010]]+Tabulka1[[#This Row],[Export čr 2011]]+Tabulka1[[#This Row],[Export čr 2012]]+Tabulka1[[#This Row],[Export čr 2013]])/(Tabulka1[[#This Row],[GDP země 2010]]+Tabulka1[[#This Row],[GDP země 2011]]+Tabulka1[[#This Row],[GDP země 2012]]+Tabulka1[[#This Row],[GDP země 2013]]) ->  | F37: =AVERAGEIF(Tabulka1[[#This Row],[Import země 2010]:[Import země 2013]],">0") ->  | G37: =Tabulka1[[#This Row],[Import země 2010 - 2013 průměr]]/$F$227 ->  | H37: =(Tabulka1[[#This Row],[Export čr průměr 2010-2013]])/$T$227 -> 1.518917427e-06 | I37: =Tabulka1[[#This Row],[průměrný % podíl na světovém importu]]-Tabulka1[[#This Row],[průměrný % podíl na českém exportu]] ->  | J37: =Tabulka1[[#This Row],[průměrný % podíl na světovém importu]]/Tabulka1[[#This Row],[průměrný % podíl na českém exportu]] ->  | K37: =AVERAGEIF(Tabulka1[[#This Row],[GDP země 2010]:[GDP země 2013]],">0") ->  | L37: =VLOOKUP(B37,'A.4 GDP svět DivExp'!$B$2:$K$215,7,FALSE) ->  | M37: =VLOOKUP(B37,'A.4 GDP svět DivExp'!$B$2:$K$215,8,FALSE) ->  | N37: =VLOOKUP(B37,'A.4 GDP svět DivExp'!$B$2:$K$215,9,FALSE) ->  | O37: =VLOOKUP(B37,'A.4 GDP svět DivExp'!$B$2:$K$215,10,FALSE) ->  | P37: =VLOOKUP(Tabulka1[[#This Row],[iso code]],'A.4 Export ČR DivExp'!$A$2:$F$204,6,FALSE)*1000 -> 180000 | Q37: =VLOOKUP(A37,'A.4 Export ČR DivExp'!$A$2:$E$204,5,FALSE)*1000 -> 224000 | R37: =VLOOKUP(A37,'A.4 Export ČR DivExp'!$A$2:$E$204,4,FALSE)*1000 -> 207000 | S37: =VLOOKUP(A37,'A.4 Export ČR DivExp'!$A$2:$E$204,3,FALSE)*1000 -> 323000 | T37: =AVERAGEIF(Tabulka1[[#This Row],[Export čr 2010]:[Export čr 2013]],">0") -> 233500 | U37: =VLOOKUP(Tabulka1[[#This Row],[iso code (1)]],'A.4 Import svět DivExp'!$B$2:$M$259,9,FALSE) ->  | V37: =VLOOKUP(Tabulka1[[#This Row],[iso code (1)]],'A.4 Import svět DivExp'!$B$2:$M$259,10,FALSE) ->  | W37: =VLOOKUP(Tabulka1[[#This Row],[iso code (1)]],'A.4 Import svět DivExp'!$B$2:$M$259,11,FALSE) ->  | X37: =VLOOKUP(Tabulka1[[#This Row],[iso code (1)]],'A.4 Import svět DivExp'!$B$2:$M$259,12,FALSE) -> 
A38: GL | B38: GRL | C38: Greenland | D38: =(Tabulka1[[#This Row],[Export čr 2010]]+Tabulka1[[#This Row],[Export čr 2011]]+Tabulka1[[#This Row],[Export čr 2012]])/(Tabulka1[[#This Row],[Import země 2010]]+Tabulka1[[#This Row],[Import země 2011]]+Tabulka1[[#This Row],[Import země 2012]]) ->  | E38: =(Tabulka1[[#This Row],[Export čr 2010]]+Tabulka1[[#This Row],[Export čr 2011]]+Tabulka1[[#This Row],[Export čr 2012]]+Tabulka1[[#This Row],[Export čr 2013]])/(Tabulka1[[#This Row],[GDP země 2010]]+Tabulka1[[#This Row],[GDP země 2011]]+Tabulka1[[#This Row],[GDP země 2012]]+Tabulka1[[#This Row],[GDP země 2013]]) ->  | F38: =AVERAGEIF(Tabulka1[[#This Row],[Import země 2010]:[Import země 2013]],">0") ->  | G38: =Tabulka1[[#This Row],[Import země 2010 - 2013 průměr]]/$F$227 ->  | H38: =(Tabulka1[[#This Row],[Export čr průměr 2010-2013]])/$T$227 -> 5.42029099e-06 | I38: =Tabulka1[[#This Row],[průměrný % podíl na světovém importu]]-Tabulka1[[#This Row],[průměrný % podíl na českém exportu]] ->  | J38: =Tabulka1[[#This Row],[průměrný % podíl na světovém importu]]/Tabulka1[[#This Row],[průměrný % podíl na českém exportu]] ->  | K38: =AVERAGEIF(Tabulka1[[#This Row],[GDP země 2010]:[GDP země 2013]],">0") ->  | L38: =VLOOKUP(B38,'A.4 GDP svět DivExp'!$B$2:$K$215,7,FALSE) -> .. | M38: =VLOOKUP(B38,'A.4 GDP svět DivExp'!$B$2:$K$215,8,FALSE) -> .. | N38: =VLOOKUP(B38,'A.4 GDP svět DivExp'!$B$2:$K$215,9,FALSE) -> .. | O38: =VLOOKUP(B38,'A.4 GDP svět DivExp'!$B$2:$K$215,10,FALSE) -> .. | P38: =VLOOKUP(Tabulka1[[#This Row],[iso code]],'A.4 Export ČR DivExp'!$A$2:$F$204,6,FALSE)*1000 -> 1004000 | Q38: =VLOOKUP(A38,'A.4 Export ČR DivExp'!$A$2:$E$204,5,FALSE)*1000 -> 828000 | R38: =VLOOKUP(A38,'A.4 Export ČR DivExp'!$A$2:$E$204,4,FALSE)*1000 -> 769000 | S38: =VLOOKUP(A38,'A.4 Export ČR DivExp'!$A$2:$E$204,3,FALSE)*1000 -> 732000 | T38: =AVERAGEIF(Tabulka1[[#This Row],[Export čr 2010]:[Export čr 2013]],">0") -> 833250 | U38: =VLOOKUP(Tabulka1[[#This Row],[iso code (1)]],'A.4 Import svět DivExp'!$B$2:$M$259,9,FALSE) -> 0 | V38: =VLOOKUP(Tabulka1[[#This Row],[iso code (1)]],'A.4 Import svět DivExp'!$B$2:$M$259,10,FALSE) -> 0 | W38: =VLOOKUP(Tabulka1[[#This Row],[iso code (1)]],'A.4 Import svět DivExp'!$B$2:$M$259,11,FALSE) -> 0 | X38: =VLOOKUP(Tabulka1[[#This Row],[iso code (1)]],'A.4 Import svět DivExp'!$B$2:$M$259,12,FALSE) -> 0
A39: GP | B39: GLP | C39: Guadeloupe | D39: =(Tabulka1[[#This Row],[Export čr 2010]]+Tabulka1[[#This Row],[Export čr 2011]]+Tabulka1[[#This Row],[Export čr 2012]])/(Tabulka1[[#This Row],[Import země 2010]]+Tabulka1[[#This Row],[Import země 2011]]+Tabulka1[[#This Row],[Import země 2012]]) ->  | E39: =(Tabulka1[[#This Row],[Export čr 2010]]+Tabulka1[[#This Row],[Export čr 2011]]+Tabulka1[[#This Row],[Export čr 2012]]+Tabulka1[[#This Row],[Export čr 2013]])/(Tabulka1[[#This Row],[GDP země 2010]]+Tabulka1[[#This Row],[GDP země 2011]]+Tabulka1[[#This Row],[GDP země 2012]]+Tabulka1[[#This Row],[GDP země 2013]]) ->  | F39: =AVERAGEIF(Tabulka1[[#This Row],[Import země 2010]:[Import země 2013]],">0") ->  | G39: =Tabulka1[[#This Row],[Import země 2010 - 2013 průměr]]/$F$227 ->  | H39: =(Tabulka1[[#This Row],[Export čr průměr 2010-2013]])/$T$227 ->  | I39: =Tabulka1[[#This Row],[průměrný % podíl na světovém importu]]-Tabulka1[[#This Row],[průměrný % podíl na českém exportu]] ->  | J39: =Tabulka1[[#This Row],[průměrný % podíl na světovém importu]]/Tabulka1[[#This Row],[průměrný % podíl na českém exportu]] ->  | K39: =AVERAGEIF(Tabulka1[[#This Row],[GDP země 2010]:[GDP země 2013]],">0") ->  | L39: =VLOOKUP(B39,'A.4 GDP svět DivExp'!$B$2:$K$215,7,FALSE) ->  | M39: =VLOOKUP(B39,'A.4 GDP svět DivExp'!$B$2:$K$215,8,FALSE) ->  | N39: =VLOOKUP(B39,'A.4 GDP svět DivExp'!$B$2:$K$215,9,FALSE) ->  | O39: =VLOOKUP(B39,'A.4 GDP svět DivExp'!$B$2:$K$215,10,FALSE) ->  | P39: =VLOOKUP(Tabulka1[[#This Row],[iso code]],'A.4 Export ČR DivExp'!$A$2:$F$204,6,FALSE)*1000 ->  | Q39: =VLOOKUP(A39,'A.4 Export ČR DivExp'!$A$2:$E$204,5,FALSE)*1000 ->  | R39: =VLOOKUP(A39,'A.4 Export ČR DivExp'!$A$2:$E$204,4,FALSE)*1000 ->  | S39: =VLOOKUP(A39,'A.4 Export ČR DivExp'!$A$2:$E$204,3,FALSE)*1000 ->  | T39: =AVERAGEIF(Tabulka1[[#This Row],[Export čr 2010]:[Export čr 2013]],">0") ->  | U39: =VLOOKUP(Tabulka1[[#This Row],[iso code (1)]],'A.4 Import svět DivExp'!$B$2:$M$259,9,FALSE) ->  | V39: =VLOOKUP(Tabulka1[[#This Row],[iso code (1)]],'A.4 Import svět DivExp'!$B$2:$M$259,10,FALSE) ->  | W39: =VLOOKUP(Tabulka1[[#This Row],[iso code (1)]],'A.4 Import svět DivExp'!$B$2:$M$259,11,FALSE) ->  | X39: =VLOOKUP(Tabulka1[[#This Row],[iso code (1)]],'A.4 Import svět DivExp'!$B$2:$M$259,12,FALSE) -> 
A40: GU | B40: GUM | C40: Guam | D40: =(Tabulka1[[#This Row],[Export čr 2010]]+Tabulka1[[#This Row],[Export čr 2011]]+Tabulka1[[#This Row],[Export čr 2012]])/(Tabulka1[[#This Row],[Import země 2010]]+Tabulka1[[#This Row],[Import země 2011]]+Tabulka1[[#This Row],[Import země 2012]]) ->  | E40: =(Tabulka1[[#This Row],[Export čr 2010]]+Tabulka1[[#This Row],[Export čr 2011]]+Tabulka1[[#This Row],[Export čr 2012]]+Tabulka1[[#This Row],[Export čr 2013]])/(Tabulka1[[#This Row],[GDP země 2010]]+Tabulka1[[#This Row],[GDP země 2011]]+Tabulka1[[#This Row],[GDP země 2012]]+Tabulka1[[#This Row],[GDP země 2013]]) ->  | F40: =AVERAGEIF(Tabulka1[[#This Row],[Import země 2010]:[Import země 2013]],">0") ->  | G40: =Tabulka1[[#This Row],[Import země 2010 - 2013 průměr]]/$F$227 ->  | H40: =(Tabulka1[[#This Row],[Export čr průměr 2010-2013]])/$T$227 -> 2.623683207e-07 | I40: =Tabulka1[[#This Row],[průměrný % podíl na světovém importu]]-Tabulka1[[#This Row],[průměrný % podíl na českém exportu]] ->  | J40: =Tabulka1[[#This Row],[průměrný % podíl na světovém importu]]/Tabulka1[[#This Row],[průměrný % podíl na českém exportu]] ->  | K40: =AVERAGEIF(Tabulka1[[#This Row],[GDP země 2010]:[GDP země 2013]],">0") ->  | L40: =VLOOKUP(B40,'A.4 GDP svět DivExp'!$B$2:$K$215,7,FALSE) -> .. | M40: =VLOOKUP(B40,'A.4 GDP svět DivExp'!$B$2:$K$215,8,FALSE) -> .. | N40: =VLOOKUP(B40,'A.4 GDP svět DivExp'!$B$2:$K$215,9,FALSE) -> .. | O40: =VLOOKUP(B40,'A.4 GDP svět DivExp'!$B$2:$K$215,10,FALSE) -> .. | P40: =VLOOKUP(Tabulka1[[#This Row],[iso code]],'A.4 Export ČR DivExp'!$A$2:$F$204,6,FALSE)*1000 ->  | Q40: =VLOOKUP(A40,'A.4 Export ČR DivExp'!$A$2:$E$204,5,FALSE)*1000 -> 1000 | R40: =VLOOKUP(A40,'A.4 Export ČR DivExp'!$A$2:$E$204,4,FALSE)*1000 -> 98000 | S40: =VLOOKUP(A40,'A.4 Export ČR DivExp'!$A$2:$E$204,3,FALSE)*1000 -> 22000 | T40: =AVERAGEIF(Tabulka1[[#This Row],[Export čr 2010]:[Export čr 2013]],">0") -> 40333.33333 | U40: =VLOOKUP(Tabulka1[[#This Row],[iso code (1)]],'A.4 Import svět DivExp'!$B$2:$M$259,9,FALSE) -> 0 | V40: =VLOOKUP(Tabulka1[[#This Row],[iso code (1)]],'A.4 Import svět DivExp'!$B$2:$M$259,10,FALSE) -> 0 | W40: =VLOOKUP(Tabulka1[[#This Row],[iso code (1)]],'A.4 Import svět DivExp'!$B$2:$M$259,11,FALSE) -> 0 | X40: =VLOOKUP(Tabulka1[[#This Row],[iso code (1)]],'A.4 Import svět DivExp'!$B$2:$M$259,12,FALSE) -> 0
A41: IM | B41: IMN | C41: Isle of Man | D41: =(Tabulka1[[#This Row],[Export čr 2010]]+Tabulka1[[#This Row],[Export čr 2011]]+Tabulka1[[#This Row],[Export čr 2012]])/(Tabulka1[[#This Row],[Import země 2010]]+Tabulka1[[#This Row],[Import země 2011]]+Tabulka1[[#This Row],[Import země 2012]]) ->  | E41: =(Tabulka1[[#This Row],[Export čr 2010]]+Tabulka1[[#This Row],[Export čr 2011]]+Tabulka1[[#This Row],[Export čr 2012]]+Tabulka1[[#This Row],[Export čr 2013]])/(Tabulka1[[#This Row],[GDP země 2010]]+Tabulka1[[#This Row],[GDP země 2011]]+Tabulka1[[#This Row],[GDP země 2012]]+Tabulka1[[#This Row],[GDP země 2013]]) ->  | F41: =AVERAGEIF(Tabulka1[[#This Row],[Import země 2010]:[Import země 2013]],">0") ->  | G41: =Tabulka1[[#This Row],[Import země 2010 - 2013 průměr]]/$F$227 ->  | H41: =(Tabulka1[[#This Row],[Export čr průměr 2010-2013]])/$T$227 ->  | I41: =Tabulka1[[#This Row],[průměrný % podíl na světovém importu]]-Tabulka1[[#This Row],[průměrný % podíl na českém exportu]] ->  | J41: =Tabulka1[[#This Row],[průměrný % podíl na světovém importu]]/Tabulka1[[#This Row],[průměrný % podíl na českém exportu]] ->  | K41: =AVERAGEIF(Tabulka1[[#This Row],[GDP země 2010]:[GDP země 2013]],">0") ->  | L41: =VLOOKUP(B41,'A.4 GDP svět DivExp'!$B$2:$K$215,7,FALSE) ->  | M41: =VLOOKUP(B41,'A.4 GDP svět DivExp'!$B$2:$K$215,8,FALSE) ->  | N41: =VLOOKUP(B41,'A.4 GDP svět DivExp'!$B$2:$K$215,9,FALSE) ->  | O41: =VLOOKUP(B41,'A.4 GDP svět DivExp'!$B$2:$K$215,10,FALSE) ->  | P41: =VLOOKUP(Tabulka1[[#This Row],[iso code]],'A.4 Export ČR DivExp'!$A$2:$F$204,6,FALSE)*1000 ->  | Q41: =VLOOKUP(A41,'A.4 Export ČR DivExp'!$A$2:$E$204,5,FALSE)*1000 ->  | R41: =VLOOKUP(A41,'A.4 Export ČR DivExp'!$A$2:$E$204,4,FALSE)*1000 ->  | S41: =VLOOKUP(A41,'A.4 Export ČR DivExp'!$A$2:$E$204,3,FALSE)*1000 ->  | T41: =AVERAGEIF(Tabulka1[[#This Row],[Export čr 2010]:[Export čr 2013]],">0") ->  | U41: =VLOOKUP(Tabulka1[[#This Row],[iso code (1)]],'A.4 Import svět DivExp'!$B$2:$M$259,9,FALSE) -> 0 | V41: =VLOOKUP(Tabulka1[[#This Row],[iso code (1)]],'A.4 Import svět DivExp'!$B$2:$M$259,10,FALSE) -> 0 | W41: =VLOOKUP(Tabulka1[[#This Row],[iso code (1)]],'A.4 Import svět DivExp'!$B$2:$M$259,11,FALSE) -> 0 | X41: =VLOOKUP(Tabulka1[[#This Row],[iso code (1)]],'A.4 Import svět DivExp'!$B$2:$M$259,12,FALSE) -> 0
A42: LI | B42: LIE | C42: Liechtenstein | D42: =(Tabulka1[[#This Row],[Export čr 2010]]+Tabulka1[[#This Row],[Export čr 2011]]+Tabulka1[[#This Row],[Export čr 2012]])/(Tabulka1[[#This Row],[Import země 2010]]+Tabulka1[[#This Row],[Import země 2011]]+Tabulka1[[#This Row],[Import země 2012]]) ->  | E42: =(Tabulka1[[#This Row],[Export čr 2010]]+Tabulka1[[#This Row],[Export čr 2011]]+Tabulka1[[#This Row],[Export čr 2012]]+Tabulka1[[#This Row],[Export čr 2013]])/(Tabulka1[[#This Row],[GDP země 2010]]+Tabulka1[[#This Row],[GDP země 2011]]+Tabulka1[[#This Row],[GDP země 2012]]+Tabulka1[[#This Row],[GDP země 2013]]) ->  | F42: =AVERAGEIF(Tabulka1[[#This Row],[Import země 2010]:[Import země 2013]],">0") ->  | G42: =Tabulka1[[#This Row],[Import země 2010 - 2013 průměr]]/$F$227 ->  | H42: =(Tabulka1[[#This Row],[Export čr průměr 2010-2013]])/$T$227 -> 8.064248113e-05 | I42: =Tabulka1[[#This Row],[průměrný % podíl na světovém importu]]-Tabulka1[[#This Row],[průměrný % podíl na českém exportu]] ->  | J42: =Tabulka1[[#This Row],[průměrný % podíl na světovém importu]]/Tabulka1[[#This Row],[průměrný % podíl na českém exportu]] ->  | K42: =AVERAGEIF(Tabulka1[[#This Row],[GDP země 2010]:[GDP země 2013]],">0") ->  | L42: =VLOOKUP(B42,'A.4 GDP svět DivExp'!$B$2:$K$215,7,FALSE) -> .. | M42: =VLOOKUP(B42,'A.4 GDP svět DivExp'!$B$2:$K$215,8,FALSE) -> .. | N42: =VLOOKUP(B42,'A.4 GDP svět DivExp'!$B$2:$K$215,9,FALSE) -> .. | O42: =VLOOKUP(B42,'A.4 GDP svět DivExp'!$B$2:$K$215,10,FALSE) -> .. | P42: =VLOOKUP(Tabulka1[[#This Row],[iso code]],'A.4 Export ČR DivExp'!$A$2:$F$204,6,FALSE)*1000 -> 11133000 | Q42: =VLOOKUP(A42,'A.4 Export ČR DivExp'!$A$2:$E$204,5,FALSE)*1000 -> 12001000 | R42: =VLOOKUP(A42,'A.4 Export ČR DivExp'!$A$2:$E$204,4,FALSE)*1000 -> 13805000 | S42: =VLOOKUP(A42,'A.4 Export ČR DivExp'!$A$2:$E$204,3,FALSE)*1000 -> 12649000 | T42: =AVERAGEIF(Tabulka1[[#This Row],[Export čr 2010]:[Export čr 2013]],">0") -> 12397000 | U42: =VLOOKUP(Tabulka1[[#This Row],[iso code (1)]],'A.4 Import svět DivExp'!$B$2:$M$259,9,FALSE) -> 0 | V42: =VLOOKUP(Tabulka1[[#This Row],[iso code (1)]],'A.4 Import svět DivExp'!$B$2:$M$259,10,FALSE) -> 0 | W42: =VLOOKUP(Tabulka1[[#This Row],[iso code (1)]],'A.4 Import svět DivExp'!$B$2:$M$259,11,FALSE) -> 0 | X42: =VLOOKUP(Tabulka1[[#This Row],[iso code (1)]],'A.4 Import svět DivExp'!$B$2:$M$259,12,FALSE) -> 0
A43: MS | B43: MSR | C43: Montserrat | D43: =(Tabulka1[[#This Row],[Export čr 2010]]+Tabulka1[[#This Row],[Export čr 2011]]+Tabulka1[[#This Row],[Export čr 2012]])/(Tabulka1[[#This Row],[Import země 2010]]+Tabulka1[[#This Row],[Import země 2011]]+Tabulka1[[#This Row],[Import země 2012]]) ->  | E43: =(Tabulka1[[#This Row],[Export čr 2010]]+Tabulka1[[#This Row],[Export čr 2011]]+Tabulka1[[#This Row],[Export čr 2012]]+Tabulka1[[#This Row],[Export čr 2013]])/(Tabulka1[[#This Row],[GDP země 2010]]+Tabulka1[[#This Row],[GDP země 2011]]+Tabulka1[[#This Row],[GDP země 2012]]+Tabulka1[[#This Row],[GDP země 2013]]) ->  | F43: =AVERAGEIF(Tabulka1[[#This Row],[Import země 2010]:[Import země 2013]],">0") ->  | G43: =Tabulka1[[#This Row],[Import země 2010 - 2013 průměr]]/$F$227 ->  | H43: =(Tabulka1[[#This Row],[Export čr průměr 2010-2013]])/$T$227 ->  | I43: =Tabulka1[[#This Row],[průměrný % podíl na světovém importu]]-Tabulka1[[#This Row],[průměrný % podíl na českém exportu]] ->  | J43: =Tabulka1[[#This Row],[průměrný % podíl na světovém importu]]/Tabulka1[[#This Row],[průměrný % podíl na českém exportu]] ->  | K43: =AVERAGEIF(Tabulka1[[#This Row],[GDP země 2010]:[GDP země 2013]],">0") ->  | L43: =VLOOKUP(B43,'A.4 GDP svět DivExp'!$B$2:$K$215,7,FALSE) ->  | M43: =VLOOKUP(B43,'A.4 GDP svět DivExp'!$B$2:$K$215,8,FALSE) ->  | N43: =VLOOKUP(B43,'A.4 GDP svět DivExp'!$B$2:$K$215,9,FALSE) ->  | O43: =VLOOKUP(B43,'A.4 GDP svět DivExp'!$B$2:$K$215,10,FALSE) ->  | P43: =VLOOKUP(Tabulka1[[#This Row],[iso code]],'A.4 Export ČR DivExp'!$A$2:$F$204,6,FALSE)*1000 ->  | Q43: =VLOOKUP(A43,'A.4 Export ČR DivExp'!$A$2:$E$204,5,FALSE)*1000 ->  | R43: =VLOOKUP(A43,'A.4 Export ČR DivExp'!$A$2:$E$204,4,FALSE)*1000 ->  | S43: =VLOOKUP(A43,'A.4 Export ČR DivExp'!$A$2:$E$204,3,FALSE)*1000 ->  | T43: =AVERAGEIF(Tabulka1[[#This Row],[Export čr 2010]:[Export čr 2013]],">0") ->  | U43: =VLOOKUP(Tabulka1[[#This Row],[iso code (1)]],'A.4 Import svět DivExp'!$B$2:$M$259,9,FALSE) ->  | V43: =VLOOKUP(Tabulka1[[#This Row],[iso code (1)]],'A.4 Import svět DivExp'!$B$2:$M$259,10,FALSE) ->  | W43: =VLOOKUP(Tabulka1[[#This Row],[iso code (1)]],'A.4 Import svět DivExp'!$B$2:$M$259,11,FALSE) ->  | X43: =VLOOKUP(Tabulka1[[#This Row],[iso code (1)]],'A.4 Import svět DivExp'!$B$2:$M$259,12,FALSE) -> 
A44: NR | B44: NRU | C44: Nauru | D44: =(Tabulka1[[#This Row],[Export čr 2010]]+Tabulka1[[#This Row],[Export čr 2011]]+Tabulka1[[#This Row],[Export čr 2012]])/(Tabulka1[[#This Row],[Import země 2010]]+Tabulka1[[#This Row],[Import země 2011]]+Tabulka1[[#This Row],[Import země 2012]]) ->  | E44: =(Tabulka1[[#This Row],[Export čr 2010]]+Tabulka1[[#This Row],[Export čr 2011]]+Tabulka1[[#This Row],[Export čr 2012]]+Tabulka1[[#This Row],[Export čr 2013]])/(Tabulka1[[#This Row],[GDP země 2010]]+Tabulka1[[#This Row],[GDP země 2011]]+Tabulka1[[#This Row],[GDP země 2012]]+Tabulka1[[#This Row],[GDP země 2013]]) ->  | F44: =AVERAGEIF(Tabulka1[[#This Row],[Import země 2010]:[Import země 2013]],">0") ->  | G44: =Tabulka1[[#This Row],[Import země 2010 - 2013 průměr]]/$F$227 ->  | H44: =(Tabulka1[[#This Row],[Export čr průměr 2010-2013]])/$T$227 ->  | I44: =Tabulka1[[#This Row],[průměrný % podíl na světovém importu]]-Tabulka1[[#This Row],[průměrný % podíl na českém exportu]] ->  | J44: =Tabulka1[[#This Row],[průměrný % podíl na světovém importu]]/Tabulka1[[#This Row],[průměrný % podíl na českém exportu]] ->  | K44: =AVERAGEIF(Tabulka1[[#This Row],[GDP země 2010]:[GDP země 2013]],">0") ->  | L44: =VLOOKUP(B44,'A.4 GDP svět DivExp'!$B$2:$K$215,7,FALSE) ->  | M44: =VLOOKUP(B44,'A.4 GDP svět DivExp'!$B$2:$K$215,8,FALSE) ->  | N44: =VLOOKUP(B44,'A.4 GDP svět DivExp'!$B$2:$K$215,9,FALSE) ->  | O44: =VLOOKUP(B44,'A.4 GDP svět DivExp'!$B$2:$K$215,10,FALSE) ->  | P44: =VLOOKUP(Tabulka1[[#This Row],[iso code]],'A.4 Export ČR DivExp'!$A$2:$F$204,6,FALSE)*1000 ->  | Q44: =VLOOKUP(A44,'A.4 Export ČR DivExp'!$A$2:$E$204,5,FALSE)*1000 ->  | R44: =VLOOKUP(A44,'A.4 Export ČR DivExp'!$A$2:$E$204,4,FALSE)*1000 ->  | S44: =VLOOKUP(A44,'A.4 Export ČR DivExp'!$A$2:$E$204,3,FALSE)*1000 ->  | T44: =AVERAGEIF(Tabulka1[[#This Row],[Export čr 2010]:[Export čr 2013]],">0") ->  | U44: =VLOOKUP(Tabulka1[[#This Row],[iso code (1)]],'A.4 Import svět DivExp'!$B$2:$M$259,9,FALSE) ->  | V44: =VLOOKUP(Tabulka1[[#This Row],[iso code (1)]],'A.4 Import svět DivExp'!$B$2:$M$259,10,FALSE) ->  | W44: =VLOOKUP(Tabulka1[[#This Row],[iso code (1)]],'A.4 Import svět DivExp'!$B$2:$M$259,11,FALSE) ->  | X44: =VLOOKUP(Tabulka1[[#This Row],[iso code (1)]],'A.4 Import svět DivExp'!$B$2:$M$259,12,FALSE) -> 
A45: NU | B45: NIU | C45: Niue | D45: =(Tabulka1[[#This Row],[Export čr 2010]]+Tabulka1[[#This Row],[Export čr 2011]]+Tabulka1[[#This Row],[Export čr 2012]])/(Tabulka1[[#This Row],[Import země 2010]]+Tabulka1[[#This Row],[Import země 2011]]+Tabulka1[[#This Row],[Import země 2012]]) ->  | E45: =(Tabulka1[[#This Row],[Export čr 2010]]+Tabulka1[[#This Row],[Export čr 2011]]+Tabulka1[[#This Row],[Export čr 2012]]+Tabulka1[[#This Row],[Export čr 2013]])/(Tabulka1[[#This Row],[GDP země 2010]]+Tabulka1[[#This Row],[GDP země 2011]]+Tabulka1[[#This Row],[GDP země 2012]]+Tabulka1[[#This Row],[GDP země 2013]]) ->  | F45: =AVERAGEIF(Tabulka1[[#This Row],[Import země 2010]:[Import země 2013]],">0") ->  | G45: =Tabulka1[[#This Row],[Import země 2010 - 2013 průměr]]/$F$227 ->  | H45: =(Tabulka1[[#This Row],[Export čr průměr 2010-2013]])/$T$227 ->  | I45: =Tabulka1[[#This Row],[průměrný % podíl na světovém importu]]-Tabulka1[[#This Row],[průměrný % podíl na českém exportu]] ->  | J45: =Tabulka1[[#This Row],[průměrný % podíl na světovém importu]]/Tabulka1[[#This Row],[průměrný % podíl na českém exportu]] ->  | K45: =AVERAGEIF(Tabulka1[[#This Row],[GDP země 2010]:[GDP země 2013]],">0") ->  | L45: =VLOOKUP(B45,'A.4 GDP svět DivExp'!$B$2:$K$215,7,FALSE) ->  | M45: =VLOOKUP(B45,'A.4 GDP svět DivExp'!$B$2:$K$215,8,FALSE) ->  | N45: =VLOOKUP(B45,'A.4 GDP svět DivExp'!$B$2:$K$215,9,FALSE) ->  | O45: =VLOOKUP(B45,'A.4 GDP svět DivExp'!$B$2:$K$215,10,FALSE) ->  | P45: =VLOOKUP(Tabulka1[[#This Row],[iso code]],'A.4 Export ČR DivExp'!$A$2:$F$204,6,FALSE)*1000 ->  | Q45: =VLOOKUP(A45,'A.4 Export ČR DivExp'!$A$2:$E$204,5,FALSE)*1000 ->  | R45: =VLOOKUP(A45,'A.4 Export ČR DivExp'!$A$2:$E$204,4,FALSE)*1000 ->  | S45: =VLOOKUP(A45,'A.4 Export ČR DivExp'!$A$2:$E$204,3,FALSE)*1000 ->  | T45: =AVERAGEIF(Tabulka1[[#This Row],[Export čr 2010]:[Export čr 2013]],">0") ->  | U45: =VLOOKUP(Tabulka1[[#This Row],[iso code (1)]],'A.4 Import svět DivExp'!$B$2:$M$259,9,FALSE) ->  | V45: =VLOOKUP(Tabulka1[[#This Row],[iso code (1)]],'A.4 Import svět DivExp'!$B$2:$M$259,10,FALSE) ->  | W45: =VLOOKUP(Tabulka1[[#This Row],[iso code (1)]],'A.4 Import svět DivExp'!$B$2:$M$259,11,FALSE) ->  | X45: =VLOOKUP(Tabulka1[[#This Row],[iso code (1)]],'A.4 Import svět DivExp'!$B$2:$M$259,12,FALSE) -> 
A46: NF | B46: NFK | C46: Norfolk Island | D46: =(Tabulka1[[#This Row],[Export čr 2010]]+Tabulka1[[#This Row],[Export čr 2011]]+Tabulka1[[#This Row],[Export čr 2012]])/(Tabulka1[[#This Row],[Import země 2010]]+Tabulka1[[#This Row],[Import země 2011]]+Tabulka1[[#This Row],[Import země 2012]]) ->  | E46: =(Tabulka1[[#This Row],[Export čr 2010]]+Tabulka1[[#This Row],[Export čr 2011]]+Tabulka1[[#This Row],[Export čr 2012]]+Tabulka1[[#This Row],[Export čr 2013]])/(Tabulka1[[#This Row],[GDP země 2010]]+Tabulka1[[#This Row],[GDP země 2011]]+Tabulka1[[#This Row],[GDP země 2012]]+Tabulka1[[#This Row],[GDP země 2013]]) ->  | F46: =AVERAGEIF(Tabulka1[[#This Row],[Import země 2010]:[Import země 2013]],">0") ->  | G46: =Tabulka1[[#This Row],[Import země 2010 - 2013 průměr]]/$F$227 ->  | H46: =(Tabulka1[[#This Row],[Export čr průměr 2010-2013]])/$T$227 ->  | I46: =Tabulka1[[#This Row],[průměrný % podíl na světovém importu]]-Tabulka1[[#This Row],[průměrný % podíl na českém exportu]] ->  | J46: =Tabulka1[[#This Row],[průměrný % podíl na světovém importu]]/Tabulka1[[#This Row],[průměrný % podíl na českém exportu]] ->  | K46: =AVERAGEIF(Tabulka1[[#This Row],[GDP země 2010]:[GDP země 2013]],">0") ->  | L46: =VLOOKUP(B46,'A.4 GDP svět DivExp'!$B$2:$K$215,7,FALSE) ->  | M46: =VLOOKUP(B46,'A.4 GDP svět DivExp'!$B$2:$K$215,8,FALSE) ->  | N46: =VLOOKUP(B46,'A.4 GDP svět DivExp'!$B$2:$K$215,9,FALSE) ->  | O46: =VLOOKUP(B46,'A.4 GDP svět DivExp'!$B$2:$K$215,10,FALSE) ->  | P46: =VLOOKUP(Tabulka1[[#This Row],[iso code]],'A.4 Export ČR DivExp'!$A$2:$F$204,6,FALSE)*1000 ->  | Q46: =VLOOKUP(A46,'A.4 Export ČR DivExp'!$A$2:$E$204,5,FALSE)*1000 ->  | R46: =VLOOKUP(A46,'A.4 Export ČR DivExp'!$A$2:$E$204,4,FALSE)*1000 ->  | S46: =VLOOKUP(A46,'A.4 Export ČR DivExp'!$A$2:$E$204,3,FALSE)*1000 ->  | T46: =AVERAGEIF(Tabulka1[[#This Row],[Export čr 2010]:[Export čr 2013]],">0") ->  | U46: =VLOOKUP(Tabulka1[[#This Row],[iso code (1)]],'A.4 Import svět DivExp'!$B$2:$M$259,9,FALSE) ->  | V46: =VLOOKUP(Tabulka1[[#This Row],[iso code (1)]],'A.4 Import svět DivExp'!$B$2:$M$259,10,FALSE) ->  | W46: =VLOOKUP(Tabulka1[[#This Row],[iso code (1)]],'A.4 Import svět DivExp'!$B$2:$M$259,11,FALSE) ->  | X46: =VLOOKUP(Tabulka1[[#This Row],[iso code (1)]],'A.4 Import svět DivExp'!$B$2:$M$259,12,FALSE) -> 
A47: KP | B47: PRK | C47: North Korea | D47: =(Tabulka1[[#This Row],[Export čr 2010]]+Tabulka1[[#This Row],[Export čr 2011]]+Tabulka1[[#This Row],[Export čr 2012]])/(Tabulka1[[#This Row],[Import země 2010]]+Tabulka1[[#This Row],[Import země 2011]]+Tabulka1[[#This Row],[Import země 2012]]) ->  | E47: =(Tabulka1[[#This Row],[Export čr 2010]]+Tabulka1[[#This Row],[Export čr 2011]]+Tabulka1[[#This Row],[Export čr 2012]]+Tabulka1[[#This Row],[Export čr 2013]])/(Tabulka1[[#This Row],[GDP země 2010]]+Tabulka1[[#This Row],[GDP země 2011]]+Tabulka1[[#This Row],[GDP země 2012]]+Tabulka1[[#This Row],[GDP země 2013]]) ->  | F47: =AVERAGEIF(Tabulka1[[#This Row],[Import země 2010]:[Import země 2013]],">0") ->  | G47: =Tabulka1[[#This Row],[Import země 2010 - 2013 průměr]]/$F$227 ->  | H47: =(Tabulka1[[#This Row],[Export čr průměr 2010-2013]])/$T$227 -> 6.000862212e-07 | I47: =Tabulka1[[#This Row],[průměrný % podíl na světovém importu]]-Tabulka1[[#This Row],[průměrný % podíl na českém exportu]] ->  | J47: =Tabulka1[[#This Row],[průměrný % podíl na světovém importu]]/Tabulka1[[#This Row],[průměrný % podíl na českém exportu]] ->  | K47: =AVERAGEIF(Tabulka1[[#This Row],[GDP země 2010]:[GDP země 2013]],">0") ->  | L47: =VLOOKUP(B47,'A.4 GDP svět DivExp'!$B$2:$K$215,7,FALSE) -> .. | M47: =VLOOKUP(B47,'A.4 GDP svět DivExp'!$B$2:$K$215,8,FALSE) -> .. | N47: =VLOOKUP(B47,'A.4 GDP svět DivExp'!$B$2:$K$215,9,FALSE) -> .. | O47: =VLOOKUP(B47,'A.4 GDP svět DivExp'!$B$2:$K$215,10,FALSE) -> .. | P47: =VLOOKUP(Tabulka1[[#This Row],[iso code]],'A.4 Export ČR DivExp'!$A$2:$F$204,6,FALSE)*1000 -> 14000 | Q47: =VLOOKUP(A47,'A.4 Export ČR DivExp'!$A$2:$E$204,5,FALSE)*1000 -> 86000 | R47: =VLOOKUP(A47,'A.4 Export ČR DivExp'!$A$2:$E$204,4,FALSE)*1000 -> 82000 | S47: =VLOOKUP(A47,'A.4 Export ČR DivExp'!$A$2:$E$204,3,FALSE)*1000 -> 187000 | T47: =AVERAGEIF(Tabulka1[[#This Row],[Export čr 2010]:[Export čr 2013]],">0") -> 92250 | U47: =VLOOKUP(Tabulka1[[#This Row],[iso code (1)]],'A.4 Import svět DivExp'!$B$2:$M$259,9,FALSE) -> 0 | V47: =VLOOKUP(Tabulka1[[#This Row],[iso code (1)]],'A.4 Import svět DivExp'!$B$2:$M$259,10,FALSE) -> 0 | W47: =VLOOKUP(Tabulka1[[#This Row],[iso code (1)]],'A.4 Import svět DivExp'!$B$2:$M$259,11,FALSE) -> 0 | X47: =VLOOKUP(Tabulka1[[#This Row],[iso code (1)]],'A.4 Import svět DivExp'!$B$2:$M$259,12,FALSE) -> 0
A48: MP | B48: MNP | C48: Northern Mariana Islands | D48: =(Tabulka1[[#This Row],[Export čr 2010]]+Tabulka1[[#This Row],[Export čr 2011]]+Tabulka1[[#This Row],[Export čr 2012]])/(Tabulka1[[#This Row],[Import země 2010]]+Tabulka1[[#This Row],[Import země 2011]]+Tabulka1[[#This Row],[Import země 2012]]) ->  | E48: =(Tabulka1[[#This Row],[Export čr 2010]]+Tabulka1[[#This Row],[Export čr 2011]]+Tabulka1[[#This Row],[Export čr 2012]]+Tabulka1[[#This Row],[Export čr 2013]])/(Tabulka1[[#This Row],[GDP země 2010]]+Tabulka1[[#This Row],[GDP země 2011]]+Tabulka1[[#This Row],[GDP země 2012]]+Tabulka1[[#This Row],[GDP země 2013]]) ->  | F48: =AVERAGEIF(Tabulka1[[#This Row],[Import země 2010]:[Import země 2013]],">0") ->  | G48: =Tabulka1[[#This Row],[Import země 2010 - 2013 průměr]]/$F$227 ->  | H48: =(Tabulka1[[#This Row],[Export čr průměr 2010-2013]])/$T$227 ->  | I48: =Tabulka1[[#This Row],[průměrný % podíl na světovém importu]]-Tabulka1[[#This Row],[průměrný % podíl na českém exportu]] ->  | J48: =Tabulka1[[#This Row],[průměrný % podíl na světovém importu]]/Tabulka1[[#This Row],[průměrný % podíl na českém exportu]] ->  | K48: =AVERAGEIF(Tabulka1[[#This Row],[GDP země 2010]:[GDP země 2013]],">0") ->  | L48: =VLOOKUP(B48,'A.4 GDP svět DivExp'!$B$2:$K$215,7,FALSE) -> .. | M48: =VLOOKUP(B48,'A.4 GDP svět DivExp'!$B$2:$K$215,8,FALSE) -> .. | N48: =VLOOKUP(B48,'A.4 GDP svět DivExp'!$B$2:$K$215,9,FALSE) -> .. | O48: =VLOOKUP(B48,'A.4 GDP svět DivExp'!$B$2:$K$215,10,FALSE) -> .. | P48: =VLOOKUP(Tabulka1[[#This Row],[iso code]],'A.4 Export ČR DivExp'!$A$2:$F$204,6,FALSE)*1000 ->  | Q48: =VLOOKUP(A48,'A.4 Export ČR DivExp'!$A$2:$E$204,5,FALSE)*1000 ->  | R48: =VLOOKUP(A48,'A.4 Export ČR DivExp'!$A$2:$E$204,4,FALSE)*1000 ->  | S48: =VLOOKUP(A48,'A.4 Export ČR DivExp'!$A$2:$E$204,3,FALSE)*1000 ->  | T48: =AVERAGEIF(Tabulka1[[#This Row],[Export čr 2010]:[Export čr 2013]],">0") ->  | U48: =VLOOKUP(Tabulka1[[#This Row],[iso code (1)]],'A.4 Import svět DivExp'!$B$2:$M$259,9,FALSE) -> 0 | V48: =VLOOKUP(Tabulka1[[#This Row],[iso code (1)]],'A.4 Import svět DivExp'!$B$2:$M$259,10,FALSE) -> 0 | W48: =VLOOKUP(Tabulka1[[#This Row],[iso code (1)]],'A.4 Import svět DivExp'!$B$2:$M$259,11,FALSE) -> 0 | X48: =VLOOKUP(Tabulka1[[#This Row],[iso code (1)]],'A.4 Import svět DivExp'!$B$2:$M$259,12,FALSE) -> 0
A49: PN | B49: PCN | C49: Pitcairn Islands | D49: =(Tabulka1[[#This Row],[Export čr 2010]]+Tabulka1[[#This Row],[Export čr 2011]]+Tabulka1[[#This Row],[Export čr 2012]])/(Tabulka1[[#This Row],[Import země 2010]]+Tabulka1[[#This Row],[Import země 2011]]+Tabulka1[[#This Row],[Import země 2012]]) ->  | E49: =(Tabulka1[[#This Row],[Export čr 2010]]+Tabulka1[[#This Row],[Export čr 2011]]+Tabulka1[[#This Row],[Export čr 2012]]+Tabulka1[[#This Row],[Export čr 2013]])/(Tabulka1[[#This Row],[GDP země 2010]]+Tabulka1[[#This Row],[GDP země 2011]]+Tabulka1[[#This Row],[GDP země 2012]]+Tabulka1[[#This Row],[GDP země 2013]]) ->  | F49: =AVERAGEIF(Tabulka1[[#This Row],[Import země 2010]:[Import země 2013]],">0") ->  | G49: =Tabulka1[[#This Row],[Import země 2010 - 2013 průměr]]/$F$227 ->  | H49: =(Tabulka1[[#This Row],[Export čr průměr 2010-2013]])/$T$227 ->  | I49: =Tabulka1[[#This Row],[průměrný % podíl na světovém importu]]-Tabulka1[[#This Row],[průměrný % podíl na českém exportu]] ->  | J49: =Tabulka1[[#This Row],[průměrný % podíl na světovém importu]]/Tabulka1[[#This Row],[průměrný % podíl na českém exportu]] ->  | K49: =AVERAGEIF(Tabulka1[[#This Row],[GDP země 2010]:[GDP země 2013]],">0") ->  | L49: =VLOOKUP(B49,'A.4 GDP svět DivExp'!$B$2:$K$215,7,FALSE) ->  | M49: =VLOOKUP(B49,'A.4 GDP svět DivExp'!$B$2:$K$215,8,FALSE) ->  | N49: =VLOOKUP(B49,'A.4 GDP svět DivExp'!$B$2:$K$215,9,FALSE) ->  | O49: =VLOOKUP(B49,'A.4 GDP svět DivExp'!$B$2:$K$215,10,FALSE) ->  | P49: =VLOOKUP(Tabulka1[[#This Row],[iso code]],'A.4 Export ČR DivExp'!$A$2:$F$204,6,FALSE)*1000 ->  | Q49: =VLOOKUP(A49,'A.4 Export ČR DivExp'!$A$2:$E$204,5,FALSE)*1000 ->  | R49: =VLOOKUP(A49,'A.4 Export ČR DivExp'!$A$2:$E$204,4,FALSE)*1000 ->  | S49: =VLOOKUP(A49,'A.4 Export ČR DivExp'!$A$2:$E$204,3,FALSE)*1000 ->  | T49: =AVERAGEIF(Tabulka1[[#This Row],[Export čr 2010]:[Export čr 2013]],">0") ->  | U49: =VLOOKUP(Tabulka1[[#This Row],[iso code (1)]],'A.4 Import svět DivExp'!$B$2:$M$259,9,FALSE) ->  | V49: =VLOOKUP(Tabulka1[[#This Row],[iso code (1)]],'A.4 Import svět DivExp'!$B$2:$M$259,10,FALSE) ->  | W49: =VLOOKUP(Tabulka1[[#This Row],[iso code (1)]],'A.4 Import svět DivExp'!$B$2:$M$259,11,FALSE) ->  | X49: =VLOOKUP(Tabulka1[[#This Row],[iso code (1)]],'A.4 Import svět DivExp'!$B$2:$M$259,12,FALSE) -> 
A50: RE | B50: REU | C50: Reunion | D50: =(Tabulka1[[#This Row],[Export čr 2010]]+Tabulka1[[#This Row],[Export čr 2011]]+Tabulka1[[#This Row],[Export čr 2012]])/(Tabulka1[[#This Row],[Import země 2010]]+Tabulka1[[#This Row],[Import země 2011]]+Tabulka1[[#This Row],[Import země 2012]]) ->  | E50: =(Tabulka1[[#This Row],[Export čr 2010]]+Tabulka1[[#This Row],[Export čr 2011]]+Tabulka1[[#This Row],[Export čr 2012]]+Tabulka1[[#This Row],[Export čr 2013]])/(Tabulka1[[#This Row],[GDP země 2010]]+Tabulka1[[#This Row],[GDP země 2011]]+Tabulka1[[#This Row],[GDP země 2012]]+Tabulka1[[#This Row],[GDP země 2013]]) ->  | F50: =AVERAGEIF(Tabulka1[[#This Row],[Import země 2010]:[Import země 2013]],">0") ->  | G50: =Tabulka1[[#This Row],[Import země 2010 - 2013 průměr]]/$F$227 ->  | H50: =(Tabulka1[[#This Row],[Export čr průměr 2010-2013]])/$T$227 ->  | I50: =Tabulka1[[#This Row],[průměrný % podíl na světovém importu]]-Tabulka1[[#This Row],[průměrný % podíl na českém exportu]] ->  | J50: =Tabulka1[[#This Row],[průměrný % podíl na světovém importu]]/Tabulka1[[#This Row],[průměrný % podíl na českém exportu]] ->  | K50: =AVERAGEIF(Tabulka1[[#This Row],[GDP země 2010]:[GDP země 2013]],">0") ->  | L50: =VLOOKUP(B50,'A.4 GDP svět DivExp'!$B$2:$K$215,7,FALSE) ->  | M50: =VLOOKUP(B50,'A.4 GDP svět DivExp'!$B$2:$K$215,8,FALSE) ->  | N50: =VLOOKUP(B50,'A.4 GDP svět DivExp'!$B$2:$K$215,9,FALSE) ->  | O50: =VLOOKUP(B50,'A.4 GDP svět DivExp'!$B$2:$K$215,10,FALSE) ->  | P50: =VLOOKUP(Tabulka1[[#This Row],[iso code]],'A.4 Export ČR DivExp'!$A$2:$F$204,6,FALSE)*1000 ->  | Q50: =VLOOKUP(A50,'A.4 Export ČR DivExp'!$A$2:$E$204,5,FALSE)*1000 ->  | R50: =VLOOKUP(A50,'A.4 Export ČR DivExp'!$A$2:$E$204,4,FALSE)*1000 ->  | S50: =VLOOKUP(A50,'A.4 Export ČR DivExp'!$A$2:$E$204,3,FALSE)*1000 ->  | T50: =AVERAGEIF(Tabulka1[[#This Row],[Export čr 2010]:[Export čr 2013]],">0") ->  | U50: =VLOOKUP(Tabulka1[[#This Row],[iso code (1)]],'A.4 Import svět DivExp'!$B$2:$M$259,9,FALSE) ->  | V50: =VLOOKUP(Tabulka1[[#This Row],[iso code (1)]],'A.4 Import svět DivExp'!$B$2:$M$259,10,FALSE) ->  | W50: =VLOOKUP(Tabulka1[[#This Row],[iso code (1)]],'A.4 Import svět DivExp'!$B$2:$M$259,11,FALSE) ->  | X50: =VLOOKUP(Tabulka1[[#This Row],[iso code (1)]],'A.4 Import svět DivExp'!$B$2:$M$259,12,FALSE) -> 
A51: BL | B51: BLM | C51: Saint Barthélemy | D51: =(Tabulka1[[#This Row],[Export čr 2010]]+Tabulka1[[#This Row],[Export čr 2011]]+Tabulka1[[#This Row],[Export čr 2012]])/(Tabulka1[[#This Row],[Import země 2010]]+Tabulka1[[#This Row],[Import země 2011]]+Tabulka1[[#This Row],[Import země 2012]]) ->  | E51: =(Tabulka1[[#This Row],[Export čr 2010]]+Tabulka1[[#This Row],[Export čr 2011]]+Tabulka1[[#This Row],[Export čr 2012]]+Tabulka1[[#This Row],[Export čr 2013]])/(Tabulka1[[#This Row],[GDP země 2010]]+Tabulka1[[#This Row],[GDP země 2011]]+Tabulka1[[#This Row],[GDP země 2012]]+Tabulka1[[#This Row],[GDP země 2013]]) ->  | F51: =AVERAGEIF(Tabulka1[[#This Row],[Import země 2010]:[Import země 2013]],">0") ->  | G51: =Tabulka1[[#This Row],[Import země 2010 - 2013 průměr]]/$F$227 ->  | H51: =(Tabulka1[[#This Row],[Export čr průměr 2010-2013]])/$T$227 ->  | I51: =Tabulka1[[#This Row],[průměrný % podíl na světovém importu]]-Tabulka1[[#This Row],[průměrný % podíl na českém exportu]] ->  | J51: =Tabulka1[[#This Row],[průměrný % podíl na světovém importu]]/Tabulka1[[#This Row],[průměrný % podíl na českém exportu]] ->  | K51: =AVERAGEIF(Tabulka1[[#This Row],[GDP země 2010]:[GDP země 2013]],">0") ->  | L51: =VLOOKUP(B51,'A.4 GDP svět DivExp'!$B$2:$K$215,7,FALSE) ->  | M51: =VLOOKUP(B51,'A.4 GDP svět DivExp'!$B$2:$K$215,8,FALSE) ->  | N51: =VLOOKUP(B51,'A.4 GDP svět DivExp'!$B$2:$K$215,9,FALSE) ->  | O51: =VLOOKUP(B51,'A.4 GDP svět DivExp'!$B$2:$K$215,10,FALSE) ->  | P51: =VLOOKUP(Tabulka1[[#This Row],[iso code]],'A.4 Export ČR DivExp'!$A$2:$F$204,6,FALSE)*1000 ->  | Q51: =VLOOKUP(A51,'A.4 Export ČR DivExp'!$A$2:$E$204,5,FALSE)*1000 ->  | R51: =VLOOKUP(A51,'A.4 Export ČR DivExp'!$A$2:$E$204,4,FALSE)*1000 ->  | S51: =VLOOKUP(A51,'A.4 Export ČR DivExp'!$A$2:$E$204,3,FALSE)*1000 ->  | T51: =AVERAGEIF(Tabulka1[[#This Row],[Export čr 2010]:[Export čr 2013]],">0") ->  | U51: =VLOOKUP(Tabulka1[[#This Row],[iso code (1)]],'A.4 Import svět DivExp'!$B$2:$M$259,9,FALSE) ->  | V51: =VLOOKUP(Tabulka1[[#This Row],[iso code (1)]],'A.4 Import svět DivExp'!$B$2:$M$259,10,FALSE) ->  | W51: =VLOOKUP(Tabulka1[[#This Row],[iso code (1)]],'A.4 Import svět DivExp'!$B$2:$M$259,11,FALSE) ->  | X51: =VLOOKUP(Tabulka1[[#This Row],[iso code (1)]],'A.4 Import svět DivExp'!$B$2:$M$259,12,FALSE) -> 
A52: SH | B52: SHN | C52: Saint Helena | D52: =(Tabulka1[[#This Row],[Export čr 2010]]+Tabulka1[[#This Row],[Export čr 2011]]+Tabulka1[[#This Row],[Export čr 2012]])/(Tabulka1[[#This Row],[Import země 2010]]+Tabulka1[[#This Row],[Import země 2011]]+Tabulka1[[#This Row],[Import země 2012]]) ->  | E52: =(Tabulka1[[#This Row],[Export čr 2010]]+Tabulka1[[#This Row],[Export čr 2011]]+Tabulka1[[#This Row],[Export čr 2012]]+Tabulka1[[#This Row],[Export čr 2013]])/(Tabulka1[[#This Row],[GDP země 2010]]+Tabulka1[[#This Row],[GDP země 2011]]+Tabulka1[[#This Row],[GDP země 2012]]+Tabulka1[[#This Row],[GDP země 2013]]) ->  | F52: =AVERAGEIF(Tabulka1[[#This Row],[Import země 2010]:[Import země 2013]],">0") ->  | G52: =Tabulka1[[#This Row],[Import země 2010 - 2013 průměr]]/$F$227 ->  | H52: =(Tabulka1[[#This Row],[Export čr průměr 2010-2013]])/$T$227 ->  | I52: =Tabulka1[[#This Row],[průměrný % podíl na světovém importu]]-Tabulka1[[#This Row],[průměrný % podíl na českém exportu]] ->  | J52: =Tabulka1[[#This Row],[průměrný % podíl na světovém importu]]/Tabulka1[[#This Row],[průměrný % podíl na českém exportu]] ->  | K52: =AVERAGEIF(Tabulka1[[#This Row],[GDP země 2010]:[GDP země 2013]],">0") ->  | L52: =VLOOKUP(B52,'A.4 GDP svět DivExp'!$B$2:$K$215,7,FALSE) ->  | M52: =VLOOKUP(B52,'A.4 GDP svět DivExp'!$B$2:$K$215,8,FALSE) ->  | N52: =VLOOKUP(B52,'A.4 GDP svět DivExp'!$B$2:$K$215,9,FALSE) ->  | O52: =VLOOKUP(B52,'A.4 GDP svět DivExp'!$B$2:$K$215,10,FALSE) ->  | P52: =VLOOKUP(Tabulka1[[#This Row],[iso code]],'A.4 Export ČR DivExp'!$A$2:$F$204,6,FALSE)*1000 ->  | Q52: =VLOOKUP(A52,'A.4 Export ČR DivExp'!$A$2:$E$204,5,FALSE)*1000 ->  | R52: =VLOOKUP(A52,'A.4 Export ČR DivExp'!$A$2:$E$204,4,FALSE)*1000 ->  | S52: =VLOOKUP(A52,'A.4 Export ČR DivExp'!$A$2:$E$204,3,FALSE)*1000 ->  | T52: =AVERAGEIF(Tabulka1[[#This Row],[Export čr 2010]:[Export čr 2013]],">0") ->  | U52: =VLOOKUP(Tabulka1[[#This Row],[iso code (1)]],'A.4 Import svět DivExp'!$B$2:$M$259,9,FALSE) ->  | V52: =VLOOKUP(Tabulka1[[#This Row],[iso code (1)]],'A.4 Import svět DivExp'!$B$2:$M$259,10,FALSE) ->  | W52: =VLOOKUP(Tabulka1[[#This Row],[iso code (1)]],'A.4 Import svět DivExp'!$B$2:$M$259,11,FALSE) ->  | X52: =VLOOKUP(Tabulka1[[#This Row],[iso code (1)]],'A.4 Import svět DivExp'!$B$2:$M$259,12,FALSE) -> 
A53: MF | B53: MAF | C53: Saint Martin | D53: =(Tabulka1[[#This Row],[Export čr 2010]]+Tabulka1[[#This Row],[Export čr 2011]]+Tabulka1[[#This Row],[Export čr 2012]])/(Tabulka1[[#This Row],[Import země 2010]]+Tabulka1[[#This Row],[Import země 2011]]+Tabulka1[[#This Row],[Import země 2012]]) ->  | E53: =(Tabulka1[[#This Row],[Export čr 2010]]+Tabulka1[[#This Row],[Export čr 2011]]+Tabulka1[[#This Row],[Export čr 2012]]+Tabulka1[[#This Row],[Export čr 2013]])/(Tabulka1[[#This Row],[GDP země 2010]]+Tabulka1[[#This Row],[GDP země 2011]]+Tabulka1[[#This Row],[GDP země 2012]]+Tabulka1[[#This Row],[GDP země 2013]]) ->  | F53: =AVERAGEIF(Tabulka1[[#This Row],[Import země 2010]:[Import země 2013]],">0") ->  | G53: =Tabulka1[[#This Row],[Import země 2010 - 2013 průměr]]/$F$227 ->  | H53: =(Tabulka1[[#This Row],[Export čr průměr 2010-2013]])/$T$227 ->  | I53: =Tabulka1[[#This Row],[průměrný % podíl na světovém importu]]-Tabulka1[[#This Row],[průměrný % podíl na českém exportu]] ->  | J53: =Tabulka1[[#This Row],[průměrný % podíl na světovém importu]]/Tabulka1[[#This Row],[průměrný % podíl na českém exportu]] ->  | K53: =AVERAGEIF(Tabulka1[[#This Row],[GDP země 2010]:[GDP země 2013]],">0") ->  | L53: =VLOOKUP(B53,'A.4 GDP svět DivExp'!$B$2:$K$215,7,FALSE) -> .. | M53: =VLOOKUP(B53,'A.4 GDP svět DivExp'!$B$2:$K$215,8,FALSE) -> .. | N53: =VLOOKUP(B53,'A.4 GDP svět DivExp'!$B$2:$K$215,9,FALSE) -> .. | O53: =VLOOKUP(B53,'A.4 GDP svět DivExp'!$B$2:$K$215,10,FALSE) -> .. | P53: =VLOOKUP(Tabulka1[[#This Row],[iso code]],'A.4 Export ČR DivExp'!$A$2:$F$204,6,FALSE)*1000 ->  | Q53: =VLOOKUP(A53,'A.4 Export ČR DivExp'!$A$2:$E$204,5,FALSE)*1000 ->  | R53: =VLOOKUP(A53,'A.4 Export ČR DivExp'!$A$2:$E$204,4,FALSE)*1000 ->  | S53: =VLOOKUP(A53,'A.4 Export ČR DivExp'!$A$2:$E$204,3,FALSE)*1000 ->  | T53: =AVERAGEIF(Tabulka1[[#This Row],[Export čr 2010]:[Export čr 2013]],">0") ->  | U53: =VLOOKUP(Tabulka1[[#This Row],[iso code (1)]],'A.4 Import svět DivExp'!$B$2:$M$259,9,FALSE) -> 0 | V53: =VLOOKUP(Tabulka1[[#This Row],[iso code (1)]],'A.4 Import svět DivExp'!$B$2:$M$259,10,FALSE) -> 0 | W53: =VLOOKUP(Tabulka1[[#This Row],[iso code (1)]],'A.4 Import svět DivExp'!$B$2:$M$259,11,FALSE) -> 0 | X53: =VLOOKUP(Tabulka1[[#This Row],[iso code (1)]],'A.4 Import svět DivExp'!$B$2:$M$259,12,FALSE) -> 0
A54: PM | B54: SPM | C54: Saint Pierre and Miquelon | D54: =(Tabulka1[[#This Row],[Export čr 2010]]+Tabulka1[[#This Row],[Export čr 2011]]+Tabulka1[[#This Row],[Export čr 2012]])/(Tabulka1[[#This Row],[Import země 2010]]+Tabulka1[[#This Row],[Import země 2011]]+Tabulka1[[#This Row],[Import země 2012]]) ->  | E54: =(Tabulka1[[#This Row],[Export čr 2010]]+Tabulka1[[#This Row],[Export čr 2011]]+Tabulka1[[#This Row],[Export čr 2012]]+Tabulka1[[#This Row],[Export čr 2013]])/(Tabulka1[[#This Row],[GDP země 2010]]+Tabulka1[[#This Row],[GDP země 2011]]+Tabulka1[[#This Row],[GDP země 2012]]+Tabulka1[[#This Row],[GDP země 2013]]) ->  | F54: =AVERAGEIF(Tabulka1[[#This Row],[Import země 2010]:[Import země 2013]],">0") ->  | G54: =Tabulka1[[#This Row],[Import země 2010 - 2013 průměr]]/$F$227 ->  | H54: =(Tabulka1[[#This Row],[Export čr průměr 2010-2013]])/$T$227 ->  | I54: =Tabulka1[[#This Row],[průměrný % podíl na světovém importu]]-Tabulka1[[#This Row],[průměrný % podíl na českém exportu]] ->  | J54: =Tabulka1[[#This Row],[průměrný % podíl na světovém importu]]/Tabulka1[[#This Row],[průměrný % podíl na českém exportu]] ->  | K54: =AVERAGEIF(Tabulka1[[#This Row],[GDP země 2010]:[GDP země 2013]],">0") ->  | L54: =VLOOKUP(B54,'A.4 GDP svět DivExp'!$B$2:$K$215,7,FALSE) ->  | M54: =VLOOKUP(B54,'A.4 GDP svět DivExp'!$B$2:$K$215,8,FALSE) ->  | N54: =VLOOKUP(B54,'A.4 GDP svět DivExp'!$B$2:$K$215,9,FALSE) ->  | O54: =VLOOKUP(B54,'A.4 GDP svět DivExp'!$B$2:$K$215,10,FALSE) ->  | P54: =VLOOKUP(Tabulka1[[#This Row],[iso code]],'A.4 Export ČR DivExp'!$A$2:$F$204,6,FALSE)*1000 ->  | Q54: =VLOOKUP(A54,'A.4 Export ČR DivExp'!$A$2:$E$204,5,FALSE)*1000 ->  | R54: =VLOOKUP(A54,'A.4 Export ČR DivExp'!$A$2:$E$204,4,FALSE)*1000 ->  | S54: =VLOOKUP(A54,'A.4 Export ČR DivExp'!$A$2:$E$204,3,FALSE)*1000 ->  | T54: =AVERAGEIF(Tabulka1[[#This Row],[Export čr 2010]:[Export čr 2013]],">0") ->  | U54: =VLOOKUP(Tabulka1[[#This Row],[iso code (1)]],'A.4 Import svět DivExp'!$B$2:$M$259,9,FALSE) ->  | V54: =VLOOKUP(Tabulka1[[#This Row],[iso code (1)]],'A.4 Import svět DivExp'!$B$2:$M$259,10,FALSE) ->  | W54: =VLOOKUP(Tabulka1[[#This Row],[iso code (1)]],'A.4 Import svět DivExp'!$B$2:$M$259,11,FALSE) ->  | X54: =VLOOKUP(Tabulka1[[#This Row],[iso code (1)]],'A.4 Import svět DivExp'!$B$2:$M$259,12,FALSE) -> 
A55: SM | B55: SMR | C55: San Marino | D55: =(Tabulka1[[#This Row],[Export čr 2010]]+Tabulka1[[#This Row],[Export čr 2011]]+Tabulka1[[#This Row],[Export čr 2012]])/(Tabulka1[[#This Row],[Import země 2010]]+Tabulka1[[#This Row],[Import země 2011]]+Tabulka1[[#This Row],[Import země 2012]]) ->  | E55: =(Tabulka1[[#This Row],[Export čr 2010]]+Tabulka1[[#This Row],[Export čr 2011]]+Tabulka1[[#This Row],[Export čr 2012]]+Tabulka1[[#This Row],[Export čr 2013]])/(Tabulka1[[#This Row],[GDP země 2010]]+Tabulka1[[#This Row],[GDP země 2011]]+Tabulka1[[#This Row],[GDP země 2012]]+Tabulka1[[#This Row],[GDP země 2013]]) ->  | F55: =AVERAGEIF(Tabulka1[[#This Row],[Import země 2010]:[Import země 2013]],">0") ->  | G55: =Tabulka1[[#This Row],[Import země 2010 - 2013 průměr]]/$F$227 ->  | H55: =(Tabulka1[[#This Row],[Export čr průměr 2010-2013]])/$T$227 -> 9.611137038e-06 | I55: =Tabulka1[[#This Row],[průměrný % podíl na světovém importu]]-Tabulka1[[#This Row],[průměrný % podíl na českém exportu]] ->  | J55: =Tabulka1[[#This Row],[průměrný % podíl na světovém importu]]/Tabulka1[[#This Row],[průměrný % podíl na českém exportu]] ->  | K55: =AVERAGEIF(Tabulka1[[#This Row],[GDP země 2010]:[GDP země 2013]],">0") ->  | L55: =VLOOKUP(B55,'A.4 GDP svět DivExp'!$B$2:$K$215,7,FALSE) -> .. | M55: =VLOOKUP(B55,'A.4 GDP svět DivExp'!$B$2:$K$215,8,FALSE) -> .. | N55: =VLOOKUP(B55,'A.4 GDP svět DivExp'!$B$2:$K$215,9,FALSE) -> .. | O55: =VLOOKUP(B55,'A.4 GDP svět DivExp'!$B$2:$K$215,10,FALSE) -> .. | P55: =VLOOKUP(Tabulka1[[#This Row],[iso code]],'A.4 Export ČR DivExp'!$A$2:$F$204,6,FALSE)*1000 -> 1879000 | Q55: =VLOOKUP(A55,'A.4 Export ČR DivExp'!$A$2:$E$204,5,FALSE)*1000 -> 1194000 | R55: =VLOOKUP(A55,'A.4 Export ČR DivExp'!$A$2:$E$204,4,FALSE)*1000 -> 1451000 | S55: =VLOOKUP(A55,'A.4 Export ČR DivExp'!$A$2:$E$204,3,FALSE)*1000 -> 1386000 | T55: =AVERAGEIF(Tabulka1[[#This Row],[Export čr 2010]:[Export čr 2013]],">0") -> 1477500 | U55: =VLOOKUP(Tabulka1[[#This Row],[iso code (1)]],'A.4 Import svět DivExp'!$B$2:$M$259,9,FALSE) -> 0 | V55: =VLOOKUP(Tabulka1[[#This Row],[iso code (1)]],'A.4 Import svět DivExp'!$B$2:$M$259,10,FALSE) -> 0 | W55: =VLOOKUP(Tabulka1[[#This Row],[iso code (1)]],'A.4 Import svět DivExp'!$B$2:$M$259,11,FALSE) -> 0 | X55: =VLOOKUP(Tabulka1[[#This Row],[iso code (1)]],'A.4 Import svět DivExp'!$B$2:$M$259,12,FALSE) -> 0
A56: SO | B56: SOM | C56: Somalia | D56: =(Tabulka1[[#This Row],[Export čr 2010]]+Tabulka1[[#This Row],[Export čr 2011]]+Tabulka1[[#This Row],[Export čr 2012]])/(Tabulka1[[#This Row],[Import země 2010]]+Tabulka1[[#This Row],[Import země 2011]]+Tabulka1[[#This Row],[Import země 2012]]) ->  | E56: =(Tabulka1[[#This Row],[Export čr 2010]]+Tabulka1[[#This Row],[Export čr 2011]]+Tabulka1[[#This Row],[Export čr 2012]]+Tabulka1[[#This Row],[Export čr 2013]])/(Tabulka1[[#This Row],[GDP země 2010]]+Tabulka1[[#This Row],[GDP země 2011]]+Tabulka1[[#This Row],[GDP země 2012]]+Tabulka1[[#This Row],[GDP země 2013]]) ->  | F56: =AVERAGEIF(Tabulka1[[#This Row],[Import země 2010]:[Import země 2013]],">0") ->  | G56: =Tabulka1[[#This Row],[Import země 2010 - 2013 průměr]]/$F$227 ->  | H56: =(Tabulka1[[#This Row],[Export čr průměr 2010-2013]])/$T$227 ->  | I56: =Tabulka1[[#This Row],[průměrný % podíl na světovém importu]]-Tabulka1[[#This Row],[průměrný % podíl na českém exportu]] ->  | J56: =Tabulka1[[#This Row],[průměrný % podíl na světovém importu]]/Tabulka1[[#This Row],[průměrný % podíl na českém exportu]] ->  | K56: =AVERAGEIF(Tabulka1[[#This Row],[GDP země 2010]:[GDP země 2013]],">0") ->  | L56: =VLOOKUP(B56,'A.4 GDP svět DivExp'!$B$2:$K$215,7,FALSE) -> .. | M56: =VLOOKUP(B56,'A.4 GDP svět DivExp'!$B$2:$K$215,8,FALSE) -> .. | N56: =VLOOKUP(B56,'A.4 GDP svět DivExp'!$B$2:$K$215,9,FALSE) -> .. | O56: =VLOOKUP(B56,'A.4 GDP svět DivExp'!$B$2:$K$215,10,FALSE) -> .. | P56: =VLOOKUP(Tabulka1[[#This Row],[iso code]],'A.4 Export ČR DivExp'!$A$2:$F$204,6,FALSE)*1000 ->  | Q56: =VLOOKUP(A56,'A.4 Export ČR DivExp'!$A$2:$E$204,5,FALSE)*1000 ->  | R56: =VLOOKUP(A56,'A.4 Export ČR DivExp'!$A$2:$E$204,4,FALSE)*1000 ->  | S56: =VLOOKUP(A56,'A.4 Export ČR DivExp'!$A$2:$E$204,3,FALSE)*1000 ->  | T56: =AVERAGEIF(Tabulka1[[#This Row],[Export čr 2010]:[Export čr 2013]],">0") ->  | U56: =VLOOKUP(Tabulka1[[#This Row],[iso code (1)]],'A.4 Import svět DivExp'!$B$2:$M$259,9,FALSE) -> 0 | V56: =VLOOKUP(Tabulka1[[#This Row],[iso code (1)]],'A.4 Import svět DivExp'!$B$2:$M$259,10,FALSE) -> 0 | W56: =VLOOKUP(Tabulka1[[#This Row],[iso code (1)]],'A.4 Import svět DivExp'!$B$2:$M$259,11,FALSE) -> 0 | X56: =VLOOKUP(Tabulka1[[#This Row],[iso code (1)]],'A.4 Import svět DivExp'!$B$2:$M$259,12,FALSE) -> 0
A57: TW | B57: TWN | C57: Taiwan | D57: =(Tabulka1[[#This Row],[Export čr 2010]]+Tabulka1[[#This Row],[Export čr 2011]]+Tabulka1[[#This Row],[Export čr 2012]])/(Tabulka1[[#This Row],[Import země 2010]]+Tabulka1[[#This Row],[Import země 2011]]+Tabulka1[[#This Row],[Import země 2012]]) ->  | E57: =(Tabulka1[[#This Row],[Export čr 2010]]+Tabulka1[[#This Row],[Export čr 2011]]+Tabulka1[[#This Row],[Export čr 2012]]+Tabulka1[[#This Row],[Export čr 2013]])/(Tabulka1[[#This Row],[GDP země 2010]]+Tabulka1[[#This Row],[GDP země 2011]]+Tabulka1[[#This Row],[GDP země 2012]]+Tabulka1[[#This Row],[GDP země 2013]]) ->  | F57: =AVERAGEIF(Tabulka1[[#This Row],[Import země 2010]:[Import země 2013]],">0") ->  | G57: =Tabulka1[[#This Row],[Import země 2010 - 2013 průměr]]/$F$227 ->  | H57: =(Tabulka1[[#This Row],[Export čr průměr 2010-2013]])/$T$227 -> 0.0009278227417 | I57: =Tabulka1[[#This Row],[průměrný % podíl na světovém importu]]-Tabulka1[[#This Row],[průměrný % podíl na českém exportu]] ->  | J57: =Tabulka1[[#This Row],[průměrný % podíl na světovém importu]]/Tabulka1[[#This Row],[průměrný % podíl na českém exportu]] ->  | K57: =AVERAGEIF(Tabulka1[[#This Row],[GDP země 2010]:[GDP země 2013]],">0") ->  | L57: =VLOOKUP(B57,'A.4 GDP svět DivExp'!$B$2:$K$215,7,FALSE) ->  | M57: =VLOOKUP(B57,'A.4 GDP svět DivExp'!$B$2:$K$215,8,FALSE) ->  | N57: =VLOOKUP(B57,'A.4 GDP svět DivExp'!$B$2:$K$215,9,FALSE) ->  | O57: =VLOOKUP(B57,'A.4 GDP svět DivExp'!$B$2:$K$215,10,FALSE) ->  | P57: =VLOOKUP(Tabulka1[[#This Row],[iso code]],'A.4 Export ČR DivExp'!$A$2:$F$204,6,FALSE)*1000 -> 103845000 | Q57: =VLOOKUP(A57,'A.4 Export ČR DivExp'!$A$2:$E$204,5,FALSE)*1000 -> 154473000 | R57: =VLOOKUP(A57,'A.4 Export ČR DivExp'!$A$2:$E$204,4,FALSE)*1000 -> 160232000 | S57: =VLOOKUP(A57,'A.4 Export ČR DivExp'!$A$2:$E$204,3,FALSE)*1000 -> 151979000 | T57: =AVERAGEIF(Tabulka1[[#This Row],[Export čr 2010]:[Export čr 2013]],">0") -> 142632250 | U57: =VLOOKUP(Tabulka1[[#This Row],[iso code (1)]],'A.4 Import svět DivExp'!$B$2:$M$259,9,FALSE) ->  | V57: =VLOOKUP(Tabulka1[[#This Row],[iso code (1)]],'A.4 Import svět DivExp'!$B$2:$M$259,10,FALSE) ->  | W57: =VLOOKUP(Tabulka1[[#This Row],[iso code (1)]],'A.4 Import svět DivExp'!$B$2:$M$259,11,FALSE) ->  | X57: =VLOOKUP(Tabulka1[[#This Row],[iso code (1)]],'A.4 Import svět DivExp'!$B$2:$M$259,12,FALSE) -> 
A58: TK | B58: TKL | C58: Tokelau | D58: =(Tabulka1[[#This Row],[Export čr 2010]]+Tabulka1[[#This Row],[Export čr 2011]]+Tabulka1[[#This Row],[Export čr 2012]])/(Tabulka1[[#This Row],[Import země 2010]]+Tabulka1[[#This Row],[Import země 2011]]+Tabulka1[[#This Row],[Import země 2012]]) ->  | E58: =(Tabulka1[[#This Row],[Export čr 2010]]+Tabulka1[[#This Row],[Export čr 2011]]+Tabulka1[[#This Row],[Export čr 2012]]+Tabulka1[[#This Row],[Export čr 2013]])/(Tabulka1[[#This Row],[GDP země 2010]]+Tabulka1[[#This Row],[GDP země 2011]]+Tabulka1[[#This Row],[GDP země 2012]]+Tabulka1[[#This Row],[GDP země 2013]]) ->  | F58: =AVERAGEIF(Tabulka1[[#This Row],[Import země 2010]:[Import země 2013]],">0") ->  | G58: =Tabulka1[[#This Row],[Import země 2010 - 2013 průměr]]/$F$227 ->  | H58: =(Tabulka1[[#This Row],[Export čr průměr 2010-2013]])/$T$227 ->  | I58: =Tabulka1[[#This Row],[průměrný % podíl na světovém importu]]-Tabulka1[[#This Row],[průměrný % podíl na českém exportu]] ->  | J58: =Tabulka1[[#This Row],[průměrný % podíl na světovém importu]]/Tabulka1[[#This Row],[průměrný % podíl na českém exportu]] ->  | K58: =AVERAGEIF(Tabulka1[[#This Row],[GDP země 2010]:[GDP země 2013]],">0") ->  | L58: =VLOOKUP(B58,'A.4 GDP svět DivExp'!$B$2:$K$215,7,FALSE) ->  | M58: =VLOOKUP(B58,'A.4 GDP svět DivExp'!$B$2:$K$215,8,FALSE) ->  | N58: =VLOOKUP(B58,'A.4 GDP svět DivExp'!$B$2:$K$215,9,FALSE) ->  | O58: =VLOOKUP(B58,'A.4 GDP svět DivExp'!$B$2:$K$215,10,FALSE) ->  | P58: =VLOOKUP(Tabulka1[[#This Row],[iso code]],'A.4 Export ČR DivExp'!$A$2:$F$204,6,FALSE)*1000 ->  | Q58: =VLOOKUP(A58,'A.4 Export ČR DivExp'!$A$2:$E$204,5,FALSE)*1000 ->  | R58: =VLOOKUP(A58,'A.4 Export ČR DivExp'!$A$2:$E$204,4,FALSE)*1000 ->  | S58: =VLOOKUP(A58,'A.4 Export ČR DivExp'!$A$2:$E$204,3,FALSE)*1000 ->  | T58: =AVERAGEIF(Tabulka1[[#This Row],[Export čr 2010]:[Export čr 2013]],">0") ->  | U58: =VLOOKUP(Tabulka1[[#This Row],[iso code (1)]],'A.4 Import svět DivExp'!$B$2:$M$259,9,FALSE) ->  | V58: =VLOOKUP(Tabulka1[[#This Row],[iso code (1)]],'A.4 Import svět DivExp'!$B$2:$M$259,10,FALSE) ->  | W58: =VLOOKUP(Tabulka1[[#This Row],[iso code (1)]],'A.4 Import svět DivExp'!$B$2:$M$259,11,FALSE) ->  | X58: =VLOOKUP(Tabulka1[[#This Row],[iso code (1)]],'A.4 Import svět DivExp'!$B$2:$M$259,12,FALSE) -> 
A59: VA | B59: VAT | C59: Vatican | D59: =(Tabulka1[[#This Row],[Export čr 2010]]+Tabulka1[[#This Row],[Export čr 2011]]+Tabulka1[[#This Row],[Export čr 2012]])/(Tabulka1[[#This Row],[Import země 2010]]+Tabulka1[[#This Row],[Import země 2011]]+Tabulka1[[#This Row],[Import země 2012]]) ->  | E59: =(Tabulka1[[#This Row],[Export čr 2010]]+Tabulka1[[#This Row],[Export čr 2011]]+Tabulka1[[#This Row],[Export čr 2012]]+Tabulka1[[#This Row],[Export čr 2013]])/(Tabulka1[[#This Row],[GDP země 2010]]+Tabulka1[[#This Row],[GDP země 2011]]+Tabulka1[[#This Row],[GDP země 2012]]+Tabulka1[[#This Row],[GDP země 2013]]) ->  | F59: =AVERAGEIF(Tabulka1[[#This Row],[Import země 2010]:[Import země 2013]],">0") ->  | G59: =Tabulka1[[#This Row],[Import země 2010 - 2013 průměr]]/$F$227 ->  | H59: =(Tabulka1[[#This Row],[Export čr průměr 2010-2013]])/$T$227 ->  | I59: =Tabulka1[[#This Row],[průměrný % podíl na světovém importu]]-Tabulka1[[#This Row],[průměrný % podíl na českém exportu]] ->  | J59: =Tabulka1[[#This Row],[průměrný % podíl na světovém importu]]/Tabulka1[[#This Row],[průměrný % podíl na českém exportu]] ->  | K59: =AVERAGEIF(Tabulka1[[#This Row],[GDP země 2010]:[GDP země 2013]],">0") ->  | L59: =VLOOKUP(B59,'A.4 GDP svět DivExp'!$B$2:$K$215,7,FALSE) ->  | M59: =VLOOKUP(B59,'A.4 GDP svět DivExp'!$B$2:$K$215,8,FALSE) ->  | N59: =VLOOKUP(B59,'A.4 GDP svět DivExp'!$B$2:$K$215,9,FALSE) ->  | O59: =VLOOKUP(B59,'A.4 GDP svět DivExp'!$B$2:$K$215,10,FALSE) ->  | P59: =VLOOKUP(Tabulka1[[#This Row],[iso code]],'A.4 Export ČR DivExp'!$A$2:$F$204,6,FALSE)*1000 ->  | Q59: =VLOOKUP(A59,'A.4 Export ČR DivExp'!$A$2:$E$204,5,FALSE)*1000 ->  | R59: =VLOOKUP(A59,'A.4 Export ČR DivExp'!$A$2:$E$204,4,FALSE)*1000 ->  | S59: =VLOOKUP(A59,'A.4 Export ČR DivExp'!$A$2:$E$204,3,FALSE)*1000 ->  | T59: =AVERAGEIF(Tabulka1[[#This Row],[Export čr 2010]:[Export čr 2013]],">0") ->  | U59: =VLOOKUP(Tabulka1[[#This Row],[iso code (1)]],'A.4 Import svět DivExp'!$B$2:$M$259,9,FALSE) ->  | V59: =VLOOKUP(Tabulka1[[#This Row],[iso code (1)]],'A.4 Import svět DivExp'!$B$2:$M$259,10,FALSE) ->  | W59: =VLOOKUP(Tabulka1[[#This Row],[iso code (1)]],'A.4 Import svět DivExp'!$B$2:$M$259,11,FALSE) ->  | X59: =VLOOKUP(Tabulka1[[#This Row],[iso code (1)]],'A.4 Import svět DivExp'!$B$2:$M$259,12,FALSE) -> 
